Workbook

Sheet START
A1: =muni -> WC031 Theewaterskloof

Sheet Instructions
D2: 2020
X4: Yes
X5: No
W7: Type of Entities Range: | X7: Parent Municipality
X8: Consolidated Information
W10: Date of Adjustment | X10: 16 April 2026
W19: MTREF Range: | X19: 2013
X20: 2014
X21: 2015
X22: 2016
X23: 2017
X24: 2018
X25: 2019
X26: 2020
X27: 2021
X28: 2022
X29: 2023
X30: 2024
X31: 2025
X32: 2026
W33: MTREF Linked:
W34: MTREF:
X35: 13
W36: Fin Year: | X36: =INDEX(X19:X33,X35,1) -> 2025
X38: =MTREF&"/"&RIGHT(MTREF,2)+1 -> 2025/26

Sheet Template names (hidden)
A1: Common sheet headings
A2: Head1 | B2: =HLOOKUP(MTREF,Headings,2) -> 2024/25 | C2: Prior year -1
A3: Head1A | B3: =HLOOKUP(MTREF,Headings,3) -> 2023/24 | C3: Prior year -2
A4: Head1B | B4: =HLOOKUP(MTREF,Headings,4) -> 2022/23 | C4: Prior year -3
A5: Head2 | B5: =HLOOKUP(MTREF,Headings,7) -> Budget Year 2025/26 | C5: Year of approved budget
A6: Head2A | B6: =HLOOKUP(MTREF,Headings,6) -> 2025/26 | C6: Approved budget year
A7: Head3 | B7: =HLOOKUP(MTREF,Headings,5) -> 2025/26 Medium Term Revenue & Expenditure Framework | C7: MTREF header name
A8: Head3A | B8: Medium Term Revenue and Expenditure Framework
A9: Head4 | B9: Current year
A10: Head5 | B10: Audited Outcome
A11: Head5A | B11: Outcome
A12: Head5B | B12: Pre-audit outcome
A13: Head6 | B13: Original Budget
A14: Head7 | B14: Adjusted Budget
A15: Head8 | B15: Full Year Forecast
A16: Head9 | B16: =HLOOKUP(MTREF,Headings,7) -> Budget Year 2025/26 | C16: 1st year of MTREF | D16: Year1
A17: Head10 | B17: =HLOOKUP(MTREF,Headings,8) -> Budget Year +1 2026/27 | C17: 2nd year of MTREF | D17: Year2
A18: Head11 | B18: =HLOOKUP(MTREF,Headings,9) -> Budget Year +2 2027/28 | C18: 3rd year of MTREF | D18: Year3
A19: Head24 | B19: Description | D19: Desc
A20: Head26 | B20: Vote Description | D20: VDesc
A21: Head27 | B21: Ref
A22: Head27a | B22: References
A23: Head28 | B23: Surplus/ (Deficit) for the year | D23: Result
A24: Head29 | B24: Annual target 2007/08
A25: Head30 | B25: Revised target 2007/08
A26: Head31 | B26: Quarter ended 30 September
A27: Head32 | B27: Quarter ended 31 December
A28: Head33 | B28: Quarter ended 31 March
A29: Head34 | B29: Quarter ended 30 June
A30: Head35 | B30: Variance explanation
A31: Head36 | B31: YTD Actual 31 Dec
A32: Head37 | B32: YTD Budget 31 Dec
A33: Head38 | B33: Monthly actual
A34: Head39 | B34: YearTD actual
A35: Head40 | B35: YearTD budget
A36: Head41 | B36: YTD variance
A37: Head42 | B37: Surplus/ (Deficit) for the yr/period
A38: Head43 | B38: =Head3&" Summary" -> 2025/26 Medium Term Revenue & Expenditure Framework Summary
A39: Head44 | B39: 2001 Census
A40: Head45 | B40: 2011 Census
A41: Head46 | B41: - Adjustments Budget - January 2007
A42: Head47 | B42: Previous target year to complete
A43: Head48 | B43: Present value
A44: Head49
A45: Head50 | B45: Other Adjusts.
A46: Head51 | B46: Accum. Funds
A47: Head52 | B47: Multi-year capital
A48: Head53 | B48: Unfore. Unavoid.
A49: Head54 | B49: Prior Adjusted
A50: Head55 | B50: Nat. or Prov. Govt
A51: Head56 | B51: Total Adjusts.
A52: Head57 | B52: Month DD, YYYY -
A53: Head58 | B53: Parent muni.
A54: Head59 | B54: Downward adjusts
A55: SFPerf1 | B55: Budgeted Financial Performance
A56: SFPerf2 | B56: Forecast Financial Performance
A57: SFPos1 | B57: Budgeted Financial Position
A58: SFPos2 | B58: Forecast Financial Position
A59: Cash1 | B59: Budget Cash Flow
A60: Cash2 | B60: Forecast Cash Flow
A61: RandM | B61: Expenditure includes repairs & maintenance of R'000
A62: Standard nomenclature
A63: Muni | B63: ='Lookup and lists'!B28 -> WC031 Theewaterskloof
A64: Municipal Entities | B64: 2 | C64: Type of report: | D64: 3
A65: =IF((MuniEntities=1)*(MuniType=2),"YES","NO") -> NO | B65: Does this municipality have entities (consolidated budget and entity budgets required)? YES/NO
A66: Mid Year Review/Adjustment Budget schedules & tables | E66: Consolidated header | F66: Parent municipality header
A67: ADJSum | B67: =D67&IF(Consolques="YES",E67,F67) -> Table B1 Adjustments Budget Summary | D67: Table B1 | E67: ="Consolidated "&F67 -> Consolidated Adjustments Budget Summary | F67: ="Adjustments Budget Summary" -> Adjustments Budget Summary
A68: ADJ2 | B68: Table B3 Adjustments Budget Financial Performance (revenue and expenditure by municipal vote) | D68: Table B3 | E68: ="Consolidated "&F68 -> Consolidated Adjustments Budget Financial Performance (revenue and expenditure by municipal vote) | F68: ="Adjustments Budget Financial Performance (revenue and expenditure by municipal vote)" -> Adjustments Budget Financial Performance (revenue and expenditure by municipal vote)
A69: ADJ3 | B69: Table B2 Adjustments Budget Financial Performance (functional classification) | D69: Table B2 | E69: Consolidated Adjustments Budget Financial Performance (functional classification) | F69: ="Adjustments Budget Financial Performance (functional classification)" -> Adjustments Budget Financial Performance (functional classification)
A70: ADJ4 | B70: Table B4 Adjustments Budget Financial Performance (revenue and expenditure) | D70: Table B4 | E70: Consolidated Adjustments Budget Financial Performance (revenue and expenditure) | F70: ="Adjustments Budget Financial Performance (revenue and expenditure)" -> Adjustments Budget Financial Performance (revenue and expenditure)
A71: ADJ5 | B71: Table B5 Adjustments Capital Expenditure Budget by vote and funding | D71: Table B5 | E71: Consolidated Adjustments Capital Expenditure Budget by vote and funding | F71: ="Adjustments Capital Expenditure Budget by vote and funding" -> Adjustments Capital Expenditure Budget by vote and funding
A72: ADJ6 | B72: Table B6 Adjustments Budget Financial Position | D72: Table B6 | E72: Consolidated Adjustments Budget Financial Position | F72: ="Adjustments Budget Financial Position" -> Adjustments Budget Financial Position
A73: ADJ7 | B73: Table B7 Adjustments Budget Cash Flows | D73: Table B7 | E73: Consolidated Adjustments Budget Cash Flows | F73: ="Adjustments Budget Cash Flows" -> Adjustments Budget Cash Flows
A74: ADJ8 | B74: Table B8 Cash backed reserves/accumulated surplus reconciliation | D74: Table B8 | E74: Consolidated Cash backed reserves/accumulated surplus reconciliation | F74: ="Cash backed reserves/accumulated surplus reconciliation" -> Cash backed reserves/accumulated surplus reconciliation
A75: ADJ9 | B75: Table B9 Asset Management | D75: Table B9 | E75: Consolidated Asset Management | F75: ="Asset Management" -> Asset Management
A76: ADJ10 | B76: Table B10 Basic service delivery measurement | D76: Table B10 | E76: Consolidated Basic service delivery measurement | F76: ="Basic service delivery measurement" -> Basic service delivery measurement
A77: ADJB1 | B77: Supporting Table SB1 Supporting detail to 'Budgeted Financial Performance' | D77: =D101&"Table SB1 " -> Supporting Table SB1 | E77: Consolidated Supporting detail to 'Budgeted Financial Performance' | F77: ="Supporting detail to 'Budgeted Financial Performance'" -> Supporting detail to 'Budgeted Financial Performance'
A78: ADJB2 | B78: Supporting Table SB2 Supporting detail to 'Financial Position Budget' | D78: =D101&"Table SB2 " -> Supporting Table SB2 | E78: Consolidated Supporting detail to 'Financial Position Budget' | F78: ="Supporting detail to 'Financial Position Budget'" -> Supporting detail to 'Financial Position Budget'
A79: ADJB3 | B79: Supporting Table SB3 Adjustments to the SDBIP - performance objectives | D79: =D101&"Table SB3 " -> Supporting Table SB3 | E79: Consolidated Adjustments to the SDBIP - performance objectives | F79: ="Adjustments to the SDBIP - performance objectives" -> Adjustments to the SDBIP - performance objectives
A80: ADJB4 | B80: Supporting Table SB4 Adjustments to budgeted performance indicators and benchmarks | D80: =D101&"Table SB4 " -> Supporting Table SB4 | E80: Consolidated Adjustments to budgeted performance indicators and benchmarks | F80: ="Adjustments to budgeted performance indicators and benchmarks" -> Adjustments to budgeted performance indicators and benchmarks
A81: ADJB5 | B81: Supporting Table SB5 Adjustments Budget - social, economic and demographic statistics and assumptions | D81: =D101&"Table SB5 " -> Supporting Table SB5 | E81: Consolidated Adjustments Budget - social, economic and demographic statistics and assumptions | F81: ="Adjustments Budget - social, economic and demographic statistics and assumptions" -> Adjustments Budget - social, economic and demographic statistics and assumptions
A82: ADJB6 | B82: Supporting Table SB6 Adjustments Budget - funding measurement | D82: =D101&"Table SB6 " -> Supporting Table SB6 | E82: Consolidated Adjustments Budget - funding measurement | F82: ="Adjustments Budget - funding measurement" -> Adjustments Budget - funding measurement
A83: ADJB7 | B83: Supporting Table SB7 Adjustments Budget - transfers and grant receipts | D83: =D101&"Table SB7 " -> Supporting Table SB7 | E83: Consolidated Adjustments Budget - transfers and grant receipts | F83: ="Adjustments Budget - transfers and grant receipts" -> Adjustments Budget - transfers and grant receipts
A84: ADJB8 | B84: Supporting Table SB8 Adjustments Budget - expenditure on transfers and grant programme | D84: =D101&"Table SB8 " -> Supporting Table SB8 | E84: Consolidated Adjustments Budget - expenditure on transfers and grant programme | F84: ="Adjustments Budget - expenditure on transfers and grant programme" -> Adjustments Budget - expenditure on transfers and grant programme
A85: ADJB9 | B85: Supporting Table SB9 Adjustments Budget - reconciliation of transfers, grant receipts, and unspent funds | D85: =D101&"Table SB9 " -> Supporting Table SB9 | E85: Consolidated Adjustments Budget - reconciliation of transfers, grant receipts, and unspent funds | F85: ="Adjustments Budget - reconciliation of transfers, grant receipts, and unspent funds" -> Adjustments Budget - reconciliation of transfers, grant receipts, and unspent funds
A86: ADJB10 | B86: Supporting Table SB10 Adjustments Budget - transfers and grants made by the municipality | D86: =D101&"Table SB10 " -> Supporting Table SB10 | E86: Consolidated Adjustments Budget - transfers and grants made by the municipality | F86: ="Adjustments Budget - transfers and grants made by the municipality" -> Adjustments Budget - transfers and grants made by the municipality
A87: ADJB11 | B87: Supporting Table SB11 Adjustments Budget - councillor and staff benefits | D87: =D101&"Table SB11 " -> Supporting Table SB11 | E87: Consolidated Adjustments Budget - councillor and staff benefits | F87: ="Adjustments Budget - councillor and staff benefits" -> Adjustments Budget - councillor and staff benefits
A88: ADJB12 | B88: Supporting Table SB12 Adjustments Budget - monthly revenue and expenditure (municipal vote) | D88: =D101&"Table SB12 " -> Supporting Table SB12 | E88: Consolidated Adjustments Budget - monthly revenue and expenditure (municipal vote) | F88: ="Adjustments Budget - monthly revenue and expenditure (municipal vote)" -> Adjustments Budget - monthly revenue and expenditure (municipal vote)
A89: ADJB13 | B89: Supporting Table SB13 Adjustments Budget - monthly revenue and expenditure (functional classification) | D89: =D101&"Table SB13 " -> Supporting Table SB13 | E89: Consolidated Adjustments Budget - monthly revenue and expenditure (functional classification) | F89: ="Adjustments Budget - monthly revenue and expenditure (functional classification)" -> Adjustments Budget - monthly revenue and expenditure (functional classification)
A90: ADJB14 | B90: Supporting Table SB14 Adjustments Budget - monthly revenue and expenditure | D90: =D101&"Table SB14 " -> Supporting Table SB14 | E90: Consolidated Adjustments Budget - monthly revenue and expenditure | F90: ="Adjustments Budget - monthly revenue and expenditure" -> Adjustments Budget - monthly revenue and expenditure
A91: ADJB15 | B91: Supporting Table SB15 Adjustments Budget - monthly cash flow | D91: =D101&"Table SB15 " -> Supporting Table SB15 | E91: Consolidated Adjustments Budget - monthly cash flow | F91: ="Adjustments Budget - monthly cash flow" -> Adjustments Budget - monthly cash flow
A92: ADJB16 | B92: Supporting Table SB16 Adjustments Budget - monthly capital expenditure (municipal vote) | D92: =D101&"Table SB16 " -> Supporting Table SB16 | E92: Consolidated Adjustments Budget - monthly capital expenditure (municipal vote) | F92: ="Adjustments Budget - monthly capital expenditure (municipal vote)" -> Adjustments Budget - monthly capital expenditure (municipal vote)
A93: ADJB17 | B93: Supporting Table SB17 Adjustments Budget - monthly capital expenditure (functional classification) | D93: =D101&"Table SB17 " -> Supporting Table SB17 | E93: Consolidated Adjustments Budget - monthly capital expenditure (functional classification) | F93: ="Adjustments Budget - monthly capital expenditure (functional classification)" -> Adjustments Budget - monthly capital expenditure (functional classification)
A94: ADJB18a | B94: Supporting Table SB18a Adjustments Budget - capital expenditure on new assets by asset class | D94: =D101&"Table SB18a " -> Supporting Table SB18a | E94: Consolidated Adjustments Budget - capital expenditure on new assets by asset class | F94: ="Adjustments Budget - capital expenditure on new assets by asset class" -> Adjustments Budget - capital expenditure on new assets by asset class
A95: ADJB18b | B95: Supporting Table SB18b Adjustments Budget - capital expenditure on renewal of existing assets by asset class | D95: =D101&"Table SB18b " -> Supporting Table SB18b | E95: ="Consolidated "&F95 -> Consolidated Adjustments Budget - capital expenditure on renewal of existing assets by asset class | F95: ="Adjustments Budget - capital expenditure on renewal of existing assets by asset class" -> Adjustments Budget - capital expenditure on renewal of existing assets by asset class
A96: ADJB18c | B96: Supporting Table SB18c Adjustments Budget - expenditure on repairs and maintenance by asset class | D96: =D101&"Table SB18c " -> Supporting Table SB18c | E96: ="Consolidated "&F96 -> Consolidated Adjustments Budget - expenditure on repairs and maintenance by asset class | F96: ="Adjustments Budget - expenditure on repairs and maintenance by asset class" -> Adjustments Budget - expenditure on repairs and maintenance by asset class
A97: ADJB18d | B97: Supporting Table SB18d Adjustments Budget - depreciation by asset class | D97: =D101&"Table SB18d " -> Supporting Table SB18d | E97: ="Consolidated "&F97 -> Consolidated Adjustments Budget - depreciation by asset class | F97: ="Adjustments Budget - depreciation by asset class" -> Adjustments Budget - depreciation by asset class
A98: ADJB18e | B98: Supporting Table SB18e Adjustments Budget - capital expenditure on upgrading of existing assets by asset class | D98: =D101&"Table SB18e " -> Supporting Table SB18e | E98: ="Consolidated "&F98 -> Consolidated Adjustments Budget - capital expenditure on upgrading of existing assets by asset class | F98: ="Adjustments Budget - capital expenditure on upgrading of existing assets by asset class" -> Adjustments Budget - capital expenditure on upgrading of existing assets by asset class
A99: ADJB19 | B99: Supporting Table SB19 List of capital programmes and projects affected by Adjustments Budget | D99: =D101&"Table SB19 " -> Supporting Table SB19 | E99: Consolidated List of capital programmes and projects affected by Adjustments Budget | F99: ="List of capital programmes and projects affected by Adjustments Budget" -> List of capital programmes and projects affected by Adjustments Budget
A100: ADJB20 | B100: Supporting Table SB20 Not required | D100: =D101&"Table SB20 " -> Supporting Table SB20 | E100: ="Adjusted Budget Municipal Entity Performance Summary" -> Adjusted Budget Municipal Entity Performance Summary | F100: Not required
D101: Supporting

Sheet Lookup and lists (hidden)
A1: Description | B1: 2013 | C1: 2014 | D1: 2015 | E1: 2016 | F1: 2017 | G1: 2018 | H1: 2019 | I1: 2020 | J1: 2021 | K1: 2022 | L1: 2023 | M1: 2024 | N1: 2025 | O1: 2026 | Q1: Grants: | R1: National - opex | S1: Provincial - opex | T1: National - capex | U1: Provincial - capex | V1: YESNO
A2: ='Template names'!C2 -> Prior year -1 | B2: =B1-1&"/"&RIGHT(B1,2)-0 -> 2012/13 | C2: =C1-1&"/"&RIGHT(C1,2)-0 -> 2013/14 | D2: =D1-1&"/"&RIGHT(D1,2)-0 -> 2014/15 | E2: =E1-1&"/"&RIGHT(E1,2)-0 -> 2015/16 | F2: 2016/17 | G2: 2017/18 | H2: 2018/19 | I2: 2019/20 | J2: 2020/21 | K2: 2021/22 | L2: 2022/23 | M2: 2023/24 | N2: 2024/25 | O2: 2025/26 | R2: Local Government Equitable Share | S2: Health subsidy | T2: Municipal Infrastructure Grant (MIG) | U2: Agriculture | V2: Yes
A3: ='Template names'!C3 -> Prior year -2 | B3: =B1-2&"/"&RIGHT(B1,2)-1 -> 2011/12 | C3: =C1-2&"/"&RIGHT(C1,2)-1 -> 2012/13 | D3: =D1-2&"/"&RIGHT(D1,2)-1 -> 2013/14 | E3: =E1-2&"/"&RIGHT(E1,2)-1 -> 2014/15 | F3: 2015/16 | G3: 2016/17 | H3: 2017/18 | I3: 2018/19 | J3: 2019/20 | K3: 2020/21 | L3: 2021/22 | M3: 2022/23 | N3: 2023/24 | O3: 2024/25 | R3: RSC Levy Replacement | S3: Ambulance subsidy | T3: Public Transport and Systems | U3: Education | V3: No
A4: ='Template names'!C4 -> Prior year -3 | B4: =B1-3&"/"&RIGHT(B1,2)-2 -> 2010/11 | C4: =C1-3&"/"&RIGHT(C1,2)-2 -> 2011/12 | D4: =D1-3&"/"&RIGHT(D1,2)-2 -> 2012/13 | E4: =E1-3&"/"&RIGHT(E1,2)-2 -> 2013/14 | F4: 2014/15 | G4: 2015/16 | H4: 2016/17 | I4: 2017/18 | J4: 2018/19 | K4: 2019/20 | L4: 2020/21 | M4: 2021/22 | N4: 2022/23 | O4: 2023/24 | R4: Finance Management | S4: Housing | T4: Rural Transport Services and Infrastructure | U4: Health
A5: ='Template names'!C7 -> MTREF header name | B5: =B1&"/"&RIGHT(B1,2)+1&" Medium Term Revenue & Expenditure Framework" -> 2013/14 Medium Term Revenue & Expenditure Framework | C5: =C1&"/"&RIGHT(C1,2)+1&" Medium Term Revenue & Expenditure Framework" -> 2014/15 Medium Term Revenue & Expenditure Framework | D5: =D1&"/"&RIGHT(D1,2)+1&" Medium Term Revenue & Expenditure Framework" -> 2015/16 Medium Term Revenue & Expenditure Framework | E5: =E1&"/"&RIGHT(E1,2)+1&" Medium Term Revenue & Expenditure Framework" -> 2016/17 Medium Term Revenue & Expenditure Framework | F5: 2017/18 Medium Term Revenue & Expenditure Framework | G5: 2018/19 Medium Term Revenue & Expenditure Framework | H5: 2019/20 Medium Term Revenue & Expenditure Framework | I5: 2020/21 Medium Term Revenue & Expenditure Framework | J5: 2021/22 Medium Term Revenue & Expenditure Framework | K5: 2022/23 Medium Term Revenue & Expenditure Framework | L5: 2023/24 Medium Term Revenue & Expenditure Framework | M5: 2024/25 Medium Term Revenue & Expenditure Framework | N5: 2025/26 Medium Term Revenue & Expenditure Framework | O5: 2026/27 Medium Term Revenue & Expenditure Framework | R5: Municipal Systems Improvement | S5: Sport and Recreation | T5: Regional Bulk Infrastructure | U5: Housing and Local Government
A6: ='Template names'!C6 -> Approved budget year | B6: =B1&"/"&RIGHT(B1,2)+1 -> 2013/14 | C6: =C1&"/"&RIGHT(C1,2)+1 -> 2014/15 | D6: =D1&"/"&RIGHT(D1,2)+1 -> 2015/16 | E6: =E1&"/"&RIGHT(E1,2)+1 -> 2016/17 | F6: 2017/18 | G6: 2018/19 | H6: 2019/20 | I6: 2020/21 | J6: 2021/22 | K6: 2022/23 | L6: 2023/24 | M6: 2024/25 | N6: 2025/26 | O6: 2026/27 | R6: Water Services Operating Subsidy | T6: Rural Households Infrastructure | U6: Other Departments
A7: ='Template names'!C16 -> 1st year of MTREF | B7: ="Budget Year "&B1&"/"&RIGHT(B1,2)+1 -> Budget Year 2013/14 | C7: ="Budget Year "&C1&"/"&RIGHT(C1,2)+1 -> Budget Year 2014/15 | D7: ="Budget Year "&D1&"/"&RIGHT(D1,2)+1 -> Budget Year 2015/16 | E7: ="Budget Year "&E1&"/"&RIGHT(E1,2)+1 -> Budget Year 2016/17 | F7: Budget Year 2017/18 | G7: Budget Year 2018/19 | H7: Budget Year 2019/20 | I7: Budget Year 2020/21 | J7: Budget Year 2021/22 | K7: Budget Year 2022/23 | L7: Budget Year 2023/24 | M7: Budget Year 2024/25 | N7: Budget Year 2025/26 | O7: Budget Year 2026/27 | R7: Energy Efficiency and Demand Management | T7: Neighbourhood Development Partnership | U7: Public Works, Roads, Transport
A8: ='Template names'!C17 -> 2nd year of MTREF | B8: ="Budget Year +1 "&B1+1&"/"&RIGHT(B1,2)+2 -> Budget Year +1 2014/15 | C8: ="Budget Year +1 "&C1+1&"/"&RIGHT(C1,2)+2 -> Budget Year +1 2015/16 | D8: ="Budget Year +1 "&D1+1&"/"&RIGHT(D1,2)+2 -> Budget Year +1 2016/17 | E8: ="Budget Year +1 "&E1+1&"/"&RIGHT(E1,2)+2 -> Budget Year +1 2017/18 | F8: Budget Year +1 2018/19 | G8: Budget Year +1 2019/20 | H8: Budget Year +1 2020/21 | I8: Budget Year +1 2021/22 | J8: Budget Year +1 2022/23 | K8: Budget Year +1 2023/24 | L8: Budget Year +1 2024/25 | M8: Budget Year +1 2025/26 | N8: Budget Year +1 2026/27 | O8: Budget Year +1 2027/28 | R8: Integrated National Electrification Programme | T8: 2010 FIFA World Cup Stadiums Development | U8: Sport and Recreation
A9: ='Template names'!C18 -> 3rd year of MTREF | B9: ="Budget Year +2 "&B1+2&"/"&RIGHT(B1,2)+3 -> Budget Year +2 2015/16 | C9: ="Budget Year +2 "&C1+2&"/"&RIGHT(C1,2)+3 -> Budget Year +2 2016/17 | D9: ="Budget Year +2 "&D1+2&"/"&RIGHT(D1,2)+3 -> Budget Year +2 2017/18 | E9: ="Budget Year +2 "&E1+2&"/"&RIGHT(E1,2)+3 -> Budget Year +2 2018/19 | F9: Budget Year +2 2019/20 | G9: Budget Year +2 2020/21 | H9: Budget Year +2 2021/22 | I9: Budget Year +2 2022/23 | J9: Budget Year +2 2023/24 | K9: Budget Year +2 2024/25 | L9: Budget Year +2 2025/26 | M9: Budget Year +2 2026/27 | N9: Budget Year +2 2027/28 | O9: Budget Year +2 2028/29 | R9: Municipal Drought Relief
A10: Adjustments Budget | B10: ="Annual target " & B1&"/"&RIGHT(B1,2)+1 -> Annual target 2013/14 | C10: ="Annual target " & C1&"/"&RIGHT(C1,2)+1 -> Annual target 2014/15 | D10: ="Annual target " & D1&"/"&RIGHT(D1,2)+1 -> Annual target 2015/16 | E10: ="Annual target " & E1&"/"&RIGHT(E1,2)+1 -> Annual target 2016/17 | F10: Annual target 2017/18 | G10: Annual target 2018/19 | H10: Annual target 2019/20 | I10: Annual target 2020/21 | J10: Annual target 2021/22 | K10: Annual target 2022/23 | L10: Annual target 2023/24 | M10: Annual target 2024/25 | N10: Annual target 2025/26 | O10: Annual target 2026/27 | R10: 2010 FIFA World Cup Operating
A11: NOTE: This sheet should not be directly amended - select headings from sheet 'S' | R11: Electricity Demand Side Management
R12: EPWP Incentive
R15: Asset Class | S15: Asset sub-class Old | T15: Asset sub-class | U15: IUDF | V15: MTSF
R17: Roads Infrastructure | S17: Roads, Pavements & Bridges | T17: Roads | U17: Spatial integration | V17: Quality basic education
R18: Storm water Infrastructure | S18: Storm water | T18: Road Structures | U18: Inclusion and access | V18: A long and healthy life for all South Africans
R19: Electrical Infrastructure | S19: Generation | T19: Road Furniture | U19: Growth | V19: All people in South Africa are and feel safe
R20: Water Supply Infrastructure | S20: Transmission & Reticulation | T20: Capital Spares | U20: Governance | V20: Decent employment through inclusive growth
R21: Sanitation Infrastructure | S21: Street Lighting | T21: Drainage Collection | V21: A skilled and capable workforce to support an inclusive growth path
R22: Solid Waste Infrastructure | S22: Dams & Reservoirs | T22: Storm water Conveyance | V22: An efficient, competitive and responsive economic infrastructure network
R23: Rail Infrastructure | S23: Water purification | T23: Attenuation | V23: Vibrant, equitable, sustainable rural communities contributing towards food security for all
R24: Coastal Infrastructure | S24: Reticulation | T24: Power Plants | V24: Sustainable human settlements and improved quality of household life
R25: Information and Communication Infrastructure | S25: Sewerage purification | T25: HV Substations | V25: Responsive, accountable, effective and efficient local government
R26: Community Facilities | S26: Waste Management | T26: HV Switching Station | V26: Protect and enhance our environmental assets and natural resources
A27: Name link | B27: 242 | R27: Sport and Recreation Facilities | S27: Transportation | T27: HV Transmission Conductors | V27: Create a better South Africa and contribute to a better Africa and a better world
A28: Name of Muni | B28: =INDEX(B29:B312,B27,1) -> WC031 Theewaterskloof | R28: Heritage assets | S28: Gas | T28: MV Substations | V28: An efficient, effective and development-oriented public service
B29: Choose name from list | C29: Set name on 'Instructions' sheet | R29: Revenue Generating | S29: Parks & gardens | T29: MV Switching Stations | V29: A comprehensive, responsive and sustainable social protection system
B30: BUF Buffalo City | C30: EC EASTERN CAPE | R30: Non-revenue Generating | S30: Sportsfields & stadia | T30: MV Networks | V30: A diverse, socially cohesive society with a common national identity
B31: NMA Nelson Mandela Bay | C31: EC EASTERN CAPE | R31: Operational Buildings | S31: Swimming pools | T31: LV Networks
B32: EC101 Dr Beyers Naude | C32: EC EASTERN CAPE | R32: Housing | S32: Community halls | T32: Capital Spares
B33: EC102 Blue Crane Route | C33: EC EASTERN CAPE | R33: Biological or Cultivated Assets | S33: Libraries | T33: Dams and Weirs
B34: EC104 Makana | C34: EC EASTERN CAPE | R34: Servitudes | S34: Recreational facilities | T34: Boreholes
B35: EC105 Ndlambe | C35: EC EASTERN CAPE | R35: Licences and Rights | S35: Fire, safety & emergency | T35: Reservoirs
B36: EC106 Sundays River Valley | C36: EC EASTERN CAPE | R36: Computer Equipment | S36: Security and policing | T36: Pump Stations
B37: EC108 Kouga | C37: EC EASTERN CAPE | R37: Furniture and Office Equipment | S37: Buses | T37: Water Treatment Works
B38: EC109 Kou-Kamma | C38: EC EASTERN CAPE | R38: Machinery and Equipment | S38: Clinics | T38: Bulk Mains
B39: DC10 Sarah Baartman | C39: EC EASTERN CAPE | R39: Transport Assets | S39: Museums & Art Galleries | T39: Distribution
B40: EC121 Mbhashe | C40: EC EASTERN CAPE | R40: Land | S40: Cemeteries | T40: Distribution Points
B41: EC122 Mnquma | C41: EC EASTERN CAPE | R41: Zoo's, Marine and Non-biological Animals | S41: Social rental housing | T41: PRV Stations
B42: EC123 Great Kei | C42: EC EASTERN CAPE | S42: Buildings | T42: Capital Spares
B43: EC124 Amahlathi | C43: EC EASTERN CAPE | S43: Housing development | T43: Pump Station
B44: EC126 Ngqushwa | C44: EC EASTERN CAPE | S44: General vehicles | T44: Reticulation
B45: EC129 Raymond Mhlaba | C45: EC EASTERN CAPE | S45: Specialised vehicles - Refuse | T45: Waste Water Treatment Works
B46: DC12 Amathole | C46: EC EASTERN CAPE | S46: Specialised vehicles - Fire | T46: Outfall Sewers
B47: EC131 Inxuba Yethemba | C47: EC EASTERN CAPE | S47: Specialised vehicles - Conservancy | T47: Toilet Facilities
B48: EC135 Intsika Yethu | C48: EC EASTERN CAPE | S48: Specialised vehicles - Ambulances | T48: Capital Spares
B49: EC136 Emalahleni (Ec) | C49: EC EASTERN CAPE | S49: Plant & equipment | T49: Landfill Sites
B50: EC137 Engcobo | C50: EC EASTERN CAPE | S50: Computers - hardware/equipment | T50: Waste Transfer Stations
B51: EC138 Sakhisizwe | C51: EC EASTERN CAPE | S51: Furniture and other office equipment | T51: Waste Processing Facilities
B52: EC139 Enoch Mgijima | C52: EC EASTERN CAPE | S52: Abattoirs | T52: Waste Drop-off Points
B53: DC13 Chris Hani | C53: EC EASTERN CAPE | S53: Markets | T53: Waste Separation Facilities
B54: EC141 Elundini | C54: EC EASTERN CAPE | S54: Civic Land and Buildings | T54: Electricity Generation Facilities
B55: EC142 Senqu | C55: EC EASTERN CAPE | S55: Other Buildings | T55: Capital Spares
B56: EC145 Walter Sisulu | C56: EC EASTERN CAPE | S56: Other Land | T56: Rail Lines
B57: DC14 Joe Gqabi | C57: EC EASTERN CAPE | S57: Surplus Assets - (Investment or Inventory) | T57: Rail Structures
B58: EC153 Ngquza Hills | C58: EC EASTERN CAPE | S58: Computers - software & programming | T58: Rail Furniture
B59: EC154 Port St Johns | C59: EC EASTERN CAPE | S59: Other | T59: Drainage Collection
B60: EC155 Nyandeni | C60: EC EASTERN CAPE | T60: Storm water Conveyance
B61: EC156 Mhlontlo | C61: EC EASTERN CAPE | R61: SB 19 | T61: Attenuation
B62: EC157 King Sabata Dalindyebo | C62: EC EASTERN CAPE | R62: Yes | T62: MV Substations
B63: DC15 O .R. Tambo | C63: EC EASTERN CAPE | R63: No | T63: LV Networks
B64: EC441 Matatiele | C64: EC EASTERN CAPE | T64: Capital Spares
B65: EC442 Umzimvubu | C65: EC EASTERN CAPE | T65: Sand Pumps
B66: EC443 Winnie Madikizela Mandela | C66: EC EASTERN CAPE | T66: Piers
B67: EC444 Ntabankulu | C67: EC EASTERN CAPE | T67: Revetments
B68: DC44 Alfred Nzo | C68: EC EASTERN CAPE | T68: Promenades
B69: MAN Mangaung | C69: FS FREE STATE | T69: Capital Spares
B70: FS161 Letsemeng | C70: FS FREE STATE | T70: Data Centres
B71: FS162 Kopanong | C71: FS FREE STATE | T71: Core Layers
B72: FS163 Mohokare | C72: FS FREE STATE | T72: Distribution Layers
B73: DC16 Xhariep | C73: FS FREE STATE | T73: Capital Spares
B74: FS181 Masilonyana | C74: FS FREE STATE | T74: Halls
B75: FS182 Tokologo | C75: FS FREE STATE | T75: Centres
B76: FS183 Tswelopele | C76: FS FREE STATE | T76: Crèches
B77: FS184 Matjhabeng | C77: FS FREE STATE | T77: Clinics/Care Centres
B78: FS185 Nala | C78: FS FREE STATE | T78: Fire/Ambulance Stations
B79: DC18 Lejweleputswa | C79: FS FREE STATE | T79: Testing Stations
B80: FS191 Setsoto | C80: FS FREE STATE | T80: Museums
B81: FS192 Dihlabeng | C81: FS FREE STATE | T81: Galleries
B82: FS193 Nketoana | C82: FS FREE STATE | T82: Theatres
B83: FS194 Maluti-a-Phofung | C83: FS FREE STATE | T83: Libraries
B84: FS195 Phumelela | C84: FS FREE STATE | T84: Cemeteries/Crematoria
B85: FS196 Mantsopa | C85: FS FREE STATE | T85: Police
B86: DC19 Thabo Mofutsanyana | C86: FS FREE STATE | T86: Purls
B87: FS201 Moqhaka | C87: FS FREE STATE | T87: Public Open Space
B88: FS203 Ngwathe | C88: FS FREE STATE | T88: Nature Reserves
B89: FS204 Metsimaholo | C89: FS FREE STATE | T89: Public Ablution Facilities
B90: FS205 Mafube | C90: FS FREE STATE | T90: Markets
B91: DC20 Fezile Dabi | C91: FS FREE STATE | T91: Stalls
B92: EKU City of Ekurhuleni | C92: GT GAUTENG | T92: Abattoirs
B93: JHB City Of Johannesburg | C93: GT GAUTENG | T93: Airports
B94: TSH City Of Tshwane | C94: GT GAUTENG | T94: Taxi Ranks/Bus Terminals
B95: GT421 Emfuleni | C95: GT GAUTENG | T95: Capital Spares
B96: GT422 Midvaal | C96: GT GAUTENG | T96: Indoor Facilities
B97: GT423 Lesedi | C97: GT GAUTENG | T97: Outdoor Facilities
B98: DC42 Sedibeng | C98: GT GAUTENG | T98: Capital Spares
B99: GT481 Mogale City | C99: GT GAUTENG | T99: Monuments
B100: GT484 Merafong City | C100: GT GAUTENG | T100: Historic Buildings
B101: GT485 Rand West City | C101: GT GAUTENG | T101: Works of Art
B102: DC48 West Rand | C102: GT GAUTENG | T102: Conservation Areas
B103: ETH eThekwini | C103: KZN KWAZULU-NATAL | T103: Other Heritage
B104: KZN212 Umdoni | C104: KZN KWAZULU-NATAL | T104: Improved Property
B105: KZN213 Umzumbe | C105: KZN KWAZULU-NATAL | T105: Unimproved Property
B106: KZN214 uMuziwabantu | C106: KZN KWAZULU-NATAL | T106: Municipal Offices
B107: KZN216 Ray Nkonyeni | C107: KZN KWAZULU-NATAL | T107: Pay/Enquiry Points
B108: DC21 Ugu | C108: KZN KWAZULU-NATAL | T108: Building Plan Offices
B109: KZN221 uMshwathi | C109: KZN KWAZULU-NATAL | T109: Workshops
B110: KZN222 uMngeni | C110: KZN KWAZULU-NATAL | T110: Yards
B111: KZN223 Mpofana | C111: KZN KWAZULU-NATAL | T111: Stores
B112: KZN224 Impendle | C112: KZN KWAZULU-NATAL | T112: Laboratories
B113: KZN225 Msunduzi | C113: KZN KWAZULU-NATAL | T113: Training Centres
B114: KZN226 Mkhambathini | C114: KZN KWAZULU-NATAL | T114: Manufacturing Plant
B115: KZN227 Richmond | C115: KZN KWAZULU-NATAL | T115: Depots
B116: DC22 uMgungundlovu | C116: KZN KWAZULU-NATAL | T116: Capital Spares
B117: KZN235 Okhahlamba | C117: KZN KWAZULU-NATAL | T117: Staff Housing
B118: KZN237 Inkosi Langalibalele | C118: KZN KWAZULU-NATAL | T118: Social Housing
B119: KZN238 Alfred Duma | C119: KZN KWAZULU-NATAL | T119: Capital Spares
B120: DC23 Uthukela | C120: KZN KWAZULU-NATAL | T120: Water Rights
B121: KZN241 Endumeni | C121: KZN KWAZULU-NATAL | T121: Effluent Licenses
B122: KZN242 Nquthu | C122: KZN KWAZULU-NATAL | T122: Solid Waste Licenses
B123: KZN244 Msinga | C123: KZN KWAZULU-NATAL | T123: Computer Software and Applications
B124: KZN245 Umvoti | C124: KZN KWAZULU-NATAL | T124: Load Settlement Software Applications
B125: DC24 Umzinyathi | C125: KZN KWAZULU-NATAL | T125: Unspecified
B126: KZN252 Newcastle | C126: KZN KWAZULU-NATAL
B127: KZN253 Emadlangeni | C127: KZN KWAZULU-NATAL
B128: KZN254 Dannhauser | C128: KZN KWAZULU-NATAL
B129: DC25 Amajuba | C129: KZN KWAZULU-NATAL
B130: KZN261 eDumbe | C130: KZN KWAZULU-NATAL
B131: KZN262 uPhongolo | C131: KZN KWAZULU-NATAL
B132: KZN263 Abaqulusi | C132: KZN KWAZULU-NATAL
B133: KZN265 Nongoma | C133: KZN KWAZULU-NATAL
B134: KZN266 Ulundi | C134: KZN KWAZULU-NATAL
B135: DC26 Zululand | C135: KZN KWAZULU-NATAL
B136: KZN271 Umhlabuyalingana | C136: KZN KWAZULU-NATAL
B137: KZN272 Jozini | C137: KZN KWAZULU-NATAL
B138: KZN275 Mtubatuba | C138: KZN KWAZULU-NATAL
B139: KZN276 Hlabisa Big Five | C139: KZN KWAZULU-NATAL
B140: DC27 Umkhanyakude | C140: KZN KWAZULU-NATAL
B141: KZN281 Mfolozi | C141: KZN KWAZULU-NATAL
B142: KZN282 uMhlathuze | C142: KZN KWAZULU-NATAL
B143: KZN284 uMlalazi | C143: KZN KWAZULU-NATAL
B144: KZN285 Mthonjaneni | C144: KZN KWAZULU-NATAL
B145: KZN286 Nkandla | C145: KZN KWAZULU-NATAL
B146: DC28 King Cetshwayo | C146: KZN KWAZULU-NATAL
B147: KZN291 Mandeni | C147: KZN KWAZULU-NATAL
B148: KZN292 KwaDukuza | C148: KZN KWAZULU-NATAL
B149: KZN293 Ndwedwe | C149: KZN KWAZULU-NATAL
B150: KZN294 Maphumulo | C150: KZN KWAZULU-NATAL
B151: DC29 iLembe | C151: KZN KWAZULU-NATAL
B152: KZN433 Greater Kokstad | C152: KZN KWAZULU-NATAL
B153: KZN434 Johannes Phumani Phungula | C153: KZN KWAZULU-NATAL
B154: KZN435 Umzimkhulu | C154: KZN KWAZULU-NATAL
B155: KZN436 Dr Nkosazana Dlamini Zuma | C155: KZN KWAZULU-NATAL
B156: DC43 Harry Gwala | C156: KZN KWAZULU-NATAL
B157: LIM331 Greater Giyani | C157: LIM LIMPOPO
B158: LIM332 Greater Letaba | C158: LIM LIMPOPO
B159: LIM333 Greater Tzaneen | C159: LIM LIMPOPO
B160: LIM334 Ba-Phalaborwa | C160: LIM LIMPOPO
B161: LIM335 Maruleng | C161: LIM LIMPOPO
B162: DC33 Mopani | C162: LIM LIMPOPO
B163: LIM341 Musina | C163: LIM LIMPOPO
B164: LIM343 Thulamela | C164: LIM LIMPOPO
B165: LIM344 Makhado | C165: LIM LIMPOPO
B166: LIM345 Collins Chabane | C166: LIM LIMPOPO
B167: DC34 Vhembe | C167: LIM LIMPOPO
B168: LIM351 Blouberg | C168: LIM LIMPOPO
B169: LIM353 Molemole | C169: LIM LIMPOPO
B170: LIM354 Polokwane | C170: LIM LIMPOPO
B171: LIM355 Lepelle-Nkumpi | C171: LIM LIMPOPO
B172: DC35 Capricorn | C172: LIM LIMPOPO
B173: LIM361 Thabazimbi | C173: LIM LIMPOPO
B174: LIM362 Lephalale | C174: LIM LIMPOPO
B175: LIM366 Bela Bela | C175: LIM LIMPOPO
B176: LIM367 Mogalakwena | C176: LIM LIMPOPO
B177: LIM368 Modimolle-Mookgopong | C177: LIM LIMPOPO
B178: DC36 Waterberg | C178: LIM LIMPOPO
B179: LIM471 Ephraim Mogale | C179: LIM LIMPOPO
B180: LIM472 Elias Motsoaledi | C180: LIM LIMPOPO
B181: LIM473 Makhuduthamaga | C181: LIM LIMPOPO
B182: LIM476 Tubatse Fetakgomo | C182: LIM LIMPOPO
B183: DC47 Sekhukhune | C183: LIM LIMPOPO
B184: MP301 Albert Luthuli | C184: MP MPUMALANGA
B185: MP302 Msukaligwa | C185: MP MPUMALANGA
B186: MP303 Mkhondo | C186: MP MPUMALANGA
B187: MP304 Pixley Ka Seme (MP) | C187: MP MPUMALANGA
B188: MP305 Lekwa | C188: MP MPUMALANGA
B189: MP306 Dipaleseng | C189: MP MPUMALANGA
B190: MP307 Govan Mbeki | C190: MP MPUMALANGA
B191: DC30 Gert Sibande | C191: MP MPUMALANGA
B192: MP311 Victor Khanye | C192: MP MPUMALANGA
B193: MP312 Emalahleni (Mp) | C193: MP MPUMALANGA
B194: MP313 Steve Tshwete | C194: MP MPUMALANGA
B195: MP314 Emakhazeni | C195: MP MPUMALANGA
B196: MP315 Thembisile Hani | C196: MP MPUMALANGA
B197: MP316 Dr J.S. Moroka | C197: MP MPUMALANGA
B198: DC31 Nkangala | C198: MP MPUMALANGA
B199: MP321 Thaba Chweu | C199: MP MPUMALANGA
B200: MP324 Nkomazi | C200: MP MPUMALANGA
B201: MP325 Bushbuckridge | C201: MP MPUMALANGA
B202: MP326 City of Mbombela | C202: MP MPUMALANGA
B203: DC32 Ehlanzeni | C203: MP MPUMALANGA
... 84 more rows

Sheet Org structure
A1: Organisational Structure Votes | C1: Organisational Structure Sub-Votes | E1: Display Sub-Votes
A2: =B2&" - "&C2 -> Vote 1 - Directorate Finance | B2: Vote 1 | C2: Directorate Finance
A3: =B13&" - "& C13 -> Vote 2 - Community Services | B3: 1.1 | C3: Asset Management | D3: =CONCATENATE(B3, " - ", C3) -> 1.1 - Asset Management | E3: 1,1 - Asset Management
A4: =B32&" - "&C32 -> Vote 3 - Corporate services | B4: 1.2 | C4: Budget Office | D4: 1.2 - Budget Office | E4: 1,2 - Budget Office
A5: =B44&" - "&C44 -> Vote 4 - Electricity | B5: 1.3 | C5: Financial Services | D5: 1.3 - Financial Services | E5: 1,3 - Financial Services
A6: =B55&" - "&C55 -> Vote 5 - Economic Development and Planning | B6: 1.4 | C6: Internal Audit | D6: 1.4 - Internal Audit | E6: 1,4 - Internal Audit
A7: =B66&" - "&C66 -> Vote 6 - Office of the Municipal Manager | B7: 1.5 | C7: Property Rates | D7: 1.5 - Property Rates | E7: 1,5 - Property Rates
A8: =B77&" - "&C77 -> Vote 7 - Housing | B8: 1.6 | C8: Risk Management | D8: 1.6 - Risk Management | E8: 1,6 - Risk Management
A9: =B88&" - "&C88 -> Vote 8 - Technical and Infrastructure Implementation Services | B9: 1.7 | C9: SCM | D9: 1.7 - SCM | E9: 1,7 - SCM
A10: =B99&" - "&C99 -> Vote 9 - Public safety | B10: 1.8 | C10: Valuation Services | D10: 1.8 - Valuation Services | E10: 1,8 - Valuation Services
A11: =B110&" - "&C110 -> Vote 10 - Road transport | B11: 1.9 | C11: [Name of sub-vote] | D11: 1.9 - [Name of sub-vote] | E11: 1,9 - [Name of sub-vote]
A12: =B121&" - "&C121 -> Vote 11 - Sport and recreation | B12: 1.10 | C12: [Name of sub-vote] | D12: 1.10 - [Name of sub-vote] | E12: 1.10 - [Name of sub-vote]
A13: =B132&" - "&C132 -> Vote 12 - Waste management | B13: Vote 2 | C13: Community Services
A14: =B143&" - "&C143 -> Vote 13 - Waste water management | B14: 2.1 | C14: Cemeteries | D14: =CONCATENATE(B14, " - ", C14) -> 2.1 - Cemeteries | E14: 2,1 - Cemeteries
A15: =B154&" - "&C154 -> Vote 14 - Water | B15: 2.2 | C15: Libraries | D15: 2.2 - Libraries | E15: 2,2 - Libraries
A16: =B165&" - "&C165 -> Vote 15 - Directorate Development and Community Services | B16: 2.3 | C16: Community Services | D16: 2.3 - Community Services | E16: 2,3 - Community Services
B17: 2.4 | C17: Town Administration | D17: 2.4 - Town Administration | E17: 2,4 - Town Administration
B18: 2.5 | C18: Sustainable Development | D18: 2.5 - Sustainable Development | E18: 2,5 - Sustainable Development
B19: 2.6 | C19: Fleet | D19: 2.6 - Fleet | E19: 2,6 - Fleet
B20: 2.7 | C20: Property Services | D20: 2.7 - Property Services | E20: 2,7 - Property Services
B21: 2.8 | C21: Sports and Culture | D21: 2.8 - Sports and Culture | E21: 2,8 - Sports and Culture
B22: 2.9 | C22: Roads and Stormwater | D22: 2.9 - Roads and Stormwater | E22: 2,9 - Roads and Stormwater
B23: 2.10 | C23: Parks and Gardens | D23: 2.10 - Parks and Gardens | E23: 2.10 - Parks and Gardens
B24: 2.11 | C24: Disaster Management | E24: 2.11 - Disaster Management
B25: 2.12 | C25: Pollution Control | E25: 2.12 - Pollution Control
B26: 2.13 | C26: Nature Reserve | E26: 2.13 - Nature Reserve
B27: 2.14 | C27: Community Halls | E27: 2.14 - Community Halls
B28: 2.15 | C28: Traffic Services | E28: 2.15 - Traffic Services
B29: 2.16 | C29: Law Enforcement | E29: 2.16 - Law Enforcement
B30: 2.17 | C30: Motor Licensing and Testing Station | E30: 2.17 - Motor Licensing and Testing Station
B31: 2.18 | C31: Animal Control and Pounds | E31: 2.18 - Animal Control and Pounds
B32: Vote 3 | C32: Corporate services
B33: 3.1 | C33: Administration: Planning | D33: =CONCATENATE(B33, " - ", C33) -> 3.1 - Administration: Planning | E33: 3,1 - Administration: Planning
B34: 3.2 | C34: Administration: Technical Services | D34: 3.2 - Administration: Technical Services | E34: 3,2 - Administration: Technical Services
B35: 3.3 | C35: Community Halls | D35: 3.3 - Community Halls | E35: 3,3 - Community Halls
B36: 3.4 | C36: Directorate: Corporate Services | D36: 3.4 - Directorate: Corporate Services | E36: 3,4 - Directorate: Corporate Services
B37: 3.5 | C37: Human Resources | D37: 3.5 - Human Resources | E37: 3,5 - Human Resources
B38: 3.6 | C38: IT Services | D38: 3.6 - IT Services | E38: 3,6 - IT Services
B39: 3.7 | C39: Legal Services | D39: 3.7 - Legal Services | E39: 3,7 - Legal Services
B40: 3.8 | C40: Property Services | D40: 3.8 - Property Services | E40: 3,8 - Property Services
B41: 3.9 | C41: Corporate services | D41: 3.9 - Corporate services | E41: 3,9 - Corporate services
B42: 3.10 | C42: Occupational Health and Safety | D42: 3.10 - Occupational Health and Safety | E42: 3,10 - Occupational Health and Safety
B43: 3.11 | C43: Council Support | E43: 3.11 - Council Support
B44: Vote 4 | C44: Electricity
B45: 4.1 | C45: Electricity: Distribution | D45: =CONCATENATE(B45, " - ", C45) -> 4.1 - Electricity: Distribution | E45: 4,1 - Electricity: Distribution
B46: 4.2 | C46: Electricity: Street Lights | D46: 4.2 - Electricity: Street Lights | E46: 4,2 - Electricity: Street Lights
B47: 4.3 | C47: [Name of sub-vote] | D47: 4.3 - [Name of sub-vote]
B48: 4.4 | C48: [Name of sub-vote] | D48: 4.4 - [Name of sub-vote]
B49: 4.5 | C49: [Name of sub-vote] | D49: 4.5 - [Name of sub-vote]
B50: 4.6 | C50: [Name of sub-vote] | D50: 4.6 - [Name of sub-vote]
B51: 4.7 | C51: [Name of sub-vote] | D51: 4.7 - [Name of sub-vote]
B52: 4.8 | C52: [Name of sub-vote] | D52: 4.8 - [Name of sub-vote]
B53: 4.9 | C53: [Name of sub-vote] | D53: 4.9 - [Name of sub-vote]
B54: 4.10 | C54: [Name of sub-vote] | D54: 4.10 - [Name of sub-vote]
B55: Vote 5 | C55: Economic Development and Planning
B56: 5.1 | C56: Economic Development and Planning | D56: =CONCATENATE(B56, " - ", C56) -> 5.1 - Economic Development and Planning | E56: 5,1 - Economic Development and Planning
B57: 5.2 | C57: Human Settlements | D57: 5.2 - Human Settlements | E57: 5,2 - Human Settlements
B58: 5.3 | C58: Informal Settlements | D58: 5.3 - Informal Settlements | E58: 5,3 - Informal Settlements
B59: 5.4 | C59: Town Planning | D59: 5.4 - Town Planning | E59: 5,4 - Town Planning
B60: 5.5 | C60: Building Control | D60: 5.5 - Building Control | E60: 5,5 - Building Control
B61: 5.6 | C61: Property Management | D61: 5.6 - Property Management | E61: 5,6 - Property Management
B62: 5.7 | C62: LED | D62: 5.7 - LED | E62: 5,7 - LED
B63: 5.8 | C63: Tourism | D63: 5.8 - Tourism | E63: 5,8 - Tourism
B64: 5.9 | C64: [Name of sub-vote] | D64: 5.9 - [Name of sub-vote] | E64: 5,9 - [Name of sub-vote]
B65: 5.10 | C65: [Name of sub-vote] | D65: 5.10 - [Name of sub-vote] | E65: 5.10 - [Name of sub-vote]
B66: Vote 6 | C66: Office of the Municipal Manager
B67: 6.1 | C67: Administration: Towns | D67: =CONCATENATE(B67, " - ", C67) -> 6.1 - Administration: Towns | E67: 6,1 - Administration: Towns
B68: 6.2 | C68: Council General Expenses | D68: 6.2 - Council General Expenses | E68: 6,2 - Council General Expenses
B69: 6.3 | C69: Municipal Manager | D69: 6.3 - Municipal Manager | E69: 6,3 - Municipal Manager
B70: 6.4 | C70: Internal Audit | D70: 6.4 - Internal Audit | E70: 6,4 - Internal Audit
B71: 6.5 | C71: Strategic Support and IDP | D71: 6.5 - Strategic Support and IDP | E71: 6,5 - Strategic Support and IDP
B72: 6.6 | C72: [Name of sub-vote] | D72: 6.6 - [Name of sub-vote] | E72: 6,6 - [Name of sub-vote]
B73: 6.7 | C73: [Name of sub-vote] | D73: 6.7 - [Name of sub-vote] | E73: 6,7 - [Name of sub-vote]
B74: 6.8 | C74: [Name of sub-vote] | D74: 6.8 - [Name of sub-vote] | E74: 6,8 - [Name of sub-vote]
B75: 6.9 | C75: [Name of sub-vote] | D75: 6.9 - [Name of sub-vote] | E75: 6,9 - [Name of sub-vote]
B76: 6.10 | C76: [Name of sub-vote] | D76: 6.10 - [Name of sub-vote] | E76: 6.10 - [Name of sub-vote]
B77: Vote 7 | C77: Housing
B78: 7.1 | C78: Administration: Housing | D78: =CONCATENATE(B78, " - ", C78) -> 7.1 - Administration: Housing | E78: 7,1 - Administration: Housing
B79: 7.2 | C79: Informal Settlements | D79: 7.2 - Informal Settlements | E79: 7,2 - Informal Settlements
B80: 7.3 | C80: [Name of sub-vote] | D80: 7.3 - [Name of sub-vote] | E80: 7,3 - [Name of sub-vote]
B81: 7.4 | C81: [Name of sub-vote] | D81: 7.4 - [Name of sub-vote] | E81: 7,4 - [Name of sub-vote]
B82: 7.5 | C82: [Name of sub-vote] | D82: 7.5 - [Name of sub-vote] | E82: 7,5 - [Name of sub-vote]
B83: 7.6 | C83: [Name of sub-vote] | D83: 7.6 - [Name of sub-vote] | E83: 7,6 - [Name of sub-vote]
B84: 7.7 | C84: [Name of sub-vote] | D84: 7.7 - [Name of sub-vote] | E84: 7,7 - [Name of sub-vote]
B85: 7.8 | C85: [Name of sub-vote] | D85: 7.8 - [Name of sub-vote] | E85: 7,8 - [Name of sub-vote]
B86: 7.9 | C86: [Name of sub-vote] | D86: 7.9 - [Name of sub-vote] | E86: 7,9 - [Name of sub-vote]
B87: 7.10 | C87: [Name of sub-vote] | D87: 7.10 - [Name of sub-vote] | E87: 7.10 - [Name of sub-vote]
B88: Vote 8 | C88: Technical and Infrastructure Implementation Services
B89: 8.1 | C89: Building Control | D89: =CONCATENATE(B89, " - ", C89) -> 8.1 - Building Control | E89: 8,1 - Building Control
B90: 8.2 | C90: IDP/SDBIP | D90: 8.2 - IDP/SDBIP | E90: 8,2 - IDP/SDBIP
B91: 8.3 | C91: LED | D91: 8.3 - LED | E91: 8,3 - LED
B92: 8.4 | C92: Property Management | D92: 8.4 - Property Management | E92: 8,4 - Property Management
B93: 8.5 | C93: Tourism | D93: 8.5 - Tourism | E93: 8,5 - Tourism
B94: 8.6 | C94: Town Planning | D94: 8.6 - Town Planning | E94: 8,6 - Town Planning
B95: 8.7 | C95: Proclaimed Roads | D95: 8.7 - Proclaimed Roads | E95: 8,7 - Proclaimed Roads
B96: 8.8 | C96: Director: Technical Services and Planning | D96: 8.8 - Director: Technical Services and Planning | E96: 8,8 - Director: Technical Services and Planning
B97: 8.9 | C97: Human Settlements | D97: 8.9 - Human Settlements | E97: 8,9 - Human Settlements
B98: 8.10 | C98: Technical and Infrastructure Implementation Services | D98: 8.10 - Technical and Infrastructure Implementation Services | E98: 8.10 - Technical and Infrastructure Implementation Services
B99: Vote 9 | C99: Public safety
B100: 9.1 | C100: Animal Control | D100: =CONCATENATE(B100, " - ", C100) -> 9.1 - Animal Control | E100: 9,1 - Animal Control
B101: 9.2 | C101: Disaster Management | D101: 9.2 - Disaster Management | E101: 9,2 - Disaster Management
B102: 9.3 | C102: Law Enforcement | D102: 9.3 - Law Enforcement | E102: 9,3 - Law Enforcement
B103: 9.4 | C103: Pound | D103: 9.4 - Pound | E103: 9,4 - Pound
B104: 9.5 | C104: Traffic Services | D104: 9.5 - Traffic Services | E104: 9,5 - Traffic Services
B105: 9.6 | C105: [Name of sub-vote] | D105: 9.6 - [Name of sub-vote]
B106: 9.7 | C106: [Name of sub-vote] | D106: 9.7 - [Name of sub-vote]
B107: 9.8 | C107: [Name of sub-vote] | D107: 9.8 - [Name of sub-vote]
B108: 9.9 | C108: [Name of sub-vote] | D108: 9.9 - [Name of sub-vote]
B109: 9.10 | C109: [Name of sub-vote] | D109: 9.10 - [Name of sub-vote]
B110: Vote 10 | C110: Road transport
B111: 10.1 | C111: Proclaimed Roads | D111: =CONCATENATE(B111, " - ", C111) -> 10.1 - Proclaimed Roads | E111: 10,1 - Proclaimed Roads
B112: 10.2 | C112: Roads | D112: 10.2 - Roads | E112: 10,2 - Roads
B113: 10.3 | C113: Vehicle Licensing and Testing | D113: 10.3 - Vehicle Licensing and Testing | E113: 10,3 - Vehicle Licensing and Testing
B114: 10.4 | C114: [Name of sub-vote] | D114: 10.4 - [Name of sub-vote]
B115: 10.5 | C115: [Name of sub-vote] | D115: 10.5 - [Name of sub-vote]
B116: 10.6 | C116: [Name of sub-vote] | D116: 10.6 - [Name of sub-vote]
B117: 10.7 | C117: [Name of sub-vote] | D117: 10.7 - [Name of sub-vote]
B118: 10.8 | C118: [Name of sub-vote] | D118: 10.8 - [Name of sub-vote]
B119: 10.9 | C119: [Name of sub-vote] | D119: 10.9 - [Name of sub-vote]
B120: 10.10 | C120: [Name of sub-vote] | D120: 10.10 - [Name of sub-vote]
B121: Vote 11 | C121: Sport and recreation
B122: 11.1 | C122: Nature Reserve | D122: =CONCATENATE(B122, " - ", C122) -> 11.1 - Nature Reserve | E122: 11,1 - Nature Reserve
B123: 11.2 | C123: Parks and Gardens | D123: 11.2 - Parks and Gardens | E123: 11,2 - Parks and Gardens
B124: 11.3 | C124: Sport and Recreation | D124: 11.3 - Sport and Recreation | E124: 11,3 - Sport and Recreation
B125: 11.4 | C125: [Name of sub-vote] | D125: 11.4 - [Name of sub-vote]
B126: 11.5 | C126: [Name of sub-vote] | D126: 11.5 - [Name of sub-vote]
B127: 11.6 | C127: [Name of sub-vote] | D127: 11.6 - [Name of sub-vote]
B128: 11.7 | C128: [Name of sub-vote] | D128: 11.7 - [Name of sub-vote]
B129: 11.8 | C129: [Name of sub-vote] | D129: 11.8 - [Name of sub-vote]
B130: 11.9 | C130: [Name of sub-vote] | D130: 11.9 - [Name of sub-vote]
B131: 11.10 | C131: [Name of sub-vote] | D131: 11.10 - [Name of sub-vote]
B132: Vote 12 | C132: Waste management
B133: 12.1 | C133: Refuse Removal | D133: =CONCATENATE(B133, " - ", C133) -> 12.1 - Refuse Removal | E133: 12,1 - Refuse Removal
B134: 12.2 | C134: Refuse Sites | D134: 12.2 - Refuse Sites | E134: 12,2 - Refuse Sites
B135: 12.3 | C135: Street Cleansing | D135: 12.3 - Street Cleansing | E135: 12,3 - Street Cleansing
B136: 12.4 | C136: Refuse Removal (Head Office) | D136: 12.4 - Refuse Removal (Head Office) | E136: 12,4 - Refuse Removal (Head Office)
B137: 12.5 | C137: Refuse Sites (Head Office) | D137: 12.5 - Refuse Sites (Head Office) | E137: 12,5 - Refuse Sites (Head Office)
B138: 12.6 | C138: Street Cleansing (Head Office) | D138: 12.6 - Street Cleansing (Head Office) | E138: 12,6 - Street Cleansing (Head Office)
B139: 12.7 | C139: [Name of sub-vote] | D139: 12.7 - [Name of sub-vote]
B140: 12.8 | C140: [Name of sub-vote] | D140: 12.8 - [Name of sub-vote]
B141: 12.9 | C141: [Name of sub-vote] | D141: 12.9 - [Name of sub-vote]
B142: 12.10 | C142: [Name of sub-vote] | D142: 12.10 - [Name of sub-vote]
B143: Vote 13 | C143: Waste water management
B144: 13.1 | C144: Sewerage: Networks | D144: =CONCATENATE(B144, " - ", C144) -> 13.1 - Sewerage: Networks | E144: 13,1 - Sewerage: Networks
B145: 13.2 | C145: Sewerage: Tank Services | D145: 13.2 - Sewerage: Tank Services | E145: 13,2 - Sewerage: Tank Services
B146: 13.3 | C146: Sewerage: Treatment Works | D146: 13.3 - Sewerage: Treatment Works | E146: 13,3 - Sewerage: Treatment Works
B147: 13.4 | C147: Sewerage: Networks (Head Office) | D147: 13.4 - Sewerage: Networks (Head Office) | E147: 13,4 - Sewerage: Networks (Head Office)
B148: 13.5 | C148: Sewerage: Treatment Works (Head Office) | D148: 13.5 - Sewerage: Treatment Works (Head Office) | E148: 13,5 - Sewerage: Treatment Works (Head Office)
B149: 13.6 | C149: Sewerage: Tank Services (Head Office) | D149: 13.6 - Sewerage: Tank Services (Head Office) | E149: 13,6 - Sewerage: Tank Services (Head Office)
B150: 13.7 | C150: [Name of sub-vote] | D150: 13.7 - [Name of sub-vote]
B151: 13.8 | C151: [Name of sub-vote] | D151: 13.8 - [Name of sub-vote]
B152: 13.9 | C152: [Name of sub-vote] | D152: 13.9 - [Name of sub-vote]
B153: 13.10 | C153: [Name of sub-vote] | D153: 13.10 - [Name of sub-vote]
B154: Vote 14 | C154: Water
B155: 14.1 | C155: Water: Distribution | D155: =CONCATENATE(B155, " - ", C155) -> 14.1 - Water: Distribution | E155: 14,1 - Water: Distribution
B156: 14.2 | C156: Water: Treatment Works | D156: 14.2 - Water: Treatment Works | E156: 14,2 - Water: Treatment Works
B157: 14.3 | C157: Water: Distribution (Head Office) | D157: 14.3 - Water: Distribution (Head Office) | E157: 14,3 - Water: Distribution (Head Office)
B158: 14.4 | C158: Water: Treatment Works (Head Office) | D158: 14.4 - Water: Treatment Works (Head Office) | E158: 14,4 - Water: Treatment Works (Head Office)
B159: 14.5 | C159: [Name of sub-vote] | D159: 14.5 - [Name of sub-vote]
B160: 14.6 | C160: [Name of sub-vote] | D160: 14.6 - [Name of sub-vote]
B161: 14.7 | C161: [Name of sub-vote] | D161: 14.7 - [Name of sub-vote]
B162: 14.8 | C162: [Name of sub-vote] | D162: 14.8 - [Name of sub-vote]
B163: 14.9 | C163: [Name of sub-vote] | D163: 14.9 - [Name of sub-vote]
B164: 14.10 | C164: [Name of sub-vote] | D164: 14.10 - [Name of sub-vote]
B165: Vote 15 | C165: Directorate Development and Community Services
B166: 15.1 | C166: Director: Development and Community Services | D166: =CONCATENATE(B166, " - ", C166) -> 15.1 - Director: Development and Community Services | E166: 15,1 - Director: Development and Community Services
B167: 15.2 | C167: Council Support | D167: 15.2 - Council Support | E167: 15,2 - Council Support
B168: 15.3 | C168: LED | D168: 15.3 - LED | E168: 15,3 - LED
B169: 15.4 | C169: Tourism | D169: 15.4 - Tourism | E169: 15,4 - Tourism
B170: 15.5 | C170: IT Services | D170: 15.5 - IT Services | E170: 15,5 - IT Services
B171: 15.6 | C171: Legal Services | D171: 15.6 - Legal Services | E171: 15,6 - Legal Services
B172: 15.7 | C172: Sports and Culture | D172: 15.7 - Sports and Culture | E172: 15,7 - Sports and Culture
B173: 15.8 | C173: Town Administration | D173: 15.8 - Town Administration | E173: 15,8 - Town Administration
B174: 15.9 | C174: Human Resources | D174: 15.9 - Human Resources | E174: 15,9 - Human Resources
B175: 15.10 | C175: Risk Management | D175: 15.10 - Risk Management | E175: 15.10 - Risk Management
B176: 15.11 | C176: Property Management | E176: 15.11 - Property Management
B177: 15.12 | C177: Informal Settlements | E177: 15.12 - Informal Settlements
B178: 15.13 | C178: Roads and Stormwater | E178: 15.13 - Roads and Stormwater
B179: 15.14 | C179: Fleet | E179: 15.14 - Fleet
B180: 15.15 | C180: Parks and Gardens | E180: 15.15 - Parks and Gardens
B181: 15.16 | C181: Disaster Management | E181: 15.16 - Disaster Management
B182: 15.17 | C182: Pollution Control | E182: 15.17 - Pollution Control
B183: 15.18 | C183: Nature Reserve | E183: 15.18 - Nature Reserve
B184: 15.19 | C184: Cemeteries | E184: 15.19 - Cemeteries
B185: 15.20 | C185: Community Halls | E185: 15.20 - Community Halls
B186: 15.21 | C186: Library Services | E186: 15.21 - Library Services
B187: 15.22 | C187: Traffic Services | E187: 15.22 - Traffic Services
B188: 15.23 | C188: Law Enforcement | E188: 15.23 - Law Enforcement
B189: 15.24 | C189: Motor Licensing and Testing Station | E189: 15.24 - Motor Licensing and Testing Station
B190: 15.25 | C190: Animal Control and Pounds | E190: 15.25 - Animal Control and Pounds
B191: 15.26 | C191: Sustainable Development | E191: 15.26 - Sustainable Development

Sheet Contacts
A1: ='Template names'!$B$63&" - "&" Contact Information" -> WC031 Theewaterskloof - Contact Information
A3: A. GENERAL INFORMATION
A4: Municipality | B4: ='Template names'!$B$63 -> WC031 Theewaterskloof | C4: Set name on 'Instructions' sheet
A6: Grade | B6: 4 | C6: 1 Grade in terms of the Remuneration of Public Office Bearers Act.
A8: Province | B8: =IF(B4>" ",VLOOKUP(B4,'Lookup and lists'!B29:C312,2, FALSE)," ") -> WC WESTERN CAPE
A10: Web Address | B10: www.twk.gov.za
A12: e-mail Address | B12: twkmun@twk.gov.za
A14: B. CONTACT INFORMATION
A15: Postal address:
A16: P.O. Box | B16: 23
A17: City / Town | B17: Caldeon
A18: Postal Code | B18: 7230
A20: Street address
A21: Building
A22: Street No. & Name | B22: 6 Plein Street
A23: City / Town | B23: Caldeon
A24: Postal Code | B24: 7230
A26: General Contacts
A27: Telephone number | B27: 028 214 3300
A28: Fax number | B28: 028 214 1289
A30: C. POLITICAL LEADERSHIP
A31: Speaker: | C31: Secretary/PA to the Speaker:
A32: ID Number | C32: ID Number
A33: Title | B33: Mr | C33: Title | D33: Ms
A34: Name | B34: Weldon Herbert Wells | C34: Name | D34: Charne Lottering
A35: Telephone number | B35: 028 214 3300 | C35: Telephone number | D35: 028 214 3300
A36: Cell number | B36: 072 026 2638 | C36: Cell number | D36: 073 274 7271
A37: Fax number | B37: 028 214 1289 | C37: Fax number | D37: 028 214 1289
A38: E-mail address | B38: wwells@twk.gov.za | C38: E-mail address | D38: charnelo@twk.gov.za
A40: Mayor/Executive Mayor: | C40: Secretary/PA to the Mayor/Executive Mayor:
A41: ID Number | C41: ID Number
A42: Title | B42: Mr | C42: Title | D42: Ms
A43: Name | B43: Lincoln de Bruyn | C43: Name | D43: Celeste Kellis
A44: Telephone number | B44: 028 214 3300 | C44: Telephone number | D44: 028 214 3300
A45: Cell number | B45: 082 413 6918 | C45: Cell number | D45: 073 377 4601
A46: Fax number | B46: 028 214 1289 | C46: Fax number | D46: 028 214 1289
A47: E-mail address | B47: mayor@twk.gov.za | C47: E-mail address | D47: celesteke@twk.gov.za
A49: Deputy Mayor/Executive Mayor: | C49: Secretary/PA to the Deputy Mayor/Executive Mayor:
A50: ID Number | C50: ID Number
A51: Title | B51: Mr | C51: Title | D51: Ms
A52: Name | B52: Cynthia Clayton | C52: Name | D52: Jane Arendse
A53: Telephone number | B53: 028 214 3300 | C53: Telephone number | D53: 028 214 3300
A54: Cell number | B54: 084 277 2255 | C54: Cell number | D54: 078 148 2016
A55: Fax number | B55: 028 214 1289 | C55: Fax number | D55: 028 214 1289
A56: E-mail address | B56: cclayton@twk.gov.za | C56: E-mail address | D56: janear@twk.gov.za
A58: D. MANAGEMENT LEADERSHIP
A59: Acting Municipal Manager: | C59: Secretary/PA to the Municipal Manager:
A60: ID Number | C60: ID Number
A61: Title | B61: Mr | C61: Title | D61: Ms.
A62: Name | B62: G W Hermanus | C62: Name | D62: Annette Swart
A63: Telephone number | B63: 028-2143300 | C63: Telephone number | D63: 028 214 3363
A64: Cell number | C64: Cell number | D64: N/A
A65: Fax number | B65: N/A | C65: Fax number | D65: 028 214 1289
A66: E-mail address | B66: gwhe@twk.org.za | C66: E-mail address | D66: annettesw@twk.gov.za
A68: Acting Chief Financial Officer | C68: Secretary/PA to the Chief Financial Officer
A69: ID Number | C69: ID Number
A70: Title | B70: Mr | C70: Title
A71: Name | B71: Ashwille Riddles | C71: Name
A72: Telephone number | B72: 028 214 3300 | C72: Telephone number
A73: Cell number | B73: 082 739 0365 | C73: Cell number
A74: Fax number | B74: 028 214 1289 | C74: Fax number
A75: E-mail address | B75: ashwilleri@twk.gov.za | C75: E-mail address
A77: Official responsible for submitting financial information | C77: Official responsible for submitting financial information
A78: ID Number | C78: ID Number
A79: Title | B79: Ms | C79: Title | D79: Mr
A80: Name | B80: Jacky Smith | C80: Name | D80: Ashwille Riddles
A81: Telephone number | B81: 028 214 3300 | C81: Telephone number | D81: 028 214 3300
A82: Cell number | B82: 084 604 0166 | C82: Cell number | D82: 082 739 0365
A83: Fax number | B83: 028 214 1289 | C83: Fax number | D83: 028 214 1289
A84: E-mail address | B84: jackysm@twk.gov.za | C84: E-mail address | D84: ashwilleri@twk.gov.za
A85: Official responsible for submitting financial information | C85: Official responsible for submitting financial information
A86: ID Number | C86: ID Number
A87: Title | B87: Ms | C87: Title | D87: Ms
A88: Name | B88: Carisha Hendricks | C88: Name | D88: Zonke Komani
A89: Telephone number | B89: 028 214 3300 | C89: Telephone number | D89: 028 214 3300
A90: Cell number | B90: NA | C90: Cell number | D90: NA
A91: Fax number | B91: 028 214 1289 | C91: Fax number | D91: 028 214 1289
A92: E-mail address | B92: carishajo@twk.gov.za | C92: E-mail address | D92: zonkeko@twk.gov.za
A93: Official responsible for submitting financial information | C93: Official responsible for submitting financial information
A94: ID Number | C94: ID Number
A95: Title | B95: Ms. | C95: Title
A96: Name | B96: Agatha Sauls | C96: Name
A97: Telephone number | B97: 028 214 3303 | C97: Telephone number
A98: Cell number | B98: N/A | C98: Cell number
A99: Fax number | B99: 028 214 1289 | C99: Fax number
A100: E-mail address | B100: agathaho@twk.org.za | C100: E-mail address
A101: Official responsible for submitting financial information | C101: Official responsible for submitting financial information
A102: ID Number | C102: ID Number
A103: Title | C103: Title
A104: Name | C104: Name
A105: Telephone number | C105: Telephone number
A106: Cell number | C106: Cell number
A107: Fax number | C107: Fax number
A108: E-mail address | C108: E-mail address
A109: Official responsible for submitting financial information | C109: Official responsible for submitting financial information
A110: ID Number | C110: ID Number
A111: Title | C111: Title
A112: Name | C112: Name
A113: Telephone number | C113: Telephone number
A114: Cell number | C114: Cell number
A115: Fax number | C115: Fax number
A116: E-mail address | C116: E-mail address
A117: Official responsible for submitting financial information | C117: Official responsible for submitting financial information
A118: ID Number | C118: ID Number
A119: Title | C119: Title
A120: Name | C120: Name
A121: Telephone number | C121: Telephone number
A122: Cell number | C122: Cell number
A123: Fax number | C123: Fax number
A124: E-mail address | C124: E-mail address
A125: Official responsible for submitting financial information | C125: Official responsible for submitting financial information
A126: ID Number | C126: ID Number
A127: Title | C127: Title
A128: Name | C128: Name
A129: Telephone number | C129: Telephone number
A130: Cell number | C130: Cell number
A131: Fax number | C131: Fax number
A132: E-mail address | C132: E-mail address
A133: Official responsible for submitting financial information
A134: ID Number
A135: Title
A136: Name
A137: Telephone number
A138: Cell number
A139: Fax number
A140: E-mail address

Sheet B1-Sum
A1: =muni&" - "&adjsum&" - "&Date -> WC031 Theewaterskloof - Table B1 Adjustments Budget Summary - 16 April 2026
A2: =desc -> Description | B2: =Head2 -> Budget Year 2025/26 | K2: =Head10 -> Budget Year +1 2026/27 | L2: =Head11 -> Budget Year +2 2027/28
B3: =Head6 -> Original Budget | C3: =Head54 -> Prior Adjusted | D3: =Head51 -> Accum. Funds | E3: =Head52 -> Multi-year capital | F3: =Head53 -> Unfore. Unavoid. | G3: =Head55 -> Nat. or Prov. Govt | H3: =Head50 -> Other Adjusts. | I3: =Head56 -> Total Adjusts. | J3: =Head7 -> Adjusted Budget | K3: =Head7 -> Adjusted Budget | L3: =Head7 -> Adjusted Budget
C4: 1 | D4: 2 | E4: 3 | F4: 4 | G4: 5 | H4: 6 | I4: 7 | J4: 8
A5: R thousands | B5: A | C5: A1 | D5: B | E5: C | F5: D | G5: E | H5: F | I5: G | J5: H
A6: Financial Performance
A7: Property rates | B7: =SUM('B4-FinPerf RE'!C24) -> 173070423 | C7: =SUM('B4-FinPerf RE'!D24) -> 170753000 | D7: =SUM('B4-FinPerf RE'!E24) -> 0 | E7: =SUM('B4-FinPerf RE'!F24) -> 0 | F7: =SUM('B4-FinPerf RE'!G24) -> 0 | G7: =SUM('B4-FinPerf RE'!H24) -> 0 | H7: =SUM('B4-FinPerf RE'!I24) -> 0 | I7: =SUM('B4-FinPerf RE'!J24) -> 0 | J7: =SUM('B4-FinPerf RE'!K24) -> 170753000 | K7: =SUM('B4-FinPerf RE'!L24) -> 180858592 | L7: =SUM('B4-FinPerf RE'!M24) -> 185380056
A8: Service charges | B8: =SUM('B4-FinPerf RE'!C8:C11) -> 370088245 | C8: =SUM('B4-FinPerf RE'!D8:D11) -> 378571000 | D8: =SUM('B4-FinPerf RE'!E8:E11) -> 0 | E8: =SUM('B4-FinPerf RE'!F8:F11) -> 0 | F8: =SUM('B4-FinPerf RE'!G8:G11) -> 0 | G8: =SUM('B4-FinPerf RE'!H8:H11) -> 0 | H8: =SUM('B4-FinPerf RE'!I8:I11) -> 0 | I8: =SUM('B4-FinPerf RE'!J8:J11) -> 0 | J8: =SUM('B4-FinPerf RE'!K8:K11) -> 378571000 | K8: =SUM('B4-FinPerf RE'!L8:L11) -> 386742215 | L8: =SUM('B4-FinPerf RE'!M8:M11) -> 396410767
A9: Investment revenue | B9: ='B4-FinPerf RE'!C16 -> 6169069 | C9: ='B4-FinPerf RE'!D16 -> 3300000 | D9: ='B4-FinPerf RE'!E16 -> 0 | E9: ='B4-FinPerf RE'!F16 -> 0 | F9: ='B4-FinPerf RE'!G16 -> 0 | G9: ='B4-FinPerf RE'!H16 -> 0 | H9: ='B4-FinPerf RE'!I16 -> 0 | I9: ='B4-FinPerf RE'!J16 -> 0 | J9: ='B4-FinPerf RE'!K16 -> 3300000 | K9: ='B4-FinPerf RE'!L16 -> 6446677 | L9: ='B4-FinPerf RE'!M16 -> 6607844
A10: Transfers recognised - operational | B10: ='B4-FinPerf RE'!C28 -> 182289609 | C10: ='B4-FinPerf RE'!D28 -> 190425151 | D10: ='B4-FinPerf RE'!E28 -> 0 | E10: ='B4-FinPerf RE'!F28 -> 0 | F10: ='B4-FinPerf RE'!G28 -> 0 | G10: ='B4-FinPerf RE'!H28 -> 0 | H10: ='B4-FinPerf RE'!I28 -> -4273558 | I10: ='B4-FinPerf RE'!J28 -> -4273558 | J10: ='B4-FinPerf RE'!K28 -> 186151593 | K10: ='B4-FinPerf RE'!L28 -> 176434180.3 | L10: ='B4-FinPerf RE'!M28 -> 184627286.5
A11: Other own revenue | B11: =+B12-SUM(B7:B10) -> 118931747 | C11: =+C12-SUM(C7:C10) -> 133818933 | D11: 0 | E11: 0 | F11: 0 | G11: 0 | H11: -9532350 | I11: -9532350 | J11: 124286583 | K11: 123091021 | L11: 125505744
A12: Total Revenue (excluding capital transfers and contributions) | B12: =+'B4-FinPerf RE'!C35 -> 850549093 | C12: =+'B4-FinPerf RE'!D35 -> 876868084 | D12: =+'B4-FinPerf RE'!E35 -> 0 | E12: =+'B4-FinPerf RE'!F35 -> 0 | F12: =+'B4-FinPerf RE'!G35 -> 0 | G12: =+'B4-FinPerf RE'!H35 -> 0 | H12: =+'B4-FinPerf RE'!I35 -> -13805908 | I12: =+'B4-FinPerf RE'!J35 -> -13805908 | J12: =+'B4-FinPerf RE'!K35 -> 863062176 | K12: =+'B4-FinPerf RE'!L35 -> 873572685.3 | L12: =+'B4-FinPerf RE'!M35 -> 898531697.5
A13: Employee costs | B13: ='B4-FinPerf RE'!C38 -> 315821111 | C13: ='B4-FinPerf RE'!D38 -> 315416465 | D13: ='B4-FinPerf RE'!E38 -> 0 | E13: ='B4-FinPerf RE'!F38 -> 0 | F13: ='B4-FinPerf RE'!G38 -> 0 | G13: ='B4-FinPerf RE'!H38 -> 0 | H13: ='B4-FinPerf RE'!I38 -> -1720653 | I13: =SUM(D13:H13) -> -1720653 | J13: =IF(C13=0,B13+I13,C13+I13) -> 313695812 | K13: ='B4-FinPerf RE'!L38 -> 330033053 | L13: ='B4-FinPerf RE'!M38 -> 338283901
A14: Remuneration of councillors | B14: ='B4-FinPerf RE'!C39 -> 15017379 | C14: ='B4-FinPerf RE'!D39 -> 15017379 | D14: ='B4-FinPerf RE'!E39 -> 0 | E14: ='B4-FinPerf RE'!F39 -> 0 | F14: ='B4-FinPerf RE'!G39 -> 0 | G14: ='B4-FinPerf RE'!H39 -> 0 | H14: ='B4-FinPerf RE'!I39 -> 0 | I14: 0 | J14: 15017379 | K14: ='B4-FinPerf RE'!L39 -> 15693161 | L14: ='B4-FinPerf RE'!M39 -> 16085489
A15: Depreciation & asset impairment | B15: ='B4-FinPerf RE'!C42+'B4-FinPerf RE'!C43 -> 152132467 | C15: ='B4-FinPerf RE'!D42+'B4-FinPerf RE'!D43 -> 154761541 | D15: ='B4-FinPerf RE'!E42+'B4-FinPerf RE'!E43 -> 0 | E15: ='B4-FinPerf RE'!F42+'B4-FinPerf RE'!F43 -> 0 | F15: ='B4-FinPerf RE'!G42+'B4-FinPerf RE'!G43 -> 0 | G15: ='B4-FinPerf RE'!H42+'B4-FinPerf RE'!H43 -> 0 | H15: ='B4-FinPerf RE'!I42+'B4-FinPerf RE'!I43 -> 0 | I15: ='B4-FinPerf RE'!J42+'B4-FinPerf RE'!J43 -> 0 | J15: ='B4-FinPerf RE'!K42+'B4-FinPerf RE'!K43 -> 154761541 | K15: ='B4-FinPerf RE'!L42+'B4-FinPerf RE'!L43 -> 157379069 | L15: ='B4-FinPerf RE'!M42+'B4-FinPerf RE'!M43 -> 160395014
A16: Finance charges | B16: ='B4-FinPerf RE'!C44 -> 47550598 | C16: ='B4-FinPerf RE'!D44 -> 54458598 | D16: ='B4-FinPerf RE'!E44 -> 0 | E16: ='B4-FinPerf RE'!F44 -> 0 | F16: ='B4-FinPerf RE'!G44 -> 0 | G16: ='B4-FinPerf RE'!H44 -> 0 | H16: ='B4-FinPerf RE'!I44 -> 0 | I16: ='B4-FinPerf RE'!J44 -> 0 | J16: ='B4-FinPerf RE'!K44 -> 54458598 | K16: ='B4-FinPerf RE'!L44 -> 49690374 | L16: ='B4-FinPerf RE'!M44 -> 50932634
A17: Inventory consumed and bulk purchases | B17: =SUM('B4-FinPerf RE'!C40:C41) -> 180996552 | C17: =SUM('B4-FinPerf RE'!D40:D41) -> 186162987 | D17: =SUM('B4-FinPerf RE'!E40:E41) -> 0 | E17: =SUM('B4-FinPerf RE'!F40:F41) -> 0 | F17: =SUM('B4-FinPerf RE'!G40:G41) -> 0 | G17: =SUM('B4-FinPerf RE'!H40:H41) -> 0 | H17: =SUM('B4-FinPerf RE'!I40:I41) -> -1116283 | I17: =SUM('B4-FinPerf RE'!J40:J41) -> -1116283 | J17: =SUM('B4-FinPerf RE'!K40:K41) -> 185046704 | K17: =SUM('B4-FinPerf RE'!L40:L41) -> 189141421 | L17: =SUM('B4-FinPerf RE'!M40:M41) -> 193869975
A18: Transfers and subsidies | B18: ='B4-FinPerf RE'!C46 -> 12080001 | C18: ='B4-FinPerf RE'!D46 -> 11549087 | D18: ='B4-FinPerf RE'!E46 -> 0 | E18: ='B4-FinPerf RE'!F46 -> 0 | F18: ='B4-FinPerf RE'!G46 -> 0 | G18: ='B4-FinPerf RE'!H46 -> 0 | H18: ='B4-FinPerf RE'!I46 -> 0 | I18: 0 | J18: 11549087 | K18: ='B4-FinPerf RE'!L46 -> 1 | L18: ='B4-FinPerf RE'!M46 -> 1
A19: Other expenditure | B19: =+B20-SUM(B13:B18) -> 160505092 | C19: =+C20-SUM(C13:C18) -> 182799190 | D19: 0 | E19: 0 | F19: 0 | G19: 0 | H19: -11366513 | I19: -11366513 | J19: 171432677 | K19: 167727876 | L19: 171921104
A20: Total Expenditure | B20: =+'B4-FinPerf RE'!C51 -> 884103200 | C20: =+'B4-FinPerf RE'!D51 -> 920165247 | D20: =+'B4-FinPerf RE'!E51 -> 0 | E20: =+'B4-FinPerf RE'!F51 -> 0 | F20: =+'B4-FinPerf RE'!G51 -> 0 | G20: =+'B4-FinPerf RE'!H51 -> 0 | H20: =+'B4-FinPerf RE'!I51 -> -14203449 | I20: =+'B4-FinPerf RE'!J51 -> -14203449 | J20: =+'B4-FinPerf RE'!K51 -> 905961798 | K20: =+'B4-FinPerf RE'!L51 -> 909664955 | L20: =+'B4-FinPerf RE'!M51 -> 931488118
A21: Surplus/(Deficit) | B21: =B12-B20 -> -33554107 | C21: -43297163 | D21: 0 | E21: 0 | F21: 0 | G21: 0 | H21: 397541 | I21: 397541 | J21: -42899622 | K21: -36092269.7 | L21: -32956420.52
A22: ='B4-FinPerf RE'!A54 -> Transfers and subsidies - capital (monetary allocations) | B22: ='B4-FinPerf RE'!C54 -> 72237391 | C22: ='B4-FinPerf RE'!D54 -> 35973553 | D22: ='B4-FinPerf RE'!E54 -> 0 | E22: ='B4-FinPerf RE'!F54 -> 0 | F22: ='B4-FinPerf RE'!G54 -> 0 | G22: ='B4-FinPerf RE'!H54 -> 0 | H22: ='B4-FinPerf RE'!I54 -> -3939732 | I22: ='B4-FinPerf RE'!J54 -> -3939732 | J22: ='B4-FinPerf RE'!K54 -> 32033821 | K22: ='B4-FinPerf RE'!L54 -> 142919999.7 | L22: ='B4-FinPerf RE'!M54 -> 146579999.5
A23: Transfers and subsidies - capital (in-kind - all) | B23: ='B4-FinPerf RE'!C55 -> 50000 | C23: ='B4-FinPerf RE'!D55 -> 80136000 | D23: ='B4-FinPerf RE'!E55 -> 0 | E23: ='B4-FinPerf RE'!F55 -> 0 | F23: ='B4-FinPerf RE'!G55 -> 0 | G23: ='B4-FinPerf RE'!H55 -> 0 | H23: ='B4-FinPerf RE'!I55 -> 0 | I23: ='B4-FinPerf RE'!J55 -> 0 | J23: ='B4-FinPerf RE'!K55 -> 80136000 | K23: ='B4-FinPerf RE'!L55 -> 0 | L23: ='B4-FinPerf RE'!M55 -> 0
A24: Surplus/(Deficit) after capital transfers & contributions | B24: =B21+SUM(B22:B23) -> 38733284 | C24: 72812390 | D24: 0 | E24: 0 | F24: 0 | G24: 0 | H24: -3542191 | I24: =SUM(D24:H24) -> -3542191 | J24: =IF(C24=0,B24+I24,C24+I24) -> 69270199 | K24: 106827730 | L24: 113623579
A25: Share of surplus/ (deficit) of associate | B25: ='B4-FinPerf RE'!C62 -> 0 | C25: ='B4-FinPerf RE'!D62 -> 0 | D25: ='B4-FinPerf RE'!E62 -> 0 | E25: ='B4-FinPerf RE'!F62 -> 0 | F25: ='B4-FinPerf RE'!G62 -> 0 | G25: ='B4-FinPerf RE'!H62 -> 0 | H25: ='B4-FinPerf RE'!I62 -> 0 | I25: ='B4-FinPerf RE'!J62 -> 0 | J25: ='B4-FinPerf RE'!K62 -> 0 | K25: ='B4-FinPerf RE'!L62 -> 0 | L25: ='B4-FinPerf RE'!M62 -> 0
A26: Surplus/ (Deficit) for the year | B26: =B24+B25 -> 38733284 | C26: 72812390 | D26: 0 | E26: 0 | F26: 0 | G26: 0 | H26: -3542191 | I26: -3542191 | J26: 69270199 | K26: 106827730 | L26: 113623579
A28: Capital expenditure & funds sources
A29: Capital expenditure | B29: ='B5-Capex'!C42 -> 88830339.72 | C29: ='B5-Capex'!D42 -> 122475746.2 | D29: ='B5-Capex'!E42 -> 0 | E29: ='B5-Capex'!F42 -> 0 | F29: ='B5-Capex'!G42 -> 0 | G29: ='B5-Capex'!H42 -> 0 | H29: ='B5-Capex'!I42 -> -4252213.217 | I29: =SUM(D29:H29) -> -4252213.217 | J29: =IF(C29=0,B29+I29,C29+I29) -> 118223533 | K29: ='B5-Capex'!L42 -> 151707913 | L29: ='B5-Capex'!M42 -> 152037000
A30: Transfers recognised - capital | B30: ='B5-Capex'!C72 -> 72237390.95 | C30: ='B5-Capex'!D72 -> 35973552.76 | D30: ='B5-Capex'!E72 -> 0 | E30: ='B5-Capex'!F72 -> 0 | F30: ='B5-Capex'!G72 -> 0 | G30: ='B5-Capex'!H72 -> 0 | H30: ='B5-Capex'!I72 -> -3939731.757 | I30: =SUM(D30:H30) -> -3939731.757 | J30: =IF(C30=0,B30+I30,C30+I30) -> 32033821 | K30: ='B5-Capex'!L72 -> 142919999.7 | L30: ='B5-Capex'!M72 -> 146579999.5
A32: Borrowing | B32: ='B5-Capex'!C74 -> 10000000 | C32: ='B5-Capex'!D74 -> 1e-08 | D32: ='B5-Capex'!E74 -> 0 | E32: ='B5-Capex'!F74 -> 0 | F32: ='B5-Capex'!G74 -> 0 | G32: ='B5-Capex'!H74 -> 0 | H32: ='B5-Capex'!I74 -> -1e-08 | I32: =SUM(D32:H32) -> -1e-08 | J32: =IF(C32=0,B32+I32,C32+I32) -> 0 | K32: ='B5-Capex'!L74 -> 0 | L32: ='B5-Capex'!M74 -> 0
A33: Internally generated funds | B33: ='B5-Capex'!C75 -> 6592948.77 | C33: ='B5-Capex'!D75 -> 86502193.46 | D33: ='B5-Capex'!E75 -> 0 | E33: ='B5-Capex'!F75 -> 0 | F33: ='B5-Capex'!G75 -> 0 | G33: ='B5-Capex'!H75 -> 0 | H33: ='B5-Capex'!I75 -> -312481.46 | I33: =SUM(D33:H33) -> -312481.46 | J33: =IF(C33=0,B33+I33,C33+I33) -> 86189712 | K33: ='B5-Capex'!L75 -> 8787913.304 | L33: ='B5-Capex'!M75 -> 5457000.478
A34: Total sources of capital funds | B34: =+B30+B32+B33 -> 88830339.72 | C34: =+C30+C32+C33 -> 122475746.2 | D34: 0 | E34: 0 | F34: 0 | G34: 0 | H34: -4252213.217 | I34: =SUM(D34:H34) -> -4252213.217 | J34: =IF(C34=0,B34+I34,C34+I34) -> 118223533 | K34: 151707913 | L34: 152037000
A36: Financial position
A37: Total current assets | B37: ='B6-FinPos'!C15 -> 114556984.7 | C37: ='B6-FinPos'!D15 -> 95096750.88 | D37: ='B6-FinPos'!E15 -> 0 | E37: ='B6-FinPos'!F15 -> 0 | F37: ='B6-FinPos'!G15 -> 0 | G37: ='B6-FinPos'!H15 -> 0 | H37: ='B6-FinPos'!I15 -> 6491369.217 | I37: =SUM(D37:H37) -> 6491369.217 | J37: =IF(C37=0,B37+I37,C37+I37) -> 101588120.1 | K37: ='B6-FinPos'!L15 -> 109295731.4 | L37: ='B6-FinPos'!M15 -> 117569067.1
A38: Total non current assets | B38: ='B6-FinPos'!C27 -> 1461548085 | C38: ='B6-FinPos'!D27 -> 1408089483 | D38: ='B6-FinPos'!E27 -> 0 | E38: ='B6-FinPos'!F27 -> 0 | F38: ='B6-FinPos'!G27 -> 0 | G38: ='B6-FinPos'!H27 -> 0 | H38: ='B6-FinPos'!I27 -> -4252213.217 | I38: =SUM(D38:H38) -> -4252213.217 | J38: =IF(C38=0,B38+I38,C38+I38) -> 1403837270 | K38: ='B6-FinPos'!L27 -> 1520003866 | L38: ='B6-FinPos'!M27 -> 1636529549
A39: Total current liabilities | B39: ='B6-FinPos'!C40 -> 374159243.1 | C39: ='B6-FinPos'!D40 -> 315056983.2 | D39: ='B6-FinPos'!E40 -> 0 | E39: ='B6-FinPos'!F40 -> 0 | F39: ='B6-FinPos'!G40 -> 0 | G39: ='B6-FinPos'!H40 -> 0 | H39: ='B6-FinPos'!I40 -> 5781347 | I39: =SUM(D39:H39) -> 5781347 | J39: =IF(C39=0,B39+I39,C39+I39) -> 320838330.2 | K39: ='B6-FinPos'!L40 -> 333434801.4 | L39: ='B6-FinPos'!M40 -> 337517771.3
A40: Total non current liabilities | B40: ='B6-FinPos'!C47 -> 329514252.1 | C40: ='B6-FinPos'!D47 -> 333799403.1 | D40: ='B6-FinPos'!E47 -> 0 | E40: ='B6-FinPos'!F47 -> 0 | F40: ='B6-FinPos'!G47 -> 0 | G40: ='B6-FinPos'!H47 -> 0 | H40: ='B6-FinPos'!I47 -> 0 | I40: =SUM(D40:H40) -> 0 | J40: =IF(C40=0,B40+I40,C40+I40) -> 333799403.1 | K40: ='B6-FinPos'!L47 -> 338249409.3 | L40: ='B6-FinPos'!M47 -> 345341879.1
A41: Community wealth/Equity | B41: ='B6-FinPos'!C56 -> 872431575 | C41: ='B6-FinPos'!D56 -> 854329848 | D41: ='B6-FinPos'!E56 -> 0 | E41: ='B6-FinPos'!F56 -> 0 | F41: ='B6-FinPos'!G56 -> 0 | G41: ='B6-FinPos'!H56 -> 0 | H41: ='B6-FinPos'!I56 -> -3542191 | I41: =SUM(D41:H41) -> -3542191 | J41: =IF(C41=0,B41+I41,C41+I41) -> 850787657 | K41: ='B6-FinPos'!L56 -> 957615387 | L41: ='B6-FinPos'!M56 -> 1071238966
A43: Cash flows
A44: Net cash from (used) operating | B44: ='B7-CFlow'!C19 -> 96516248.77 | C44: ='B7-CFlow'!D19 -> 53116223.28 | D44: ='B7-CFlow'!E19 -> 0 | E44: ='B7-CFlow'!F19 -> 0 | F44: ='B7-CFlow'!G19 -> 0 | G44: ='B7-CFlow'!H19 -> 0 | H44: ='B7-CFlow'!I19 -> 4186923.388 | I44: =SUM(D44:H44) -> 4186923.388 | J44: =IF(C44=0,B44+I44,C44+I44) -> 57303146.66 | K44: ='B7-CFlow'!L19 -> 162115793.3 | L44: ='B7-CFlow'!M19 -> 174558023.9
A45: Net cash from (used) investing | B45: ='B7-CFlow'!C29 -> -89422491.09 | C45: ='B7-CFlow'!D29 -> -36038036.24 | D45: ='B7-CFlow'!E29 -> 0 | E45: ='B7-CFlow'!F29 -> 0 | F45: ='B7-CFlow'!G29 -> 0 | G45: ='B7-CFlow'!H29 -> 0 | H45: ='B7-CFlow'!I29 -> 2304445.828 | I45: =SUM(D45:H45) -> 2304445.828 | J45: =IF(C45=0,B45+I45,C45+I45) -> -33733590.41 | K45: ='B7-CFlow'!L29 -> -136318095.9 | L45: ='B7-CFlow'!M29 -> -151832966.5
A46: Net cash from (used) financing | B46: ='B7-CFlow'!C38 -> -10866328.99 | C46: ='B7-CFlow'!D38 -> -33134120.62 | D46: ='B7-CFlow'!E38 -> 0 | E46: ='B7-CFlow'!F38 -> 0 | F46: ='B7-CFlow'!G38 -> 0 | G46: ='B7-CFlow'!H38 -> 0 | H46: ='B7-CFlow'!I38 -> -1e-06 | I46: =SUM(D46:H46) -> -1e-06 | J46: =IF(C46=0,B46+I46,C46+I46) -> -33134120.62 | K46: ='B7-CFlow'!L38 -> -19753291.75 | L46: ='B7-CFlow'!M38 -> -15608558.07
A47: Cash/cash equivalents at the year end | B47: ='B7-CFlow'!C42 -> 7963859.657 | C47: ='B7-CFlow'!D42 -> 1568496.78 | D47: ='B7-CFlow'!E42 -> 0 | E47: ='B7-CFlow'!F42 -> 0 | F47: ='B7-CFlow'!G42 -> 0 | G47: ='B7-CFlow'!H42 -> 0 | H47: ='B7-CFlow'!I42 -> 6491369.217 | I47: =SUM(D47:H47) -> 6491369.217 | J47: =IF(C47=0,B47+I47,C47+I47) -> 8059865.996 | K47: ='B7-CFlow'!L42 -> 14104271.62 | L47: ='B7-CFlow'!M42 -> 21220770.94
A49: Cash backing/surplus reconciliation
A50: Cash and investments available | B50: ='B8-ResRecon'!C10 -> 17304582.15 | C50: ='B8-ResRecon'!D10 -> 1842139.593 | D50: ='B8-ResRecon'!E10 -> 0 | E50: ='B8-ResRecon'!F10 -> 0 | F50: ='B8-ResRecon'!G10 -> 0 | G50: ='B8-ResRecon'!H10 -> 0 | H50: ='B8-ResRecon'!I10 -> 6491369.217 | I50: =SUM(D50:H50) -> 6491369.217 | J50: =IF(C50=0,B50+I50,C50+I50) -> 8333508.81 | K50: ='B8-ResRecon'!L10 -> 14377914.43 | L50: ='B8-ResRecon'!M10 -> 21494414.76
A51: Application of cash and investments | B51: ='B8-ResRecon'!C20 -> 275499291.5 | C51: ='B8-ResRecon'!D20 -> 232391461.9 | D51: ='B8-ResRecon'!E20 -> 0 | E51: ='B8-ResRecon'!F20 -> 0 | F51: ='B8-ResRecon'!G20 -> 0 | G51: ='B8-ResRecon'!H20 -> 0 | H51: ='B8-ResRecon'!I20 -> -4421213.398 | I51: =SUM(D51:H51) -> -4421213.398 | J51: =IF(C51=0,B51+I51,C51+I51) -> 227970248.6 | K51: ='B8-ResRecon'!L20 -> 252450857.4 | L51: ='B8-ResRecon'!M20 -> 258592164.8
A52: Balance - surplus (shortfall) | B52: =B50-B51 -> -258194709.4 | C52: -230549322.4 | D52: 0 | E52: 0 | F52: 0 | G52: 0 | H52: 10912582.61 | I52: 10912582.61 | J52: -219636739.7 | K52: -238072942.9 | L52: -237097750
A54: Asset Management
A55: Asset register summary (WDV) | B55: ='B9-Asset'!C180 -> 1447076028 | C55: ='B9-Asset'!D180 -> 1400578150 | D55: ='B9-Asset'!E180 -> 0 | E55: ='B9-Asset'!F180 -> 0 | F55: ='B9-Asset'!G180 -> 0 | G55: ='B9-Asset'!H180 -> 0 | H55: ='B9-Asset'!I180 -> -4252213.217 | I55: =SUM(D55:H55) -> -4252213.217 | J55: =IF(C55=0,B55+I55,C55+I55) -> 1396325936 | K55: ='B9-Asset'!L180 -> 1512492532 | L55: ='B9-Asset'!M180 -> 1629018215
A56: Depreciation | B56: ='B9-Asset'!C183 -> 35541317 | C56: ='B9-Asset'!D183 -> 43847541 | D56: ='B9-Asset'!E183 -> 0 | E56: ='B9-Asset'!F183 -> 0 | F56: ='B9-Asset'!G183 -> 0 | G56: ='B9-Asset'!H183 -> 0 | H56: ='B9-Asset'!I183 -> 0 | I56: =SUM(D56:H56) -> 0 | J56: =IF(C56=0,B56+I56,C56+I56) -> 43847541 | K56: ='B9-Asset'!L183 -> 35541317 | L56: ='B9-Asset'!M183 -> 35511317
A57: Renewal and Upgrading of Existing Assets | B57: ='B9-Asset'!C42+'B9-Asset'!C77 -> 43067999.65 | C57: ='B9-Asset'!D42+'B9-Asset'!D77 -> 37309969.22 | D57: ='B9-Asset'!E42+'B9-Asset'!E77 -> 0 | E57: ='B9-Asset'!F42+'B9-Asset'!F77 -> 0 | F57: ='B9-Asset'!G42+'B9-Asset'!G77 -> 0 | G57: ='B9-Asset'!H42+'B9-Asset'!H77 -> 0 | H57: ='B9-Asset'!I42+'B9-Asset'!I77 -> -2360084.217 | I57: =SUM(D57:H57) -> -2360084.217 | J57: =IF(C57=0,B57+I57,C57+I57) -> 34949885 | K57: ='B9-Asset'!L42+'B9-Asset'!L77 -> 37687913 | L57: ='B9-Asset'!M42+'B9-Asset'!M77 -> 35566000
A58: Repairs and Maintenance | B58: ='B9-Asset'!C184 -> 148680779 | C58: ='B9-Asset'!D184 -> 147894890 | D58: ='B9-Asset'!E184 -> 0 | E58: ='B9-Asset'!F184 -> 0 | F58: ='B9-Asset'!G184 -> 0 | G58: ='B9-Asset'!H184 -> 0 | H58: ='B9-Asset'!I184 -> -3590673 | I58: =SUM(D58:H58) -> -3590673 | J58: =IF(C58=0,B58+I58,C58+I58) -> 144304217 | K58: ='B9-Asset'!L184 -> 155371462 | L58: ='B9-Asset'!M184 -> 159255789
A60: Free services
A61: Cost of Free Basic Services provided | B61: ='B10-SerDel'!C62 -> 56991334 | C61: ='B10-SerDel'!D62 -> 53582000 | D61: ='B10-SerDel'!E62 -> 0 | E61: ='B10-SerDel'!F62 -> 0 | F61: ='B10-SerDel'!G62 -> 0 | G61: ='B10-SerDel'!H62 -> 0 | H61: ='B10-SerDel'!I62 -> 0 | I61: ='B10-SerDel'!J62 -> 0 | J61: ='B10-SerDel'!K62 -> 53582000 | K61: ='B10-SerDel'!L62 -> 59555945 | L61: ='B10-SerDel'!M62 -> 61044844
A62: Revenue cost of free services provided | B62: ='B10-SerDel'!C81 -> 0 | C62: ='B10-SerDel'!D81 -> 0 | D62: ='B10-SerDel'!E81 -> 0 | E62: ='B10-SerDel'!F81 -> 0 | F62: ='B10-SerDel'!G81 -> 0 | G62: ='B10-SerDel'!H81 -> 0 | H62: ='B10-SerDel'!I81 -> 0 | I62: ='B10-SerDel'!J81 -> 0 | J62: ='B10-SerDel'!K81 -> 0 | K62: ='B10-SerDel'!L81 -> 0 | L62: ='B10-SerDel'!M81 -> 0
A63: Households below minimum service level
A64: Water: | B64: ='B10-SerDel'!C16 -> 2120 | C64: ='B10-SerDel'!D16 -> 2120 | D64: ='B10-SerDel'!E16 -> 0 | E64: ='B10-SerDel'!F16 -> 0 | F64: ='B10-SerDel'!G16 -> 0 | G64: ='B10-SerDel'!H16 -> 0 | H64: ='B10-SerDel'!I16 -> 0 | I64: =SUM(D64:H64) -> 0 | J64: =IF(C64=0,B64+I64,C64+I64) -> 2120 | K64: ='B10-SerDel'!L16 -> 1970 | L64: ='B10-SerDel'!M16 -> 1770
A65: Sanitation/sewerage: | B65: ='B10-SerDel'!C28 -> 630 | C65: ='B10-SerDel'!D28 -> 630 | D65: ='B10-SerDel'!E28 -> 0 | E65: ='B10-SerDel'!F28 -> 0 | F65: ='B10-SerDel'!G28 -> 0 | G65: ='B10-SerDel'!H28 -> 0 | H65: ='B10-SerDel'!I28 -> 0 | I65: =SUM(D65:H65) -> 0 | J65: =IF(C65=0,B65+I65,C65+I65) -> 630 | K65: ='B10-SerDel'!L28 -> 630 | L65: ='B10-SerDel'!M28 -> 630
A66: Energy: | B66: ='B10-SerDel'!C37 -> 0 | C66: ='B10-SerDel'!D37 -> 0 | D66: ='B10-SerDel'!E37 -> 0 | E66: ='B10-SerDel'!F37 -> 0 | F66: ='B10-SerDel'!G37 -> 0 | G66: ='B10-SerDel'!H37 -> 0 | H66: ='B10-SerDel'!I37 -> 0 | I66: =SUM(D66:H66) -> 0 | J66: =IF(C66=0,B66+I66,C66+I66) -> 0 | K66: ='B10-SerDel'!L37 -> 0 | L66: ='B10-SerDel'!M37 -> 0
A67: Refuse: | B67: ='B10-SerDel'!C47 -> 0 | C67: ='B10-SerDel'!D47 -> 0 | D67: ='B10-SerDel'!E47 -> 0 | E67: ='B10-SerDel'!F47 -> 0 | F67: ='B10-SerDel'!G47 -> 0 | G67: ='B10-SerDel'!H47 -> 0 | H67: ='B10-SerDel'!I47 -> 0 | I67: =SUM(D67:H67) -> 0 | J67: =IF(C67=0,B67+I67,C67+I67) -> 0 | K67: ='B10-SerDel'!L47 -> 0 | L67: ='B10-SerDel'!M47 -> 0
A69: References
A70: 1. Only complete if a previous adjusted budget has been approved in the same financial year. Reflect most recent adjusted budget.
A71: 2. Additional cash-backed accumulated funds/unspent funds (MFMA section 18(1)(b) and section 28(2)(e)) identified after the Original Budget approved and after annual financial statements audited (note: only where underspending could not reasonably have been foreseen)
A72: 3. Increases of funds approved under MFMA section 31
A73: 4. Adjustments approved in accordance with MFMA section 29
A74: 5. Adjustments to transfers from National or Provincial Government
A75: 6. Adjusts. = 'Other' Adjustments proposed to be approved; including revenue under-collection (MFMA section 28(2)(a)); additional revenue appropriation on existing programmes (section 28(2))(b); projected savings (section 28(2)(d)); error correction (section 28(2)(f))
A76: 7. G = B + C + D + E + F
A77: 8. Adjusted Budget H = (A or A1/2 etc) + G

Sheet B2-FinPerf SC
A1: =muni&" - "&_ADJ3&" - "&Date -> WC031 Theewaterskloof - Table B2 Adjustments Budget Financial Performance (functional classification) - 16 April 2026
A2: ="Standard "&desc -> Standard Description | B2: =head27 -> Ref | C2: =Head2 -> Budget Year 2025/26 | L2: =Head10 -> Budget Year +1 2026/27 | M2: =Head11 -> Budget Year +2 2027/28
C3: =Head6 -> Original Budget | D3: =Head54 -> Prior Adjusted | E3: =Head51 -> Accum. Funds | F3: =Head52 -> Multi-year capital | G3: =Head53 -> Unfore. Unavoid. | H3: =Head55 -> Nat. or Prov. Govt | I3: =Head50 -> Other Adjusts. | J3: =Head56 -> Total Adjusts. | K3: =Head7 -> Adjusted Budget | L3: =Head7 -> Adjusted Budget | M3: =Head7 -> Adjusted Budget
D4: 5 | E4: =D4+1 -> 6 | F4: 7 | G4: 8 | H4: 9 | I4: 10 | J4: 11 | K4: 12
A5: R thousands | B5: 1, 4 | C5: A | D5: A1 | E5: B | F5: C | G5: D | H5: E | I5: F | J5: G | K5: H
A6: Revenue - Functional
A7: Governance and administration | C7: =SUM(C8:C10) -> 341108886 | D7: =SUM(D8:D10) -> 337543379 | E7: 0 | F7: 0 | G7: 0 | H7: 0 | I7: -11182350 | J7: =SUM(J8:J10) -> -11182350 | K7: =SUM(K8:K10) -> 326361029 | L7: =SUM(L8:L10) -> 355656645.3 | M7: =SUM(M8:M10) -> 366514826.5
A8: Executive and council | C8: =B2B!C8 -> 113000 | D8: =B2B!D8 -> 184545 | E8: =B2B!E8 -> 0 | F8: =B2B!F8 -> 0 | G8: =B2B!G8 -> 0 | H8: =B2B!H8 -> 0 | I8: =B2B!I8 -> 0 | J8: =SUM(E8:I8) -> 0 | K8: =IF(D8=0,C8+J8,D8+J8) -> 184545 | L8: =B2B!L8 -> 113000 | M8: =B2B!M8 -> 113000
A9: Finance and administration | C9: =B2B!C11 -> 340995886 | D9: =B2B!D11 -> 337358834 | E9: =B2B!E11 -> 0 | F9: =B2B!F11 -> 0 | G9: =B2B!G11 -> 0 | H9: =B2B!H11 -> 0 | I9: =B2B!I11 -> -11182350 | J9: =SUM(E9:I9) -> -11182350 | K9: =IF(D9=0,C9+J9,D9+J9) -> 326176484 | L9: =B2B!L11 -> 355543645.3 | M9: =B2B!M11 -> 366401826.5
A10: Internal audit | C10: =B2B!C25 -> 0 | D10: =B2B!D25 -> 0 | E10: =B2B!E25 -> 0 | F10: =B2B!F25 -> 0 | G10: =B2B!G25 -> 0 | H10: =B2B!H25 -> 0 | I10: =B2B!I25 -> 0 | J10: =SUM(E10:I10) -> 0 | K10: =IF(D10=0,C10+J10,D10+J10) -> 0 | L10: =B2B!L25 -> 0 | M10: =B2B!M25 -> 0
A11: Community and public safety | C11: =SUM(C12:C16) -> 94724108 | D11: =SUM(D12:D16) -> 141431235 | E11: 0 | F11: 0 | G11: 0 | H11: 0 | I11: 60000 | J11: =SUM(J12:J16) -> 60000 | K11: =SUM(K12:K16) -> 141491235 | L11: =SUM(L12:L16) -> 146424143 | M11: =SUM(M12:M16) -> 149328772
A12: Community and social services | C12: =B2B!C28 -> 11151000 | D12: =B2B!D28 -> 11156745 | E12: =B2B!E28 -> 0 | F12: =B2B!F28 -> 0 | G12: =B2B!G28 -> 0 | H12: =B2B!H28 -> 0 | I12: =B2B!I28 -> 0 | J12: =SUM(E12:I12) -> 0 | K12: =IF(D12=0,C12+J12,D12+J12) -> 11156745 | L12: =B2B!L28 -> 11597980 | M12: =B2B!M28 -> 12315030
A13: Sport and recreation | C13: =B2B!C50 -> 51000 | D13: =B2B!D50 -> 51000 | E13: =B2B!E50 -> 0 | F13: =B2B!F50 -> 0 | G13: =B2B!G50 -> 0 | H13: =B2B!H50 -> 0 | I13: =B2B!I50 -> 0 | J13: =SUM(E13:I13) -> 0 | K13: =IF(D13=0,C13+J13,D13+J13) -> 51000 | L13: =B2B!L50 -> 53295 | M13: =B2B!M50 -> 54627
A14: Public safety | C14: =B2B!C56 -> 26742108 | D14: =B2B!D56 -> 40748108 | E14: =B2B!E56 -> 0 | F14: =B2B!F56 -> 0 | G14: =B2B!G56 -> 0 | H14: =B2B!H56 -> 0 | I14: =B2B!I56 -> 60000 | J14: =SUM(E14:I14) -> 60000 | K14: =IF(D14=0,C14+J14,D14+J14) -> 40808108 | L14: =B2B!L56 -> 26752868 | M14: =B2B!M56 -> 26759115
A15: Housing | C15: =B2B!C65 -> 56780000 | D15: =B2B!D65 -> 89475382 | E15: =B2B!E65 -> 0 | F15: =B2B!F65 -> 0 | G15: =B2B!G65 -> 0 | H15: =B2B!H65 -> 0 | I15: =B2B!I65 -> 0 | J15: =SUM(E15:I15) -> 0 | K15: =IF(D15=0,C15+J15,D15+J15) -> 89475382 | L15: =B2B!L65 -> 108020000 | M15: =B2B!M65 -> 110200000
A16: Health | C16: =B2B!C68 -> 0 | D16: =B2B!D68 -> 0 | E16: =B2B!E68 -> 0 | F16: =B2B!F68 -> 0 | G16: =B2B!G68 -> 0 | H16: =B2B!H68 -> 0 | I16: =B2B!I68 -> 0 | J16: =SUM(E16:I16) -> 0 | K16: =IF(D16=0,C16+J16,D16+J16) -> 0 | L16: =B2B!L68 -> 0 | M16: =B2B!M68 -> 0
A17: Economic and environmental services | C17: =SUM(C18:C20) -> 41009298 | D17: =SUM(D18:D20) -> 52263023 | E17: 0 | F17: 0 | G17: 0 | H17: 0 | I17: -5154238 | J17: =SUM(J18:J20) -> -5154238 | K17: =SUM(K18:K20) -> 47108785 | L17: =SUM(L18:L20) -> 41737376.7 | M17: =SUM(M18:M20) -> 43297468.52
A18: Planning and development | C18: =B2B!C77 -> 32446891 | D18: =B2B!D77 -> 37400616 | E18: =B2B!E77 -> 0 | F18: =B2B!F77 -> 0 | G18: =B2B!G77 -> 0 | H18: =B2B!H77 -> 0 | I18: =B2B!I77 -> -2662295 | J18: =SUM(E18:I18) -> -2662295 | K18: =IF(D18=0,C18+J18,D18+J18) -> 34738321 | L18: =B2B!L77 -> 32796186.7 | M18: =B2B!M77 -> 34118374.52
A19: Road transport | C19: =B2B!C88 -> 8562407 | D19: =B2B!D88 -> 14862407 | E19: =B2B!E88 -> 0 | F19: =B2B!F88 -> 0 | G19: =B2B!G88 -> 0 | H19: =B2B!H88 -> 0 | I19: =B2B!I88 -> -2491943 | J19: =SUM(E19:I19) -> -2491943 | K19: =IF(D19=0,C19+J19,D19+J19) -> 12370464 | L19: =B2B!L88 -> 8941190 | M19: =B2B!M88 -> 9179094
A20: Environmental protection | C20: =B2B!C93 -> 0 | D20: =B2B!D93 -> 0 | E20: =B2B!E93 -> 0 | F20: =B2B!F93 -> 0 | G20: =B2B!G93 -> 0 | H20: =B2B!H93 -> 0 | I20: =B2B!I93 -> 0 | J20: =SUM(E20:I20) -> 0 | K20: =IF(D20=0,C20+J20,D20+J20) -> 0 | L20: =B2B!L93 -> 0 | M20: =B2B!M93 -> 0
A21: Trading services | C21: =SUM(C22:C25) -> 445994192 | D21: =SUM(D22:D25) -> 461740000 | E21: 0 | F21: 0 | G21: 0 | H21: 0 | I21: -1469052 | J21: -1469052 | K21: 460270948 | L21: 472674520 | M21: 485970630
A22: Energy sources | C22: =B2B!C101 -> 192659412 | D22: =B2B!D101 -> 198188000 | E22: =B2B!E101 -> 0 | F22: =B2B!F101 -> 0 | G22: =B2B!G101 -> 0 | H22: =B2B!H101 -> 0 | I22: =B2B!I101 -> -1469052 | J22: =SUM(E22:I22) -> -1469052 | K22: =IF(D22=0,C22+J22,D22+J22) -> 196718948 | L22: =B2B!L101 -> 207466421 | M22: =B2B!M101 -> 213079584
A23: Water management | C23: =B2B!C105 -> 122030280 | D23: =B2B!D105 -> 133752000 | E23: =B2B!E105 -> 0 | F23: =B2B!F105 -> 0 | G23: =B2B!G105 -> 0 | H23: =B2B!H105 -> 0 | I23: =B2B!I105 -> 0 | J23: =SUM(E23:I23) -> 0 | K23: =IF(D23=0,C23+J23,D23+J23) -> 133752000 | L23: =B2B!L105 -> 127675664 | M23: =B2B!M105 -> 131210172
A24: Waste water management | C24: =B2B!C109 -> 66372550 | D24: =B2B!D109 -> 65756000 | E24: =B2B!E109 -> 0 | F24: =B2B!F109 -> 0 | G24: =B2B!G109 -> 0 | H24: =B2B!H109 -> 0 | I24: =B2B!I109 -> 0 | J24: =SUM(E24:I24) -> 0 | K24: =IF(D24=0,C24+J24,D24+J24) -> 65756000 | L24: =B2B!L109 -> 69509742 | M24: =B2B!M109 -> 71582109
A25: Waste management | C25: =B2B!C114 -> 64931950 | D25: =B2B!D114 -> 64044000 | E25: =B2B!E114 -> 0 | F25: =B2B!F114 -> 0 | G25: =B2B!G114 -> 0 | H25: =B2B!H114 -> 0 | I25: =B2B!I114 -> 0 | J25: =SUM(E25:I25) -> 0 | K25: =IF(D25=0,C25+J25,D25+J25) -> 64044000 | L25: =B2B!L114 -> 68022693 | M25: =B2B!M114 -> 70098765
A26: Other | C26: =B2B!C119 -> 0 | D26: =B2B!D119 -> 0 | E26: =B2B!E119 -> 0 | F26: =B2B!F119 -> 0 | G26: =B2B!G119 -> 0 | H26: =B2B!H119 -> 0 | I26: =B2B!I119 -> 0 | J26: =SUM(E26:I26) -> 0 | K26: =IF(D26=0,C26+J26,D26+J26) -> 0 | L26: =B2B!L119 -> 0 | M26: =B2B!M119 -> 0
A27: ="Total "&A6 -> Total Revenue - Functional | B27: 2 | C27: =C7+C11+C17+C21+C26 -> 922836484 | D27: =D7+D11+D17+D21+D26 -> 992977637 | E27: 0 | F27: 0 | G27: 0 | H27: 0 | I27: -17745640 | J27: -17745640 | K27: 975231997 | L27: 1016492685 | M27: 1045111697
A29: Expenditure - Functional
A30: Governance and administration | C30: =SUM(C31:C33) -> 255559885 | D30: =SUM(D31:D33) -> 254600596 | E30: 0 | F30: 0 | G30: 0 | H30: 0 | I30: -5490152 | J30: =SUM(J31:J33) -> -5490152 | K30: =SUM(K31:K33) -> 249110444 | L30: =SUM(L31:L33) -> 266791294 | M30: =SUM(M31:M33) -> 273281763
A31: Executive and council | C31: =B2B!C130 -> 26370013 | D31: =B2B!D130 -> 30371673 | E31: =B2B!E130 -> 0 | F31: =B2B!F130 -> 0 | G31: =B2B!G130 -> 0 | H31: =B2B!H130 -> 0 | I31: =B2B!I130 -> -483742 | J31: =SUM(E31:I31) -> -483742 | K31: =IF(D31=0,C31+J31,D31+J31) -> 29887931 | L31: =B2B!L130 -> 27556665 | M31: =B2B!M130 -> 28245581
A32: Finance and administration | C32: =B2B!C133 -> 225867435 | D32: =B2B!D133 -> 220898471 | E32: =B2B!E133 -> 0 | F32: =B2B!F133 -> 0 | G32: =B2B!G133 -> 0 | H32: =B2B!H133 -> 0 | I32: =B2B!I133 -> -4998421 | J32: =SUM(E32:I32) -> -4998421 | K32: =IF(D32=0,C32+J32,D32+J32) -> 215900050 | L32: =B2B!L133 -> 235762681 | M32: =B2B!M133 -> 241477434
A33: Internal audit | C33: =B2B!C147 -> 3322437 | D33: =B2B!D147 -> 3330452 | E33: =B2B!E147 -> 0 | F33: =B2B!F147 -> 0 | G33: =B2B!G147 -> 0 | H33: =B2B!H147 -> 0 | I33: =B2B!I147 -> -7989 | J33: =SUM(E33:I33) -> -7989 | K33: =IF(D33=0,C33+J33,D33+J33) -> 3322463 | L33: =B2B!L147 -> 3471948 | M33: =B2B!M147 -> 3558748
A34: Community and public safety | C34: =SUM(C35:C39) -> 118704737 | D34: =SUM(D35:D39) -> 130596768 | E34: 0 | F34: 0 | G34: 0 | H34: 0 | I34: -3883784 | J34: =SUM(J35:J39) -> -3883784 | K34: =SUM(K35:K39) -> 126712984 | L34: =SUM(L35:L39) -> 111375964 | M34: =SUM(M35:M39) -> 114134314
A35: Community and social services | C35: =B2B!C150 -> 19290105 | D35: =B2B!D150 -> 20772904 | E35: =B2B!E150 -> 0 | F35: =B2B!F150 -> 0 | G35: =B2B!G150 -> 0 | H35: =B2B!H150 -> 0 | I35: =B2B!I150 -> -1329418 | J35: =SUM(E35:I35) -> -1329418 | K35: =IF(D35=0,C35+J35,D35+J35) -> 19443486 | L35: =B2B!L150 -> 20111252 | M35: =B2B!M150 -> 20587969
A36: Sport and recreation | C36: =B2B!C172 -> 11605746 | D36: =B2B!D172 -> 11642344 | E36: =B2B!E172 -> 0 | F36: =B2B!F172 -> 0 | G36: =B2B!G172 -> 0 | H36: =B2B!H172 -> 0 | I36: =B2B!I172 -> -1196376 | J36: =SUM(E36:I36) -> -1196376 | K36: =IF(D36=0,C36+J36,D36+J36) -> 10445968 | L36: =B2B!L172 -> 12128011 | M36: =B2B!M172 -> 12431212
A37: Public safety | C37: =B2B!C178 -> 59739486 | D37: =B2B!D178 -> 71312954 | E37: =B2B!E178 -> 0 | F37: =B2B!F178 -> 0 | G37: =B2B!G178 -> 0 | H37: =B2B!H178 -> 0 | I37: =B2B!I178 -> -896742 | J37: =SUM(E37:I37) -> -896742 | K37: =IF(D37=0,C37+J37,D37+J37) -> 70416212 | L37: =B2B!L178 -> 62427775 | M37: =B2B!M178 -> 63988481
A38: Housing | C38: =B2B!C187 -> 28069400 | D38: =B2B!D187 -> 26868566 | E38: =B2B!E187 -> 0 | F38: =B2B!F187 -> 0 | G38: =B2B!G187 -> 0 | H38: =B2B!H187 -> 0 | I38: =B2B!I187 -> -461248 | J38: =SUM(E38:I38) -> -461248 | K38: =IF(D38=0,C38+J38,D38+J38) -> 26407318 | L38: =B2B!L187 -> 16708926 | M38: =B2B!M187 -> 17126652
A39: Health | C39: =B2B!C190 -> 0 | D39: =B2B!D190 -> 0 | E39: =B2B!E190 -> 0 | F39: =B2B!F190 -> 0 | G39: =B2B!G190 -> 0 | H39: =B2B!H190 -> 0 | I39: =B2B!I190 -> 0 | J39: =SUM(E39:I39) -> 0 | K39: =IF(D39=0,C39+J39,D39+J39) -> 0 | L39: =B2B!L190 -> 0 | M39: =B2B!M190 -> 0
A40: Economic and environmental services | C40: =SUM(C41:C43) -> 86609275 | D40: =SUM(D41:D43) -> 93049629 | E40: 0 | F40: 0 | G40: 0 | H40: 0 | I40: -4208219 | J40: =SUM(J41:J43) -> -4208219 | K40: =SUM(K41:K43) -> 88841410 | L40: =SUM(L41:L43) -> 90294606 | M40: =SUM(M41:M43) -> 92434157
A41: Planning and development | C41: =B2B!C199 -> 38274677 | D41: =B2B!D199 -> 38316960 | E41: =B2B!E199 -> 0 | F41: =B2B!F199 -> 0 | G41: =B2B!G199 -> 0 | H41: =B2B!H199 -> 0 | I41: =B2B!I199 -> -261535 | J41: =SUM(E41:I41) -> -261535 | K41: =IF(D41=0,C41+J41,D41+J41) -> 38055425 | L41: =B2B!L199 -> 39997044 | M41: =B2B!M199 -> 40996983
A42: Road transport | C42: =B2B!C210 -> 48274598 | D42: =B2B!D210 -> 54672669 | E42: =B2B!E210 -> 0 | F42: =B2B!F210 -> 0 | G42: =B2B!G210 -> 0 | H42: =B2B!H210 -> 0 | I42: =B2B!I210 -> -3886684 | J42: =SUM(E42:I42) -> -3886684 | K42: =IF(D42=0,C42+J42,D42+J42) -> 50785985 | L42: =B2B!L210 -> 50234862 | M42: =B2B!M210 -> 51372907
A43: Environmental protection | C43: =B2B!C215 -> 60000 | D43: =B2B!D215 -> 60000 | E43: =B2B!E215 -> 0 | F43: =B2B!F215 -> 0 | G43: =B2B!G215 -> 0 | H43: =B2B!H215 -> 0 | I43: =B2B!I215 -> -60000 | J43: =SUM(E43:I43) -> -60000 | K43: =IF(D43=0,C43+J43,D43+J43) -> 0 | L43: =B2B!L215 -> 62700 | M43: =B2B!M215 -> 64267
A44: Trading services | C44: =SUM(C45:C48) -> 422989302 | D44: =SUM(D45:D48) -> 441502801 | E44: 0 | F44: 0 | G44: 0 | H44: 0 | I44: -606294 | J44: -606294 | K44: 440896507 | L44: 440952290 | M44: 451380813
A45: Energy sources | C45: =B2B!C223 -> 182675121 | D45: =B2B!D223 -> 186732909 | E45: =B2B!E223 -> 0 | F45: =B2B!F223 -> 0 | G45: =B2B!G223 -> 0 | H45: =B2B!H223 -> 0 | I45: =B2B!I223 -> -86252 | J45: =SUM(E45:I45) -> -86252 | K45: =IF(D45=0,C45+J45,D45+J45) -> 186646657 | L45: =B2B!L223 -> 190734453 | M45: =B2B!M223 -> 195413326
A46: Water management | C46: =B2B!C227 -> 92653753 | D46: =B2B!D227 -> 103357620 | E46: =B2B!E227 -> 0 | F46: =B2B!F227 -> 0 | G46: =B2B!G227 -> 0 | H46: =B2B!H227 -> 0 | I46: =B2B!I227 -> -380007 | J46: =SUM(E46:I46) -> -380007 | K46: =IF(D46=0,C46+J46,D46+J46) -> 102977613 | L46: =B2B!L227 -> 96496844 | M46: =B2B!M227 -> 98727977
A47: Waste water management | C47: =B2B!C231 -> 67498809 | D47: =B2B!D231 -> 70867941 | E47: =B2B!E231 -> 0 | F47: =B2B!F231 -> 0 | G47: =B2B!G231 -> 0 | H47: =B2B!H231 -> 0 | I47: =B2B!I231 -> 7862 | J47: =SUM(E47:I47) -> 7862 | K47: =IF(D47=0,C47+J47,D47+J47) -> 70875803 | L47: =B2B!L231 -> 70113379 | M47: =B2B!M231 -> 71631293
A48: Waste management | C48: =B2B!C236 -> 80161619 | D48: =B2B!D236 -> 80544331 | E48: =B2B!E236 -> 0 | F48: =B2B!F236 -> 0 | G48: =B2B!G236 -> 0 | H48: =B2B!H236 -> 0 | I48: =B2B!I236 -> -147897 | J48: =SUM(E48:I48) -> -147897 | K48: =IF(D48=0,C48+J48,D48+J48) -> 80396434 | L48: =B2B!L236 -> 83607614 | M48: =B2B!M236 -> 85608217
A49: Other | C49: =B2B!C241 -> 240001 | D49: =B2B!D241 -> 415453 | E49: =B2B!E241 -> 0 | F49: =B2B!F241 -> 0 | G49: =B2B!G241 -> 0 | H49: =B2B!H241 -> 0 | I49: =B2B!I241 -> -15000 | J49: =SUM(E49:I49) -> -15000 | K49: =IF(D49=0,C49+J49,D49+J49) -> 400453 | L49: =B2B!L241 -> 250801 | M49: =B2B!M241 -> 257071
A50: ="Total "&A29 -> Total Expenditure - Functional | B50: 3 | C50: =C30+C34+C40+C44+C49 -> 884103200 | D50: =D30+D34+D40+D44+D49 -> 920165247 | E50: 0 | F50: 0 | G50: 0 | H50: 0 | I50: -14203449 | J50: -14203449 | K50: 905961798 | L50: 909664955 | M50: 931488118
A51: Surplus/ (Deficit) for the year | C51: =C27-C50 -> 38733284 | D51: 72812390 | E51: 0 | F51: 0 | G51: 0 | H51: 0 | I51: -3542191 | J51: -3542191 | K51: 69270199 | L51: 106827730 | M51: 113623579
A52: =head27a -> References
A53: 1. Government Finance Statistics Functions and Sub-functions are standardised to assist the compilation of national and international accounts for comparison purposes
A54: 2. Total Revenue by standard classification must reconcile to Total Operating Revenue shown in the Adjustments Budget Financial Performance (revenue and expenditure)
A55: 3. Total Operating Expenditure by standard classification must reconcile to Total Operating Expenditure shown in the Adjustments Budget Financial Performance (revenue and expenditure)
A56: 4. All amounts must be classified under a standard classification (modified GFS). The GFS function 'Other' is only for Abbatoirs, Air Transport, Markets and Tourism - and if used must be supported by footnotes. Nothing else may be placed under 'Other'. Assign associate share to relevant classification
A57: 5. Only complete if a previous adjusted budget has been approved in the same financial year. Reflect most recent adjusted budget.
A58: 6. Additional cash-backed accumulated funds/unspent funds (MFMA section 18(1)(b) and section 28(2)(e)) identified after the Original Budget approved and after annual financial statements audited (note: only where underspending could not reasonably have been foreseen)
A59: 7. Increases of funds approved under MFMA section 31
A60: 8. Adjustments approved in accordance with MFMA section 29
A61: 9. Adjustments to transfers from National or Provincial Government
A62: 10. Adjusts. = 'Other' Adjustments proposed to be approved; including revenue under-collection (MFMA section 28(2)(a)); additional revenue appropriation on existing programmes (section 28(2))(b); projected savings (section 28(2)(d)); error correction (section 28(2)(f))
A63: 11. G = B + C + D + E + F
A64: 12. Adjusted Budget H = (A or A1/2 etc) + G

Sheet B2B
A1: =muni&" - "&_ADJ3&" - B"&" - "&Date -> WC031 Theewaterskloof - Table B2 Adjustments Budget Financial Performance (functional classification) - B - 16 April 2026
A2: ="Standard Classification "&desc -> Standard Classification Description | B2: =head27 -> Ref | C2: =Head2 -> Budget Year 2025/26 | L2: =Head10 -> Budget Year +1 2026/27 | M2: =Head11 -> Budget Year +2 2027/28
C3: =Head6 -> Original Budget | D3: =Head54 -> Prior Adjusted | E3: =Head51 -> Accum. Funds | F3: =Head52 -> Multi-year capital | G3: =Head53 -> Unfore. Unavoid. | H3: =Head55 -> Nat. or Prov. Govt | I3: =Head50 -> Other Adjusts. | J3: =Head56 -> Total Adjusts. | K3: =Head7 -> Adjusted Budget | L3: =Head7 -> Adjusted Budget | M3: =Head7 -> Adjusted Budget | V3: Adjusted Budget
D4: 5 | E4: =D4+1 -> 6 | F4: 7 | G4: 8 | H4: 9 | I4: 10 | J4: 11 | K4: 12 | V4: 12
A5: R thousand | B5: 1 | C5: A | D5: A1 | E5: B | F5: C | G5: D | H5: E | I5: F | J5: G | K5: H | V5: H
A6: Revenue - Functional
A7: Municipal governance and administration | C7: 341108886 | D7: 337543379 | E7: 0 | F7: 0 | G7: 0 | H7: 0 | I7: -11182350 | J7: -11182350 | K7: 326361029 | L7: 355656645.3 | M7: 366514826.5 | V7: 337543379
A8: Executive and council | C8: 113000 | D8: 184545 | E8: 0 | F8: 0 | G8: 0 | H8: 0 | I8: 0 | J8: 0 | K8: 184545 | L8: 113000 | M8: 113000 | V8: 184545
A9: Mayor and Council | C9: 113000 | D9: 184545 | E9: 0 | F9: 0 | G9: 0 | H9: 0 | I9: 0 | J9: 0 | K9: 184545 | L9: 113000 | M9: 113000 | V9: 184545
A10: Municipal Manager, Town Secretary and Chief Executive | C10: 0 | D10: 0 | E10: 0 | F10: 0 | G10: 0 | H10: 0 | I10: 0 | J10: 0 | K10: 0 | L10: 0 | M10: 0 | V10: 0
A11: Finance and administration | C11: 340995886 | D11: 337358834 | E11: 0 | F11: 0 | G11: 0 | H11: 0 | I11: -11182350 | J11: -11182350 | K11: 326176484 | L11: 355543645.3 | M11: 366401826.5 | V11: 337358834
A12: Administrative and Corporate Support | C12: 5546500 | D12: 3640500 | E12: 0 | F12: 0 | G12: 0 | H12: 0 | I12: 0 | J12: 0 | K12: 3640500 | L12: 5796093 | M12: 5940995 | V12: 3640500
A13: Asset Management | C13: 164164 | D13: 2114154 | E13: 0 | F13: 0 | G13: 0 | H13: 0 | I13: 0 | J13: 0 | K13: 2114154 | L13: 119281 | M13: 122283 | V13: 2114154
A14: Finance | C14: 332102397 | D14: 326355521 | E14: 0 | F14: 0 | G14: 0 | H14: 0 | I14: -11182350 | J14: -11182350 | K14: 315173171 | L14: 346302219.3 | M14: 356929343.5 | V14: 326355521
A15: Fleet Management | C15: 0 | D15: 0 | E15: 0 | F15: 0 | G15: 0 | H15: 0 | I15: 0 | J15: 0 | K15: 0 | L15: 0 | M15: 0 | V15: 0
A16: Human Resources | C16: 86825 | D16: 404659 | E16: 0 | F16: 0 | G16: 0 | H16: 0 | I16: 0 | J16: 0 | K16: 404659 | L16: 90732 | M16: 93001 | V16: 404659
A17: Information Technology | C17: 0 | D17: 200000 | E17: 0 | F17: 0 | G17: 0 | H17: 0 | I17: 0 | J17: 0 | K17: 200000 | L17: 0 | M17: 0 | V17: 200000
A18: Legal Services | C18: 1000000 | D18: 2548000 | E18: 0 | F18: 0 | G18: 0 | H18: 0 | I18: 0 | J18: 0 | K18: 2548000 | L18: 1045000 | M18: 1071125 | V18: 2548000
A19: Marketing, Customer Relations, Publicity and Media Co-ordination | C19: 0 | D19: 0 | E19: 0 | F19: 0 | G19: 0 | H19: 0 | I19: 0 | J19: 0 | K19: 0 | L19: 0 | M19: 0 | V19: 0
A20: Property Services | C20: 2096000 | D20: 2096000 | E20: 0 | F20: 0 | G20: 0 | H20: 0 | I20: 0 | J20: 0 | K20: 2096000 | L20: 2190320 | M20: 2245079 | V20: 2096000
A21: Risk Management | C21: 0 | D21: 0 | E21: 0 | F21: 0 | G21: 0 | H21: 0 | I21: 0 | J21: 0 | K21: 0 | L21: 0 | M21: 0 | V21: 0
A22: Security Services | C22: 0 | D22: 0 | E22: 0 | F22: 0 | G22: 0 | H22: 0 | I22: 0 | J22: 0 | K22: 0 | L22: 0 | M22: 0 | V22: 0
A23: Supply Chain Management | C23: 0 | D23: 0 | E23: 0 | F23: 0 | G23: 0 | H23: 0 | I23: 0 | J23: 0 | K23: 0 | L23: 0 | M23: 0 | V23: 0
A24: Valuation Service | C24: 0 | D24: 0 | E24: 0 | F24: 0 | G24: 0 | H24: 0 | I24: 0 | J24: 0 | K24: 0 | L24: 0 | M24: 0 | V24: 0
A25: Internal audit | C25: 0 | D25: 0 | E25: 0 | F25: 0 | G25: 0 | H25: 0 | I25: 0 | J25: 0 | K25: 0 | L25: 0 | M25: 0 | V25: 0
A26: Governance Function | C26: 0 | D26: 0 | E26: 0 | F26: 0 | G26: 0 | H26: 0 | I26: 0 | J26: 0 | K26: 0 | L26: 0 | M26: 0 | V26: 0
A27: Community and public safety | C27: 94724108 | D27: 141431235 | E27: 0 | F27: 0 | G27: 0 | H27: 0 | I27: 60000 | J27: 60000 | K27: 141491235 | L27: 146424143 | M27: 149328772 | V27: 141431235
A28: Community and social services | C28: 11151000 | D28: 11156745 | E28: 0 | F28: 0 | G28: 0 | H28: 0 | I28: 0 | J28: 0 | K28: 11156745 | L28: 11597980 | M28: 12315030 | V28: 11156745
A29: Aged Care | C29: 0 | D29: 0 | E29: 0 | F29: 0 | G29: 0 | H29: 0 | I29: 0 | J29: 0 | K29: 0 | L29: 0 | M29: 0 | V29: 0
A30: Agricultural | C30: 0 | D30: 0 | E30: 0 | F30: 0 | G30: 0 | H30: 0 | I30: 0 | J30: 0 | K30: 0 | L30: 0 | M30: 0 | V30: 0
A31: Animal Care and Diseases | C31: 0 | D31: 0 | E31: 0 | F31: 0 | G31: 0 | H31: 0 | I31: 0 | J31: 0 | K31: 0 | L31: 0 | M31: 0 | V31: 0
A32: Cemeteries, Funeral Parlours and Crematoriums | C32: 750000 | D32: 750000 | E32: 0 | F32: 0 | G32: 0 | H32: 0 | I32: 0 | J32: 0 | K32: 750000 | L32: 783750 | M32: 803344 | V32: 750000
A33: Child Care Facilities | C33: 0 | D33: 0 | E33: 0 | F33: 0 | G33: 0 | H33: 0 | I33: 0 | J33: 0 | K33: 0 | L33: 0 | M33: 0 | V33: 0
A34: Community Halls and Facilities | C34: 0 | D34: 5745 | E34: 0 | F34: 0 | G34: 0 | H34: 0 | I34: 0 | J34: 0 | K34: 5745 | L34: 150000 | M34: 150000 | V34: 5745
A35: Consumer Protection | C35: 0 | D35: 0 | E35: 0 | F35: 0 | G35: 0 | H35: 0 | I35: 0 | J35: 0 | K35: 0 | L35: 0 | M35: 0 | V35: 0
A36: Cultural Matters | C36: 0 | D36: 0 | E36: 0 | F36: 0 | G36: 0 | H36: 0 | I36: 0 | J36: 0 | K36: 0 | L36: 0 | M36: 0 | V36: 0
A37: Disaster Management | C37: 0 | D37: 0 | E37: 0 | F37: 0 | G37: 0 | H37: 0 | I37: 0 | J37: 0 | K37: 0 | L37: 0 | M37: 0 | V37: 0
A38: Education | C38: 0 | D38: 0 | E38: 0 | F38: 0 | G38: 0 | H38: 0 | I38: 0 | J38: 0 | K38: 0 | L38: 0 | M38: 0 | V38: 0
A39: Indigenous and Customary Law | C39: 0 | D39: 0 | E39: 0 | F39: 0 | G39: 0 | H39: 0 | I39: 0 | J39: 0 | K39: 0 | L39: 0 | M39: 0 | V39: 0
A40: Industrial Promotion | C40: 0 | D40: 0 | E40: 0 | F40: 0 | G40: 0 | H40: 0 | I40: 0 | J40: 0 | K40: 0 | L40: 0 | M40: 0 | V40: 0
A41: Language Policy | C41: 0 | D41: 0 | E41: 0 | F41: 0 | G41: 0 | H41: 0 | I41: 0 | J41: 0 | K41: 0 | L41: 0 | M41: 0 | V41: 0
A42: Libraries and Archives | C42: 10401000 | D42: 10401000 | E42: 0 | F42: 0 | G42: 0 | H42: 0 | I42: 0 | J42: 0 | K42: 10401000 | L42: 10664230 | M42: 11361686 | V42: 10401000
A43: Literacy Programmes | C43: 0 | D43: 0 | E43: 0 | F43: 0 | G43: 0 | H43: 0 | I43: 0 | J43: 0 | K43: 0 | L43: 0 | M43: 0 | V43: 0
A44: Media Services | C44: 0 | D44: 0 | E44: 0 | F44: 0 | G44: 0 | H44: 0 | I44: 0 | J44: 0 | K44: 0 | L44: 0 | M44: 0 | V44: 0
A45: Museums and Art Galleries | C45: 0 | D45: 0 | E45: 0 | F45: 0 | G45: 0 | H45: 0 | I45: 0 | J45: 0 | K45: 0 | L45: 0 | M45: 0 | V45: 0
A46: Population Development | C46: 0 | D46: 0 | E46: 0 | F46: 0 | G46: 0 | H46: 0 | I46: 0 | J46: 0 | K46: 0 | L46: 0 | M46: 0 | V46: 0
A47: Provincial Cultural Matters | C47: 0 | D47: 0 | E47: 0 | F47: 0 | G47: 0 | H47: 0 | I47: 0 | J47: 0 | K47: 0 | L47: 0 | M47: 0 | V47: 0
A48: Theatres | C48: 0 | D48: 0 | E48: 0 | F48: 0 | G48: 0 | H48: 0 | I48: 0 | J48: 0 | K48: 0 | L48: 0 | M48: 0 | V48: 0
A49: Zoo's | C49: 0 | D49: 0 | E49: 0 | F49: 0 | G49: 0 | H49: 0 | I49: 0 | J49: 0 | K49: 0 | L49: 0 | M49: 0 | V49: 0
A50: Sport and recreation | C50: 51000 | D50: 51000 | E50: 0 | F50: 0 | G50: 0 | H50: 0 | I50: 0 | J50: 0 | K50: 51000 | L50: 53295 | M50: 54627 | V50: 51000
A51: Beaches and Jetties | C51: 0 | D51: 0 | E51: 0 | F51: 0 | G51: 0 | H51: 0 | I51: 0 | J51: 0 | K51: 0 | L51: 0 | M51: 0 | V51: 0
A52: Casinos, Racing, Gambling, Wagering | C52: 0 | D52: 0 | E52: 0 | F52: 0 | G52: 0 | H52: 0 | I52: 0 | J52: 0 | K52: 0 | L52: 0 | M52: 0 | V52: 0
A53: Community Parks (including Nurseries) | C53: 1000 | D53: 1000 | E53: 0 | F53: 0 | G53: 0 | H53: 0 | I53: 0 | J53: 0 | K53: 1000 | L53: 1045 | M53: 1071 | V53: 1000
A54: Recreational Facilities | C54: 0 | D54: 0 | E54: 0 | F54: 0 | G54: 0 | H54: 0 | I54: 0 | J54: 0 | K54: 0 | L54: 0 | M54: 0 | V54: 0
A55: Sports Grounds and Stadiums | C55: 50000 | D55: 50000 | E55: 0 | F55: 0 | G55: 0 | H55: 0 | I55: 0 | J55: 0 | K55: 50000 | L55: 52250 | M55: 53556 | V55: 50000
A56: Public safety | C56: 26742108 | D56: 40748108 | E56: 0 | F56: 0 | G56: 0 | H56: 0 | I56: 60000 | J56: 60000 | K56: 40808108 | L56: 26752868 | M56: 26759115 | V56: 40748108
A57: Civil Defence | C57: 0 | D57: 0 | E57: 0 | F57: 0 | G57: 0 | H57: 0 | I57: 0 | J57: 0 | K57: 0 | L57: 0 | M57: 0 | V57: 0
A58: Cleansing | C58: 0 | D58: 0 | E58: 0 | F58: 0 | G58: 0 | H58: 0 | I58: 0 | J58: 0 | K58: 0 | L58: 0 | M58: 0 | V58: 0
A59: Control of Public Nuisances | C59: 0 | D59: 0 | E59: 0 | F59: 0 | G59: 0 | H59: 0 | I59: 0 | J59: 0 | K59: 0 | L59: 0 | M59: 0 | V59: 0
A60: Fencing and Fences | C60: 0 | D60: 0 | E60: 0 | F60: 0 | G60: 0 | H60: 0 | I60: 0 | J60: 0 | K60: 0 | L60: 0 | M60: 0 | V60: 0
A61: Fire Fighting and Protection | C61: 0 | D61: 0 | E61: 0 | F61: 0 | G61: 0 | H61: 0 | I61: 0 | J61: 0 | K61: 0 | L61: 0 | M61: 0 | V61: 0
A62: Licensing and Control of Animals | C62: 143108 | D62: 143108 | E62: 0 | F62: 0 | G62: 0 | H62: 0 | I62: 0 | J62: 0 | K62: 143108 | L62: 149548 | M62: 153287 | V62: 143108
A63: Police Forces, Traffic and Street Parking Control | C63: 26599000 | D63: 40605000 | E63: 0 | F63: 0 | G63: 0 | H63: 0 | I63: 60000 | J63: 60000 | K63: 40665000 | L63: 26603320 | M63: 26605828 | V63: 40605000
A64: Pounds | C64: 0 | D64: 0 | E64: 0 | F64: 0 | G64: 0 | H64: 0 | I64: 0 | J64: 0 | K64: 0 | L64: 0 | M64: 0 | V64: 0
A65: Housing | C65: 56780000 | D65: 89475382 | E65: 0 | F65: 0 | G65: 0 | H65: 0 | I65: 0 | J65: 0 | K65: 89475382 | L65: 108020000 | M65: 110200000 | V65: 89475382
A66: Housing | C66: 56780000 | D66: 89475382 | E66: 0 | F66: 0 | G66: 0 | H66: 0 | I66: 0 | J66: 0 | K66: 89475382 | L66: 108020000 | M66: 110200000 | V66: 89475382
A67: Informal Settlements | C67: 0 | D67: 0 | E67: 0 | F67: 0 | G67: 0 | H67: 0 | I67: 0 | J67: 0 | K67: 0 | L67: 0 | M67: 0 | V67: 0
A68: Health | C68: 0 | D68: 0 | E68: 0 | F68: 0 | G68: 0 | H68: 0 | I68: 0 | J68: 0 | K68: 0 | L68: 0 | M68: 0 | V68: 0
A69: Ambulance | C69: 0 | D69: 0 | E69: 0 | F69: 0 | G69: 0 | H69: 0 | I69: 0 | J69: 0 | K69: 0 | L69: 0 | M69: 0 | V69: 0
A70: Health Services | C70: 0 | D70: 0 | E70: 0 | F70: 0 | G70: 0 | H70: 0 | I70: 0 | J70: 0 | K70: 0 | L70: 0 | M70: 0 | V70: 0
A71: Laboratory Services | C71: 0 | D71: 0 | E71: 0 | F71: 0 | G71: 0 | H71: 0 | I71: 0 | J71: 0 | K71: 0 | L71: 0 | M71: 0 | V71: 0
A72: Food Control | C72: 0 | D72: 0 | E72: 0 | F72: 0 | G72: 0 | H72: 0 | I72: 0 | J72: 0 | K72: 0 | L72: 0 | M72: 0 | V72: 0
A73: Health Surveillance and Prevention of Communicable Diseases including immunizations | C73: 0 | D73: 0 | E73: 0 | F73: 0 | G73: 0 | H73: 0 | I73: 0 | J73: 0 | K73: 0 | L73: 0 | M73: 0 | V73: 0
A74: Vector Control | C74: 0 | D74: 0 | E74: 0 | F74: 0 | G74: 0 | H74: 0 | I74: 0 | J74: 0 | K74: 0 | L74: 0 | M74: 0 | V74: 0
A75: Chemical Safety | C75: 0 | D75: 0 | E75: 0 | F75: 0 | G75: 0 | H75: 0 | I75: 0 | J75: 0 | K75: 0 | L75: 0 | M75: 0 | V75: 0
A76: Economic and environmental services | C76: 41009298 | D76: 52263023 | E76: 0 | F76: 0 | G76: 0 | H76: 0 | I76: -5154238 | J76: -5154238 | K76: 47108785 | L76: 41737376.7 | M76: 43297468.52 | V76: 52263023
A77: Planning and development | C77: 32446891 | D77: 37400616 | E77: 0 | F77: 0 | G77: 0 | H77: 0 | I77: -2662295 | J77: -2662295 | K77: 34738321 | L77: 32796186.7 | M77: 34118374.52 | V77: 37400616
A78: Billboards | C78: 0 | D78: 0 | E78: 0 | F78: 0 | G78: 0 | H78: 0 | I78: 0 | J78: 0 | K78: 0 | L78: 0 | M78: 0 | V78: 0
A79: Corporate Wide Strategic Planning (IDPs, LEDs) | C79: 0 | D79: 0 | E79: 0 | F79: 0 | G79: 0 | H79: 0 | I79: 0 | J79: 0 | K79: 0 | L79: 0 | M79: 0 | V79: 0
A80: Central City Improvement District | C80: 0 | D80: 0 | E80: 0 | F80: 0 | G80: 0 | H80: 0 | I80: 0 | J80: 0 | K80: 0 | L80: 0 | M80: 0 | V80: 0
A81: Development Facilitation | C81: 0 | D81: 300000 | E81: 0 | F81: 0 | G81: 0 | H81: 0 | I81: 0 | J81: 0 | K81: 300000 | L81: 0 | M81: 0 | V81: 300000
A82: Economic Development/Planning | C82: 0 | D82: 884412 | E82: 0 | F82: 0 | G82: 0 | H82: 0 | I82: 0 | J82: 0 | K82: 884412 | L82: 0 | M82: 0 | V82: 884412
A83: Regional Planning and Development | C83: 0 | D83: 0 | E83: 0 | F83: 0 | G83: 0 | H83: 0 | I83: 0 | J83: 0 | K83: 0 | L83: 0 | M83: 0 | V83: 0
A84: Town Planning, Building Regulations and Enforcement, and City Engineer | C84: 2978500 | D84: 3423500 | E84: 0 | F84: 0 | G84: 0 | H84: 0 | I84: 0 | J84: 0 | K84: 3423500 | L84: 3112533 | M84: 3190347 | V84: 3423500
A85: Project Management Unit | C85: 29468391 | D85: 32792704 | E85: 0 | F85: 0 | G85: 0 | H85: 0 | I85: -2662295 | J85: -2662295 | K85: 30130409 | L85: 29683653.7 | M85: 30928027.52 | V85: 32792704
A86: Provincial Planning | C86: 0 | D86: 0 | E86: 0 | F86: 0 | G86: 0 | H86: 0 | I86: 0 | J86: 0 | K86: 0 | L86: 0 | M86: 0 | V86: 0
A87: Support to Local Municipalities | C87: 0 | D87: 0 | E87: 0 | F87: 0 | G87: 0 | H87: 0 | I87: 0 | J87: 0 | K87: 0 | L87: 0 | M87: 0 | V87: 0
A88: Road transport | C88: 8562407 | D88: 14862407 | E88: 0 | F88: 0 | G88: 0 | H88: 0 | I88: -2491943 | J88: -2491943 | K88: 12370464 | L88: 8941190 | M88: 9179094 | V88: 14862407
A89: Public Transport | C89: 0 | D89: 0 | E89: 0 | F89: 0 | G89: 0 | H89: 0 | I89: 0 | J89: 0 | K89: 0 | L89: 0 | M89: 0 | V89: 0
A90: Road and Traffic Regulation | C90: 8417407 | D90: 8417407 | E90: 0 | F90: 0 | G90: 0 | H90: 0 | I90: 0 | J90: 0 | K90: 8417407 | L90: 8796190 | M90: 9016094 | V90: 8417407
A91: Roads | C91: 145000 | D91: 6445000 | E91: 0 | F91: 0 | G91: 0 | H91: 0 | I91: -2491943 | J91: -2491943 | K91: 3953057 | L91: 145000 | M91: 163000 | V91: 6445000
A92: Taxi Ranks | C92: 0 | D92: 0 | E92: 0 | F92: 0 | G92: 0 | H92: 0 | I92: 0 | J92: 0 | K92: 0 | L92: 0 | M92: 0 | V92: 0
A93: Environmental protection | C93: 0 | D93: 0 | E93: 0 | F93: 0 | G93: 0 | H93: 0 | I93: 0 | J93: 0 | K93: 0 | L93: 0 | M93: 0 | V93: 0
A94: Biodiversity and Landscape | C94: 0 | D94: 0 | E94: 0 | F94: 0 | G94: 0 | H94: 0 | I94: 0 | J94: 0 | K94: 0 | L94: 0 | M94: 0 | V94: 0
A95: Coastal Protection | C95: 0 | D95: 0 | E95: 0 | F95: 0 | G95: 0 | H95: 0 | I95: 0 | J95: 0 | K95: 0 | L95: 0 | M95: 0 | V95: 0
A96: Indigenous Forests | C96: 0 | D96: 0 | E96: 0 | F96: 0 | G96: 0 | H96: 0 | I96: 0 | J96: 0 | K96: 0 | L96: 0 | M96: 0 | V96: 0
A97: Nature Conservation | C97: 0 | D97: 0 | E97: 0 | F97: 0 | G97: 0 | H97: 0 | I97: 0 | J97: 0 | K97: 0 | L97: 0 | M97: 0 | V97: 0
A98: Pollution Control | C98: 0 | D98: 0 | E98: 0 | F98: 0 | G98: 0 | H98: 0 | I98: 0 | J98: 0 | K98: 0 | L98: 0 | M98: 0 | V98: 0
A99: Soil Conservation | C99: 0 | D99: 0 | E99: 0 | F99: 0 | G99: 0 | H99: 0 | I99: 0 | J99: 0 | K99: 0 | L99: 0 | M99: 0 | V99: 0
A100: Trading services | C100: 445994192 | D100: 461740000 | E100: 0 | F100: 0 | G100: 0 | H100: 0 | I100: -1469052 | J100: -1469052 | K100: 460270948 | L100: 472674520 | M100: 485970630 | V100: 461740000
A101: Energy sources | C101: 192659412 | D101: 198188000 | E101: 0 | F101: 0 | G101: 0 | H101: 0 | I101: -1469052 | J101: -1469052 | K101: 196718948 | L101: 207466421 | M101: 213079584 | V101: 198188000
A102: Electricity | C102: 192659412 | D102: 198188000 | E102: 0 | F102: 0 | G102: 0 | H102: 0 | I102: -1469052 | J102: -1469052 | K102: 196718948 | L102: 207466421 | M102: 213079584 | V102: 198188000
A103: Street Lighting and Signal Systems | C103: 0 | D103: 0 | E103: 0 | F103: 0 | G103: 0 | H103: 0 | I103: 0 | J103: 0 | K103: 0 | L103: 0 | M103: 0 | V103: 0
A104: Nonelectric Energy | C104: 0 | D104: 0 | E104: 0 | F104: 0 | G104: 0 | H104: 0 | I104: 0 | J104: 0 | K104: 0 | L104: 0 | M104: 0 | V104: 0
A105: Water management | C105: 122030280 | D105: 133752000 | E105: 0 | F105: 0 | G105: 0 | H105: 0 | I105: 0 | J105: 0 | K105: 133752000 | L105: 127675664 | M105: 131210172 | V105: 133752000
A106: Water Treatment | C106: 0 | D106: 0 | E106: 0 | F106: 0 | G106: 0 | H106: 0 | I106: 0 | J106: 0 | K106: 0 | L106: 0 | M106: 0 | V106: 0
A107: Water Distribution | C107: 122030280 | D107: 133752000 | E107: 0 | F107: 0 | G107: 0 | H107: 0 | I107: 0 | J107: 0 | K107: 133752000 | L107: 127675664 | M107: 131210172 | V107: 133752000
A108: Water Storage | C108: 0 | D108: 0 | E108: 0 | F108: 0 | G108: 0 | H108: 0 | I108: 0 | J108: 0 | K108: 0 | L108: 0 | M108: 0 | V108: 0
A109: Waste water management | C109: 66372550 | D109: 65756000 | E109: 0 | F109: 0 | G109: 0 | H109: 0 | I109: 0 | J109: 0 | K109: 65756000 | L109: 69509742 | M109: 71582109 | V109: 65756000
A110: Public Toilets | C110: 0 | D110: 0 | E110: 0 | F110: 0 | G110: 0 | H110: 0 | I110: 0 | J110: 0 | K110: 0 | L110: 0 | M110: 0 | V110: 0
A111: Sewerage | C111: 66372550 | D111: 65756000 | E111: 0 | F111: 0 | G111: 0 | H111: 0 | I111: 0 | J111: 0 | K111: 65756000 | L111: 69509742 | M111: 71582109 | V111: 65756000
A112: Storm Water Management | C112: 0 | D112: 0 | E112: 0 | F112: 0 | G112: 0 | H112: 0 | I112: 0 | J112: 0 | K112: 0 | L112: 0 | M112: 0 | V112: 0
A113: Waste Water Treatment | C113: 0 | D113: 0 | E113: 0 | F113: 0 | G113: 0 | H113: 0 | I113: 0 | J113: 0 | K113: 0 | L113: 0 | M113: 0 | V113: 0
A114: Waste management | C114: 64931950 | D114: 64044000 | E114: 0 | F114: 0 | G114: 0 | H114: 0 | I114: 0 | J114: 0 | K114: 64044000 | L114: 68022693 | M114: 70098765 | V114: 64044000
A115: Recycling | C115: 0 | D115: 0 | E115: 0 | F115: 0 | G115: 0 | H115: 0 | I115: 0 | J115: 0 | K115: 0 | L115: 0 | M115: 0 | V115: 0
A116: Solid Waste Disposal (Landfill Sites) | C116: 0 | D116: 0 | E116: 0 | F116: 0 | G116: 0 | H116: 0 | I116: 0 | J116: 0 | K116: 0 | L116: 0 | M116: 0 | V116: 0
A117: Solid Waste Removal | C117: 64931950 | D117: 64044000 | E117: 0 | F117: 0 | G117: 0 | H117: 0 | I117: 0 | J117: 0 | K117: 64044000 | L117: 68022693 | M117: 70098765 | V117: 64044000
A118: Street Cleaning | C118: 0 | D118: 0 | E118: 0 | F118: 0 | G118: 0 | H118: 0 | I118: 0 | J118: 0 | K118: 0 | L118: 0 | M118: 0 | V118: 0
A119: Other | C119: 0 | D119: 0 | E119: 0 | F119: 0 | G119: 0 | H119: 0 | I119: 0 | J119: 0 | K119: 0 | L119: 0 | M119: 0 | V119: 0
A120: Abattoirs | C120: 0 | D120: 0 | E120: 0 | F120: 0 | G120: 0 | H120: 0 | I120: 0 | J120: 0 | K120: 0 | L120: 0 | M120: 0 | V120: 0
A121: Air Transport | C121: 0 | D121: 0 | E121: 0 | F121: 0 | G121: 0 | H121: 0 | I121: 0 | J121: 0 | K121: 0 | L121: 0 | M121: 0 | V121: 0
A122: Forestry | C122: 0 | D122: 0 | E122: 0 | F122: 0 | G122: 0 | H122: 0 | I122: 0 | J122: 0 | K122: 0 | L122: 0 | M122: 0 | V122: 0
A123: Licensing and Regulation | C123: 0 | D123: 0 | E123: 0 | F123: 0 | G123: 0 | H123: 0 | I123: 0 | J123: 0 | K123: 0 | L123: 0 | M123: 0 | V123: 0
A124: Markets | C124: 0 | D124: 0 | E124: 0 | F124: 0 | G124: 0 | H124: 0 | I124: 0 | J124: 0 | K124: 0 | L124: 0 | M124: 0 | V124: 0
A125: Tourism | C125: 0 | D125: 0 | E125: 0 | F125: 0 | G125: 0 | H125: 0 | I125: 0 | J125: 0 | K125: 0 | L125: 0 | M125: 0 | V125: 0
A126: ="Total "&A6 -> Total Revenue - Functional | B126: 2 | C126: 922836484 | D126: 992977637 | E126: 0 | F126: 0 | G126: 0 | H126: 0 | I126: -17745640 | J126: -17745640 | K126: 975231997 | L126: 1016492685 | M126: 1045111697 | V126: 992977637
J127: 0 | K127: 0 | V127: 0
A128: Expenditure - Functional | J128: 0 | K128: 0 | V128: 0
A129: =A7 -> Municipal governance and administration | C129: 255559885 | D129: 254600596 | E129: 0 | F129: 0 | G129: 0 | H129: 0 | I129: -5490152 | J129: -5490152 | K129: 249110444 | L129: 266791294 | M129: 273281763 | V129: 254600596
A130: Executive and council | C130: 26370013 | D130: 30371673 | E130: 0 | F130: 0 | G130: 0 | H130: 0 | I130: -483742 | J130: -483742 | K130: 29887931 | L130: 27556665 | M130: 28245581 | V130: 30371673
A131: Mayor and Council | C131: 21361003 | D131: 25505459 | E131: 0 | F131: 0 | G131: 0 | H131: 0 | I131: -347644 | J131: -347644 | K131: 25157815 | L131: 22322251 | M131: 22880306 | V131: 25505459
A132: Municipal Manager, Town Secretary and Chief Executive | C132: 5009010 | D132: 4866214 | E132: 0 | F132: 0 | G132: 0 | H132: 0 | I132: -136098 | J132: -136098 | K132: 4730116 | L132: 5234414 | M132: 5365275 | V132: 4866214
A133: Finance and administration | C133: 225867435 | D133: 220898471 | E133: 0 | F133: 0 | G133: 0 | H133: 0 | I133: -4998421 | J133: -4998421 | K133: 215900050 | L133: 235762681 | M133: 241477434 | V133: 220898471
A134: Administrative and Corporate Support | C134: 62663742 | D134: 59185063 | E134: 0 | F134: 0 | G134: 0 | H134: 0 | I134: -1074528 | J134: -1074528 | K134: 58110535 | L134: 65442381 | M134: 67055534 | V134: 59185063
A135: Asset Management | C135: 6857098 | D135: 7405076 | E135: 0 | F135: 0 | G135: 0 | H135: 0 | I135: -105034 | J135: -105034 | K135: 7300042 | L135: 6979015 | M135: 7049796 | V135: 7405076
A136: Finance | C136: 91996447 | D136: 87809317 | E136: 0 | F136: 0 | G136: 0 | H136: 0 | I136: -2146658 | J136: -2146658 | K136: 85662659 | L136: 96136286 | M136: 98539695 | V136: 87809317
A137: Fleet Management | C137: 5425599 | D137: 6131553 | E137: 0 | F137: 0 | G137: 0 | H137: 0 | I137: 25999 | J137: 25999 | K137: 6157552 | L137: 5669755 | M137: 5811507 | V137: 6131553
A138: Human Resources | C138: 18986769 | D138: 19450525 | E138: 0 | F138: 0 | G138: 0 | H138: 0 | I138: -26179 | J138: -26179 | K138: 19424346 | L138: 19841175 | M138: 20337210 | V138: 19450525
A139: Information Technology | C139: 16707403 | D139: 17500257 | E139: 0 | F139: 0 | G139: 0 | H139: 0 | I139: -854497 | J139: -854497 | K139: 16645760 | L139: 17422217 | M139: 17807207 | V139: 17500257
A140: Legal Services | C140: 5032453 | D140: 6136937 | E140: 0 | F140: 0 | G140: 0 | H140: 0 | I140: -91420 | J140: -91420 | K140: 6045517 | L140: 5258914 | M140: 5390386 | V140: 6136937
A141: Marketing, Customer Relations, Publicity and Media Co-ordination | C141: 0 | D141: 0 | E141: 0 | F141: 0 | G141: 0 | H141: 0 | I141: 0 | J141: 0 | K141: 0 | L141: 0 | M141: 0 | V141: 0
A142: Property Services | C142: 11483468 | D142: 10513687 | E142: 0 | F142: 0 | G142: 0 | H142: 0 | I142: -614837 | J142: -614837 | K142: 9898850 | L142: 11996334 | M142: 12294081 | V142: 10513687
A143: Risk Management | C143: 0 | D143: 0 | E143: 0 | F143: 0 | G143: 0 | H143: 0 | I143: 0 | J143: 0 | K143: 0 | L143: 0 | M143: 0 | V143: 0
A144: Security Services | C144: 0 | D144: 0 | E144: 0 | F144: 0 | G144: 0 | H144: 0 | I144: 0 | J144: 0 | K144: 0 | L144: 0 | M144: 0 | V144: 0
A145: Supply Chain Management | C145: 4957150 | D145: 5056673 | E145: 0 | F145: 0 | G145: 0 | H145: 0 | I145: -104143 | J145: -104143 | K145: 4952530 | L145: 5180220 | M145: 5309724 | V145: 5056673
A146: Valuation Service | C146: 1757306 | D146: 1709383 | E146: 0 | F146: 0 | G146: 0 | H146: 0 | I146: -7124 | J146: -7124 | K146: 1702259 | L146: 1836384 | M146: 1882294 | V146: 1709383
A147: Internal audit | C147: 3322437 | D147: 3330452 | E147: 0 | F147: 0 | G147: 0 | H147: 0 | I147: -7989 | J147: -7989 | K147: 3322463 | L147: 3471948 | M147: 3558748 | V147: 3330452
A148: Governance Function | C148: 3322437 | D148: 3330452 | E148: 0 | F148: 0 | G148: 0 | H148: 0 | I148: -7989 | J148: -7989 | K148: 3322463 | L148: 3471948 | M148: 3558748 | V148: 3330452
A149: Community and public safety | C149: 118704737 | D149: 130596768 | E149: 0 | F149: 0 | G149: 0 | H149: 0 | I149: -3883784 | J149: -3883784 | K149: 126712984 | L149: 111375964 | M149: 114134314 | V149: 130596768
A150: Community and social services | C150: 19290105 | D150: 20772904 | E150: 0 | F150: 0 | G150: 0 | H150: 0 | I150: -1329418 | J150: -1329418 | K150: 19443486 | L150: 20111252 | M150: 20587969 | V150: 20772904
A151: Aged Care | C151: 0 | D151: 0 | E151: 0 | F151: 0 | G151: 0 | H151: 0 | I151: 0 | J151: 0 | K151: 0 | L151: 0 | M151: 0 | V151: 0
A152: Agricultural | C152: 0 | D152: 0 | E152: 0 | F152: 0 | G152: 0 | H152: 0 | I152: 0 | J152: 0 | K152: 0 | L152: 0 | M152: 0 | V152: 0
A153: Animal Care and Diseases | C153: 0 | D153: 0 | E153: 0 | F153: 0 | G153: 0 | H153: 0 | I153: 0 | J153: 0 | K153: 0 | L153: 0 | M153: 0 | V153: 0
A154: Cemeteries, Funeral Parlours and Crematoriums | C154: 1196014 | D154: 1061714 | E154: 0 | F154: 0 | G154: 0 | H154: 0 | I154: -318683 | J154: -318683 | K154: 743031 | L154: 1249836 | M154: 1281084 | V154: 1061714
A155: Child Care Facilities | C155: 0 | D155: 0 | E155: 0 | F155: 0 | G155: 0 | H155: 0 | I155: 0 | J155: 0 | K155: 0 | L155: 0 | M155: 0 | V155: 0
A156: Community Halls and Facilities | C156: 8524397 | D156: 10318829 | E156: 0 | F156: 0 | G156: 0 | H156: 0 | I156: -616401 | J156: -616401 | K156: 9702428 | L156: 8861087 | M156: 9056551 | V156: 10318829
A157: Consumer Protection | C157: 0 | D157: 0 | E157: 0 | F157: 0 | G157: 0 | H157: 0 | I157: 0 | J157: 0 | K157: 0 | L157: 0 | M157: 0 | V157: 0
A158: Cultural Matters | C158: 0 | D158: 0 | E158: 0 | F158: 0 | G158: 0 | H158: 0 | I158: 0 | J158: 0 | K158: 0 | L158: 0 | M158: 0 | V158: 0
A159: Disaster Management | C159: 0 | D159: 0 | E159: 0 | F159: 0 | G159: 0 | H159: 0 | I159: 0 | J159: 0 | K159: 0 | L159: 0 | M159: 0 | V159: 0
A160: Education | C160: 0 | D160: 0 | E160: 0 | F160: 0 | G160: 0 | H160: 0 | I160: 0 | J160: 0 | K160: 0 | L160: 0 | M160: 0 | V160: 0
A161: Indigenous and Customary Law | C161: 0 | D161: 0 | E161: 0 | F161: 0 | G161: 0 | H161: 0 | I161: 0 | J161: 0 | K161: 0 | L161: 0 | M161: 0 | V161: 0
A162: Industrial Promotion | C162: 0 | D162: 0 | E162: 0 | F162: 0 | G162: 0 | H162: 0 | I162: 0 | J162: 0 | K162: 0 | L162: 0 | M162: 0 | V162: 0
A163: Language Policy | C163: 0 | D163: 0 | E163: 0 | F163: 0 | G163: 0 | H163: 0 | I163: 0 | J163: 0 | K163: 0 | L163: 0 | M163: 0 | V163: 0
A164: Libraries and Archives | C164: 9569694 | D164: 9392361 | E164: 0 | F164: 0 | G164: 0 | H164: 0 | I164: -394334 | J164: -394334 | K164: 8998027 | L164: 10000329 | M164: 10250334 | V164: 9392361
A165: Literacy Programmes | C165: 0 | D165: 0 | E165: 0 | F165: 0 | G165: 0 | H165: 0 | I165: 0 | J165: 0 | K165: 0 | L165: 0 | M165: 0 | V165: 0
A166: Media Services | C166: 0 | D166: 0 | E166: 0 | F166: 0 | G166: 0 | H166: 0 | I166: 0 | J166: 0 | K166: 0 | L166: 0 | M166: 0 | V166: 0
A167: Museums and Art Galleries | C167: 0 | D167: 0 | E167: 0 | F167: 0 | G167: 0 | H167: 0 | I167: 0 | J167: 0 | K167: 0 | L167: 0 | M167: 0 | V167: 0
A168: Population Development | C168: 0 | D168: 0 | E168: 0 | F168: 0 | G168: 0 | H168: 0 | I168: 0 | J168: 0 | K168: 0 | L168: 0 | M168: 0 | V168: 0
A169: Provincial Cultural Matters | C169: 0 | D169: 0 | E169: 0 | F169: 0 | G169: 0 | H169: 0 | I169: 0 | J169: 0 | K169: 0 | L169: 0 | M169: 0 | V169: 0
A170: Theatres | C170: 0 | D170: 0 | E170: 0 | F170: 0 | G170: 0 | H170: 0 | I170: 0 | J170: 0 | K170: 0 | L170: 0 | M170: 0 | V170: 0
A171: Zoo's | C171: 0 | D171: 0 | E171: 0 | F171: 0 | G171: 0 | H171: 0 | I171: 0 | J171: 0 | K171: 0 | L171: 0 | M171: 0 | V171: 0
A172: Sport and recreation | C172: 11605746 | D172: 11642344 | E172: 0 | F172: 0 | G172: 0 | H172: 0 | I172: -1196376 | J172: -1196376 | K172: 10445968 | L172: 12128011 | M172: 12431212 | V172: 11642344
A173: Beaches and Jetties | C173: 0 | D173: 0 | E173: 0 | F173: 0 | G173: 0 | H173: 0 | I173: 0 | J173: 0 | K173: 0 | L173: 0 | M173: 0 | V173: 0
A174: Casinos, Racing, Gambling, Wagering | C174: 0 | D174: 0 | E174: 0 | F174: 0 | G174: 0 | H174: 0 | I174: 0 | J174: 0 | K174: 0 | L174: 0 | M174: 0 | V174: 0
A175: Community Parks (including Nurseries) | C175: 11119912 | D175: 10021390 | E175: 0 | F175: 0 | G175: 0 | H175: 0 | I175: -270896 | J175: -270896 | K175: 9750494 | L175: 11620312 | M175: 11910819 | V175: 10021390
A176: Recreational Facilities | C176: 0 | D176: 0 | E176: 0 | F176: 0 | G176: 0 | H176: 0 | I176: 0 | J176: 0 | K176: 0 | L176: 0 | M176: 0 | V176: 0
A177: Sports Grounds and Stadiums | C177: 485834 | D177: 1620954 | E177: 0 | F177: 0 | G177: 0 | H177: 0 | I177: -925480 | J177: -925480 | K177: 695474 | L177: 507699 | M177: 520393 | V177: 1620954
A178: Public safety | C178: 59739486 | D178: 71312954 | E178: 0 | F178: 0 | G178: 0 | H178: 0 | I178: -896742 | J178: -896742 | K178: 70416212 | L178: 62427775 | M178: 63988481 | V178: 71312954
A179: Civil Defence | C179: 0 | D179: 0 | E179: 0 | F179: 0 | G179: 0 | H179: 0 | I179: 0 | J179: 0 | K179: 0 | L179: 0 | M179: 0 | V179: 0
A180: Cleansing | C180: 0 | D180: 0 | E180: 0 | F180: 0 | G180: 0 | H180: 0 | I180: 0 | J180: 0 | K180: 0 | L180: 0 | M180: 0 | V180: 0
A181: Control of Public Nuisances | C181: 0 | D181: 0 | E181: 0 | F181: 0 | G181: 0 | H181: 0 | I181: 0 | J181: 0 | K181: 0 | L181: 0 | M181: 0 | V181: 0
A182: Fencing and Fences | C182: 0 | D182: 0 | E182: 0 | F182: 0 | G182: 0 | H182: 0 | I182: 0 | J182: 0 | K182: 0 | L182: 0 | M182: 0 | V182: 0
A183: Fire Fighting and Protection | C183: 2812510 | D183: 3355579 | E183: 0 | F183: 0 | G183: 0 | H183: 0 | I183: -43076 | J183: -43076 | K183: 3312503 | L183: 2939071 | M183: 3012549 | V183: 3355579
A184: Licensing and Control of Animals | C184: 1657923 | D184: 1596099 | E184: 0 | F184: 0 | G184: 0 | H184: 0 | I184: -608994 | J184: -608994 | K184: 987105 | L184: 1732532 | M184: 1775848 | V184: 1596099
A185: Police Forces, Traffic and Street Parking Control | C185: 55269053 | D185: 66361276 | E185: 0 | F185: 0 | G185: 0 | H185: 0 | I185: -244672 | J185: -244672 | K185: 66116604 | L185: 57756172 | M185: 59200084 | V185: 66361276
A186: Pounds | C186: 0 | D186: 0 | E186: 0 | F186: 0 | G186: 0 | H186: 0 | I186: 0 | J186: 0 | K186: 0 | L186: 0 | M186: 0 | V186: 0
A187: Housing | C187: 28069400 | D187: 26868566 | E187: 0 | F187: 0 | G187: 0 | H187: 0 | I187: -461248 | J187: -461248 | K187: 26407318 | L187: 16708926 | M187: 17126652 | V187: 26868566
A188: Housing | C188: 20835265 | D188: 19930443 | E188: 0 | F188: 0 | G188: 0 | H188: 0 | I188: -486225 | J188: -486225 | K188: 19444218 | L188: 9149252 | M188: 9377984 | V188: 19930443
A189: Informal Settlements | C189: 7234135 | D189: 6938123 | E189: 0 | F189: 0 | G189: 0 | H189: 0 | I189: 24977 | J189: 24977 | K189: 6963100 | L189: 7559674 | M189: 7748668 | V189: 6938123
A190: Health | C190: 0 | D190: 0 | E190: 0 | F190: 0 | G190: 0 | H190: 0 | I190: 0 | J190: 0 | K190: 0 | L190: 0 | M190: 0 | V190: 0
A191: Ambulance | C191: 0 | D191: 0 | E191: 0 | F191: 0 | G191: 0 | H191: 0 | I191: 0 | J191: 0 | K191: 0 | L191: 0 | M191: 0 | V191: 0
A192: Health Services | C192: 0 | D192: 0 | E192: 0 | F192: 0 | G192: 0 | H192: 0 | I192: 0 | J192: 0 | K192: 0 | L192: 0 | M192: 0 | V192: 0
A193: =A71 -> Laboratory Services | C193: 0 | D193: 0 | E193: 0 | F193: 0 | G193: 0 | H193: 0 | I193: 0 | J193: 0 | K193: 0 | L193: 0 | M193: 0 | V193: 0
A194: Food Control | C194: 0 | D194: 0 | E194: 0 | F194: 0 | G194: 0 | H194: 0 | I194: 0 | J194: 0 | K194: 0 | L194: 0 | M194: 0 | V194: 0
A195: Health Surveillance and Prevention of Communicable Diseases including immunizations | C195: 0 | D195: 0 | E195: 0 | F195: 0 | G195: 0 | H195: 0 | I195: 0 | J195: 0 | K195: 0 | L195: 0 | M195: 0 | V195: 0
A196: Vector Control | C196: 0 | D196: 0 | E196: 0 | F196: 0 | G196: 0 | H196: 0 | I196: 0 | J196: 0 | K196: 0 | L196: 0 | M196: 0 | V196: 0
A197: Chemical Safety | C197: 0 | D197: 0 | E197: 0 | F197: 0 | G197: 0 | H197: 0 | I197: 0 | J197: 0 | K197: 0 | L197: 0 | M197: 0 | V197: 0
A198: Economic and environmental services | C198: 86609275 | D198: 93049629 | E198: 0 | F198: 0 | G198: 0 | H198: 0 | I198: -4208219 | J198: -4208219 | K198: 88841410 | L198: 90294606 | M198: 92434157 | V198: 93049629
A199: Planning and development | C199: 38274677 | D199: 38316960 | E199: 0 | F199: 0 | G199: 0 | H199: 0 | I199: -261535 | J199: -261535 | K199: 38055425 | L199: 39997044 | M199: 40996983 | V199: 38316960
A200: Billboards | C200: 0 | D200: 0 | E200: 0 | F200: 0 | G200: 0 | H200: 0 | I200: 0 | J200: 0 | K200: 0 | L200: 0 | M200: 0 | V200: 0
... 55 more rows

Sheet B3-FinPerf V
A1: =muni&" - "&_ADJ2&" - "&Date -> WC031 Theewaterskloof - Table B3 Adjustments Budget Financial Performance (revenue and expenditure by municipal vote) - 16 April 2026
A2: =Vdesc -> Vote Description | B2: =head27 -> Ref | C2: =Head2 -> Budget Year 2025/26 | L2: =Head10 -> Budget Year +1 2026/27 | M2: =Head11 -> Budget Year +2 2027/28
C3: =Head6 -> Original Budget | D3: =Head54 -> Prior Adjusted | E3: =Head51 -> Accum. Funds | F3: =Head52 -> Multi-year capital | G3: =Head53 -> Unfore. Unavoid. | H3: =Head55 -> Nat. or Prov. Govt | I3: =Head50 -> Other Adjusts. | J3: =Head56 -> Total Adjusts. | K3: =Head7 -> Adjusted Budget | L3: =Head7 -> Adjusted Budget | M3: =Head7 -> Adjusted Budget
A4: [Insert departmental structure etc] | D4: 3 | E4: 4 | F4: 5 | G4: 6 | H4: 7 | I4: 8 | J4: 9 | K4: 10
A5: R thousands | C5: A | D5: A1 | E5: B | F5: C | G5: D | H5: E | I5: F | J5: G | K5: H
A6: Revenue by Vote | B6: 1
A7: =B3B!A7 -> Vote 1 - Directorate Finance | C7: =B3B!C7 -> 332266561 | D7: =B3B!D7 -> 328469675 | E7: =B3B!E7 -> 0 | F7: =B3B!F7 -> 0 | G7: =B3B!G7 -> 0 | H7: =B3B!H7 -> 0 | I7: =B3B!I7 -> -11182350 | J7: =SUM(E7:I7) -> -11182350 | K7: =IF(D7=0,C7+J7,D7+J7) -> 317287325 | L7: =B3B!L7 -> 346421500.3 | M7: =B3B!M7 -> 357051626.5
A8: =B3B!A18 -> Vote 2 - Community Services | C8: =B3B!C18 -> 48457515 | D8: =B3B!D18 -> 62769260 | E8: =B3B!E18 -> 0 | F8: =B3B!F18 -> 0 | G8: =B3B!G18 -> 0 | H8: =B3B!H18 -> 0 | I8: =B3B!I18 -> 60000 | J8: 60000 | K8: 62829260 | L8: =B3B!L18 -> 49390653 | M8: =B3B!M18 -> 50389945
A9: =B3B!A37 -> Vote 3 - Corporate services | C9: =B3B!C37 -> 6746325 | D9: =B3B!D37 -> 6977704 | E9: =B3B!E37 -> 0 | F9: =B3B!F37 -> 0 | G9: =B3B!G37 -> 0 | H9: =B3B!H37 -> 0 | I9: =B3B!I37 -> 0 | J9: 0 | K9: 6977704 | L9: =B3B!L37 -> 7044825 | M9: =B3B!M37 -> 7218121
A10: =B3B!A49 -> Vote 4 - Electricity | C10: =B3B!C49 -> 192659412 | D10: =B3B!D49 -> 198188000 | E10: =B3B!E49 -> 0 | F10: =B3B!F49 -> 0 | G10: =B3B!G49 -> 0 | H10: =B3B!H49 -> 0 | I10: =B3B!I49 -> -1469052 | J10: -1469052 | K10: 196718948 | L10: =B3B!L49 -> 207466421 | M10: =B3B!M49 -> 213079584
A11: =B3B!A60 -> Vote 5 - Economic Development and Planning | C11: =B3B!C60 -> 59758500 | D11: =B3B!D60 -> 93783294 | E11: =B3B!E60 -> 0 | F11: =B3B!F60 -> 0 | G11: =B3B!G60 -> 0 | H11: =B3B!H60 -> 0 | I11: =B3B!I60 -> 0 | J11: 0 | K11: 93783294 | L11: =B3B!L60 -> 111132533 | M11: =B3B!M60 -> 113390347
A12: =B3B!A71 -> Vote 6 - Office of the Municipal Manager | C12: =B3B!C71 -> 0 | D12: =B3B!D71 -> 0 | E12: =B3B!E71 -> 0 | F12: =B3B!F71 -> 0 | G12: =B3B!G71 -> 0 | H12: =B3B!H71 -> 0 | I12: =B3B!I71 -> 0 | J12: 0 | K12: 0 | L12: =B3B!L71 -> 0 | M12: =B3B!M71 -> 0
A13: =B3B!A82 -> Vote 7 - Housing | C13: =B3B!C82 -> 0 | D13: =B3B!D82 -> 0 | E13: =B3B!E82 -> 0 | F13: =B3B!F82 -> 0 | G13: =B3B!G82 -> 0 | H13: =B3B!H82 -> 0 | I13: =B3B!I82 -> 0 | J13: 0 | K13: 0 | L13: =B3B!L82 -> 0 | M13: =B3B!M82 -> 0
A14: =B3B!A93 -> Vote 8 - Technical and Infrastructure Implementation Services | C14: =B3B!C93 -> 29613391 | D14: =B3B!D93 -> 39237704 | E14: =B3B!E93 -> 0 | F14: =B3B!F93 -> 0 | G14: =B3B!G93 -> 0 | H14: =B3B!H93 -> 0 | I14: =B3B!I93 -> -5154238 | J14: -5154238 | K14: 34083466 | L14: =B3B!L93 -> 29828653.7 | M14: =B3B!M93 -> 31091027.52
A15: =B3B!A104 -> Vote 9 - Public safety | C15: =B3B!C104 -> 0 | D15: =B3B!D104 -> 0 | E15: =B3B!E104 -> 0 | F15: =B3B!F104 -> 0 | G15: =B3B!G104 -> 0 | H15: =B3B!H104 -> 0 | I15: =B3B!I104 -> 0 | J15: 0 | K15: 0 | L15: =B3B!L104 -> 0 | M15: =B3B!M104 -> 0
A16: =B3B!A111 -> Vote 10 - Road transport | C16: =B3B!C111 -> 0 | D16: =B3B!D111 -> 0 | E16: =B3B!E111 -> 0 | F16: =B3B!F111 -> 0 | G16: =B3B!G111 -> 0 | H16: =B3B!H111 -> 0 | I16: =B3B!I111 -> 0 | J16: 0 | K16: 0 | L16: =B3B!L111 -> 0 | M16: =B3B!M111 -> 0
A17: =B3B!A116 -> Vote 11 - Sport and recreation | C17: =B3B!C116 -> 0 | D17: =B3B!D116 -> 0 | E17: =B3B!E116 -> 0 | F17: =B3B!F116 -> 0 | G17: =B3B!G116 -> 0 | H17: =B3B!H116 -> 0 | I17: =B3B!I116 -> 0 | J17: 0 | K17: 0 | L17: =B3B!L116 -> 0 | M17: =B3B!M116 -> 0
A18: =B3B!A121 -> Vote 12 - Waste management | C18: =B3B!C121 -> 64931950 | D18: =B3B!D121 -> 64044000 | E18: =B3B!E121 -> 0 | F18: =B3B!F121 -> 0 | G18: =B3B!G121 -> 0 | H18: =B3B!H121 -> 0 | I18: =B3B!I121 -> 0 | J18: 0 | K18: 64044000 | L18: =B3B!L121 -> 68022693 | M18: =B3B!M121 -> 70098765
A19: =B3B!A129 -> Vote 13 - Waste water management | C19: =B3B!C129 -> 66372550 | D19: =B3B!D129 -> 65756000 | E19: =B3B!E129 -> 0 | F19: =B3B!F129 -> 0 | G19: =B3B!G129 -> 0 | H19: =B3B!H129 -> 0 | I19: =B3B!I129 -> 0 | J19: 0 | K19: 65756000 | L19: =B3B!L129 -> 69509742 | M19: =B3B!M129 -> 71582109
A20: =B3B!A137 -> Vote 14 - Water | C20: =B3B!C137 -> 122030280 | D20: =B3B!D137 -> 133752000 | E20: =B3B!E137 -> 0 | F20: =B3B!F137 -> 0 | G20: =B3B!G137 -> 0 | H20: =B3B!H137 -> 0 | I20: =B3B!I137 -> 0 | J20: 0 | K20: 133752000 | L20: =B3B!L137 -> 127675664 | M20: =B3B!M137 -> 131210172
A21: =B3B!A143 -> Vote 15 - Directorate Development and Community Services | C21: =B3B!C143 -> 0 | D21: =B3B!D143 -> 0 | E21: =B3B!E143 -> 0 | F21: =B3B!F143 -> 0 | G21: =B3B!G143 -> 0 | H21: =B3B!H143 -> 0 | I21: =B3B!I143 -> 0 | J21: 0 | K21: 0 | L21: =B3B!L143 -> 0 | M21: =B3B!M143 -> 0
A22: Total Revenue by Vote | B22: 2 | C22: =SUM(C7:C21) -> 922836484 | D22: =SUM(D7:D21) -> 992977637 | E22: 0 | F22: 0 | G22: 0 | H22: 0 | I22: -17745640 | J22: =SUM(J7:J21) -> -17745640 | K22: 975231997 | L22: =SUM(L7:L21) -> 1016492685 | M22: =SUM(M7:M21) -> 1045111697
A24: Expenditure by Vote | B24: 1
A25: =B3B!A174 -> Vote 1 - Directorate Finance | C25: =B3B!C174 -> 105568001 | D25: =B3B!D174 -> 101980449 | E25: =B3B!E174 -> 0 | F25: =B3B!F174 -> 0 | G25: =B3B!G174 -> 0 | H25: =B3B!H174 -> 0 | I25: =B3B!I174 -> -2362959 | J25: =SUM(E25:I25) -> -2362959 | K25: =IF(D25=0,C25+J25,D25+J25) -> 99617490 | L25: =B3B!L174 -> 110131905 | M25: =B3B!M174 -> 112781509
A26: =B3B!A185 -> Vote 2 - Community Services | C26: =B3B!C185 -> 187974234 | D26: =B3B!D185 -> 198597743 | E26: =B3B!E185 -> 0 | F26: =B3B!F185 -> 0 | G26: =B3B!G185 -> 0 | H26: =B3B!H185 -> 0 | I26: =B3B!I185 -> -5643424 | J26: -5643424 | K26: 192954319 | L26: =B3B!L185 -> 196132864 | M26: =B3B!M185 -> 200869406
A27: =B3B!A204 -> Vote 3 - Corporate services | C27: =B3B!C204 -> 90148096 | D27: =B3B!D204 -> 94225725 | E27: =B3B!E204 -> 0 | F27: =B3B!F204 -> 0 | G27: =B3B!G204 -> 0 | H27: =B3B!H204 -> 0 | I27: =B3B!I204 -> -1450458 | J27: -1450458 | K27: 92775267 | L27: =B3B!L204 -> 94167745 | M27: =B3B!M204 -> 96471377
A28: =B3B!A216 -> Vote 4 - Electricity | C28: =B3B!C216 -> 182675121 | D28: =B3B!D216 -> 186732909 | E28: =B3B!E216 -> 0 | F28: =B3B!F216 -> 0 | G28: =B3B!G216 -> 0 | H28: =B3B!H216 -> 0 | I28: =B3B!I216 -> -86252 | J28: -86252 | K28: 186646657 | L28: =B3B!L216 -> 190734453 | M28: =B3B!M216 -> 195413326
A29: =B3B!A220 -> Vote 5 - Economic Development and Planning | C29: =B3B!C220 -> 42297361 | D29: =B3B!D220 -> 51299269 | E29: =B3B!E220 -> 0 | F29: =B3B!F220 -> 0 | G29: =B3B!G220 -> 0 | H29: =B3B!H220 -> 0 | I29: =B3B!I220 -> -739213 | J29: -739213 | K29: 50560056 | L29: =B3B!L220 -> 42023263 | M29: =B3B!M220 -> 43071693
A30: =B3B!A231 -> Vote 6 - Office of the Municipal Manager | C30: =B3B!C231 -> 9712643 | D30: =B3B!D231 -> 9825600 | E30: =B3B!E231 -> 0 | F30: =B3B!F231 -> 0 | G30: =B3B!G231 -> 0 | H30: =B3B!H231 -> 0 | I30: =B3B!I231 -> -141621 | J30: -141621 | K30: 9683979 | L30: =B3B!L231 -> 10149712 | M30: =B3B!M231 -> 10403459
A31: =B3B!A242 -> Vote 7 - Housing | C31: =B3B!C242 -> 0 | D31: =B3B!D242 -> 0 | E31: =B3B!E242 -> 0 | F31: =B3B!F242 -> 0 | G31: =B3B!G242 -> 0 | H31: =B3B!H242 -> 0 | I31: =B3B!I242 -> 0 | J31: 0 | K31: 0 | L31: =B3B!L242 -> 0 | M31: =B3B!M242 -> 0
A32: =B3B!A253 -> Vote 8 - Technical and Infrastructure Implementation Services | C32: =B3B!C253 -> 25413563 | D32: =B3B!D253 -> 22733660 | E32: =B3B!E253 -> 0 | F32: =B3B!F253 -> 0 | G32: =B3B!G253 -> 0 | H32: =B3B!H253 -> 0 | I32: =B3B!I253 -> -3259480 | J32: -3259480 | K32: 19474180 | L32: =B3B!L253 -> 16107176 | M32: =B3B!M253 -> 16509861
A33: =B3B!A264 -> Vote 9 - Public safety | C33: =B3B!C264 -> 0 | D33: =B3B!D264 -> 0 | E33: =B3B!E264 -> 0 | F33: =B3B!F264 -> 0 | G33: =B3B!G264 -> 0 | H33: =B3B!H264 -> 0 | I33: =B3B!I264 -> 0 | J33: 0 | K33: 0 | L33: =B3B!L264 -> 0 | M33: =B3B!M264 -> 0
A34: =B3B!A275 -> Vote 10 - Road transport | C34: =B3B!C275 -> 0 | D34: =B3B!D275 -> 0 | E34: =B3B!E275 -> 0 | F34: =B3B!F275 -> 0 | G34: =B3B!G275 -> 0 | H34: =B3B!H275 -> 0 | I34: =B3B!I275 -> 0 | J34: 0 | K34: 0 | L34: =B3B!L275 -> 0 | M34: =B3B!M275 -> 0
A35: =B3B!A286 -> Vote 11 - Sport and recreation | C35: =B3B!C286 -> 0 | D35: =B3B!D286 -> 0 | E35: =B3B!E286 -> 0 | F35: =B3B!F286 -> 0 | G35: =B3B!G286 -> 0 | H35: =B3B!H286 -> 0 | I35: =B3B!I286 -> 0 | J35: 0 | K35: 0 | L35: =B3B!L286 -> 0 | M35: =B3B!M286 -> 0
A36: =B3B!A297 -> Vote 12 - Waste management | C36: =B3B!C297 -> 80161619 | D36: =B3B!D297 -> 80544331 | E36: =B3B!E297 -> 0 | F36: =B3B!F297 -> 0 | G36: =B3B!G297 -> 0 | H36: =B3B!H297 -> 0 | I36: =B3B!I297 -> -147897 | J36: -147897 | K36: 80396434 | L36: =B3B!L297 -> 83607614 | M36: =B3B!M297 -> 85608217
A37: =B3B!A308 -> Vote 13 - Waste water management | C37: =B3B!C308 -> 67498809 | D37: =B3B!D308 -> 70867941 | E37: =B3B!E308 -> 0 | F37: =B3B!F308 -> 0 | G37: =B3B!G308 -> 0 | H37: =B3B!H308 -> 0 | I37: =B3B!I308 -> 7862 | J37: 7862 | K37: 70875803 | L37: =B3B!L308 -> 70113379 | M37: =B3B!M308 -> 71631293
A38: =B3B!A316 -> Vote 14 - Water | C38: =B3B!C316 -> 92653753 | D38: =B3B!D316 -> 103357620 | E38: =B3B!E316 -> 0 | F38: =B3B!F316 -> 0 | G38: =B3B!G316 -> 0 | H38: =B3B!H316 -> 0 | I38: =B3B!I316 -> -380007 | J38: -380007 | K38: 102977613 | L38: =B3B!L316 -> 96496844 | M38: =B3B!M316 -> 98727977
A39: =B3B!A322 -> Vote 15 - Directorate Development and Community Services | C39: =B3B!C322 -> 0 | D39: =B3B!D322 -> 0 | E39: =B3B!E322 -> 0 | F39: =B3B!F322 -> 0 | G39: =B3B!G322 -> 0 | H39: =B3B!H322 -> 0 | I39: =B3B!I322 -> 0 | J39: 0 | K39: 0 | L39: =B3B!L322 -> 0 | M39: =B3B!M322 -> 0
A40: Total Expenditure by Vote | B40: 2 | C40: =SUM(C25:C39) -> 884103200 | D40: =SUM(D25:D39) -> 920165247 | E40: 0 | F40: 0 | G40: 0 | H40: 0 | I40: -14203449 | J40: =SUM(J25:J39) -> -14203449 | K40: =SUM(K25:K39) -> 905961798 | L40: =SUM(L25:L39) -> 909664955 | M40: =SUM(M25:M39) -> 931488118
A41: =result -> Surplus/ (Deficit) for the year | B41: 2 | C41: =C22-C40 -> 38733284 | D41: =D22-D40 -> 72812390 | E41: 0 | F41: 0 | G41: 0 | H41: 0 | I41: -3542191 | J41: -3542191 | K41: 69270199 | L41: 106827730 | M41: 113623579
A42: =head27a -> References
A43: 1. Insert 'Vote'; e.g. Department, if different to standard classification structure
A44: 2. Must reconcile to Budgeted Financial Performance (revenue and expenditure)
A45: 3. Only complete if a previous adjusted budget has been approved in the same financial year. Reflect most recent adjusted budget.
A46: 4. Additional cash-backed accumulated funds/unspent funds (MFMA section 18(1)(b) and section 28(2)(e)) identified after the Original Budget approved and after annual financial statements audited (note: only where underspending could not reasonably have been foreseen)
A47: 5. Increases of funds approved under MFMA section 31
A48: 6. Adjustments approved in accordance with MFMA section 29
A49: 7. Adjustments to transfers from National or Provincial Government
A50: 8. Adjusts. = 'Other' Adjustments proposed to be approved; including revenue under-collection (MFMA section 28(2)(a)); additional revenue appropriation on existing programmes (section 28(2))(b); projected savings (section 28(2)(d)); error correction (section 28(2)(f))
A51: 9. G = B + C + D + E + F
A52: 10. Adjusted Budget H = (A or A1/2 etc) + G
A54: check revenue | C54: =C22-SUM('B4-FinPerf RE'!C35,'B4-FinPerf RE'!C54:C55) -> 0 | D54: =D22-SUM('B4-FinPerf RE'!D35,'B4-FinPerf RE'!D54:D55) -> 0 | E54: =E22-SUM('B4-FinPerf RE'!E35,'B4-FinPerf RE'!E54:E55) -> 0 | F54: =F22-SUM('B4-FinPerf RE'!F35,'B4-FinPerf RE'!F54:F55) -> 0 | G54: =G22-SUM('B4-FinPerf RE'!G35,'B4-FinPerf RE'!G54:G55) -> 0 | H54: =H22-SUM('B4-FinPerf RE'!H35,'B4-FinPerf RE'!H54:H55) -> 0 | I54: =I22-SUM('B4-FinPerf RE'!I35,'B4-FinPerf RE'!I54:I55) -> 0 | J54: =J22-SUM('B4-FinPerf RE'!J35,'B4-FinPerf RE'!J54:J55) -> 0 | K54: =K22-SUM('B4-FinPerf RE'!K35,'B4-FinPerf RE'!K54:K55) -> 0 | L54: =L22-SUM('B4-FinPerf RE'!L35,'B4-FinPerf RE'!L54:L55) -> 0 | M54: =M22-SUM('B4-FinPerf RE'!M35,'B4-FinPerf RE'!M54:M55) -> 0
A55: check expenditure | C55: =C40-'B4-FinPerf RE'!C51 -> 0 | D55: =D40-'B4-FinPerf RE'!D51 -> 0 | E55: =E40-'B4-FinPerf RE'!E51 -> 0 | F55: =F40-'B4-FinPerf RE'!F51 -> 0 | G55: =G40-'B4-FinPerf RE'!G51 -> 0 | H55: =H40-'B4-FinPerf RE'!H51 -> 0 | I55: =I40-'B4-FinPerf RE'!I51 -> 0 | J55: =J40-'B4-FinPerf RE'!J51 -> 0 | K55: =K40-'B4-FinPerf RE'!K51 -> 0 | L55: =L40-'B4-FinPerf RE'!L51 -> 0 | M55: =M40-'B4-FinPerf RE'!M51 -> 0

Sheet B3B
A1: =muni&" - "&_ADJ2&" - B"&" - "&Date -> WC031 Theewaterskloof - Table B3 Adjustments Budget Financial Performance (revenue and expenditure by municipal vote) - B - 16 April 2026
A2: =Vdesc -> Vote Description | B2: =head27 -> Ref | C2: =Head2 -> Budget Year 2025/26 | L2: =Head10 -> Budget Year +1 2026/27 | M2: =Head11 -> Budget Year +2 2027/28
C3: =Head6 -> Original Budget | D3: =Head54 -> Prior Adjusted | E3: =Head51 -> Accum. Funds | F3: =Head52 -> Multi-year capital | G3: =Head53 -> Unfore. Unavoid. | H3: =Head55 -> Nat. or Prov. Govt | I3: =Head50 -> Other Adjusts. | J3: =Head56 -> Total Adjusts. | K3: =Head7 -> Adjusted Budget | L3: =Head7 -> Adjusted Budget | M3: =Head7 -> Adjusted Budget | V3: Adjusted Budget
A4: [Insert departmental structure etc] | D4: 3 | E4: 4 | F4: 5 | G4: 6 | H4: 7 | I4: 8 | J4: 9 | K4: 10 | V4: 10
A5: R thousands | C5: A | D5: A1 | E5: B | F5: C | G5: D | H5: E | I5: F | J5: G | K5: H | V5: H
A6: Revenue by Vote | B6: 1
A7: ='Org structure'!A2 -> Vote 1 - Directorate Finance | C7: 332266561 | D7: 328469675 | E7: 0 | F7: 0 | G7: 0 | H7: 0 | I7: -11182350 | J7: -11182350 | K7: 317287325 | L7: 346421500.3 | M7: 357051626.5 | V7: 328469675
A8: ='Org structure'!E3 -> 1,1 - Asset Management | C8: 164164 | D8: 2114154 | E8: 0 | F8: 0 | G8: 0 | H8: 0 | I8: 0 | J8: 0 | K8: 2114154 | L8: 119281 | M8: 122283 | V8: 2114154
A9: ='Org structure'!E4 -> 1,2 - Budget Office | C9: 0 | D9: 0 | E9: 0 | F9: 0 | G9: 0 | H9: 0 | I9: 0 | J9: 0 | K9: 0 | L9: 0 | M9: 0 | V9: 0
A10: ='Org structure'!E5 -> 1,3 - Financial Services | C10: 141765884 | D10: 151823521 | E10: 0 | F10: 0 | G10: 0 | H10: 0 | I10: -11182350 | J10: -11182350 | K10: 140641171 | L10: 147279541.3 | M10: 152661886.5 | V10: 151823521
A11: ='Org structure'!E6 -> 1,4 - Internal Audit | C11: 0 | D11: 0 | E11: 0 | F11: 0 | G11: 0 | H11: 0 | I11: 0 | J11: 0 | K11: 0 | L11: 0 | M11: 0 | V11: 0
A12: ='Org structure'!E7 -> 1,5 - Property Rates | C12: 190336513 | D12: 174532000 | E12: 0 | F12: 0 | G12: 0 | H12: 0 | I12: 0 | J12: 0 | K12: 174532000 | L12: 199022678 | M12: 204267457 | V12: 174532000
A13: ='Org structure'!E8 -> 1,6 - Risk Management | C13: 0 | D13: 0 | E13: 0 | F13: 0 | G13: 0 | H13: 0 | I13: 0 | J13: 0 | K13: 0 | L13: 0 | M13: 0 | V13: 0
A14: ='Org structure'!E9 -> 1,7 - SCM | C14: 0 | D14: 0 | E14: 0 | F14: 0 | G14: 0 | H14: 0 | I14: 0 | J14: 0 | K14: 0 | L14: 0 | M14: 0 | V14: 0
A15: ='Org structure'!E10 -> 1,8 - Valuation Services | C15: 0 | D15: 0 | E15: 0 | F15: 0 | G15: 0 | H15: 0 | I15: 0 | J15: 0 | K15: 0 | L15: 0 | M15: 0 | V15: 0
A16: ='Org structure'!E11 -> 1,9 - [Name of sub-vote] | C16: 0 | D16: 0 | E16: 0 | F16: 0 | G16: 0 | H16: 0 | I16: 0 | J16: 0 | K16: 0 | L16: 0 | M16: 0 | V16: 0
A17: ='Org structure'!E12 -> 1.10 - [Name of sub-vote] | C17: 0 | D17: 0 | E17: 0 | F17: 0 | G17: 0 | H17: 0 | I17: 0 | J17: 0 | K17: 0 | L17: 0 | M17: 0 | V17: 0
A18: ='Org structure'!A3 -> Vote 2 - Community Services | C18: 48457515 | D18: 62769260 | E18: 0 | F18: 0 | G18: 0 | H18: 0 | I18: 60000 | J18: 60000 | K18: 62829260 | L18: 49390653 | M18: 50389945 | V18: 62769260
A19: ='Org structure'!E14 -> 2,1 - Cemeteries | C19: 750000 | D19: 750000 | E19: 0 | F19: 0 | G19: 0 | H19: 0 | I19: 0 | J19: 0 | K19: 750000 | L19: 783750 | M19: 803344 | V19: 750000
A20: ='Org structure'!E15 -> 2,2 - Libraries | C20: 10401000 | D20: 10401000 | E20: 0 | F20: 0 | G20: 0 | H20: 0 | I20: 0 | J20: 0 | K20: 10401000 | L20: 10664230 | M20: 11361686 | V20: 10401000
A21: ='Org structure'!E16 -> 2,3 - Community Services | C21: 0 | D21: 0 | E21: 0 | F21: 0 | G21: 0 | H21: 0 | I21: 0 | J21: 0 | K21: 0 | L21: 0 | M21: 0 | V21: 0
A22: ='Org structure'!E17 -> 2,4 - Town Administration | C22: 0 | D22: 0 | E22: 0 | F22: 0 | G22: 0 | H22: 0 | I22: 0 | J22: 0 | K22: 0 | L22: 0 | M22: 0 | V22: 0
A23: ='Org structure'!E18 -> 2,5 - Sustainable Development | C23: 0 | D23: 300000 | E23: 0 | F23: 0 | G23: 0 | H23: 0 | I23: 0 | J23: 0 | K23: 300000 | L23: 0 | M23: 0 | V23: 300000
A24: ='Org structure'!E19 -> 2,6 - Fleet | C24: 0 | D24: 0 | E24: 0 | F24: 0 | G24: 0 | H24: 0 | I24: 0 | J24: 0 | K24: 0 | L24: 0 | M24: 0 | V24: 0
A25: ='Org structure'!E20 -> 2,7 - Property Services | C25: 2096000 | D25: 2096000 | E25: 0 | F25: 0 | G25: 0 | H25: 0 | I25: 0 | J25: 0 | K25: 2096000 | L25: 2190320 | M25: 2245079 | V25: 2096000
A26: ='Org structure'!E21 -> 2,8 - Sports and Culture | C26: 50000 | D26: 50000 | E26: 0 | F26: 0 | G26: 0 | H26: 0 | I26: 0 | J26: 0 | K26: 50000 | L26: 52250 | M26: 53556 | V26: 50000
A27: ='Org structure'!E22 -> 2,9 - Roads and Stormwater | C27: 0 | D27: 0 | E27: 0 | F27: 0 | G27: 0 | H27: 0 | I27: 0 | J27: 0 | K27: 0 | L27: 0 | M27: 0 | V27: 0
A28: ='Org structure'!E23 -> 2.10 - Parks and Gardens | C28: 1000 | D28: 1000 | E28: 0 | F28: 0 | G28: 0 | H28: 0 | I28: 0 | J28: 0 | K28: 1000 | L28: 1045 | M28: 1071 | V28: 1000
A29: ='Org structure'!E24 -> 2.11 - Disaster Management | C29: 0 | D29: 0 | E29: 0 | F29: 0 | G29: 0 | H29: 0 | I29: 0 | J29: 0 | K29: 0 | L29: 0 | M29: 0 | V29: 0
A30: ='Org structure'!E25 -> 2.12 - Pollution Control | C30: 0 | D30: 0 | E30: 0 | F30: 0 | G30: 0 | H30: 0 | I30: 0 | J30: 0 | K30: 0 | L30: 0 | M30: 0 | V30: 0
A31: ='Org structure'!E26 -> 2.13 - Nature Reserve | C31: 0 | D31: 0 | E31: 0 | F31: 0 | G31: 0 | H31: 0 | I31: 0 | J31: 0 | K31: 0 | L31: 0 | M31: 0 | V31: 0
A32: ='Org structure'!E27 -> 2.14 - Community Halls | C32: 0 | D32: 5745 | E32: 0 | F32: 0 | G32: 0 | H32: 0 | I32: 0 | J32: 0 | K32: 5745 | L32: 150000 | M32: 150000 | V32: 5745
A33: ='Org structure'!E28 -> 2.15 - Traffic Services | C33: 26599000 | D33: 40605000 | E33: 0 | F33: 0 | G33: 0 | H33: 0 | I33: 0 | J33: 0 | K33: 40605000 | L33: 26603320 | M33: 26605828 | V33: 40605000
A34: ='Org structure'!E29 -> 2.16 - Law Enforcement | C34: 0 | D34: 0 | E34: 0 | F34: 0 | G34: 0 | H34: 0 | I34: 60000 | J34: 60000 | K34: 60000 | L34: 0 | M34: 0 | V34: 0
A35: ='Org structure'!E30 -> 2.17 - Motor Licensing and Testing Station | C35: 8417407 | D35: 8417407 | E35: 0 | F35: 0 | G35: 0 | H35: 0 | I35: 0 | J35: 0 | K35: 8417407 | L35: 8796190 | M35: 9016094 | V35: 8417407
A36: ='Org structure'!E31 -> 2.18 - Animal Control and Pounds | C36: 143108 | D36: 143108 | E36: 0 | F36: 0 | G36: 0 | H36: 0 | I36: 0 | J36: 0 | K36: 143108 | L36: 149548 | M36: 153287 | V36: 143108
A37: ='Org structure'!A4 -> Vote 3 - Corporate services | C37: 6746325 | D37: 6977704 | E37: 0 | F37: 0 | G37: 0 | H37: 0 | I37: 0 | J37: 0 | K37: 6977704 | L37: 7044825 | M37: 7218121 | V37: 6977704
A38: ='Org structure'!E33 -> 3,1 - Administration: Planning | C38: 0 | D38: 0 | E38: 0 | F38: 0 | G38: 0 | H38: 0 | I38: 0 | J38: 0 | K38: 0 | L38: 0 | M38: 0 | V38: 0
A39: ='Org structure'!E34 -> 3,2 - Administration: Technical Services | C39: 0 | D39: 0 | E39: 0 | F39: 0 | G39: 0 | H39: 0 | I39: 0 | J39: 0 | K39: 0 | L39: 0 | M39: 0 | V39: 0
A40: ='Org structure'!E35 -> 3,3 - Community Halls | C40: 0 | D40: 0 | E40: 0 | F40: 0 | G40: 0 | H40: 0 | I40: 0 | J40: 0 | K40: 0 | L40: 0 | M40: 0 | V40: 0
A41: ='Org structure'!E36 -> 3,4 - Directorate: Corporate Services | C41: 0 | D41: 0 | E41: 0 | F41: 0 | G41: 0 | H41: 0 | I41: 0 | J41: 0 | K41: 0 | L41: 0 | M41: 0 | V41: 0
A42: ='Org structure'!E37 -> 3,5 - Human Resources | C42: 86825 | D42: 404659 | E42: 0 | F42: 0 | G42: 0 | H42: 0 | I42: 0 | J42: 0 | K42: 404659 | L42: 90732 | M42: 93001 | V42: 404659
A43: ='Org structure'!E38 -> 3,6 - IT Services | C43: 0 | D43: 200000 | E43: 0 | F43: 0 | G43: 0 | H43: 0 | I43: 0 | J43: 0 | K43: 200000 | L43: 0 | M43: 0 | V43: 200000
A44: ='Org structure'!E39 -> 3,7 - Legal Services | C44: 1000000 | D44: 2548000 | E44: 0 | F44: 0 | G44: 0 | H44: 0 | I44: 0 | J44: 0 | K44: 2548000 | L44: 1045000 | M44: 1071125 | V44: 2548000
A45: ='Org structure'!E40 -> 3,8 - Property Services | C45: 0 | D45: 0 | E45: 0 | F45: 0 | G45: 0 | H45: 0 | I45: 0 | J45: 0 | K45: 0 | L45: 0 | M45: 0 | V45: 0
A46: ='Org structure'!E41 -> 3,9 - Corporate services | C46: 5546500 | D46: 3640500 | E46: 0 | F46: 0 | G46: 0 | H46: 0 | I46: 0 | J46: 0 | K46: 3640500 | L46: 5796093 | M46: 5940995 | V46: 3640500
A47: ='Org structure'!E42 -> 3,10 - Occupational Health and Safety | C47: 0 | D47: 0 | E47: 0 | F47: 0 | G47: 0 | H47: 0 | I47: 0 | J47: 0 | K47: 0 | L47: 0 | M47: 0 | V47: 0
A48: ='Org structure'!E43 -> 3.11 - Council Support | C48: 113000 | D48: 184545 | E48: 0 | F48: 0 | G48: 0 | H48: 0 | I48: 0 | J48: 0 | K48: 184545 | L48: 113000 | M48: 113000 | V48: 184545
A49: ='Org structure'!A5 -> Vote 4 - Electricity | C49: 192659412 | D49: 198188000 | E49: 0 | F49: 0 | G49: 0 | H49: 0 | I49: -1469052 | J49: -1469052 | K49: 196718948 | L49: 207466421 | M49: 213079584 | V49: 198188000
A50: ='Org structure'!E45 -> 4,1 - Electricity: Distribution | C50: 192659412 | D50: 198188000 | E50: 0 | F50: 0 | G50: 0 | H50: 0 | I50: -1469052 | J50: -1469052 | K50: 196718948 | L50: 207466421 | M50: 213079584 | V50: 198188000
A51: ='Org structure'!E46 -> 4,2 - Electricity: Street Lights | C51: 0 | D51: 0 | E51: 0 | F51: 0 | G51: 0 | H51: 0 | I51: 0 | J51: 0 | K51: 0 | L51: 0 | M51: 0 | V51: 0
A52: ='Org structure'!E47 -> 0 | J52: 0 | K52: 0 | V52: 0
A53: ='Org structure'!E48 -> 0 | J53: 0 | K53: 0 | V53: 0
A54: ='Org structure'!E49 -> 0 | J54: 0 | K54: 0 | V54: 0
A55: ='Org structure'!E50 -> 0 | J55: 0 | K55: 0 | V55: 0
A56: ='Org structure'!E51 -> 0 | J56: 0 | K56: 0 | V56: 0
A57: ='Org structure'!E52 -> 0 | J57: 0 | K57: 0 | V57: 0
A58: ='Org structure'!E53 -> 0 | J58: 0 | K58: 0 | V58: 0
A59: ='Org structure'!E54 -> 0 | J59: 0 | K59: 0 | V59: 0
A60: ='Org structure'!A6 -> Vote 5 - Economic Development and Planning | C60: 59758500 | D60: 93783294 | E60: 0 | F60: 0 | G60: 0 | H60: 0 | I60: 0 | J60: 0 | K60: 93783294 | L60: 111132533 | M60: 113390347 | V60: 93783294
A61: ='Org structure'!E56 -> 5,1 - Economic Development and Planning | C61: 0 | D61: 0 | E61: 0 | F61: 0 | G61: 0 | H61: 0 | I61: 0 | J61: 0 | K61: 0 | L61: 0 | M61: 0 | V61: 0
A62: ='Org structure'!E57 -> 5,2 - Human Settlements | C62: 56780000 | D62: 89475382 | E62: 0 | F62: 0 | G62: 0 | H62: 0 | I62: 0 | J62: 0 | K62: 89475382 | L62: 108020000 | M62: 110200000 | V62: 89475382
A63: ='Org structure'!E58 -> 5,3 - Informal Settlements | C63: 0 | D63: 0 | E63: 0 | F63: 0 | G63: 0 | H63: 0 | I63: 0 | J63: 0 | K63: 0 | L63: 0 | M63: 0 | V63: 0
A64: ='Org structure'!E59 -> 5,4 - Town Planning | C64: 1367500 | D64: 1367500 | E64: 0 | F64: 0 | G64: 0 | H64: 0 | I64: 0 | J64: 0 | K64: 1367500 | L64: 1429038 | M64: 1464764 | V64: 1367500
A65: ='Org structure'!E60 -> 5,5 - Building Control | C65: 1611000 | D65: 2056000 | E65: 0 | F65: 0 | G65: 0 | H65: 0 | I65: 0 | J65: 0 | K65: 2056000 | L65: 1683495 | M65: 1725583 | V65: 2056000
A66: ='Org structure'!E61 -> 5,6 - Property Management | C66: 0 | D66: 0 | E66: 0 | F66: 0 | G66: 0 | H66: 0 | I66: 0 | J66: 0 | K66: 0 | L66: 0 | M66: 0 | V66: 0
A67: ='Org structure'!E62 -> 5,7 - LED | C67: 0 | D67: 884412 | E67: 0 | F67: 0 | G67: 0 | H67: 0 | I67: 0 | J67: 0 | K67: 884412 | L67: 0 | M67: 0 | V67: 884412
A68: ='Org structure'!E63 -> 5,8 - Tourism | C68: 0 | D68: 0 | E68: 0 | F68: 0 | G68: 0 | H68: 0 | I68: 0 | J68: 0 | K68: 0 | L68: 0 | M68: 0 | V68: 0
A69: ='Org structure'!E64 -> 5,9 - [Name of sub-vote] | C69: 0 | D69: 0 | E69: 0 | F69: 0 | G69: 0 | H69: 0 | I69: 0 | J69: 0 | K69: 0 | L69: 0 | M69: 0 | V69: 0
A70: ='Org structure'!E65 -> 5.10 - [Name of sub-vote] | C70: 0 | D70: 0 | E70: 0 | F70: 0 | G70: 0 | H70: 0 | I70: 0 | J70: 0 | K70: 0 | L70: 0 | M70: 0 | V70: 0
A71: ='Org structure'!A7 -> Vote 6 - Office of the Municipal Manager | C71: 0 | D71: 0 | E71: 0 | F71: 0 | G71: 0 | H71: 0 | I71: 0 | J71: 0 | K71: 0 | L71: 0 | M71: 0 | V71: 0
A72: ='Org structure'!E67 -> 6,1 - Administration: Towns | C72: 0 | D72: 0 | E72: 0 | F72: 0 | G72: 0 | H72: 0 | I72: 0 | J72: 0 | K72: 0 | L72: 0 | M72: 0 | V72: 0
A73: ='Org structure'!E68 -> 6,2 - Council General Expenses | C73: 0 | D73: 0 | E73: 0 | F73: 0 | G73: 0 | H73: 0 | I73: 0 | J73: 0 | K73: 0 | L73: 0 | M73: 0 | V73: 0
A74: ='Org structure'!E69 -> 6,3 - Municipal Manager | C74: 0 | D74: 0 | E74: 0 | F74: 0 | G74: 0 | H74: 0 | I74: 0 | J74: 0 | K74: 0 | L74: 0 | M74: 0 | V74: 0
A75: ='Org structure'!E70 -> 6,4 - Internal Audit | C75: 0 | D75: 0 | E75: 0 | F75: 0 | G75: 0 | H75: 0 | I75: 0 | J75: 0 | K75: 0 | L75: 0 | M75: 0 | V75: 0
A76: ='Org structure'!E71 -> 6,5 - Strategic Support and IDP | C76: 0 | D76: 0 | E76: 0 | F76: 0 | G76: 0 | H76: 0 | I76: 0 | J76: 0 | K76: 0 | L76: 0 | M76: 0 | V76: 0
A77: ='Org structure'!E72 -> 6,6 - [Name of sub-vote] | C77: 0 | D77: 0 | E77: 0 | F77: 0 | G77: 0 | H77: 0 | I77: 0 | J77: 0 | K77: 0 | L77: 0 | M77: 0 | V77: 0
A78: ='Org structure'!E73 -> 6,7 - [Name of sub-vote] | C78: 0 | D78: 0 | E78: 0 | F78: 0 | G78: 0 | H78: 0 | I78: 0 | J78: 0 | K78: 0 | L78: 0 | M78: 0 | V78: 0
A79: ='Org structure'!E74 -> 6,8 - [Name of sub-vote] | C79: 0 | D79: 0 | E79: 0 | F79: 0 | G79: 0 | H79: 0 | I79: 0 | J79: 0 | K79: 0 | L79: 0 | M79: 0 | V79: 0
A80: ='Org structure'!E75 -> 6,9 - [Name of sub-vote] | C80: 0 | D80: 0 | E80: 0 | F80: 0 | G80: 0 | H80: 0 | I80: 0 | J80: 0 | K80: 0 | L80: 0 | M80: 0 | V80: 0
A81: ='Org structure'!E76 -> 6.10 - [Name of sub-vote] | C81: 0 | D81: 0 | E81: 0 | F81: 0 | G81: 0 | H81: 0 | I81: 0 | J81: 0 | K81: 0 | L81: 0 | M81: 0 | V81: 0
A82: ='Org structure'!A8 -> Vote 7 - Housing | C82: 0 | D82: 0 | E82: 0 | F82: 0 | G82: 0 | H82: 0 | I82: 0 | J82: 0 | K82: 0 | L82: 0 | M82: 0 | V82: 0
A83: ='Org structure'!E78 -> 7,1 - Administration: Housing | C83: 0 | D83: 0 | E83: 0 | F83: 0 | G83: 0 | H83: 0 | I83: 0 | J83: 0 | K83: 0 | L83: 0 | M83: 0 | V83: 0
A84: ='Org structure'!E79 -> 7,2 - Informal Settlements | C84: 0 | D84: 0 | E84: 0 | F84: 0 | G84: 0 | H84: 0 | I84: 0 | J84: 0 | K84: 0 | L84: 0 | M84: 0 | V84: 0
A85: ='Org structure'!E80 -> 7,3 - [Name of sub-vote] | C85: 0 | D85: 0 | E85: 0 | F85: 0 | G85: 0 | H85: 0 | I85: 0 | J85: 0 | K85: 0 | L85: 0 | M85: 0 | V85: 0
A86: ='Org structure'!E81 -> 7,4 - [Name of sub-vote] | C86: 0 | D86: 0 | E86: 0 | F86: 0 | G86: 0 | H86: 0 | I86: 0 | J86: 0 | K86: 0 | L86: 0 | M86: 0 | V86: 0
A87: ='Org structure'!E82 -> 7,5 - [Name of sub-vote] | C87: 0 | D87: 0 | E87: 0 | F87: 0 | G87: 0 | H87: 0 | I87: 0 | J87: 0 | K87: 0 | L87: 0 | M87: 0 | V87: 0
A88: ='Org structure'!E83 -> 7,6 - [Name of sub-vote] | C88: 0 | D88: 0 | E88: 0 | F88: 0 | G88: 0 | H88: 0 | I88: 0 | J88: 0 | K88: 0 | L88: 0 | M88: 0 | V88: 0
A89: ='Org structure'!E84 -> 7,7 - [Name of sub-vote] | C89: 0 | D89: 0 | E89: 0 | F89: 0 | G89: 0 | H89: 0 | I89: 0 | J89: 0 | K89: 0 | L89: 0 | M89: 0 | V89: 0
A90: ='Org structure'!E85 -> 7,8 - [Name of sub-vote] | C90: 0 | D90: 0 | E90: 0 | F90: 0 | G90: 0 | H90: 0 | I90: 0 | J90: 0 | K90: 0 | L90: 0 | M90: 0 | V90: 0
A91: ='Org structure'!E86 -> 7,9 - [Name of sub-vote] | C91: 0 | D91: 0 | E91: 0 | F91: 0 | G91: 0 | H91: 0 | I91: 0 | J91: 0 | K91: 0 | L91: 0 | M91: 0 | V91: 0
A92: ='Org structure'!E87 -> 7.10 - [Name of sub-vote] | C92: 0 | D92: 0 | E92: 0 | F92: 0 | G92: 0 | H92: 0 | I92: 0 | J92: 0 | K92: 0 | L92: 0 | M92: 0 | V92: 0
A93: ='Org structure'!A9 -> Vote 8 - Technical and Infrastructure Implementation Services | C93: 29613391 | D93: 39237704 | E93: 0 | F93: 0 | G93: 0 | H93: 0 | I93: -5154238 | J93: -5154238 | K93: 34083466 | L93: 29828653.7 | M93: 31091027.52 | V93: 39237704
A94: ='Org structure'!E89 -> 8,1 - Building Control | C94: 0 | D94: 0 | E94: 0 | F94: 0 | G94: 0 | H94: 0 | I94: 0 | J94: 0 | K94: 0 | L94: 0 | M94: 0 | V94: 0
A95: ='Org structure'!E90 -> 8,2 - IDP/SDBIP | C95: 0 | D95: 0 | E95: 0 | F95: 0 | G95: 0 | H95: 0 | I95: 0 | J95: 0 | K95: 0 | L95: 0 | M95: 0 | V95: 0
A96: ='Org structure'!E91 -> 8,3 - LED | C96: 0 | D96: 0 | E96: 0 | F96: 0 | G96: 0 | H96: 0 | I96: 0 | J96: 0 | K96: 0 | L96: 0 | M96: 0 | V96: 0
A97: ='Org structure'!E92 -> 8,4 - Property Management | C97: 0 | D97: 0 | E97: 0 | F97: 0 | G97: 0 | H97: 0 | I97: 0 | J97: 0 | K97: 0 | L97: 0 | M97: 0 | V97: 0
A98: ='Org structure'!E93 -> 8,5 - Tourism | C98: 0 | D98: 0 | E98: 0 | F98: 0 | G98: 0 | H98: 0 | I98: 0 | J98: 0 | K98: 0 | L98: 0 | M98: 0 | V98: 0
A99: ='Org structure'!E94 -> 8,6 - Town Planning | C99: 0 | D99: 0 | E99: 0 | F99: 0 | G99: 0 | H99: 0 | I99: 0 | J99: 0 | K99: 0 | L99: 0 | M99: 0 | V99: 0
A100: ='Org structure'!E95 -> 8,7 - Proclaimed Roads | C100: 145000 | D100: 6445000 | E100: 0 | F100: 0 | G100: 0 | H100: 0 | I100: -2491943 | J100: -2491943 | K100: 3953057 | L100: 145000 | M100: 163000 | V100: 6445000
A101: ='Org structure'!E96 -> 8,8 - Director: Technical Services and Planning | C101: 0 | D101: 0 | E101: 0 | F101: 0 | G101: 0 | H101: 0 | I101: 0 | J101: 0 | K101: 0 | L101: 0 | M101: 0 | V101: 0
A102: ='Org structure'!E97 -> 8,9 - Human Settlements | C102: 0 | D102: 0 | E102: 0 | F102: 0 | G102: 0 | H102: 0 | I102: 0 | J102: 0 | K102: 0 | L102: 0 | M102: 0 | V102: 0
A103: ='Org structure'!E98 -> 8.10 - Technical and Infrastructure Implementation Services | C103: 29468391 | D103: 32792704 | E103: 0 | F103: 0 | G103: 0 | H103: 0 | I103: -2662295 | J103: -2662295 | K103: 30130409 | L103: 29683653.7 | M103: 30928027.52 | V103: 32792704
A104: ='Org structure'!A10 -> Vote 9 - Public safety | C104: 0 | D104: 0 | E104: 0 | F104: 0 | G104: 0 | H104: 0 | I104: 0 | J104: 0 | K104: 0 | L104: 0 | M104: 0 | V104: 0
A105: ='Org structure'!E100 -> 9,1 - Animal Control | C105: 0 | D105: 0 | E105: 0 | F105: 0 | G105: 0 | H105: 0 | I105: 0 | J105: 0 | K105: 0 | L105: 0 | M105: 0 | V105: 0
A106: ='Org structure'!E101 -> 9,2 - Disaster Management | C106: 0 | D106: 0 | E106: 0 | F106: 0 | G106: 0 | H106: 0 | I106: 0 | J106: 0 | K106: 0 | L106: 0 | M106: 0 | V106: 0
A107: ='Org structure'!E102 -> 9,3 - Law Enforcement | C107: 0 | D107: 0 | E107: 0 | F107: 0 | G107: 0 | H107: 0 | I107: 0 | J107: 0 | K107: 0 | L107: 0 | M107: 0 | V107: 0
A108: ='Org structure'!E103 -> 9,4 - Pound | C108: 0 | D108: 0 | E108: 0 | F108: 0 | G108: 0 | H108: 0 | I108: 0 | J108: 0 | K108: 0 | L108: 0 | M108: 0 | V108: 0
A109: ='Org structure'!E104 -> 9,5 - Traffic Services | C109: 0 | D109: 0 | E109: 0 | F109: 0 | G109: 0 | H109: 0 | I109: 0 | J109: 0 | K109: 0 | L109: 0 | M109: 0 | V109: 0
A110: ='Org structure'!E105 -> 0 | C110: 0 | D110: 0 | E110: 0 | F110: 0 | G110: 0 | H110: 0 | I110: 0 | J110: 0 | K110: 0 | L110: 0 | M110: 0 | V110: 0
A111: ='Org structure'!A11 -> Vote 10 - Road transport | C111: 0 | D111: 0 | E111: 0 | F111: 0 | G111: 0 | H111: 0 | I111: 0 | J111: 0 | K111: 0 | L111: 0 | M111: 0 | V111: 0
A112: ='Org structure'!E111 -> 10,1 - Proclaimed Roads | C112: 0 | D112: 0 | E112: 0 | F112: 0 | G112: 0 | H112: 0 | I112: 0 | J112: 0 | K112: 0 | L112: 0 | M112: 0 | V112: 0
A113: ='Org structure'!E112 -> 10,2 - Roads | C113: 0 | D113: 0 | E113: 0 | F113: 0 | G113: 0 | H113: 0 | I113: 0 | J113: 0 | K113: 0 | L113: 0 | M113: 0 | V113: 0
A114: ='Org structure'!E113 -> 10,3 - Vehicle Licensing and Testing | C114: 0 | D114: 0 | E114: 0 | F114: 0 | G114: 0 | H114: 0 | I114: 0 | J114: 0 | K114: 0 | L114: 0 | M114: 0 | V114: 0
A115: ='Org structure'!E114 -> 0 | C115: 0 | D115: 0 | E115: 0 | F115: 0 | G115: 0 | H115: 0 | I115: 0 | J115: 0 | K115: 0 | L115: 0 | M115: 0 | V115: 0
A116: ='Org structure'!A12 -> Vote 11 - Sport and recreation | C116: 0 | D116: 0 | E116: 0 | F116: 0 | G116: 0 | H116: 0 | I116: 0 | J116: 0 | K116: 0 | L116: 0 | M116: 0 | V116: 0
A117: ='Org structure'!E122 -> 11,1 - Nature Reserve | C117: 0 | D117: 0 | E117: 0 | F117: 0 | G117: 0 | H117: 0 | I117: 0 | J117: 0 | K117: 0 | L117: 0 | M117: 0 | V117: 0
A118: ='Org structure'!E123 -> 11,2 - Parks and Gardens | C118: 0 | D118: 0 | E118: 0 | F118: 0 | G118: 0 | H118: 0 | I118: 0 | J118: 0 | K118: 0 | L118: 0 | M118: 0 | V118: 0
A119: ='Org structure'!E124 -> 11,3 - Sport and Recreation | C119: 0 | D119: 0 | E119: 0 | F119: 0 | G119: 0 | H119: 0 | I119: 0 | J119: 0 | K119: 0 | L119: 0 | M119: 0 | V119: 0
A120: ='Org structure'!E125 -> 0 | C120: 0 | D120: 0 | E120: 0 | F120: 0 | G120: 0 | H120: 0 | I120: 0 | J120: 0 | K120: 0 | L120: 0 | M120: 0 | V120: 0
A121: ='Org structure'!A13 -> Vote 12 - Waste management | C121: 64931950 | D121: 64044000 | E121: 0 | F121: 0 | G121: 0 | H121: 0 | I121: 0 | J121: 0 | K121: 64044000 | L121: 68022693 | M121: 70098765 | V121: 64044000
A122: ='Org structure'!E133 -> 12,1 - Refuse Removal | C122: 791650 | D122: 823000 | E122: 0 | F122: 0 | G122: 0 | H122: 0 | I122: 0 | J122: 0 | K122: 823000 | L122: 827274 | M122: 847956 | V122: 823000
A123: ='Org structure'!E134 -> 12,2 - Refuse Sites | C123: 0 | D123: 0 | E123: 0 | F123: 0 | G123: 0 | H123: 0 | I123: 0 | J123: 0 | K123: 0 | L123: 0 | M123: 0 | V123: 0
A124: ='Org structure'!E135 -> 12,3 - Street Cleansing | C124: 0 | D124: 0 | E124: 0 | F124: 0 | G124: 0 | H124: 0 | I124: 0 | J124: 0 | K124: 0 | L124: 0 | M124: 0 | V124: 0
A125: ='Org structure'!E136 -> 12,4 - Refuse Removal (Head Office) | C125: 64140300 | D125: 63221000 | E125: 0 | F125: 0 | G125: 0 | H125: 0 | I125: 0 | J125: 0 | K125: 63221000 | L125: 67195419 | M125: 69250809 | V125: 63221000
A126: ='Org structure'!E137 -> 12,5 - Refuse Sites (Head Office) | C126: 0 | D126: 0 | E126: 0 | F126: 0 | G126: 0 | H126: 0 | I126: 0 | J126: 0 | K126: 0 | L126: 0 | M126: 0 | V126: 0
A127: ='Org structure'!E138 -> 12,6 - Street Cleansing (Head Office) | C127: 0 | D127: 0 | E127: 0 | F127: 0 | G127: 0 | H127: 0 | I127: 0 | J127: 0 | K127: 0 | L127: 0 | M127: 0 | V127: 0
A128: ='Org structure'!E139 -> 0 | C128: 0 | D128: 0 | E128: 0 | F128: 0 | G128: 0 | H128: 0 | I128: 0 | J128: 0 | K128: 0 | L128: 0 | M128: 0 | V128: 0
A129: ='Org structure'!A14 -> Vote 13 - Waste water management | C129: 66372550 | D129: 65756000 | E129: 0 | F129: 0 | G129: 0 | H129: 0 | I129: 0 | J129: 0 | K129: 65756000 | L129: 69509742 | M129: 71582109 | V129: 65756000
A130: ='Org structure'!E144 -> 13,1 - Sewerage: Networks | C130: 953400 | D130: 962000 | E130: 0 | F130: 0 | G130: 0 | H130: 0 | I130: 0 | J130: 0 | K130: 962000 | L130: 996303 | M130: 1021211 | V130: 962000
A131: ='Org structure'!E145 -> 13,2 - Sewerage: Tank Services | C131: 0 | D131: 0 | E131: 0 | F131: 0 | G131: 0 | H131: 0 | I131: 0 | J131: 0 | K131: 0 | L131: 0 | M131: 0 | V131: 0
A132: ='Org structure'!E146 -> 13,3 - Sewerage: Treatment Works | C132: 0 | D132: 0 | E132: 0 | F132: 0 | G132: 0 | H132: 0 | I132: 0 | J132: 0 | K132: 0 | L132: 0 | M132: 0 | V132: 0
A133: ='Org structure'!E147 -> 13,4 - Sewerage: Networks (Head Office) | C133: 62713300 | D133: 62519000 | E133: 0 | F133: 0 | G133: 0 | H133: 0 | I133: 0 | J133: 0 | K133: 62519000 | L133: 65685826 | M133: 67662595 | V133: 62519000
A134: ='Org structure'!E148 -> 13,5 - Sewerage: Treatment Works (Head Office) | C134: 0 | D134: 0 | E134: 0 | F134: 0 | G134: 0 | H134: 0 | I134: 0 | J134: 0 | K134: 0 | L134: 0 | M134: 0 | V134: 0
A135: ='Org structure'!E149 -> 13,6 - Sewerage: Tank Services (Head Office) | C135: 2705850 | D135: 2275000 | E135: 0 | F135: 0 | G135: 0 | H135: 0 | I135: 0 | J135: 0 | K135: 2275000 | L135: 2827613 | M135: 2898303 | V135: 2275000
A136: ='Org structure'!E150 -> 0 | C136: 0 | D136: 0 | E136: 0 | F136: 0 | G136: 0 | H136: 0 | I136: 0 | J136: 0 | K136: 0 | L136: 0 | M136: 0 | V136: 0
A137: ='Org structure'!A15 -> Vote 14 - Water | C137: 122030280 | D137: 133752000 | E137: 0 | F137: 0 | G137: 0 | H137: 0 | I137: 0 | J137: 0 | K137: 133752000 | L137: 127675664 | M137: 131210172 | V137: 133752000
A138: ='Org structure'!E155 -> 14,1 - Water: Distribution | C138: 2259360 | D138: 2270000 | E138: 0 | F138: 0 | G138: 0 | H138: 0 | I138: 0 | J138: 0 | K138: 2270000 | L138: 2361031 | M138: 2420057 | V138: 2270000
A139: ='Org structure'!E156 -> 14,2 - Water: Treatment Works | C139: 0 | D139: 0 | E139: 0 | F139: 0 | G139: 0 | H139: 0 | I139: 0 | J139: 0 | K139: 0 | L139: 0 | M139: 0 | V139: 0
A140: ='Org structure'!E157 -> 14,3 - Water: Distribution (Head Office) | C140: 119770920 | D140: 131482000 | E140: 0 | F140: 0 | G140: 0 | H140: 0 | I140: 0 | J140: 0 | K140: 131482000 | L140: 125314633 | M140: 128790115 | V140: 131482000
A141: ='Org structure'!E158 -> 14,4 - Water: Treatment Works (Head Office) | C141: 0 | D141: 0 | E141: 0 | F141: 0 | G141: 0 | H141: 0 | I141: 0 | J141: 0 | K141: 0 | L141: 0 | M141: 0 | V141: 0
A142: ='Org structure'!E159 -> 0 | C142: 0 | D142: 0 | E142: 0 | F142: 0 | G142: 0 | H142: 0 | I142: 0 | J142: 0 | K142: 0 | L142: 0 | M142: 0 | V142: 0
A143: ='Org structure'!A16 -> Vote 15 - Directorate Development and Community Services | C143: 0 | D143: 0 | E143: 0 | F143: 0 | G143: 0 | H143: 0 | I143: 0 | J143: 0 | K143: 0 | L143: 0 | M143: 0 | V143: 0
A144: ='Org structure'!E166 -> 15,1 - Director: Development and Community Services | C144: 0 | D144: 0 | E144: 0 | F144: 0 | G144: 0 | H144: 0 | I144: 0 | J144: 0 | K144: 0 | L144: 0 | M144: 0 | V144: 0
A145: ='Org structure'!E167 -> 15,2 - Council Support | C145: 0 | D145: 0 | E145: 0 | F145: 0 | G145: 0 | H145: 0 | I145: 0 | J145: 0 | K145: 0 | L145: 0 | M145: 0 | V145: 0
A146: ='Org structure'!E168 -> 15,3 - LED | C146: 0 | D146: 0 | E146: 0 | F146: 0 | G146: 0 | H146: 0 | I146: 0 | J146: 0 | K146: 0 | L146: 0 | M146: 0 | V146: 0
A147: ='Org structure'!E169 -> 15,4 - Tourism | C147: 0 | D147: 0 | E147: 0 | F147: 0 | G147: 0 | H147: 0 | I147: 0 | J147: 0 | K147: 0 | L147: 0 | M147: 0 | V147: 0
A148: ='Org structure'!E170 -> 15,5 - IT Services | C148: 0 | D148: 0 | E148: 0 | F148: 0 | G148: 0 | H148: 0 | I148: 0 | J148: 0 | K148: 0 | L148: 0 | M148: 0 | V148: 0
A149: ='Org structure'!E171 -> 15,6 - Legal Services | C149: 0 | D149: 0 | E149: 0 | F149: 0 | G149: 0 | H149: 0 | I149: 0 | J149: 0 | K149: 0 | L149: 0 | M149: 0 | V149: 0
A150: ='Org structure'!E172 -> 15,7 - Sports and Culture | C150: 0 | D150: 0 | E150: 0 | F150: 0 | G150: 0 | H150: 0 | I150: 0 | J150: 0 | K150: 0 | L150: 0 | M150: 0 | V150: 0
A151: ='Org structure'!E173 -> 15,8 - Town Administration | C151: 0 | D151: 0 | E151: 0 | F151: 0 | G151: 0 | H151: 0 | I151: 0 | J151: 0 | K151: 0 | L151: 0 | M151: 0 | V151: 0
A152: ='Org structure'!E174 -> 15,9 - Human Resources | C152: 0 | D152: 0 | E152: 0 | F152: 0 | G152: 0 | H152: 0 | I152: 0 | J152: 0 | K152: 0 | L152: 0 | M152: 0 | V152: 0
A153: ='Org structure'!E175 -> 15.10 - Risk Management | C153: 0 | D153: 0 | E153: 0 | F153: 0 | G153: 0 | H153: 0 | I153: 0 | J153: 0 | K153: 0 | L153: 0 | M153: 0 | V153: 0
A154: ='Org structure'!E176 -> 15.11 - Property Management | C154: 0 | D154: 0 | E154: 0 | F154: 0 | G154: 0 | H154: 0 | I154: 0 | J154: 0 | K154: 0 | L154: 0 | M154: 0 | V154: 0
A155: ='Org structure'!E177 -> 15.12 - Informal Settlements | C155: 0 | D155: 0 | E155: 0 | F155: 0 | G155: 0 | H155: 0 | I155: 0 | J155: 0 | K155: 0 | L155: 0 | M155: 0 | V155: 0
A156: ='Org structure'!E178 -> 15.13 - Roads and Stormwater | C156: 0 | D156: 0 | E156: 0 | F156: 0 | G156: 0 | H156: 0 | I156: 0 | J156: 0 | K156: 0 | L156: 0 | M156: 0 | V156: 0
A157: ='Org structure'!E179 -> 15.14 - Fleet | C157: 0 | D157: 0 | E157: 0 | F157: 0 | G157: 0 | H157: 0 | I157: 0 | J157: 0 | K157: 0 | L157: 0 | M157: 0 | V157: 0
A158: ='Org structure'!E180 -> 15.15 - Parks and Gardens | C158: 0 | D158: 0 | E158: 0 | F158: 0 | G158: 0 | H158: 0 | I158: 0 | J158: 0 | K158: 0 | L158: 0 | M158: 0 | V158: 0
A159: ='Org structure'!E181 -> 15.16 - Disaster Management | C159: 0 | D159: 0 | E159: 0 | F159: 0 | G159: 0 | H159: 0 | I159: 0 | J159: 0 | K159: 0 | L159: 0 | M159: 0 | V159: 0
A160: ='Org structure'!E182 -> 15.17 - Pollution Control | C160: 0 | D160: 0 | E160: 0 | F160: 0 | G160: 0 | H160: 0 | I160: 0 | J160: 0 | K160: 0 | L160: 0 | M160: 0 | V160: 0
A161: ='Org structure'!E183 -> 15.18 - Nature Reserve | C161: 0 | D161: 0 | E161: 0 | F161: 0 | G161: 0 | H161: 0 | I161: 0 | J161: 0 | K161: 0 | L161: 0 | M161: 0 | V161: 0
A162: ='Org structure'!E184 -> 15.19 - Cemeteries | C162: 0 | D162: 0 | E162: 0 | F162: 0 | G162: 0 | H162: 0 | I162: 0 | J162: 0 | K162: 0 | L162: 0 | M162: 0 | V162: 0
A163: ='Org structure'!E185 -> 15.20 - Community Halls | C163: 0 | D163: 0 | E163: 0 | F163: 0 | G163: 0 | H163: 0 | I163: 0 | J163: 0 | K163: 0 | L163: 0 | M163: 0 | V163: 0
A164: ='Org structure'!E186 -> 15.21 - Library Services | C164: 0 | D164: 0 | E164: 0 | F164: 0 | G164: 0 | H164: 0 | I164: 0 | J164: 0 | K164: 0 | L164: 0 | M164: 0 | V164: 0
A165: ='Org structure'!E187 -> 15.22 - Traffic Services | C165: 0 | D165: 0 | E165: 0 | F165: 0 | G165: 0 | H165: 0 | I165: 0 | J165: 0 | K165: 0 | L165: 0 | M165: 0 | V165: 0
A166: ='Org structure'!E188 -> 15.23 - Law Enforcement | C166: 0 | D166: 0 | E166: 0 | F166: 0 | G166: 0 | H166: 0 | I166: 0 | J166: 0 | K166: 0 | L166: 0 | M166: 0 | V166: 0
A167: ='Org structure'!E189 -> 15.24 - Motor Licensing and Testing Station | C167: 0 | D167: 0 | E167: 0 | F167: 0 | G167: 0 | H167: 0 | I167: 0 | J167: 0 | K167: 0 | L167: 0 | M167: 0 | V167: 0
A168: ='Org structure'!E190 -> 15.25 - Animal Control and Pounds | C168: 0 | D168: 0 | E168: 0 | F168: 0 | G168: 0 | H168: 0 | I168: 0 | J168: 0 | K168: 0 | L168: 0 | M168: 0 | V168: 0
A169: ='Org structure'!E191 -> 15.26 - Sustainable Development | C169: 0 | D169: 0 | E169: 0 | F169: 0 | G169: 0 | H169: 0 | I169: 0 | J169: 0 | K169: 0 | L169: 0 | M169: 0 | V169: 0
C170: 0 | D170: 0 | E170: 0 | F170: 0 | G170: 0 | H170: 0 | I170: 0 | J170: 0 | K170: 0 | L170: 0 | M170: 0 | V170: 0
A171: Total Revenue by Vote | B171: 2 | C171: 922836484 | D171: 992977637 | E171: 0 | F171: 0 | G171: 0 | H171: 0 | I171: -17745640 | J171: -17745640 | K171: 975231997 | L171: 1016492685 | M171: 1045111697 | V171: 992977637
A173: Expenditure by Vote | B173: 1
A174: =A7 -> Vote 1 - Directorate Finance | C174: 105568001 | D174: 101980449 | E174: 0 | F174: 0 | G174: 0 | H174: 0 | I174: -2362959 | J174: -2362959 | K174: 99617490 | L174: 110131905 | M174: 112781509 | V174: 101980449
A175: 1,1 - Asset Management | C175: 6857098 | D175: 7405076 | E175: 0 | F175: 0 | G175: 0 | H175: 0 | I175: -105034 | J175: -105034 | K175: 7300042 | L175: 6979015 | M175: 7049796 | V175: 7405076
A176: 1,2 - Budget Office | C176: 0 | D176: 0 | E176: 0 | F176: 0 | G176: 0 | H176: 0 | I176: 0 | J176: 0 | K176: 0 | L176: 0 | M176: 0 | V176: 0
A177: 1,3 - Financial Services | C177: 86031446 | D177: 83323316 | E177: 0 | F177: 0 | G177: 0 | H177: 0 | I177: -2146658 | J177: -2146658 | K177: 81176658 | L177: 89902860 | M177: 92150433 | V177: 83323316
A178: 1,4 - Internal Audit | C178: 0 | D178: 0 | E178: 0 | F178: 0 | G178: 0 | H178: 0 | I178: 0 | J178: 0 | K178: 0 | L178: 0 | M178: 0 | V178: 0
A179: 1,5 - Property Rates | C179: 5965001 | D179: 4486001 | E179: 0 | F179: 0 | G179: 0 | H179: 0 | I179: 0 | J179: 0 | K179: 4486001 | L179: 6233426 | M179: 6389262 | V179: 4486001
A180: 1,6 - Risk Management | C180: 0 | D180: 0 | E180: 0 | F180: 0 | G180: 0 | H180: 0 | I180: 0 | J180: 0 | K180: 0 | L180: 0 | M180: 0 | V180: 0
A181: 1,7 - SCM | C181: 4957150 | D181: 5056673 | E181: 0 | F181: 0 | G181: 0 | H181: 0 | I181: -104143 | J181: -104143 | K181: 4952530 | L181: 5180220 | M181: 5309724 | V181: 5056673
A182: 1,8 - Valuation Services | C182: 1757306 | D182: 1709383 | E182: 0 | F182: 0 | G182: 0 | H182: 0 | I182: -7124 | J182: -7124 | K182: 1702259 | L182: 1836384 | M182: 1882294 | V182: 1709383
A183: 1,9 - [Name of sub-vote] | C183: 0 | D183: 0 | E183: 0 | F183: 0 | G183: 0 | H183: 0 | I183: 0 | J183: 0 | K183: 0 | L183: 0 | M183: 0 | V183: 0
A184: 1.10 - [Name of sub-vote] | C184: 0 | D184: 0 | E184: 0 | F184: 0 | G184: 0 | H184: 0 | I184: 0 | J184: 0 | K184: 0 | L184: 0 | M184: 0 | V184: 0
A185: Vote 2 - Community Services | C185: 187974234 | D185: 198597743 | E185: 0 | F185: 0 | G185: 0 | H185: 0 | I185: -5643424 | J185: -5643424 | K185: 192954319 | L185: 196132864 | M185: 200869406 | V185: 198597743
A186: 2,1 - Cemeteries | C186: 1196014 | D186: 1061714 | E186: 0 | F186: 0 | G186: 0 | H186: 0 | I186: -318683 | J186: -318683 | K186: 743031 | L186: 1249836 | M186: 1281084 | V186: 1061714
A187: 2,2 - Libraries | C187: 9569694 | D187: 9392361 | E187: 0 | F187: 0 | G187: 0 | H187: 0 | I187: -394334 | J187: -394334 | K187: 8998027 | L187: 10000329 | M187: 10250334 | V187: 9392361
A188: 2,3 - Community Services | C188: 6624893 | D188: 8557532 | E188: 0 | F188: 0 | G188: 0 | H188: 0 | I188: -462405 | J188: -462405 | K188: 8095127 | L188: 6876102 | M188: 7021942 | V188: 8557532
A189: 2,4 - Town Administration | C189: 34603274 | D189: 33552516 | E189: 0 | F189: 0 | G189: 0 | H189: 0 | I189: -943810 | J189: -943810 | K189: 32608706 | L189: 36119193 | M189: 36999266 | V189: 33552516
A190: 2,5 - Sustainable Development | C190: 60000 | D190: 304234 | E190: 0 | F190: 0 | G190: 0 | H190: 0 | I190: -35875 | J190: -35875 | K190: 268359 | L190: 62700 | M190: 64267 | V190: 304234
A191: 2,6 - Fleet | C191: 5425599 | D191: 6131553 | E191: 0 | F191: 0 | G191: 0 | H191: 0 | I191: 25999 | J191: 25999 | K191: 6157552 | L191: 5669755 | M191: 5811507 | V191: 6131553
A192: 2,7 - Property Services | C192: 9060426 | D192: 7853569 | E192: 0 | F192: 0 | G192: 0 | H192: 0 | I192: -120448 | J192: -120448 | K192: 7733121 | L192: 9468141 | M192: 9704843 | V192: 7853569
A193: 2,8 - Sports and Culture | C193: 485834 | D193: 1620954 | E193: 0 | F193: 0 | G193: 0 | H193: 0 | I193: -925480 | J193: -925480 | K193: 695474 | L193: 507699 | M193: 520393 | V193: 1620954
A194: 2,9 - Roads and Stormwater | C194: 36830955 | D194: 35807113 | E194: 0 | F194: 0 | G194: 0 | H194: 0 | I194: -714739 | J194: -714739 | K194: 35092374 | L194: 38276251 | M194: 39115328 | V194: 35807113
A195: 2.10 - Parks and Gardens | C195: 10015873 | D195: 9079843 | E195: 0 | F195: 0 | G195: 0 | H195: 0 | I195: -107077 | J195: -107077 | K195: 8972766 | L195: 10466590 | M195: 10728254 | V195: 9079843
A196: =A29 -> 2.11 - Disaster Management | C196: 2812510 | D196: 3355579 | E196: 0 | F196: 0 | G196: 0 | H196: 0 | I196: -43076 | J196: -43076 | K196: 3312503 | L196: 2939071 | M196: 3012549 | V196: 3355579
A197: 2.12 - Pollution Control | C197: 60000 | D197: 60000 | E197: 0 | F197: 0 | G197: 0 | H197: 0 | I197: -60000 | J197: -60000 | K197: 0 | L197: 62700 | M197: 64267 | V197: 60000
A198: 2.13 - Nature Reserve | C198: 1104039 | D198: 941547 | E198: 0 | F198: 0 | G198: 0 | H198: 0 | I198: -163819 | J198: -163819 | K198: 777728 | L198: 1153722 | M198: 1182565 | V198: 941547
A199: 2.14 - Community Halls | C199: 1899504 | D199: 1761297 | E199: 0 | F199: 0 | G199: 0 | H199: 0 | I199: -153996 | J199: -153996 | K199: 1607301 | L199: 1984985 | M199: 2034609 | V199: 1761297
A200: 2.15 - Traffic Services | C200: 40477665 | D200: 51579764 | E200: 0 | F200: 0 | G200: 0 | H200: 0 | I200: -63888 | J200: -63888 | K200: 51515876 | L200: 42299169 | M200: 43356653 | V200: 51579764
A201: 2.16 - Law Enforcement | C201: 14791388 | D201: 14781512 | E201: 0 | F201: 0 | G201: 0 | H201: 0 | I201: -180784 | J201: -180784 | K201: 14600728 | L201: 15457003 | M201: 15843431 | V201: 14781512
... 154 more rows

Sheet B4-FinPerf RE
A1: =muni&" - "&_ADJ4&" - "&Date -> WC031 Theewaterskloof - Table B4 Adjustments Budget Financial Performance (revenue and expenditure) - 16 April 2026
A2: =desc -> Description | B2: =head27 -> Ref | C2: =Head2 -> Budget Year 2025/26 | L2: =Head10 -> Budget Year +1 2026/27 | M2: =Head11 -> Budget Year +2 2027/28
C3: =Head6 -> Original Budget | D3: =Head54 -> Prior Adjusted | E3: =Head51 -> Accum. Funds | F3: =Head52 -> Multi-year capital | G3: =Head53 -> Unfore. Unavoid. | H3: =Head55 -> Nat. or Prov. Govt | I3: =Head50 -> Other Adjusts. | J3: =Head56 -> Total Adjusts. | K3: =Head7 -> Adjusted Budget | L3: =Head7 -> Adjusted Budget | M3: =Head7 -> Adjusted Budget | V3: Adjusted Budget
D4: 3 | E4: 4 | F4: 5 | G4: 6 | H4: 7 | I4: 8 | J4: 9 | K4: 10 | V4: 10
A5: R thousands | B5: 1 | C5: A | D5: A1 | E5: B | F5: C | G5: D | H5: E | I5: F | J5: G | K5: H | V5: H
A6: Revenue By Source
A7: Exchange Revenue
A8: Service charges - Electricity | B8: 2 | C8: 170078035 | D8: 165981000 | E8: 0 | F8: 0 | G8: 0 | H8: 0 | I8: 0 | J8: 0 | K8: 165981000 | L8: 177731545 | M8: 182174832 | V8: 165981000
A9: Service charges - Water | B9: 2 | C9: 103719960 | D9: 115999000 | E9: 0 | F9: 0 | G9: 0 | H9: 0 | I9: 0 | J9: 0 | K9: 115999000 | L9: 108387359 | M9: 111097042 | V9: 115999000
A10: Service charges - Waste Water Management | B10: 2 | C10: 49741650 | D10: 49988000 | E10: 0 | F10: 0 | G10: 0 | H10: 0 | I10: 0 | J10: 0 | K10: 49988000 | L10: 51980024 | M10: 53279524 | V10: 49988000
A11: Service charges - Waste Management | B11: 2 | C11: 46548600 | D11: 46603000 | E11: 0 | F11: 0 | G11: 0 | H11: 0 | I11: 0 | J11: 0 | K11: 46603000 | L11: 48643287 | M11: 49859369 | V11: 46603000
A12: Sale of Goods and Rendering of Services | C12: 26616068 | D12: 18420628 | E12: 0 | F12: 0 | G12: 0 | H12: 0 | I12: -9532350 | J12: -9532350 | K12: 8888278 | L12: 27813792 | M12: 28509139 | V12: 18420628
A13: Agency services | C13: 8417407 | D13: 8417407 | E13: 0 | F13: 0 | G13: 0 | H13: 0 | I13: 0 | J13: 0 | K13: 8417407 | L13: 8796190 | M13: 9016094 | V13: 8417407
A14: Interest | C14: 0 | D14: 0 | E14: 0 | F14: 0 | G14: 0 | H14: 0 | I14: 0 | J14: 0 | K14: 0 | L14: 0 | M14: 0 | V14: 0
A15: Interest earned from Receivables | C15: 27661000 | D15: 26380000 | E15: 0 | F15: 0 | G15: 0 | H15: 0 | I15: 0 | J15: 0 | K15: 26380000 | L15: 28905745 | M15: 29628389 | V15: 26380000
A16: Interest earned from Current and Non Current Assets | C16: 6169069 | D16: 3300000 | E16: 0 | F16: 0 | G16: 0 | H16: 0 | I16: 0 | J16: 0 | K16: 3300000 | L16: 6446677 | M16: 6607844 | V16: 3300000
A17: Dividends | C17: 0 | D17: 0 | E17: 0 | F17: 0 | G17: 0 | H17: 0 | I17: 0 | J17: 0 | K17: 0 | L17: 0 | M17: 0 | V17: 0
A18: Rent on Land | C18: 0 | D18: 0 | E18: 0 | F18: 0 | G18: 0 | H18: 0 | I18: 0 | J18: 0 | K18: 0 | L18: 0 | M18: 0 | V18: 0
A19: Rental from Fixed Assets | C19: 2076000 | D19: 2076000 | E19: 0 | F19: 0 | G19: 0 | H19: 0 | I19: 0 | J19: 0 | K19: 2076000 | L19: 2169420 | M19: 2223656 | V19: 2076000
A20: Special rating levies | C20: 0 | D20: 0 | E20: 0 | F20: 0 | G20: 0 | H20: 0 | I20: 0 | J20: 0 | K20: 0 | L20: 0 | M20: 0 | V20: 0
A21: Licence and permits | C21: 76000 | D21: 76000 | E21: 0 | F21: 0 | G21: 0 | H21: 0 | I21: 0 | J21: 0 | K21: 76000 | L21: 79420 | M21: 81405 | V21: 76000
A22: Operational Revenue | C22: 4055241 | D22: 5427320 | E22: 0 | F22: 0 | G22: 0 | H22: 0 | I22: 0 | J22: 0 | K22: 5427320 | L22: 4237727 | M22: 4343670 | V22: 5427320
A23: Non-Exchange Revenue
A24: Property rates | B24: 2 | C24: 173070423 | D24: 170753000 | E24: 0 | F24: 0 | G24: 0 | H24: 0 | I24: 0 | J24: 0 | K24: 170753000 | L24: 180858592 | M24: 185380056 | V24: 170753000
A25: Surcharges and Taxes | C25: 0 | D25: 0 | E25: 0 | F25: 0 | G25: 0 | H25: 0 | I25: 0 | J25: 0 | K25: 0 | L25: 0 | M25: 0 | V25: 0
A26: Fines, penalties and forfeits | C26: 27812457 | D26: 43941424 | E26: 0 | F26: 0 | G26: 0 | H26: 0 | I26: 0 | J26: 0 | K26: 43941424 | L26: 27871383 | M26: 27905593 | V26: 43941424
A27: Licences or permits | C27: 0 | D27: 0 | E27: 0 | F27: 0 | G27: 0 | H27: 0 | I27: 0 | J27: 0 | K27: 0 | L27: 0 | M27: 0 | V27: 0
A28: Transfer and subsidies - Operational | C28: 182289609 | D28: 190425151 | E28: 0 | F28: 0 | G28: 0 | H28: 0 | I28: -4273558 | J28: -4273558 | K28: 186151593 | L28: 176434180.3 | M28: 184627286.5 | V28: 190425151
A29: Interest | C29: 4554000 | D29: 3679000 | E29: 0 | F29: 0 | G29: 0 | H29: 0 | I29: 0 | J29: 0 | K29: 3679000 | L29: 4758930 | M29: 4877903 | V29: 3679000
A30: Fuel Levy | C30: 0 | D30: 0 | E30: 0 | F30: 0 | G30: 0 | H30: 0 | I30: 0 | J30: 0 | K30: 0 | L30: 0 | M30: 0 | V30: 0
A31: Operational Revenue | C31: 12003410 | D31: 21447000 | E31: 0 | F31: 0 | G31: 0 | H31: 0 | I31: 0 | J31: 0 | K31: 21447000 | L31: 12543563 | M31: 12857153 | V31: 21447000
A32: Gains on disposal of Assets | C32: 114164 | D32: 114154 | E32: 0 | F32: 0 | G32: 0 | H32: 0 | I32: 0 | J32: 0 | K32: 114154 | L32: 119281 | M32: 122283 | V32: 114154
A33: Other Gains | C33: 5546000 | D33: 3840000 | E33: 0 | F33: 0 | G33: 0 | H33: 0 | I33: 0 | J33: 0 | K33: 3840000 | L33: 5795570 | M33: 5940459 | P33: =K33-K50 -> 159900 | V33: 3840000
A34: Discontinued Operations | C34: 0 | D34: 0 | E34: 0 | F34: 0 | G34: 0 | H34: 0 | I34: 0 | J34: 0 | K34: 0 | L34: 0 | M34: 0 | V34: 0
A35: Total Revenue (excluding capital transfers and contributions) | C35: 850549093 | D35: 876868084 | E35: 0 | F35: 0 | G35: 0 | H35: 0 | I35: -13805908 | J35: -13805908 | K35: 863062176 | L35: 873572685.3 | M35: 898531697.5 | V35: 876868084
A37: Expenditure By Type
A38: Employee related costs | C38: 315821111 | D38: 315416465 | E38: 0 | F38: 0 | G38: 0 | H38: 0 | I38: -1720653 | J38: -1720653 | K38: 313695812 | L38: 330033053 | M38: 338283901 | V38: 315416465
A39: Remuneration of councillors | C39: 15017379 | D39: 15017379 | E39: 0 | F39: 0 | G39: 0 | H39: 0 | I39: 0 | J39: 0 | K39: 15017379 | L39: 15693161 | M39: 16085489 | V39: 15017379
A40: Bulk purchases - electricity | C40: 139206740 | D40: 139206740 | E40: 0 | F40: 0 | G40: 0 | H40: 0 | I40: 0 | J40: 0 | K40: 139206740 | L40: 145471043 | M40: 149107819 | V40: 139206740
A41: Inventory consumed | C41: 41789812 | D41: 46956247 | E41: 0 | F41: 0 | G41: 0 | H41: 0 | I41: -1116283 | J41: -1116283 | K41: 45839964 | L41: 43670378 | M41: 44762156 | V41: 46956247
A42: Debt impairment | C42: 116591150 | D42: 110914000 | E42: 0 | F42: 0 | G42: 0 | H42: 0 | I42: 0 | J42: 0 | K42: 110914000 | L42: 121837752 | M42: 124883697 | V42: 110914000
A43: Depreciation and amortisation | C43: 35541317 | D43: 43847541 | E43: 0 | F43: 0 | G43: 0 | H43: 0 | I43: 0 | J43: 0 | K43: 43847541 | L43: 35541317 | M43: 35511317 | V43: 43847541
A44: Interest | C44: 47550598 | D44: 54458598 | E44: 0 | F44: 0 | G44: 0 | H44: 0 | I44: 0 | J44: 0 | K44: 54458598 | L44: 49690374 | M44: 50932634 | V44: 54458598
A45: Contracted services | C45: 60428978 | D45: 73142706 | E45: 0 | F45: 0 | G45: 0 | H45: 0 | I45: -9052429 | J45: -9052429 | K45: 64090277 | L45: 63148318 | M45: 64727051 | V45: 73142706
A46: Transfers and subsidies | C46: 12080001 | D46: 11549087 | E46: 0 | F46: 0 | G46: 0 | H46: 0 | I46: 0 | J46: 0 | K46: 11549087 | L46: 1 | M46: 1 | V46: 11549087
A47: Irrecoverable debts written off | C47: 5 | D47: 16650005 | E47: 0 | F47: 0 | G47: 0 | H47: 0 | I47: 0 | J47: 0 | K47: 16650005 | L47: 5 | M47: 5 | V47: 16650005
A48: Operational costs | C48: 94465699 | D48: 89261969 | E48: 0 | F48: 0 | G48: 0 | H48: 0 | I48: -2314084 | J48: -2314084 | K48: 86947885 | L48: 98716675 | M48: 101184598 | V48: 89261969
A49: Losses on disposal of Assets | C49: 64410 | D49: 64410 | E49: 0 | F49: 0 | G49: 0 | H49: 0 | I49: 0 | J49: 0 | K49: 64410 | L49: 67308 | M49: 68991 | V49: 64410
A50: Other Losses | C50: 5546000 | D50: 3680100 | E50: 0 | F50: 0 | G50: 0 | H50: 0 | I50: 0 | J50: 0 | K50: 3680100 | L50: 5795570 | M50: 5940459 | V50: 3680100
A51: Total Expenditure | C51: 884103200 | D51: 920165247 | E51: 0 | F51: 0 | G51: 0 | H51: 0 | I51: -14203449 | J51: -14203449 | K51: 905961798 | L51: 909664955 | M51: 931488118 | V51: 920165247
A53: Surplus/(Deficit) | C53: -33554107 | D53: -43297163 | E53: 0 | F53: 0 | G53: 0 | H53: 0 | I53: 397541 | J53: 397541 | K53: -42899622 | L53: -36092269.7 | M53: -32956420.52 | V53: -43297163
A54: Transfers and subsidies - capital (monetary allocations) | C54: 72237391 | D54: 35973553 | E54: 0 | F54: 0 | G54: 0 | H54: 0 | I54: -3939732 | J54: -3939732 | K54: 32033821 | L54: 142919999.7 | M54: 146579999.5 | O54: =K54-'B5-Capex'!K72 -> 0 | V54: 35973553
A55: Transfers and subsidies - capital (in-kind - all) | C55: 50000 | D55: 80136000 | E55: 0 | F55: 0 | G55: 0 | H55: 0 | I55: 0 | J55: 0 | K55: 80136000 | L55: 0 | M55: 0 | V55: 80136000
A56: Surplus/(Deficit) before taxation | C56: 38733284 | D56: 72812390 | E56: 0 | F56: 0 | G56: 0 | H56: 0 | I56: -3542191 | J56: -3542191 | K56: 69270199 | L56: 106827730 | M56: 113623579 | V56: 72812390
A57: Income Tax | C57: 0 | D57: 0 | E57: 0 | F57: 0 | G57: 0 | H57: 0 | I57: 0 | J57: 0 | K57: 0 | L57: 0 | M57: 0 | V57: 0
A58: Surplus/(Deficit) after taxation | C58: 38733284 | D58: 72812390 | E58: 0 | F58: 0 | G58: 0 | H58: 0 | I58: -3542191 | J58: -3542191 | K58: 69270199 | L58: 106827730 | M58: 113623579 | V58: 72812390
A59: Share of Surplus/Deficit attributable to Joint Venture
A60: Share of Surplus/Deficit attributable to Minorities | C60: 0 | D60: 0 | E60: 0 | F60: 0 | G60: 0 | H60: 0 | I60: 0 | J60: 0 | K60: 0 | L60: 0 | M60: 0 | V60: 0
A61: Surplus/(Deficit) attributable to municipality | C61: 38733284 | D61: 72812390 | E61: 0 | F61: 0 | G61: 0 | H61: 0 | I61: -3542191 | J61: -3542191 | K61: 69270199 | L61: 106827730 | M61: 113623579 | V61: 72812390
A62: Share of Surplus/Deficit attributable to Associate | C62: 0 | D62: 0 | E62: 0 | F62: 0 | G62: 0 | H62: 0 | I62: 0 | J62: 0 | K62: 0 | L62: 0 | M62: 0 | V62: 0
A63: Intercompany/Parent subsidiary transactions | C63: 0 | D63: 0 | E63: 0 | F63: 0 | G63: 0 | H63: 0 | I63: 0 | J63: 0 | K63: 0 | L63: 0 | M63: 0 | V63: 0
A64: Surplus/ (Deficit) for the year | B64: 1 | C64: 38733284 | D64: 72812390 | E64: 0 | F64: 0 | G64: 0 | H64: 0 | I64: -3542191 | J64: -3542191 | K64: 69270199 | L64: 106827730 | M64: 113623579 | V64: 72812390
A65: =head27a -> References
A66: 1. Classifications are revenue sources and expenditure type | K66: =SUM(#REF!)/2 ->  | L66: =SUM(#REF!) ->  | M66: =SUM(#REF!) ->  | V66: -72812390
A67: 2. Detail to be provided in Table SB1 | K67: =K66+K64 ->  | L67: =L66+L64 ->  | M67: =M66+M64 ->  | V67: 0
A68: 3. Only complete if a previous adjusted budget has been approved in the same financial year. Reflect most recent adjusted budget.
A69: 4. Additional cash-backed accumulated funds/unspent funds (MFMA section 18(1)(b) and section 28(2)(e)) identified after the Original Budget approved and after annual financial statements audited (note: only where underspending could not reasonably have been foreseen)
A70: 5. Increases of funds approved under MFMA section 31
A71: 6. Adjustments approved in accordance with MFMA section 29
A72: 7. Adjustments to transfers from National or Provincial Government
A73: 8. Adjusts. = 'Other' Adjustments proposed to be approved; including revenue under-collection (MFMA section 28(2)(a)); additional revenue appropriation on existing programmes (section 28(2))(b); projected savings (section 28(2)(d)); error correction (section 28(2)(f))
A74: 9. G = B + C + D + E + F
A75: 10. Adjusted Budget H = (A or A1/2 etc) + G
A76: 11 Operational revenue is a summary of imatereial item that are on the chart not on the face of the A4 due to imateriality.

Sheet B5-Capex
A1: =muni&" - "&_ADJ5&" - "&Date -> WC031 Theewaterskloof - Table B5 Adjustments Capital Expenditure Budget by vote and funding - 16 April 2026
A2: =desc -> Description | B2: =head27 -> Ref | C2: =Head2 -> Budget Year 2025/26 | L2: =Head10 -> Budget Year +1 2026/27 | M2: =Head11 -> Budget Year +2 2027/28
C3: =Head6 -> Original Budget | D3: =Head54 -> Prior Adjusted | E3: =Head51 -> Accum. Funds | F3: =Head52 -> Multi-year capital | G3: =Head53 -> Unfore. Unavoid. | H3: =Head55 -> Nat. or Prov. Govt | I3: =Head50 -> Other Adjusts. | J3: =Head56 -> Total Adjusts. | K3: =Head7 -> Adjusted Budget | L3: =Head7 -> Adjusted Budget | M3: =Head7 -> Adjusted Budget | V3: Adjusted Budget
D4: 5 | E4: 6 | F4: 7 | G4: 8 | H4: 9 | I4: 10 | J4: 11 | K4: 12 | V4: 12
A5: R thousands | C5: A | D5: A1 | E5: B | F5: C | G5: D | H5: E | I5: F | J5: G | K5: H | V5: H
A6: Capital expenditure - Vote
A7: Multi-year expenditure to be adjusted | B7: 2
A8: =B5B!A8 -> Vote 1 - Directorate Finance | C8: 0 | D8: 0 | E8: 0 | F8: 0 | G8: 0 | H8: 0 | I8: 0 | J8: 0 | K8: 0 | L8: 0 | M8: 0 | V8: 0
A9: =B5B!A19 -> Vote 2 - Community Services | C9: 0 | D9: 574966.5 | E9: 0 | F9: 0 | G9: 0 | H9: 0 | I9: 302210.5 | J9: 302210.5 | K9: 877177 | L9: 0 | M9: 0 | V9: 574966.5
A10: =B5B!A38 -> Vote 3 - Corporate services | C10: 0 | D10: 0 | E10: 0 | F10: 0 | G10: 0 | H10: 0 | I10: 0 | J10: 0 | K10: 0 | L10: 0 | M10: 0 | V10: 0
A11: =B5B!A50 -> Vote 4 - Electricity | C11: 0 | D11: 1277437 | E11: 0 | F11: 0 | G11: 0 | H11: 0 | I11: -1277437 | J11: -1277437 | K11: 0 | L11: 6000000 | M11: 6271000 | V11: 1277437
A12: =B5B!A61 -> Vote 5 - Economic Development and Planning | C12: 37079000 | D12: 44700000 | E12: 0 | F12: 0 | G12: 0 | H12: 0 | I12: 617742 | J12: 617742 | K12: 45317742 | L12: 71380000 | M12: 110200000 | V12: 44700000
A13: =B5B!A72 -> Vote 6 - Office of the Municipal Manager | C13: 0 | D13: 0 | E13: 0 | F13: 0 | G13: 0 | H13: 0 | I13: 0 | J13: 0 | K13: 0 | L13: 0 | M13: 0 | V13: 0
A14: =B5B!A83 -> Vote 7 - Housing | C14: 0 | D14: 0 | E14: 0 | F14: 0 | G14: 0 | H14: 0 | I14: 0 | J14: 0 | K14: 0 | L14: 0 | M14: 0 | V14: 0
A15: =B5B!A94 -> Vote 8 - Technical and Infrastructure Implementation Services | C15: 0 | D15: 0 | E15: 0 | F15: 0 | G15: 0 | H15: 0 | I15: 0 | J15: 0 | K15: 0 | L15: 0 | M15: 0 | V15: 0
A16: =B5B!A105 -> Vote 9 - Public safety | C16: 0 | D16: 0 | E16: 0 | F16: 0 | G16: 0 | H16: 0 | I16: 0 | J16: 0 | K16: 0 | L16: 0 | M16: 0 | V16: 0
A17: =B5B!A116 -> Vote 10 - Road transport | C17: 0 | D17: 0 | E17: 0 | F17: 0 | G17: 0 | H17: 0 | I17: 0 | J17: 0 | K17: 0 | L17: 0 | M17: 0 | V17: 0
A18: =B5B!A127 -> Vote 11 - Sport and recreation | C18: 0 | D18: 0 | E18: 0 | F18: 0 | G18: 0 | H18: 0 | I18: 0 | J18: 0 | K18: 0 | L18: 0 | M18: 0 | V18: 0
A19: =B5B!A138 -> Vote 12 - Waste management | C19: 0 | D19: 0 | E19: 0 | F19: 0 | G19: 0 | H19: 0 | I19: 0 | J19: 0 | K19: 0 | L19: 0 | M19: 0 | V19: 0
A20: =B5B!A149 -> Vote 13 - Waste water management | C20: 13594457 | D20: 16413731.81 | E20: 0 | F20: 0 | G20: 0 | H20: 0 | I20: 0.1913043484 | J20: 0.1913043484 | K20: 16413732 | L20: 21652722.3 | M20: 3608696 | V20: 16413731.81
A21: =B5B!A160 -> Vote 14 - Water | C21: 0 | D21: 1300000 | E21: 0 | F21: 0 | G21: 0 | H21: 0 | I21: 0 | J21: 0 | K21: 1300000 | L21: 0 | M21: 5351274.522 | V21: 1300000
A22: =B5B!A171 -> Vote 15 - Directorate Development and Community Services | C22: 0 | D22: 0 | E22: 0 | F22: 0 | G22: 0 | H22: 0 | I22: 0 | J22: 0 | K22: 0 | L22: 0 | M22: 0 | V22: 0
A23: Capital multi-year expenditure sub-total | B23: 3 | C23: 50673457 | D23: 64266135.31 | E23: 0 | F23: 0 | G23: 0 | H23: 0 | I23: -357484.3087 | J23: -357484.3087 | K23: 63908651 | L23: 99032722.3 | M23: 125430970.5 | V23: 64266135.31
A25: Single-year expenditure to be adjusted | B25: 2
A26: =B5B!A203 -> Vote 1 - Directorate Finance | C26: 110000 | D26: 2650000 | E26: 0 | F26: 0 | G26: 0 | H26: 0 | I26: -88434 | J26: -88434 | K26: 2561566 | L26: 0 | M26: 0 | V26: 2650000
A27: =B5B!A214 -> Vote 2 - Community Services | C27: 6400000 | D27: 5000362 | E27: 0 | F27: 0 | G27: 0 | H27: 0 | I27: 0 | J27: 0 | K27: 5000362 | L27: 0 | M27: 0 | V27: 5000362
A28: =B5B!A233 -> Vote 3 - Corporate services | C28: 364000 | D28: 514000 | E28: 0 | F28: 0 | G28: 0 | H28: 0 | I28: -44000 | J28: -44000 | K28: 470000 | L28: 0 | M28: 0 | V28: 514000
A29: =B5B!A245 -> Vote 4 - Electricity | C29: 0 | D29: 0 | E29: 0 | F29: 0 | G29: 0 | H29: 0 | I29: 0 | J29: 0 | K29: 0 | L29: 0 | M29: 0 | V29: 0
A30: =B5B!A256 -> Vote 5 - Economic Development and Planning | C30: 8209340.074 | D30: 34908752 | E30: 0 | F30: 0 | G30: 0 | H30: 0 | I30: 0 | J30: 0 | K30: 34908752 | L30: 36640000 | M30: 0 | V30: 34908752
A31: =B5B!A267 -> Vote 6 - Office of the Municipal Manager | C31: 0 | D31: 0 | E31: 0 | F31: 0 | G31: 0 | H31: 0 | I31: 0 | J31: 0 | K31: 0 | L31: 0 | M31: 0 | V31: 0
A32: =B5B!A278 -> Vote 7 - Housing | C32: 0 | D32: 0 | E32: 0 | F32: 0 | G32: 0 | H32: 0 | I32: 0 | J32: 0 | K32: 0 | L32: 0 | M32: 0 | V32: 0
A33: =B5B!A289 -> Vote 8 - Technical and Infrastructure Implementation Services | C33: 0 | D33: 1550000 | E33: 0 | F33: 0 | G33: 0 | H33: 0 | I33: -1100000 | J33: -1100000 | K33: 450000 | L33: 0 | M33: 0 | V33: 1550000
A34: =B5B!A300 -> Vote 9 - Public safety | C34: 0 | D34: 0 | E34: 0 | F34: 0 | G34: 0 | H34: 0 | I34: 0 | J34: 0 | K34: 0 | L34: 0 | M34: 0 | V34: 0
A35: =B5B!A311 -> Vote 10 - Road transport | C35: 0 | D35: 0 | E35: 0 | F35: 0 | G35: 0 | H35: 0 | I35: 0 | J35: 0 | K35: 0 | L35: 0 | M35: 0 | V35: 0
A36: =B5B!A322 -> Vote 11 - Sport and recreation | C36: 0 | D36: 0 | E36: 0 | F36: 0 | G36: 0 | H36: 0 | I36: 0 | J36: 0 | K36: 0 | L36: 0 | M36: 0 | V36: 0
A37: =B5B!A333 -> Vote 12 - Waste management | C37: 0 | D37: 0 | E37: 0 | F37: 0 | G37: 0 | H37: 0 | I37: 0 | J37: 0 | K37: 0 | L37: 0 | M37: 0 | V37: 0
A38: =B5B!A344 -> Vote 13 - Waste water management | C38: 10792571.95 | D38: 9997609.948 | E38: 0 | F38: 0 | G38: 0 | H38: 0 | I38: -2662294.948 | J38: -2662294.948 | K38: 7335315 | L38: 7810969.046 | M38: 7869318.478 | V38: 9997609.948
A39: =B5B!A355 -> Vote 14 - Water | C39: 12280970.7 | D39: 3588886.96 | E39: 0 | F39: 0 | G39: 0 | H39: 0 | I39: 0.04000000004 | J39: 0.04000000004 | K39: 3588887 | L39: 8224221.65 | M39: 18736711 | V39: 3588886.96
A40: =B5B!A366 -> Vote 15 - Directorate Development and Community Services | C40: 0 | D40: 0 | E40: 0 | F40: 0 | G40: 0 | H40: 0 | I40: 0 | J40: 0 | K40: 0 | L40: 0 | M40: 0 | V40: 0
A41: Capital single-year expenditure sub-total | C41: 38156882.72 | D41: 58209610.91 | E41: 0 | F41: 0 | G41: 0 | H41: 0 | I41: -3894728.908 | J41: -3894728.908 | K41: 54314882 | L41: 52675190.7 | M41: 26606029.48 | V41: 58209610.91
A42: Total Capital Expenditure - Vote | C42: 88830339.72 | D42: 122475746.2 | E42: 0 | F42: 0 | G42: 0 | H42: 0 | I42: -4252213.217 | J42: -4252213.217 | K42: 118223533 | L42: 151707913 | M42: 152037000 | N42: 114414752.1 | V42: 122475746.2
A44: Capital Expenditure - Functional
A45: Governance and administration | C45: 6874000 | D45: 7714362 | E45: 0 | F45: 0 | G45: 0 | H45: 0 | I45: -132434 | J45: -132434 | K45: 7581928 | L45: 0 | M45: 0 | V45: 7714362
A46: Executive and council | C46: 0 | D46: 0 | E46: 0 | F46: 0 | G46: 0 | H46: 0 | I46: 0 | J46: 0 | K46: 0 | L46: 0 | M46: 0 | V46: 0
A47: Finance and administration | C47: 6874000 | D47: 7714362 | E47: 0 | F47: 0 | G47: 0 | H47: 0 | I47: -132434 | J47: -132434 | K47: 7581928 | L47: 0 | M47: 0 | V47: 7714362
A48: Internal audit | C48: 0 | D48: 0 | E48: 0 | F48: 0 | G48: 0 | H48: 0 | I48: 0 | J48: 0 | K48: 0 | L48: 0 | M48: 0 | V48: 0
A49: Community and public safety | C49: 45288340.07 | D49: 79699306.5 | E49: 0 | F49: 0 | G49: 0 | H49: 0 | I49: 919952.5 | J49: 919952.5 | K49: 80619259 | L49: 108020000 | M49: 110200000 | V49: 79699306.5
A50: Community and social services | C50: 0 | D50: 400000 | E50: 0 | F50: 0 | G50: 0 | H50: 0 | I50: 0 | J50: 0 | K50: 400000 | L50: 0 | M50: 0 | V50: 400000
A51: Sport and recreation | C51: 0 | D51: 574966.5 | E51: 0 | F51: 0 | G51: 0 | H51: 0 | I51: 302210.5 | J51: 302210.5 | K51: 877177 | L51: 0 | M51: 0 | V51: 574966.5
A52: Public safety | C52: 0 | D52: 0 | E52: 0 | F52: 0 | G52: 0 | H52: 0 | I52: 0 | J52: 0 | K52: 0 | L52: 0 | M52: 0 | V52: 0
A53: Housing | C53: 45288340.07 | D53: 78724340 | E53: 0 | F53: 0 | G53: 0 | H53: 0 | I53: 617742 | J53: 617742 | K53: 79342082 | L53: 108020000 | M53: 110200000 | V53: 78724340
A54: Health | C54: 0 | D54: 0 | E54: 0 | F54: 0 | G54: 0 | H54: 0 | I54: 0 | J54: 0 | K54: 0 | L54: 0 | M54: 0 | V54: 0
A55: Economic and environmental services | C55: 0 | D55: 2484412 | E55: 0 | F55: 0 | G55: 0 | H55: 0 | I55: -1100000 | J55: -1100000 | K55: 1384412 | L55: 0 | M55: 0 | V55: 2484412
A56: Planning and development | C56: 0 | D56: 2484412 | E56: 0 | F56: 0 | G56: 0 | H56: 0 | I56: -1100000 | J56: -1100000 | K56: 1384412 | L56: 0 | M56: 0 | V56: 2484412
A57: Road transport | C57: 0 | D57: 0 | E57: 0 | F57: 0 | G57: 0 | H57: 0 | I57: 0 | J57: 0 | K57: 0 | L57: 0 | M57: 0 | V57: 0
A58: Environmental protection | C58: 0 | D58: 0 | E58: 0 | F58: 0 | G58: 0 | H58: 0 | I58: 0 | J58: 0 | K58: 0 | L58: 0 | M58: 0 | V58: 0
A59: Trading services | C59: 36667999.65 | D59: 32577665.72 | E59: 0 | F59: 0 | G59: 0 | H59: 0 | I59: -3939731.717 | J59: -3939731.717 | K59: 28637934 | L59: 43687913 | M59: 41837000 | V59: 32577665.72
A60: Energy sources | C60: 0 | D60: 1277437 | E60: 0 | F60: 0 | G60: 0 | H60: 0 | I60: -1277437 | J60: -1277437 | K60: 0 | L60: 6000000 | M60: 6271000 | V60: 1277437
A61: Water management | C61: 12280970.7 | D61: 4888886.96 | E61: 0 | F61: 0 | G61: 0 | H61: 0 | I61: 0.04000000004 | J61: 0.04000000004 | K61: 4888887 | L61: 8224221.65 | M61: 24087985.52 | V61: 4888886.96
A62: Waste water management | C62: 24387028.95 | D62: 26411341.76 | E62: 0 | F62: 0 | G62: 0 | H62: 0 | I62: -2662294.757 | J62: -2662294.757 | K62: 23749047 | L62: 29463691.35 | M62: 11478014.48 | V62: 26411341.76
A63: Waste management | C63: 0 | D63: 0 | E63: 0 | F63: 0 | G63: 0 | H63: 0 | I63: 0 | J63: 0 | K63: 0 | L63: 0 | M63: 0 | V63: 0
A64: Other | C64: 0 | D64: 0 | E64: 0 | F64: 0 | G64: 0 | H64: 0 | I64: 0 | J64: 0 | K64: 0 | L64: 0 | M64: 0 | V64: 0
A65: Total Capital Expenditure - Functional | B65: 3 | C65: 88830339.72 | D65: 122475746.2 | E65: 0 | F65: 0 | G65: 0 | H65: 0 | I65: -4252213.217 | J65: -4252213.217 | K65: 118223533 | L65: 151707913 | M65: 152037000 | V65: 122475746.2
A67: Funded by:
A68: National Government | C68: 27537390.95 | D68: 32139140.76 | E68: 0 | F68: 0 | G68: 0 | H68: 0 | I68: -3939731.757 | J68: -3939731.757 | K68: 28199409 | L68: 34899999.7 | M68: 36379999.52 | V68: 32139140.76
A69: Provincial Government | C69: 44700000 | D69: 3834412 | E69: 0 | F69: 0 | G69: 0 | H69: 0 | I69: 0 | J69: 0 | K69: 3834412 | L69: 108020000 | M69: 110200000 | V69: 3834412
A70: District Municipality | C70: 0 | D70: 0 | E70: 0 | F70: 0 | G70: 0 | H70: 0 | I70: 0 | J70: 0 | K70: 0 | L70: 0 | M70: 0 | V70: 0
A71: Transfers and subsidies - capital (monetary allocations) (Nat / Prov Departm Agencies, Households, Non-profit Institutions, Private Enterprises, Public Corporatons, Higher Educ Institutions) | C71: 0 | D71: 0 | E71: 0 | F71: 0 | G71: 0 | H71: 0 | I71: 0 | J71: 0 | K71: 0 | L71: 0 | M71: 0 | V71: 0
A72: Transfers recognised - capital | B72: 4 | C72: 72237390.95 | D72: 35973552.76 | E72: 0 | F72: 0 | G72: 0 | H72: 0 | I72: -3939731.757 | J72: -3939731.757 | K72: 32033821 | L72: 142919999.7 | M72: 146579999.5 | V72: 35973552.76
A74: Borrowing | C74: 10000000 | D74: 1e-08 | E74: 0 | F74: 0 | G74: 0 | H74: 0 | I74: -1e-08 | J74: -1e-08 | K74: 0 | L74: 0 | M74: 0 | V74: 0
A75: Internally generated funds | C75: 6592948.77 | D75: 86502193.46 | E75: 0 | F75: 0 | G75: 0 | H75: 0 | I75: -312481.46 | J75: -312481.46 | K75: 86189712 | L75: 8787913.304 | M75: 5457000.478 | V75: 86502193.46
A76: Total Capital Funding | C76: 88830339.72 | D76: 122475746.2 | E76: 0 | F76: 0 | G76: 0 | H76: 0 | I76: -4252213.217 | J76: -4252213.217 | K76: 118223533 | L76: 151707913 | M76: 152037000 | V76: 122475746.2
A77: =head27a -> References | C77: 88830339.72 | D77: 122475746.2 | E77: 0 | F77: 0 | G77: 0 | H77: 0 | I77: -4252213.217 | J77: -4252213.217 | K77: 118223533 | L77: 151707913 | M77: 152037000
A78: 1. Municipalities may choose to appropriate for capital expenditure for three years or for one year (if one year appropriation projected expenditure required for yr2 and yr3). | K78: =#REF! ->  | V78: 122475746.2
A80: 3. Capital expenditure by standard classification must reconcile to the appropriations by vote
A81: 4. Must reconcile to supporting table SB7 and to Adjustments Budget Financial Performance (revenue and expenditure)
A82: 5. Only complete if a previous adjusted budget has been approved in the same financial year. Reflect most recent adjusted budget.
A83: 6. Additional cash-backed accumulated funds/unspent funds (MFMA section 18(1)(b) and section 28(2)(e)) identified after the Original Budget approved and after annual financial statements audited (note: only where underspending could not reasonably have been foreseen)
A84: 7. Increases of funds approved under MFMA section 31
A85: 8. Adjustments approved in accordance with MFMA section 29
A86: 9. Adjustments to transfers from National or Provincial Government | K86: =K76-K78 ->  | V86: 0
A87: 10. Adjusts. = 'Other' Adjustments proposed to be approved; including revenue under-collection (MFMA section 28(2)(a)); additional revenue appropriation on existing programmes (section 28(2))(b); projected savings (section 28(2)(d)); error correction (section 28(2)(f))
A88: 11. G = B + C + D + E + F
A89: 12. Adjusted Budget H = (A or A1/2 etc) + G
A91: check balance | C91: =C65-C76 -> 0 | D91: =D65-D76 -> 0 | E91: =E65-E76 -> 0 | H91: =H65-H76 -> 0 | I91: 1.769512892e-08 | J91: 1.769512892e-08 | K91: 0 | L91: 0 | M91: 0 | V91: 0

Sheet B5B
A1: =muni&" - "&_ADJ5&" - B"&" - "&Date -> WC031 Theewaterskloof - Table B5 Adjustments Capital Expenditure Budget by vote and funding - B - 16 April 2026
A2: =Vdesc -> Vote Description | B2: =head27 -> Ref | C2: =Head2 -> Budget Year 2025/26 | L2: =Head10 -> Budget Year +1 2026/27 | M2: =Head11 -> Budget Year +2 2027/28
C3: =Head6 -> Original Budget | D3: =Head54 -> Prior Adjusted | E3: =Head51 -> Accum. Funds | F3: =Head52 -> Multi-year capital | G3: =Head53 -> Unfore. Unavoid. | H3: =Head55 -> Nat. or Prov. Govt | I3: =Head50 -> Other Adjusts. | J3: =Head56 -> Total Adjusts. | K3: =Head7 -> Adjusted Budget | L3: =Head7 -> Adjusted Budget | M3: =Head7 -> Adjusted Budget | V3: Adjusted Budget
A4: [Insert departmental structure etc] | D4: 3 | E4: 4 | F4: 5 | G4: 6 | H4: 7 | I4: 8 | J4: 9 | K4: 10 | V4: 10
A5: R thousands | C5: A | D5: A1 | E5: B | F5: C | G5: D | H5: E | I5: F | J5: G | K5: H | V5: H
A6: Capital expenditure - Municipal Vote
A7: Multi-year expenditure appropriation | B7: 2
A8: ='Org structure'!A2 -> Vote 1 - Directorate Finance | C8: 0 | D8: 0 | E8: 0 | F8: 0 | G8: 0 | H8: 0 | I8: 0 | J8: 0 | K8: 0 | L8: 0 | M8: 0 | V8: 0
A9: ='Org structure'!E3 -> 1,1 - Asset Management | C9: 0 | D9: 0 | E9: 0 | F9: 0 | G9: 0 | H9: 0 | I9: 0 | J9: 0 | K9: 0 | L9: 0 | M9: 0 | V9: 0
A10: ='Org structure'!E4 -> 1,2 - Budget Office | C10: 0 | D10: 0 | E10: 0 | F10: 0 | G10: 0 | H10: 0 | I10: 0 | J10: 0 | K10: 0 | L10: 0 | M10: 0 | V10: 0
A11: ='Org structure'!E5 -> 1,3 - Financial Services | C11: 0 | D11: 0 | E11: 0 | F11: 0 | G11: 0 | H11: 0 | I11: 0 | J11: 0 | K11: 0 | L11: 0 | M11: 0 | V11: 0
A12: ='Org structure'!E6 -> 1,4 - Internal Audit | C12: 0 | D12: 0 | E12: 0 | F12: 0 | G12: 0 | H12: 0 | I12: 0 | J12: 0 | K12: 0 | L12: 0 | M12: 0 | V12: 0
A13: ='Org structure'!E7 -> 1,5 - Property Rates | C13: 0 | D13: 0 | E13: 0 | F13: 0 | G13: 0 | H13: 0 | I13: 0 | J13: 0 | K13: 0 | L13: 0 | M13: 0 | V13: 0
A14: ='Org structure'!E8 -> 1,6 - Risk Management | C14: 0 | D14: 0 | E14: 0 | F14: 0 | G14: 0 | H14: 0 | I14: 0 | J14: 0 | K14: 0 | L14: 0 | M14: 0 | V14: 0
A15: ='Org structure'!E9 -> 1,7 - SCM | C15: 0 | D15: 0 | E15: 0 | F15: 0 | G15: 0 | H15: 0 | I15: 0 | J15: 0 | K15: 0 | L15: 0 | M15: 0 | V15: 0
A16: ='Org structure'!E10 -> 1,8 - Valuation Services | C16: 0 | D16: 0 | E16: 0 | F16: 0 | G16: 0 | H16: 0 | I16: 0 | J16: 0 | K16: 0 | L16: 0 | M16: 0 | V16: 0
A17: ='Org structure'!E11 -> 1,9 - [Name of sub-vote] | C17: 0 | D17: 0 | E17: 0 | F17: 0 | G17: 0 | H17: 0 | I17: 0 | J17: 0 | K17: 0 | L17: 0 | M17: 0 | V17: 0
A18: ='Org structure'!E12 -> 1.10 - [Name of sub-vote] | C18: 0 | D18: 0 | E18: 0 | F18: 0 | G18: 0 | H18: 0 | I18: 0 | J18: 0 | K18: 0 | L18: 0 | M18: 0 | V18: 0
A19: ='Org structure'!A3 -> Vote 2 - Community Services | C19: 0 | D19: 574966.5 | E19: 0 | F19: 0 | G19: 0 | H19: 0 | I19: 302210.5 | J19: 302210.5 | K19: 877177 | L19: 0 | M19: 0 | V19: 574966.5
A20: ='Org structure'!E14 -> 2,1 - Cemeteries | C20: 0 | D20: 0 | E20: 0 | F20: 0 | G20: 0 | H20: 0 | I20: 0 | J20: 0 | K20: 0 | L20: 0 | M20: 0 | V20: 0
A21: ='Org structure'!E15 -> 2,2 - Libraries | C21: 0 | D21: 0 | E21: 0 | F21: 0 | G21: 0 | H21: 0 | I21: 0 | J21: 0 | K21: 0 | L21: 0 | M21: 0 | V21: 0
A22: ='Org structure'!E16 -> 2,3 - Community Services | C22: 0 | D22: 0 | E22: 0 | F22: 0 | G22: 0 | H22: 0 | I22: 0 | J22: 0 | K22: 0 | L22: 0 | M22: 0 | V22: 0
A23: ='Org structure'!E17 -> 2,4 - Town Administration | C23: 0 | D23: 0 | E23: 0 | F23: 0 | G23: 0 | H23: 0 | I23: 0 | J23: 0 | K23: 0 | L23: 0 | M23: 0 | V23: 0
A24: ='Org structure'!E18 -> 2,5 - Sustainable Development | C24: 0 | D24: 0 | E24: 0 | F24: 0 | G24: 0 | H24: 0 | I24: 0 | J24: 0 | K24: 0 | L24: 0 | M24: 0 | V24: 0
A25: ='Org structure'!E19 -> 2,6 - Fleet | C25: 0 | D25: 0 | E25: 0 | F25: 0 | G25: 0 | H25: 0 | I25: 0 | J25: 0 | K25: 0 | L25: 0 | M25: 0 | V25: 0
A26: ='Org structure'!E20 -> 2,7 - Property Services | C26: 0 | D26: 0 | E26: 0 | F26: 0 | G26: 0 | H26: 0 | I26: 0 | J26: 0 | K26: 0 | L26: 0 | M26: 0 | V26: 0
A27: ='Org structure'!E21 -> 2,8 - Sports and Culture | C27: 0 | D27: 574966.5 | E27: 0 | F27: 0 | G27: 0 | H27: 0 | I27: 302210.5 | J27: 302210.5 | K27: 877177 | L27: 0 | M27: 0 | V27: 574966.5
A28: ='Org structure'!E22 -> 2,9 - Roads and Stormwater | C28: 0 | D28: 0 | E28: 0 | F28: 0 | G28: 0 | H28: 0 | I28: 0 | J28: 0 | K28: 0 | L28: 0 | M28: 0 | V28: 0
A29: ='Org structure'!E23 -> 2.10 - Parks and Gardens | C29: 0 | D29: 0 | E29: 0 | F29: 0 | G29: 0 | H29: 0 | I29: 0 | J29: 0 | K29: 0 | L29: 0 | M29: 0 | V29: 0
A30: ='Org structure'!E24 -> 2.11 - Disaster Management | C30: 0 | D30: 0 | E30: 0 | F30: 0 | G30: 0 | H30: 0 | I30: 0 | J30: 0 | K30: 0 | L30: 0 | M30: 0 | V30: 0
A31: ='Org structure'!E25 -> 2.12 - Pollution Control | C31: 0 | D31: 0 | E31: 0 | F31: 0 | G31: 0 | H31: 0 | I31: 0 | J31: 0 | K31: 0 | L31: 0 | M31: 0 | V31: 0
A32: ='Org structure'!E26 -> 2.13 - Nature Reserve | C32: 0 | D32: 0 | E32: 0 | F32: 0 | G32: 0 | H32: 0 | I32: 0 | J32: 0 | K32: 0 | L32: 0 | M32: 0 | V32: 0
A33: ='Org structure'!E27 -> 2.14 - Community Halls | C33: 0 | D33: 0 | E33: 0 | F33: 0 | G33: 0 | H33: 0 | I33: 0 | J33: 0 | K33: 0 | L33: 0 | M33: 0 | V33: 0
A34: ='Org structure'!E28 -> 2.15 - Traffic Services | C34: 0 | D34: 0 | E34: 0 | F34: 0 | G34: 0 | H34: 0 | I34: 0 | J34: 0 | K34: 0 | L34: 0 | M34: 0 | V34: 0
A35: ='Org structure'!E29 -> 2.16 - Law Enforcement | C35: 0 | D35: 0 | E35: 0 | F35: 0 | G35: 0 | H35: 0 | I35: 0 | J35: 0 | K35: 0 | L35: 0 | M35: 0 | V35: 0
A36: ='Org structure'!E30 -> 2.17 - Motor Licensing and Testing Station | C36: 0 | D36: 0 | E36: 0 | F36: 0 | G36: 0 | H36: 0 | I36: 0 | J36: 0 | K36: 0 | L36: 0 | M36: 0 | V36: 0
A37: ='Org structure'!E31 -> 2.18 - Animal Control and Pounds | C37: 0 | D37: 0 | E37: 0 | F37: 0 | G37: 0 | H37: 0 | I37: 0 | J37: 0 | K37: 0 | L37: 0 | M37: 0 | V37: 0
A38: ='Org structure'!A4 -> Vote 3 - Corporate services | C38: 0 | D38: 0 | E38: 0 | F38: 0 | G38: 0 | H38: 0 | I38: 0 | J38: 0 | K38: 0 | L38: 0 | M38: 0 | V38: 0
A39: ='Org structure'!E33 -> 3,1 - Administration: Planning | C39: 0 | D39: 0 | E39: 0 | F39: 0 | G39: 0 | H39: 0 | I39: 0 | J39: 0 | K39: 0 | L39: 0 | M39: 0 | V39: 0
A40: ='Org structure'!E34 -> 3,2 - Administration: Technical Services | C40: 0 | D40: 0 | E40: 0 | F40: 0 | G40: 0 | H40: 0 | I40: 0 | J40: 0 | K40: 0 | L40: 0 | M40: 0 | V40: 0
A41: ='Org structure'!E35 -> 3,3 - Community Halls | C41: 0 | D41: 0 | E41: 0 | F41: 0 | G41: 0 | H41: 0 | I41: 0 | J41: 0 | K41: 0 | L41: 0 | M41: 0 | V41: 0
A42: ='Org structure'!E36 -> 3,4 - Directorate: Corporate Services | C42: 0 | D42: 0 | E42: 0 | F42: 0 | G42: 0 | H42: 0 | I42: 0 | J42: 0 | K42: 0 | L42: 0 | M42: 0 | V42: 0
A43: ='Org structure'!E37 -> 3,5 - Human Resources | C43: 0 | D43: 0 | E43: 0 | F43: 0 | G43: 0 | H43: 0 | I43: 0 | J43: 0 | K43: 0 | L43: 0 | M43: 0 | V43: 0
A44: ='Org structure'!E38 -> 3,6 - IT Services | C44: 0 | D44: 0 | E44: 0 | F44: 0 | G44: 0 | H44: 0 | I44: 0 | J44: 0 | K44: 0 | L44: 0 | M44: 0 | V44: 0
A45: ='Org structure'!E39 -> 3,7 - Legal Services | C45: 0 | D45: 0 | E45: 0 | F45: 0 | G45: 0 | H45: 0 | I45: 0 | J45: 0 | K45: 0 | L45: 0 | M45: 0 | V45: 0
A46: ='Org structure'!E40 -> 3,8 - Property Services | C46: 0 | D46: 0 | E46: 0 | F46: 0 | G46: 0 | H46: 0 | I46: 0 | J46: 0 | K46: 0 | L46: 0 | M46: 0 | V46: 0
A47: ='Org structure'!E41 -> 3,9 - Corporate services | C47: 0 | D47: 0 | E47: 0 | F47: 0 | G47: 0 | H47: 0 | I47: 0 | J47: 0 | K47: 0 | L47: 0 | M47: 0 | V47: 0
A48: ='Org structure'!E42 -> 3,10 - Occupational Health and Safety | C48: 0 | D48: 0 | E48: 0 | F48: 0 | G48: 0 | H48: 0 | I48: 0 | J48: 0 | K48: 0 | L48: 0 | M48: 0 | V48: 0
A49: ='Org structure'!E43 -> 3.11 - Council Support | C49: 0 | D49: 0 | E49: 0 | F49: 0 | G49: 0 | H49: 0 | I49: 0 | J49: 0 | K49: 0 | L49: 0 | M49: 0 | V49: 0
A50: ='Org structure'!A5 -> Vote 4 - Electricity | C50: 0 | D50: 1277437 | E50: 0 | F50: 0 | G50: 0 | H50: 0 | I50: -1277437 | J50: -1277437 | K50: 0 | L50: 6000000 | M50: 6271000 | V50: 1277437
A51: ='Org structure'!E45 -> 4,1 - Electricity: Distribution | C51: 0 | D51: 1277437 | E51: 0 | F51: 0 | G51: 0 | H51: 0 | I51: -1277437 | J51: -1277437 | K51: 0 | L51: 6000000 | M51: 6271000 | V51: 1277437
A52: ='Org structure'!E46 -> 4,2 - Electricity: Street Lights | C52: 0 | D52: 0 | E52: 0 | F52: 0 | G52: 0 | H52: 0 | I52: 0 | J52: 0 | K52: 0 | L52: 0 | M52: 0 | V52: 0
A53: ='Org structure'!E47 -> 0 | C53: 0 | D53: 0 | E53: 0 | F53: 0 | G53: 0 | H53: 0 | I53: 0 | J53: 0 | K53: 0 | L53: 0 | M53: 0 | V53: 0
A54: ='Org structure'!E48 -> 0 | C54: 0 | D54: 0 | E54: 0 | F54: 0 | G54: 0 | H54: 0 | I54: 0 | J54: 0 | K54: 0 | L54: 0 | M54: 0 | V54: 0
A55: ='Org structure'!E49 -> 0 | C55: 0 | D55: 0 | E55: 0 | F55: 0 | G55: 0 | H55: 0 | I55: 0 | J55: 0 | K55: 0 | L55: 0 | M55: 0 | V55: 0
A56: ='Org structure'!E50 -> 0 | C56: 0 | D56: 0 | E56: 0 | F56: 0 | G56: 0 | H56: 0 | I56: 0 | J56: 0 | K56: 0 | L56: 0 | M56: 0 | V56: 0
A57: ='Org structure'!E51 -> 0 | C57: 0 | D57: 0 | E57: 0 | F57: 0 | G57: 0 | H57: 0 | I57: 0 | J57: 0 | K57: 0 | L57: 0 | M57: 0 | V57: 0
A58: ='Org structure'!E52 -> 0 | C58: 0 | D58: 0 | E58: 0 | F58: 0 | G58: 0 | H58: 0 | I58: 0 | J58: 0 | K58: 0 | L58: 0 | M58: 0 | V58: 0
A59: ='Org structure'!E53 -> 0 | C59: 0 | D59: 0 | E59: 0 | F59: 0 | G59: 0 | H59: 0 | I59: 0 | J59: 0 | K59: 0 | L59: 0 | M59: 0 | V59: 0
A60: ='Org structure'!E54 -> 0 | C60: 0 | D60: 0 | E60: 0 | F60: 0 | G60: 0 | H60: 0 | I60: 0 | J60: 0 | K60: 0 | L60: 0 | M60: 0 | V60: 0
A61: ='Org structure'!A6 -> Vote 5 - Economic Development and Planning | C61: 37079000 | D61: 44700000 | E61: 0 | F61: 0 | G61: 0 | H61: 0 | I61: 617742 | J61: 617742 | K61: 45317742 | L61: 71380000 | M61: 110200000 | V61: 44700000
A62: ='Org structure'!E56 -> 5,1 - Economic Development and Planning | C62: 0 | D62: 0 | E62: 0 | F62: 0 | G62: 0 | H62: 0 | I62: 0 | J62: 0 | K62: 0 | L62: 0 | M62: 0 | V62: 0
A63: ='Org structure'!E57 -> 5,2 - Human Settlements | C63: 37079000 | D63: 44700000 | E63: 0 | F63: 0 | G63: 0 | H63: 0 | I63: 617742 | J63: 617742 | K63: 45317742 | L63: 71380000 | M63: 110200000 | V63: 44700000
A64: ='Org structure'!E58 -> 5,3 - Informal Settlements | C64: 0 | D64: 0 | E64: 0 | F64: 0 | G64: 0 | H64: 0 | I64: 0 | J64: 0 | K64: 0 | L64: 0 | M64: 0 | V64: 0
A65: ='Org structure'!E59 -> 5,4 - Town Planning | C65: 0 | D65: 0 | E65: 0 | F65: 0 | G65: 0 | H65: 0 | I65: 0 | J65: 0 | K65: 0 | L65: 0 | M65: 0 | V65: 0
A66: ='Org structure'!E60 -> 5,5 - Building Control | C66: 0 | D66: 0 | E66: 0 | F66: 0 | G66: 0 | H66: 0 | I66: 0 | J66: 0 | K66: 0 | L66: 0 | M66: 0 | V66: 0
A67: ='Org structure'!E61 -> 5,6 - Property Management | C67: 0 | D67: 0 | E67: 0 | F67: 0 | G67: 0 | H67: 0 | I67: 0 | J67: 0 | K67: 0 | L67: 0 | M67: 0 | V67: 0
A68: ='Org structure'!E62 -> 5,7 - LED | C68: 0 | D68: 0 | E68: 0 | F68: 0 | G68: 0 | H68: 0 | I68: 0 | J68: 0 | K68: 0 | L68: 0 | M68: 0 | V68: 0
A69: ='Org structure'!E63 -> 5,8 - Tourism | C69: 0 | D69: 0 | E69: 0 | F69: 0 | G69: 0 | H69: 0 | I69: 0 | J69: 0 | K69: 0 | L69: 0 | M69: 0 | V69: 0
A70: ='Org structure'!E64 -> 5,9 - [Name of sub-vote] | C70: 0 | D70: 0 | E70: 0 | F70: 0 | G70: 0 | H70: 0 | I70: 0 | J70: 0 | K70: 0 | L70: 0 | M70: 0 | V70: 0
A71: ='Org structure'!E65 -> 5.10 - [Name of sub-vote] | C71: 0 | D71: 0 | E71: 0 | F71: 0 | G71: 0 | H71: 0 | I71: 0 | J71: 0 | K71: 0 | L71: 0 | M71: 0 | V71: 0
A72: ='Org structure'!A7 -> Vote 6 - Office of the Municipal Manager | C72: 0 | D72: 0 | E72: 0 | F72: 0 | G72: 0 | H72: 0 | I72: 0 | J72: 0 | K72: 0 | L72: 0 | M72: 0 | V72: 0
A73: ='Org structure'!E67 -> 6,1 - Administration: Towns | C73: 0 | D73: 0 | E73: 0 | F73: 0 | G73: 0 | H73: 0 | I73: 0 | J73: 0 | K73: 0 | L73: 0 | M73: 0 | V73: 0
A74: ='Org structure'!E68 -> 6,2 - Council General Expenses | C74: 0 | D74: 0 | E74: 0 | F74: 0 | G74: 0 | H74: 0 | I74: 0 | J74: 0 | K74: 0 | L74: 0 | M74: 0 | V74: 0
A75: ='Org structure'!E69 -> 6,3 - Municipal Manager | C75: 0 | D75: 0 | E75: 0 | F75: 0 | G75: 0 | H75: 0 | I75: 0 | J75: 0 | K75: 0 | L75: 0 | M75: 0 | V75: 0
A76: ='Org structure'!E70 -> 6,4 - Internal Audit | C76: 0 | D76: 0 | E76: 0 | F76: 0 | G76: 0 | H76: 0 | I76: 0 | J76: 0 | K76: 0 | L76: 0 | M76: 0 | V76: 0
A77: ='Org structure'!E71 -> 6,5 - Strategic Support and IDP | C77: 0 | D77: 0 | E77: 0 | F77: 0 | G77: 0 | H77: 0 | I77: 0 | J77: 0 | K77: 0 | L77: 0 | M77: 0 | V77: 0
A78: ='Org structure'!E72 -> 6,6 - [Name of sub-vote] | C78: 0 | D78: 0 | E78: 0 | F78: 0 | G78: 0 | H78: 0 | I78: 0 | J78: 0 | K78: 0 | L78: 0 | M78: 0 | V78: 0
A79: ='Org structure'!E73 -> 6,7 - [Name of sub-vote] | C79: 0 | D79: 0 | E79: 0 | F79: 0 | G79: 0 | H79: 0 | I79: 0 | J79: 0 | K79: 0 | L79: 0 | M79: 0 | V79: 0
A80: ='Org structure'!E74 -> 6,8 - [Name of sub-vote] | C80: 0 | D80: 0 | E80: 0 | F80: 0 | G80: 0 | H80: 0 | I80: 0 | J80: 0 | K80: 0 | L80: 0 | M80: 0 | V80: 0
A81: ='Org structure'!E75 -> 6,9 - [Name of sub-vote] | C81: 0 | D81: 0 | E81: 0 | F81: 0 | G81: 0 | H81: 0 | I81: 0 | J81: 0 | K81: 0 | L81: 0 | M81: 0 | V81: 0
A82: ='Org structure'!E76 -> 6.10 - [Name of sub-vote] | C82: 0 | D82: 0 | E82: 0 | F82: 0 | G82: 0 | H82: 0 | I82: 0 | J82: 0 | K82: 0 | L82: 0 | M82: 0 | V82: 0
A83: ='Org structure'!A8 -> Vote 7 - Housing | C83: 0 | D83: 0 | E83: 0 | F83: 0 | G83: 0 | H83: 0 | I83: 0 | J83: 0 | K83: 0 | L83: 0 | M83: 0 | V83: 0
A84: ='Org structure'!E78 -> 7,1 - Administration: Housing | C84: 0 | D84: 0 | E84: 0 | F84: 0 | G84: 0 | H84: 0 | I84: 0 | J84: 0 | K84: 0 | L84: 0 | M84: 0 | V84: 0
A85: ='Org structure'!E79 -> 7,2 - Informal Settlements | C85: 0 | D85: 0 | E85: 0 | F85: 0 | G85: 0 | H85: 0 | I85: 0 | J85: 0 | K85: 0 | L85: 0 | M85: 0 | V85: 0
A86: ='Org structure'!E80 -> 7,3 - [Name of sub-vote] | C86: 0 | D86: 0 | E86: 0 | F86: 0 | G86: 0 | H86: 0 | I86: 0 | J86: 0 | K86: 0 | L86: 0 | M86: 0 | V86: 0
A87: ='Org structure'!E81 -> 7,4 - [Name of sub-vote] | C87: 0 | D87: 0 | E87: 0 | F87: 0 | G87: 0 | H87: 0 | I87: 0 | J87: 0 | K87: 0 | L87: 0 | M87: 0 | V87: 0
A88: ='Org structure'!E82 -> 7,5 - [Name of sub-vote] | C88: 0 | D88: 0 | E88: 0 | F88: 0 | G88: 0 | H88: 0 | I88: 0 | J88: 0 | K88: 0 | L88: 0 | M88: 0 | V88: 0
A89: ='Org structure'!E83 -> 7,6 - [Name of sub-vote] | C89: 0 | D89: 0 | E89: 0 | F89: 0 | G89: 0 | H89: 0 | I89: 0 | J89: 0 | K89: 0 | L89: 0 | M89: 0 | V89: 0
A90: ='Org structure'!E84 -> 7,7 - [Name of sub-vote] | C90: 0 | D90: 0 | E90: 0 | F90: 0 | G90: 0 | H90: 0 | I90: 0 | J90: 0 | K90: 0 | L90: 0 | M90: 0 | V90: 0
A91: ='Org structure'!E85 -> 7,8 - [Name of sub-vote] | C91: 0 | D91: 0 | E91: 0 | F91: 0 | G91: 0 | H91: 0 | I91: 0 | J91: 0 | K91: 0 | L91: 0 | M91: 0 | V91: 0
A92: ='Org structure'!E86 -> 7,9 - [Name of sub-vote] | C92: 0 | D92: 0 | E92: 0 | F92: 0 | G92: 0 | H92: 0 | I92: 0 | J92: 0 | K92: 0 | L92: 0 | M92: 0 | V92: 0
A93: ='Org structure'!E87 -> 7.10 - [Name of sub-vote] | C93: 0 | D93: 0 | E93: 0 | F93: 0 | G93: 0 | H93: 0 | I93: 0 | J93: 0 | K93: 0 | L93: 0 | M93: 0 | V93: 0
A94: ='Org structure'!A9 -> Vote 8 - Technical and Infrastructure Implementation Services | C94: 0 | D94: 0 | E94: 0 | F94: 0 | G94: 0 | H94: 0 | I94: 0 | J94: 0 | K94: 0 | L94: 0 | M94: 0 | V94: 0
A95: ='Org structure'!E89 -> 8,1 - Building Control | C95: 0 | D95: 0 | E95: 0 | F95: 0 | G95: 0 | H95: 0 | I95: 0 | J95: 0 | K95: 0 | L95: 0 | M95: 0 | V95: 0
A96: ='Org structure'!E90 -> 8,2 - IDP/SDBIP | C96: 0 | D96: 0 | E96: 0 | F96: 0 | G96: 0 | H96: 0 | I96: 0 | J96: 0 | K96: 0 | L96: 0 | M96: 0 | V96: 0
A97: ='Org structure'!E91 -> 8,3 - LED | C97: 0 | D97: 0 | E97: 0 | F97: 0 | G97: 0 | H97: 0 | I97: 0 | J97: 0 | K97: 0 | L97: 0 | M97: 0 | V97: 0
A98: ='Org structure'!E92 -> 8,4 - Property Management | C98: 0 | D98: 0 | E98: 0 | F98: 0 | G98: 0 | H98: 0 | I98: 0 | J98: 0 | K98: 0 | L98: 0 | M98: 0 | V98: 0
A99: ='Org structure'!E93 -> 8,5 - Tourism | C99: 0 | D99: 0 | E99: 0 | F99: 0 | G99: 0 | H99: 0 | I99: 0 | J99: 0 | K99: 0 | L99: 0 | M99: 0 | V99: 0
A100: ='Org structure'!E94 -> 8,6 - Town Planning | C100: 0 | D100: 0 | E100: 0 | F100: 0 | G100: 0 | H100: 0 | I100: 0 | J100: 0 | K100: 0 | L100: 0 | M100: 0 | V100: 0
A101: ='Org structure'!E95 -> 8,7 - Proclaimed Roads | C101: 0 | D101: 0 | E101: 0 | F101: 0 | G101: 0 | H101: 0 | I101: 0 | J101: 0 | K101: 0 | L101: 0 | M101: 0 | V101: 0
A102: ='Org structure'!E96 -> 8,8 - Director: Technical Services and Planning | C102: 0 | D102: 0 | E102: 0 | F102: 0 | G102: 0 | H102: 0 | I102: 0 | J102: 0 | K102: 0 | L102: 0 | M102: 0 | V102: 0
A103: ='Org structure'!E97 -> 8,9 - Human Settlements | C103: 0 | D103: 0 | E103: 0 | F103: 0 | G103: 0 | H103: 0 | I103: 0 | J103: 0 | K103: 0 | L103: 0 | M103: 0 | V103: 0
A104: ='Org structure'!E98 -> 8.10 - Technical and Infrastructure Implementation Services | C104: 0 | D104: 0 | E104: 0 | F104: 0 | G104: 0 | H104: 0 | I104: 0 | J104: 0 | K104: 0 | L104: 0 | M104: 0 | V104: 0
A105: ='Org structure'!A10 -> Vote 9 - Public safety | C105: 0 | D105: 0 | E105: 0 | F105: 0 | G105: 0 | H105: 0 | I105: 0 | J105: 0 | K105: 0 | L105: 0 | M105: 0 | V105: 0
A106: ='Org structure'!E100 -> 9,1 - Animal Control | C106: 0 | D106: 0 | E106: 0 | F106: 0 | G106: 0 | H106: 0 | I106: 0 | J106: 0 | K106: 0 | L106: 0 | M106: 0 | V106: 0
A107: ='Org structure'!E101 -> 9,2 - Disaster Management | C107: 0 | D107: 0 | E107: 0 | F107: 0 | G107: 0 | H107: 0 | I107: 0 | J107: 0 | K107: 0 | L107: 0 | M107: 0 | V107: 0
A108: ='Org structure'!E102 -> 9,3 - Law Enforcement | C108: 0 | D108: 0 | E108: 0 | F108: 0 | G108: 0 | H108: 0 | I108: 0 | J108: 0 | K108: 0 | L108: 0 | M108: 0 | V108: 0
A109: ='Org structure'!E103 -> 9,4 - Pound | C109: 0 | D109: 0 | E109: 0 | F109: 0 | G109: 0 | H109: 0 | I109: 0 | J109: 0 | K109: 0 | L109: 0 | M109: 0 | V109: 0
A110: ='Org structure'!E104 -> 9,5 - Traffic Services | C110: 0 | D110: 0 | E110: 0 | F110: 0 | G110: 0 | H110: 0 | I110: 0 | J110: 0 | K110: 0 | L110: 0 | M110: 0 | V110: 0
A111: ='Org structure'!E105 -> 0 | C111: 0 | D111: 0 | E111: 0 | F111: 0 | G111: 0 | H111: 0 | I111: 0 | J111: 0 | K111: 0 | L111: 0 | M111: 0 | V111: 0
A112: ='Org structure'!E106 -> 0 | C112: 0 | D112: 0 | E112: 0 | F112: 0 | G112: 0 | H112: 0 | I112: 0 | J112: 0 | K112: 0 | L112: 0 | M112: 0 | V112: 0
A113: ='Org structure'!E107 -> 0 | C113: 0 | D113: 0 | E113: 0 | F113: 0 | G113: 0 | H113: 0 | I113: 0 | J113: 0 | K113: 0 | L113: 0 | M113: 0 | V113: 0
A114: ='Org structure'!E108 -> 0 | C114: 0 | D114: 0 | E114: 0 | F114: 0 | G114: 0 | H114: 0 | I114: 0 | J114: 0 | K114: 0 | L114: 0 | M114: 0 | V114: 0
A115: ='Org structure'!E109 -> 0 | C115: 0 | D115: 0 | E115: 0 | F115: 0 | G115: 0 | H115: 0 | I115: 0 | J115: 0 | K115: 0 | L115: 0 | M115: 0 | V115: 0
A116: ='Org structure'!A11 -> Vote 10 - Road transport | C116: 0 | D116: 0 | E116: 0 | F116: 0 | G116: 0 | H116: 0 | I116: 0 | J116: 0 | K116: 0 | L116: 0 | M116: 0 | V116: 0
A117: ='Org structure'!E111 -> 10,1 - Proclaimed Roads | C117: 0 | D117: 0 | E117: 0 | F117: 0 | G117: 0 | H117: 0 | I117: 0 | J117: 0 | K117: 0 | L117: 0 | M117: 0 | V117: 0
A118: ='Org structure'!E112 -> 10,2 - Roads | C118: 0 | D118: 0 | E118: 0 | F118: 0 | G118: 0 | H118: 0 | I118: 0 | J118: 0 | K118: 0 | L118: 0 | M118: 0 | V118: 0
A119: ='Org structure'!E113 -> 10,3 - Vehicle Licensing and Testing | C119: 0 | D119: 0 | E119: 0 | F119: 0 | G119: 0 | H119: 0 | I119: 0 | J119: 0 | K119: 0 | L119: 0 | M119: 0 | V119: 0
A120: ='Org structure'!E114 -> 0 | C120: 0 | D120: 0 | E120: 0 | F120: 0 | G120: 0 | H120: 0 | I120: 0 | J120: 0 | K120: 0 | L120: 0 | M120: 0 | V120: 0
A121: ='Org structure'!E115 -> 0 | C121: 0 | D121: 0 | E121: 0 | F121: 0 | G121: 0 | H121: 0 | I121: 0 | J121: 0 | K121: 0 | L121: 0 | M121: 0 | V121: 0
A122: ='Org structure'!E116 -> 0 | C122: 0 | D122: 0 | E122: 0 | F122: 0 | G122: 0 | H122: 0 | I122: 0 | J122: 0 | K122: 0 | L122: 0 | M122: 0 | V122: 0
A123: ='Org structure'!E117 -> 0 | C123: 0 | D123: 0 | E123: 0 | F123: 0 | G123: 0 | H123: 0 | I123: 0 | J123: 0 | K123: 0 | L123: 0 | M123: 0 | V123: 0
A124: ='Org structure'!E118 -> 0 | C124: 0 | D124: 0 | E124: 0 | F124: 0 | G124: 0 | H124: 0 | I124: 0 | J124: 0 | K124: 0 | L124: 0 | M124: 0 | V124: 0
A125: ='Org structure'!E119 -> 0 | C125: 0 | D125: 0 | E125: 0 | F125: 0 | G125: 0 | H125: 0 | I125: 0 | J125: 0 | K125: 0 | L125: 0 | M125: 0 | V125: 0
A126: ='Org structure'!E120 -> 0 | C126: 0 | D126: 0 | E126: 0 | F126: 0 | G126: 0 | H126: 0 | I126: 0 | J126: 0 | K126: 0 | L126: 0 | M126: 0 | V126: 0
A127: ='Org structure'!A12 -> Vote 11 - Sport and recreation | C127: 0 | D127: 0 | E127: 0 | F127: 0 | G127: 0 | H127: 0 | I127: 0 | J127: 0 | K127: 0 | L127: 0 | M127: 0 | V127: 0
A128: ='Org structure'!E122 -> 11,1 - Nature Reserve | C128: 0 | D128: 0 | E128: 0 | F128: 0 | G128: 0 | H128: 0 | I128: 0 | J128: 0 | K128: 0 | L128: 0 | M128: 0 | V128: 0
A129: ='Org structure'!E123 -> 11,2 - Parks and Gardens | C129: 0 | D129: 0 | E129: 0 | F129: 0 | G129: 0 | H129: 0 | I129: 0 | J129: 0 | K129: 0 | L129: 0 | M129: 0 | V129: 0
A130: ='Org structure'!E124 -> 11,3 - Sport and Recreation | C130: 0 | D130: 0 | E130: 0 | F130: 0 | G130: 0 | H130: 0 | I130: 0 | J130: 0 | K130: 0 | L130: 0 | M130: 0 | V130: 0
A131: ='Org structure'!E125 -> 0 | C131: 0 | D131: 0 | E131: 0 | F131: 0 | G131: 0 | H131: 0 | I131: 0 | J131: 0 | K131: 0 | L131: 0 | M131: 0 | V131: 0
A132: ='Org structure'!E126 -> 0 | C132: 0 | D132: 0 | E132: 0 | F132: 0 | G132: 0 | H132: 0 | I132: 0 | J132: 0 | K132: 0 | L132: 0 | M132: 0 | V132: 0
A133: ='Org structure'!E127 -> 0 | C133: 0 | D133: 0 | E133: 0 | F133: 0 | G133: 0 | H133: 0 | I133: 0 | J133: 0 | K133: 0 | L133: 0 | M133: 0 | V133: 0
A134: ='Org structure'!E128 -> 0 | C134: 0 | D134: 0 | E134: 0 | F134: 0 | G134: 0 | H134: 0 | I134: 0 | J134: 0 | K134: 0 | L134: 0 | M134: 0 | V134: 0
A135: ='Org structure'!E129 -> 0 | C135: 0 | D135: 0 | E135: 0 | F135: 0 | G135: 0 | H135: 0 | I135: 0 | J135: 0 | K135: 0 | L135: 0 | M135: 0 | V135: 0
A136: ='Org structure'!E130 -> 0 | C136: 0 | D136: 0 | E136: 0 | F136: 0 | G136: 0 | H136: 0 | I136: 0 | J136: 0 | K136: 0 | L136: 0 | M136: 0 | V136: 0
A137: ='Org structure'!E131 -> 0 | C137: 0 | D137: 0 | E137: 0 | F137: 0 | G137: 0 | H137: 0 | I137: 0 | J137: 0 | K137: 0 | L137: 0 | M137: 0 | V137: 0
A138: ='Org structure'!A13 -> Vote 12 - Waste management | C138: 0 | D138: 0 | E138: 0 | F138: 0 | G138: 0 | H138: 0 | I138: 0 | J138: 0 | K138: 0 | L138: 0 | M138: 0 | V138: 0
A139: ='Org structure'!E133 -> 12,1 - Refuse Removal | C139: 0 | D139: 0 | E139: 0 | F139: 0 | G139: 0 | H139: 0 | I139: 0 | J139: 0 | K139: 0 | L139: 0 | M139: 0 | V139: 0
A140: ='Org structure'!E134 -> 12,2 - Refuse Sites | C140: 0 | D140: 0 | E140: 0 | F140: 0 | G140: 0 | H140: 0 | I140: 0 | J140: 0 | K140: 0 | L140: 0 | M140: 0 | V140: 0
A141: ='Org structure'!E135 -> 12,3 - Street Cleansing | C141: 0 | D141: 0 | E141: 0 | F141: 0 | G141: 0 | H141: 0 | I141: 0 | J141: 0 | K141: 0 | L141: 0 | M141: 0 | V141: 0
A142: ='Org structure'!E136 -> 12,4 - Refuse Removal (Head Office) | C142: 0 | D142: 0 | E142: 0 | F142: 0 | G142: 0 | H142: 0 | I142: 0 | J142: 0 | K142: 0 | L142: 0 | M142: 0 | V142: 0
A143: ='Org structure'!E137 -> 12,5 - Refuse Sites (Head Office) | C143: 0 | D143: 0 | E143: 0 | F143: 0 | G143: 0 | H143: 0 | I143: 0 | J143: 0 | K143: 0 | L143: 0 | M143: 0 | V143: 0
A144: ='Org structure'!E138 -> 12,6 - Street Cleansing (Head Office) | C144: 0 | D144: 0 | E144: 0 | F144: 0 | G144: 0 | H144: 0 | I144: 0 | J144: 0 | K144: 0 | L144: 0 | M144: 0 | V144: 0
A145: ='Org structure'!E139 -> 0 | C145: 0 | D145: 0 | E145: 0 | F145: 0 | G145: 0 | H145: 0 | I145: 0 | J145: 0 | K145: 0 | L145: 0 | M145: 0 | V145: 0
A146: ='Org structure'!E140 -> 0 | C146: 0 | D146: 0 | E146: 0 | F146: 0 | G146: 0 | H146: 0 | I146: 0 | J146: 0 | K146: 0 | L146: 0 | M146: 0 | V146: 0
A147: ='Org structure'!E141 -> 0 | C147: 0 | D147: 0 | E147: 0 | F147: 0 | G147: 0 | H147: 0 | I147: 0 | J147: 0 | K147: 0 | L147: 0 | M147: 0 | V147: 0
A148: ='Org structure'!E142 -> 0 | C148: 0 | D148: 0 | E148: 0 | F148: 0 | G148: 0 | H148: 0 | I148: 0 | J148: 0 | K148: 0 | L148: 0 | M148: 0 | V148: 0
A149: ='Org structure'!A14 -> Vote 13 - Waste water management | C149: 13594457 | D149: 16413731.81 | E149: 0 | F149: 0 | G149: 0 | H149: 0 | I149: 0.1913043484 | J149: 0.1913043484 | K149: 16413732 | L149: 21652722.3 | M149: 3608696 | V149: 16413731.81
A150: ='Org structure'!E144 -> 13,1 - Sewerage: Networks | C150: 0 | D150: 0 | E150: 0 | F150: 0 | G150: 0 | H150: 0 | I150: 0 | J150: 0 | K150: 0 | L150: 0 | M150: 0 | V150: 0
A151: ='Org structure'!E145 -> 13,2 - Sewerage: Tank Services | C151: 0 | D151: 0 | E151: 0 | F151: 0 | G151: 0 | H151: 0 | I151: 0 | J151: 0 | K151: 0 | L151: 0 | M151: 0 | V151: 0
A152: ='Org structure'!E146 -> 13,3 - Sewerage: Treatment Works | C152: 13594457 | D152: 16413731.81 | E152: 0 | F152: 0 | G152: 0 | H152: 0 | I152: 0.1913043484 | J152: 0.1913043484 | K152: 16413732 | L152: 21652722.3 | M152: 3608696 | V152: 16413731.81
A153: ='Org structure'!E147 -> 13,4 - Sewerage: Networks (Head Office) | C153: 0 | D153: 0 | E153: 0 | F153: 0 | G153: 0 | H153: 0 | I153: 0 | J153: 0 | K153: 0 | L153: 0 | M153: 0 | V153: 0
A154: ='Org structure'!E148 -> 13,5 - Sewerage: Treatment Works (Head Office) | C154: 0 | D154: 0 | E154: 0 | F154: 0 | G154: 0 | H154: 0 | I154: 0 | J154: 0 | K154: 0 | L154: 0 | M154: 0 | V154: 0
A155: ='Org structure'!E149 -> 13,6 - Sewerage: Tank Services (Head Office) | C155: 0 | D155: 0 | E155: 0 | F155: 0 | G155: 0 | H155: 0 | I155: 0 | J155: 0 | K155: 0 | L155: 0 | M155: 0 | V155: 0
A156: ='Org structure'!E150 -> 0 | C156: 0 | D156: 0 | E156: 0 | F156: 0 | G156: 0 | H156: 0 | I156: 0 | J156: 0 | K156: 0 | L156: 0 | M156: 0 | V156: 0
A157: ='Org structure'!E151 -> 0 | C157: 0 | D157: 0 | E157: 0 | F157: 0 | G157: 0 | H157: 0 | I157: 0 | J157: 0 | K157: 0 | L157: 0 | M157: 0 | V157: 0
A158: ='Org structure'!E152 -> 0 | C158: 0 | D158: 0 | E158: 0 | F158: 0 | G158: 0 | H158: 0 | I158: 0 | J158: 0 | K158: 0 | L158: 0 | M158: 0 | V158: 0
A159: ='Org structure'!E153 -> 0 | C159: 0 | D159: 0 | E159: 0 | F159: 0 | G159: 0 | H159: 0 | I159: 0 | J159: 0 | K159: 0 | L159: 0 | M159: 0 | V159: 0
A160: ='Org structure'!A15 -> Vote 14 - Water | C160: 0 | D160: 1300000 | E160: 0 | F160: 0 | G160: 0 | H160: 0 | I160: 0 | J160: 0 | K160: 1300000 | L160: 0 | M160: 5351274.522 | V160: 1300000
A161: ='Org structure'!E155 -> 14,1 - Water: Distribution | C161: 0 | D161: 0 | E161: 0 | F161: 0 | G161: 0 | H161: 0 | I161: 0 | J161: 0 | K161: 0 | L161: 0 | M161: 0 | V161: 0
A162: ='Org structure'!E156 -> 14,2 - Water: Treatment Works | C162: 0 | D162: 1300000 | E162: 0 | F162: 0 | G162: 0 | H162: 0 | I162: 0 | J162: 0 | K162: 1300000 | L162: 0 | M162: 5351274.522 | V162: 1300000
A163: ='Org structure'!E157 -> 14,3 - Water: Distribution (Head Office) | C163: 0 | D163: 0 | E163: 0 | F163: 0 | G163: 0 | H163: 0 | I163: 0 | J163: 0 | K163: 0 | L163: 0 | M163: 0 | V163: 0
A164: ='Org structure'!E158 -> 14,4 - Water: Treatment Works (Head Office) | C164: 0 | D164: 0 | E164: 0 | F164: 0 | G164: 0 | H164: 0 | I164: 0 | J164: 0 | K164: 0 | L164: 0 | M164: 0 | V164: 0
A165: ='Org structure'!E159 -> 0 | C165: 0 | D165: 0 | E165: 0 | F165: 0 | G165: 0 | H165: 0 | I165: 0 | J165: 0 | K165: 0 | L165: 0 | M165: 0 | V165: 0
A166: ='Org structure'!E160 -> 0 | C166: 0 | D166: 0 | E166: 0 | F166: 0 | G166: 0 | H166: 0 | I166: 0 | J166: 0 | K166: 0 | L166: 0 | M166: 0 | V166: 0
A167: ='Org structure'!E161 -> 0 | C167: 0 | D167: 0 | E167: 0 | F167: 0 | G167: 0 | H167: 0 | I167: 0 | J167: 0 | K167: 0 | L167: 0 | M167: 0 | V167: 0
A168: ='Org structure'!E162 -> 0 | C168: 0 | D168: 0 | E168: 0 | F168: 0 | G168: 0 | H168: 0 | I168: 0 | J168: 0 | K168: 0 | L168: 0 | M168: 0 | V168: 0
A169: ='Org structure'!E163 -> 0 | C169: 0 | D169: 0 | E169: 0 | F169: 0 | G169: 0 | H169: 0 | I169: 0 | J169: 0 | K169: 0 | L169: 0 | M169: 0 | V169: 0
A170: ='Org structure'!E164 -> 0 | C170: 0 | D170: 0 | E170: 0 | F170: 0 | G170: 0 | H170: 0 | I170: 0 | J170: 0 | K170: 0 | L170: 0 | M170: 0 | V170: 0
A171: ='Org structure'!A16 -> Vote 15 - Directorate Development and Community Services | C171: 0 | D171: 0 | E171: 0 | F171: 0 | G171: 0 | H171: 0 | I171: 0 | J171: 0 | K171: 0 | L171: 0 | M171: 0 | V171: 0
A172: ='Org structure'!E166 -> 15,1 - Director: Development and Community Services | C172: 0 | D172: 0 | E172: 0 | F172: 0 | G172: 0 | H172: 0 | I172: 0 | J172: 0 | K172: 0 | L172: 0 | M172: 0 | V172: 0
A173: ='Org structure'!E167 -> 15,2 - Council Support | C173: 0 | D173: 0 | E173: 0 | F173: 0 | G173: 0 | H173: 0 | I173: 0 | J173: 0 | K173: 0 | L173: 0 | M173: 0 | V173: 0
A174: ='Org structure'!E168 -> 15,3 - LED | C174: 0 | D174: 0 | E174: 0 | F174: 0 | G174: 0 | H174: 0 | I174: 0 | J174: 0 | K174: 0 | L174: 0 | M174: 0 | V174: 0
A175: ='Org structure'!E169 -> 15,4 - Tourism | C175: 0 | D175: 0 | E175: 0 | F175: 0 | G175: 0 | H175: 0 | I175: 0 | J175: 0 | K175: 0 | L175: 0 | M175: 0 | V175: 0
A176: ='Org structure'!E170 -> 15,5 - IT Services | C176: 0 | D176: 0 | E176: 0 | F176: 0 | G176: 0 | H176: 0 | I176: 0 | J176: 0 | K176: 0 | L176: 0 | M176: 0 | V176: 0
A177: ='Org structure'!E171 -> 15,6 - Legal Services | C177: 0 | D177: 0 | E177: 0 | F177: 0 | G177: 0 | H177: 0 | I177: 0 | J177: 0 | K177: 0 | L177: 0 | M177: 0 | V177: 0
A178: ='Org structure'!E172 -> 15,7 - Sports and Culture | C178: 0 | D178: 0 | E178: 0 | F178: 0 | G178: 0 | H178: 0 | I178: 0 | J178: 0 | K178: 0 | L178: 0 | M178: 0 | V178: 0
A179: ='Org structure'!E173 -> 15,8 - Town Administration | C179: 0 | D179: 0 | E179: 0 | F179: 0 | G179: 0 | H179: 0 | I179: 0 | J179: 0 | K179: 0 | L179: 0 | M179: 0 | V179: 0
A180: ='Org structure'!E174 -> 15,9 - Human Resources | C180: 0 | D180: 0 | E180: 0 | F180: 0 | G180: 0 | H180: 0 | I180: 0 | J180: 0 | K180: 0 | L180: 0 | M180: 0 | V180: 0
A181: ='Org structure'!E175 -> 15.10 - Risk Management | C181: 0 | D181: 0 | E181: 0 | F181: 0 | G181: 0 | H181: 0 | I181: 0 | J181: 0 | K181: 0 | L181: 0 | M181: 0 | V181: 0
A182: ='Org structure'!E176 -> 15.11 - Property Management | C182: 0 | D182: 0 | E182: 0 | F182: 0 | G182: 0 | H182: 0 | I182: 0 | J182: 0 | K182: 0 | L182: 0 | M182: 0 | V182: 0
A183: ='Org structure'!E177 -> 15.12 - Informal Settlements | C183: 0 | D183: 0 | E183: 0 | F183: 0 | G183: 0 | H183: 0 | I183: 0 | J183: 0 | K183: 0 | L183: 0 | M183: 0 | V183: 0
A184: ='Org structure'!E178 -> 15.13 - Roads and Stormwater | C184: 0 | D184: 0 | E184: 0 | F184: 0 | G184: 0 | H184: 0 | I184: 0 | J184: 0 | K184: 0 | L184: 0 | M184: 0 | V184: 0
A185: ='Org structure'!E179 -> 15.14 - Fleet | C185: 0 | D185: 0 | E185: 0 | F185: 0 | G185: 0 | H185: 0 | I185: 0 | J185: 0 | K185: 0 | L185: 0 | M185: 0 | V185: 0
A186: ='Org structure'!E180 -> 15.15 - Parks and Gardens | C186: 0 | D186: 0 | E186: 0 | F186: 0 | G186: 0 | H186: 0 | I186: 0 | J186: 0 | K186: 0 | L186: 0 | M186: 0 | V186: 0
A187: ='Org structure'!E181 -> 15.16 - Disaster Management | C187: 0 | D187: 0 | E187: 0 | F187: 0 | G187: 0 | H187: 0 | I187: 0 | J187: 0 | K187: 0 | L187: 0 | M187: 0 | V187: 0
A188: ='Org structure'!E182 -> 15.17 - Pollution Control | C188: 0 | D188: 0 | E188: 0 | F188: 0 | G188: 0 | H188: 0 | I188: 0 | J188: 0 | K188: 0 | L188: 0 | M188: 0 | V188: 0
A189: ='Org structure'!E183 -> 15.18 - Nature Reserve | C189: 0 | D189: 0 | E189: 0 | F189: 0 | G189: 0 | H189: 0 | I189: 0 | J189: 0 | K189: 0 | L189: 0 | M189: 0 | V189: 0
A190: ='Org structure'!E184 -> 15.19 - Cemeteries | C190: 0 | D190: 0 | E190: 0 | F190: 0 | G190: 0 | H190: 0 | I190: 0 | J190: 0 | K190: 0 | L190: 0 | M190: 0 | V190: 0
A191: ='Org structure'!E185 -> 15.20 - Community Halls | C191: 0 | D191: 0 | E191: 0 | F191: 0 | G191: 0 | H191: 0 | I191: 0 | J191: 0 | K191: 0 | L191: 0 | M191: 0 | V191: 0
A192: ='Org structure'!E186 -> 15.21 - Library Services | C192: 0 | D192: 0 | E192: 0 | F192: 0 | G192: 0 | H192: 0 | I192: 0 | J192: 0 | K192: 0 | L192: 0 | M192: 0 | V192: 0
A193: ='Org structure'!E187 -> 15.22 - Traffic Services | C193: 0 | D193: 0 | E193: 0 | F193: 0 | G193: 0 | H193: 0 | I193: 0 | J193: 0 | K193: 0 | L193: 0 | M193: 0 | V193: 0
A194: ='Org structure'!E188 -> 15.23 - Law Enforcement | C194: 0 | D194: 0 | E194: 0 | F194: 0 | G194: 0 | H194: 0 | I194: 0 | J194: 0 | K194: 0 | L194: 0 | M194: 0 | V194: 0
A195: ='Org structure'!E189 -> 15.24 - Motor Licensing and Testing Station | C195: 0 | D195: 0 | E195: 0 | F195: 0 | G195: 0 | H195: 0 | I195: 0 | J195: 0 | K195: 0 | L195: 0 | M195: 0 | V195: 0
A196: ='Org structure'!E190 -> 15.25 - Animal Control and Pounds | C196: 0 | D196: 0 | E196: 0 | F196: 0 | G196: 0 | H196: 0 | I196: 0 | J196: 0 | K196: 0 | L196: 0 | M196: 0 | V196: 0
A197: ='Org structure'!E191 -> 15.26 - Sustainable Development | C197: 0 | D197: 0 | E197: 0 | F197: 0 | G197: 0 | H197: 0 | I197: 0 | J197: 0 | K197: 0 | L197: 0 | M197: 0 | V197: 0
C198: 0 | D198: 0 | E198: 0 | F198: 0 | G198: 0 | H198: 0 | I198: 0 | J198: 0 | K198: 0 | L198: 0 | M198: 0 | V198: 0
A199: Capital multi-year expenditure sub-total | C199: 50673457 | D199: 64266135.31 | E199: 0 | F199: 0 | G199: 0 | H199: 0 | I199: -357484.3087 | J199: -357484.3087 | K199: 63908651 | L199: 99032722.3 | M199: 125430970.5 | V199: 64266135.31
A201: Capital expenditure - Municipal Vote | B201: 2
... 198 more rows

Sheet B6-FinPos
A1: =muni&" - "&_ADJ6&" - "&Date -> WC031 Theewaterskloof - Table B6 Adjustments Budget Financial Position - 16 April 2026
A2: =desc -> Description | B2: =head27 -> Ref | C2: =Head2 -> Budget Year 2025/26 | L2: =Head10 -> Budget Year +1 2026/27 | M2: =Head11 -> Budget Year +2 2027/28 | O2: =Head10 -> Budget Year +1 2026/27
C3: =Head6 -> Original Budget | D3: =Head54 -> Prior Adjusted | E3: =Head51 -> Accum. Funds | F3: =Head52 -> Multi-year capital | G3: =Head53 -> Unfore. Unavoid. | H3: =Head55 -> Nat. or Prov. Govt | I3: =Head50 -> Other Adjusts. | J3: =Head56 -> Total Adjusts. | K3: =Head7 -> Adjusted Budget | L3: =Head7 -> Adjusted Budget | M3: =Head7 -> Adjusted Budget | O3: =Head7 -> Adjusted Budget | V3: Adjusted Budget
D4: 3 | E4: 4 | F4: 5 | G4: 6 | H4: 7 | I4: 8 | J4: 9 | K4: 10 | V4: 10
A5: R thousands | C5: A | D5: A1 | E5: B | F5: C | G5: D | H5: E | I5: F | J5: G | K5: H | V5: H
A6: ASSETS
A7: Current assets
A8: Cash and cash equivalents | C8: 7963859.66 | D8: 1568496.273 | E8: 0 | F8: 0 | G8: 0 | H8: 0 | I8: 6491369.217 | J8: 6491369.217 | K8: 8059865.49 | L8: 14104271.11 | M8: 21220771.44 | O8: 17624430.36 | Q8: =K8-D8 -> 6491369.217 | V8: 1568496.273
A9: Trade and other receivables from exchange transactions | B9: 1 | C9: 44106173.5 | D9: 46436282.67 | E9: 0 | F9: 0 | G9: 0 | H9: 0 | I9: 0 | J9: 0 | K9: 46436282.67 | L9: 49412565.88 | M9: 52463255.14 | O9: ='SB2'!O20 -> 43278206.67 | Q9: =L9-M9 -> -3050689.257 | V9: 46436282.67
A10: Receivables from non-exchange transactions | B10: 1 | C10: 38014135.91 | D10: 29843822.03 | E10: 0 | F10: 0 | G10: 0 | H10: 0 | I10: 0 | J10: 0 | K10: 29843822.03 | L10: 28530744.5 | M10: 26636890.65 | O10: ='SB2'!O29 -> 26927891.38 | Q10: =L10-M10 -> 1893853.843 | V10: 29843822.03
A11: Current portion of non-current receivables | B11: 2 | C11: 1786840.74 | D11: 2266682.8 | E11: 0 | F11: 0 | G11: 0 | H11: 0 | I11: 0 | J11: 0 | K11: 2266682.8 | L11: 2266682.8 | M11: 2266682.8 | O11: 2266682.8 | Q11: 0 | V11: 2266682.8
A12: Inventory | C12: 8949155.04 | D12: 7858872.53 | E12: 0 | F12: 0 | G12: 0 | H12: 0 | I12: 0 | J12: 0 | K12: 7858872.53 | L12: 7858872.53 | M12: 7858872.53 | O12: ='SB2'!O132 -> 7858872.53 | Q12: 0 | V12: 7858872.53
A13: VAT | C13: 13106045.43 | D13: 6454693.43 | E13: 0 | F13: 0 | G13: 0 | H13: 0 | I13: 0 | J13: 0 | K13: 6454693.43 | L13: 6454693.43 | M13: 6454693.43 | O13: 6454693.43 | Q13: 0 | V13: 6454693.43
A14: Other current assets | C14: 630774.46 | D14: 667901.15 | E14: 0 | F14: 0 | G14: 0 | H14: 0 | I14: 0 | J14: 0 | K14: 667901.15 | L14: 667901.15 | M14: 667901.15 | O14: 667901.15 | Q14: 0 | V14: 667901.15
A15: Total current assets | C15: 114556984.7 | D15: 95096750.88 | E15: 0 | F15: 0 | G15: 0 | H15: 0 | I15: 6491369.217 | J15: 6491369.217 | K15: 101588120.1 | L15: 109295731.4 | M15: 117569067.1 | O15: =SUM(O8:O14) -> 105078678.3 | V15: 95096750.88
A16: Non current assets
A17: Investments | C17: 9340722.49 | D17: 273643.32 | E17: 0 | F17: 0 | G17: 0 | H17: 0 | I17: 0 | J17: 0 | K17: 273643.32 | L17: 273643.32 | M17: 273643.32 | O17: 273643.32 | Q17: =L17-M17 -> 0 | V17: 273643.32
A18: Investment property | C18: 67392741.07 | D18: 67261934.32 | E18: 0 | F18: 0 | G18: 0 | H18: 0 | I18: 0 | J18: 0 | K18: 67261934.32 | L18: 67261934.32 | M18: 67261934.32 | O18: 67261934.32 | Q18: 0 | V18: 67261934.32
A19: Property, plant and equipment | B19: 3 | C19: 1379590153 | D19: 1333217152 | E19: 0 | F19: 0 | G19: 0 | H19: 0 | I19: -4252213.217 | J19: -4252213.217 | K19: 1328964938 | L19: 1445192046 | M19: 1561748241 | O19: =+'SB2'!O138 -> 1254530434 | Q19: -116556195 | V19: 1333217152
A20: Biological assets | C20: 0 | D20: 0 | E20: 0 | F20: 0 | G20: 0 | H20: 0 | I20: 0 | J20: 0 | K20: 0 | L20: 0 | M20: 0 | O20: 0 | Q20: 0 | V20: 0
A21: Living and non-living resources | C21: 0 | D21: 0 | E21: 0 | F21: 0 | G21: 0 | H21: 0 | I21: 0 | J21: 0 | K21: 0 | L21: 0 | M21: 0 | O21: 0 | Q21: 0 | V21: 0
A22: Heritage assets | C22: 0 | D22: 0 | E22: 0 | F22: 0 | G22: 0 | H22: 0 | I22: 0 | J22: 0 | K22: 0 | L22: 0 | M22: 0 | O22: 0 | Q22: 0 | V22: 0
A23: Intangible assets | C23: 93133.51779 | D23: 99063.56 | E23: 0 | F23: 0 | G23: 0 | H23: 0 | I23: 0 | J23: 0 | K23: 99063.56 | L23: 38551.56 | M23: 8039.56 | O23: 157575.56 | Q23: 30512 | V23: 99063.56
A24: Trade and other receivables from exchange transactions | C24: 0 | D24: 0 | E24: 0 | F24: 0 | G24: 0 | H24: 0 | I24: 0 | J24: 0 | K24: 0 | L24: 0 | M24: 0 | O24: 0 | Q24: 0 | V24: 0
A25: Non-current receivables from non-exchange transactions | C25: 0 | D25: 0 | E25: 0 | F25: 0 | G25: 0 | H25: 0 | I25: 0 | J25: 0 | K25: 0 | L25: 0 | M25: 0 | O25: 0 | Q25: 0 | V25: 0
A26: Other non-current assets | C26: 5131335.02 | D26: 7237690.62 | E26: 0 | F26: 0 | G26: 0 | H26: 0 | I26: 0 | J26: 0 | K26: 7237690.62 | L26: 7237690.62 | M26: 7237690.62 | O26: 7237690.62 | Q26: 0 | V26: 7237690.62
A27: Total non current assets | C27: 1461548085 | D27: 1408089483 | E27: 0 | F27: 0 | G27: 0 | H27: 0 | I27: -4252213.217 | J27: -4252213.217 | K27: 1403837270 | L27: 1520003866 | M27: 1636529549 | O27: =SUM(O17:O26) -> 1329461278 | Q27: =M27-L27 -> 116525683 | V27: 1408089483
A28: TOTAL ASSETS | C28: 1576105070 | D28: 1503186234 | E28: 0 | F28: 0 | G28: 0 | H28: 0 | I28: 2239156 | J28: 2239156 | K28: 1505425390 | L28: 1629299598 | M28: 1754098616 | O28: =O15+O27 -> 1434539957 | V28: 1503186234
A30: LIABILITIES
A31: Current liabilities
A32: Bank overdraft | C32: 0 | D32: 0 | E32: 0 | F32: 0 | G32: 0 | H32: 0 | I32: 0 | J32: 0 | K32: 0 | L32: 0 | M32: 0 | O32: 0 | Q32: =L32-M32 -> 0 | V32: 0
A33: Financial liabilities | C33: 29689231.35 | D33: 20113593.63 | E33: 0 | F33: 0 | G33: 0 | H33: 0 | I33: 0 | J33: 0 | K33: 20113593.63 | L33: 15986875.04 | M33: 13572713.62 | O33: ='SB2'!O144 -> 33338186.15 | Q33: 2414161.42 | S33: =K33-O33 -> -13224592.52 | T33: =L33-K33 -> -4126718.595 | U33: -2414161.42 | V33: 20113593.63
A34: Consumer deposits | C34: 6904065.886 | D34: 7206037.577 | E34: 0 | F34: 0 | G34: 0 | H34: 0 | I34: 0 | J34: 0 | K34: 7206037.577 | L34: 7566339.455 | M34: 7944656.428 | O34: 6862892.93 | Q34: -378316.9728 | S34: =K34-O34 -> 343144.6465 | T34: 360301.8788 | U34: 378316.9728 | V34: 7206037.577
A35: Trade and other payables from exchange transactions | C35: 289407778.6 | D35: 246737262.7 | E35: 0 | F35: 0 | G35: 0 | H35: 0 | I35: 0 | J35: 0 | K35: 246737262.7 | L35: 261244433.4 | M35: 265414744.6 | O35: =+'SB2'!O147+'SB2'!O148 -> 216887118.5 | Q35: -4170311.291 | S35: =K35-O35 -> 29850144.18 | T35: 14507170.65 | U35: 4170311.291 | V35: 246737262.7
A36: Trade and other payables from non-exchange transactions | C36: 651970.8 | D36: 3885745.31 | E36: 0 | F36: 0 | G36: 0 | H36: 0 | I36: 5781347 | J36: 5781347 | K36: 9667092.31 | L36: 9667092.31 | M36: 9667092.31 | O36: =+'SB2'!O149+'SB2'!O150 -> 25823233.8 | Q36: 0 | S36: =K36-O36 -> -16156141.49 | T36: -2.607703209e-08 | U36: 0 | V36: 3885745.31
A37: Provisions | C37: 47506196.41 | D37: 37114344.02 | E37: 0 | F37: 0 | G37: 0 | H37: 0 | I37: 0 | J37: 0 | K37: 37114344.02 | L37: 38970061.22 | M37: 40918564.28 | O37: 35346994.3 | Q37: -1948503.061 | S37: =K37-O37 -> 1767349.715 | T37: 1855717.201 | U37: 1948503.061 | V37: 37114344.02
A38: VAT | C38: 0 | D38: 0 | E38: 0 | F38: 0 | G38: 0 | H38: 0 | I38: 0 | J38: 0 | K38: 0 | L38: 0 | M38: 0 | O38: 0 | Q38: 0 | V38: 0
A39: Other current liabilities | C39: 0 | D39: 0 | E39: 0 | F39: 0 | G39: 0 | H39: 0 | I39: 0 | J39: 0 | K39: 0 | L39: 0 | M39: 0 | O39: 0 | Q39: 0 | V39: 0
A40: Total current liabilities | C40: 374159243.1 | D40: 315056983.2 | E40: 0 | F40: 0 | G40: 0 | H40: 0 | I40: 5781347 | J40: 5781347 | K40: 320838330.2 | L40: 333434801.4 | M40: 337517771.3 | O40: =SUM(O32:O39) -> 318258425.7 | V40: 315056983.2
A42: Non current liabilities
A43: Borrowing | B43: 1 | C43: 113548763.5 | D43: 104400549.1 | E43: 0 | F43: 0 | G43: 0 | H43: 0 | I43: 0 | J43: 0 | K43: 104400549.1 | L43: 88413674.07 | M43: 74840960.45 | O43: ='SB2'!O154 -> 124653221.8 | Q43: =L43-M43 -> 13572713.62 | S43: =K43-O43 -> -20252672.75 | T43: =L43-K43 -> -15986875.04 | U43: =M43-L43 -> -13572713.62 | V43: 104400549.1
A44: Provisions | B44: 1 | C44: 215965488.6 | D44: 229398854 | E44: 0 | F44: 0 | G44: 0 | H44: 0 | I44: 0 | J44: 0 | K44: 229398854 | L44: 249835735.2 | M44: 270500918.7 | O44: ='SB2'!O169 -> 210110851 | Q44: =L44-M44 -> -20665183.45 | V44: 229398854
A45: Long term portion of trade payables | C45: 0 | D45: 0 | E45: 0 | F45: 0 | G45: 0 | H45: 0 | I45: 0 | J45: 0 | K45: 0 | L45: 0 | M45: 0 | O45: ='SB2'!O158 -> 0 | V45: 0
A46: Other non-current liabilities | C46: 0 | D46: 0 | E46: 0 | F46: 0 | G46: 0 | H46: 0 | I46: 0 | J46: 0 | K46: 0 | L46: 0 | M46: 0 | O46: 0 | V46: 0
A47: Total non current liabilities | C47: 329514252.1 | D47: 333799403.1 | E47: 0 | F47: 0 | G47: 0 | H47: 0 | I47: 0 | J47: 0 | K47: 333799403.1 | L47: 338249409.3 | M47: 345341879.1 | O47: =SUM(O43:O46) -> 334764072.9 | Q47: =L47-M47 -> -7092469.831 | V47: 333799403.1
A48: TOTAL LIABILITIES | C48: 703673495.1 | D48: 648856386.4 | E48: 0 | F48: 0 | G48: 0 | H48: 0 | I48: 5781347 | J48: 5781347 | K48: 654637733.4 | L48: 671684210.7 | M48: 682859650.4 | O48: =O40+O47 -> 653022498.6 | Q48: =L48-M48 -> -11175439.74 | V48: 648856386.4
Q49: =L49-M49 -> 0
A50: NET ASSETS | B50: 2 | C50: 872431575 | D50: 854329848 | E50: 0 | F50: 0 | G50: 0 | H50: 0 | I50: -3542191 | J50: -3542191 | K50: 850787657 | L50: 957615387 | M50: 1071238966 | O50: =O28-O48 -> 781517458 | Q50: =L50-M50 -> -113623579 | V50: 854329848
A52: COMMUNITY WEALTH/EQUITY
A53: Accumulated Surplus/(Deficit) | C53: 872431575 | D53: 854329848 | E53: 0 | F53: 0 | G53: 0 | H53: 0 | I53: -3542191 | J53: -3542191 | K53: 850787657 | L53: 957615387 | M53: 1071238966 | O53: ='SB2'!O181 -> 781517458 | P53: =K53-O53 -> 69270199 | V53: 854329848
A54: Funds and Reserves | C54: 0 | D54: 0 | E54: 0 | F54: 0 | G54: 0 | H54: 0 | I54: 0 | J54: 0 | K54: 0 | L54: 0 | M54: 0 | O54: ='SB2'!O188 -> 0 | V54: 0
A55: Other | C55: 0 | D55: 0 | E55: 0 | F55: 0 | G55: 0 | H55: 0 | I55: 0 | J55: 0 | K55: 0 | L55: 0 | M55: 0 | O55: 0 | V55: 0
A56: TOTAL COMMUNITY WEALTH/EQUITY | C56: 872431575 | D56: 854329848 | E56: 0 | F56: 0 | G56: 0 | H56: 0 | I56: -3542191 | J56: -3542191 | K56: 850787657 | L56: 957615387 | M56: 1071238966 | O56: =SUM(O53:O55) -> 781517458 | V56: 854329848
A57: =head27a -> References
A58: 1. Detail to be provided in Table SA3
A59: 2. Net assets must balance with Total Community Wealth/Equity | O59: =O56-O50 -> -0.01662003994
A60: 3. Only complete if a previous adjusted budget has been approved in the same financial year. Reflect most recent adjusted budget.
A61: 4. Additional cash-backed accumulated funds/unspent funds (MFMA section 18(1)(b) and section 28(2)(e)) identified after the Original Budget approved and after annual financial statements audited (note: only where underspending could not reasonably have been foreseen)
A62: 5. Increases of funds approved under MFMA section 31
A63: 6. Adjustments approved in accordance with MFMA section 29
A64: 7. Adjustments to transfers from National or Provincial Government
A65: 8. Adjusts. = 'Other' Adjustments proposed to be approved; including revenue under-collection (MFMA section 28(2)(a)); additional revenue appropriation on existing programmes (section 28(2))(b); projected savings (section 28(2)(d)); error correction (section 28(2)(f))
A66: 9. G = B + C + D + E + F
A67: 10. Adjusted Budget H = (A or A1/2 etc) + G
A69: check balance | C69: =C50-C56 -> 0 | D69: 0 | E69: 0 | F69: 0 | G69: 0 | H69: =H50-H56 -> 0 | I69: 0 | J69: 0 | K69: 0 | L69: 0 | M69: 0 | V69: 0

Sheet B7-CFlow
A1: =muni&" - "&_ADJ7&" - "&Date -> WC031 Theewaterskloof - Table B7 Adjustments Budget Cash Flows - 16 April 2026
A2: =desc -> Description | B2: =head27 -> Ref | C2: =Head2 -> Budget Year 2025/26 | L2: =Head10 -> Budget Year +1 2026/27 | M2: =Head11 -> Budget Year +2 2027/28
C3: =Head6 -> Original Budget | D3: =Head54 -> Prior Adjusted | E3: =Head51 -> Accum. Funds | F3: =Head52 -> Multi-year capital | G3: =Head53 -> Unfore. Unavoid. | H3: =Head55 -> Nat. or Prov. Govt | I3: =Head50 -> Other Adjusts. | J3: =Head56 -> Total Adjusts. | K3: =Head7 -> Adjusted Budget | L3: =Head7 -> Adjusted Budget | M3: =Head7 -> Adjusted Budget | V3: Adjusted Budget
D4: 3 | E4: 4 | F4: 5 | G4: 6 | H4: 7 | I4: 8 | J4: 9 | K4: 10 | V4: 10
A5: R thousands | C5: A | D5: A1 | E5: B | F5: C | G5: D | H5: E | I5: F | J5: G | K5: H | V5: H
A6: CASH FLOW FROM OPERATING ACTIVITIES
A7: Receipts
A8: Property rates | C8: 164589972.3 | D8: 165288904 | E8: 0 | F8: 0 | G8: 0 | H8: 0 | I8: 0 | J8: 0 | K8: 165288904 | L8: 175071117.1 | M8: 179447894.2 | V8: 165288904
A9: Service charges | C9: 307730929.2 | D9: 319896860 | E9: 0 | F9: 0 | G9: 0 | H9: 0 | I9: 0 | J9: 0 | K9: 319896860 | L9: 328717460.9 | M9: 336935395.2 | V9: 319896860
A10: Other revenue | C10: 56218258.66 | D10: 57579121.35 | E10: 0 | F10: 0 | G10: 0 | H10: 0 | I10: -9532350 | J10: -9532350 | K10: 48046771.35 | L10: 54188298.26 | M10: 55428381.59 | V10: 57579121.35
A11: Transfers and Subsidies - Operational | B11: 1 | C11: 166496583 | D11: 162772825 | E11: 0 | F11: 0 | G11: 0 | H11: 0 | I11: -2431943 | J11: -2431943 | K11: 160340882 | L11: 176434180.3 | M11: 184627285.5 | V11: 162772825
A12: Transfers and Subsidies - Capital | B12: 1 | C12: 72237391 | D12: 30487391 | E12: 0 | F12: 0 | G12: 0 | H12: 0 | I12: 1.005828381e-07 | J12: 1.005828381e-07 | K12: 30487391 | L12: 142919999.7 | M12: 146579999.5 | V12: 30487391
A13: Interest | C13: 9390569 | D13: 6245782 | E13: 0 | F13: 0 | G13: 0 | H13: 0 | I13: 0 | J13: 0 | K13: 6245782 | L13: 9745815.15 | M13: 9989460.616 | V13: 6245782
A14: Dividends | C14: 0 | D14: 0 | E14: 0 | F14: 0 | G14: 0 | H14: 0 | I14: 0 | J14: 0 | K14: 0 | L14: 0 | M14: 0 | V14: 0
A15: Payments
A16: Suppliers and employees | C16: -643793855.3 | D16: -644331975.1 | E16: 0 | F16: 0 | G16: 0 | H16: 0 | I16: 16151216.39 | J16: 16151216.39 | K16: -628180758.7 | L16: -699595168 | M16: -712450334.7 | V16: -644331975.1
A17: Finance charges | C17: -24273598 | D17: -33273598 | E17: 0 | F17: 0 | G17: 0 | H17: 0 | I17: 0 | J17: 0 | K17: -33273598 | L17: -25365909 | M17: -26000057 | V17: -33273598
A18: Transfers and Subsidies | B18: 1 | C18: -12080001 | D18: -11549087 | E18: 0 | F18: 0 | G18: 0 | H18: 0 | I18: 0 | J18: 0 | K18: -11549087 | L18: -1 | M18: -1 | V18: -11549087
A19: NET CASH FROM/(USED) OPERATING ACTIVITIES | C19: 96516248.77 | D19: 53116223.28 | E19: 0 | F19: 0 | G19: 0 | H19: 0 | I19: 4186923.388 | J19: 4186923.388 | K19: 57303146.66 | L19: 162115793.3 | M19: 174558023.9 | V19: 53116223.28
A21: CASH FLOWS FROM INVESTING ACTIVITIES
A22: Receipts
A23: Proceeds on disposal of PPE | C23: 49754 | D23: 49744 | E23: 0 | F23: 0 | G23: 0 | H23: 0 | I23: 0 | J23: 0 | K23: 49744 | L23: 51973 | M23: 53292 | V23: 49744
A25: Decrease (increase) in non-current receivables | C25: 0 | D25: 0 | E25: 0 | F25: 0 | G25: 0 | H25: 0 | I25: 0 | J25: 0 | K25: 0 | L25: 0 | M25: 0 | V25: 0
A26: Decrease (increase) in non-current investments | C26: -691905.3696 | D26: 1e-08 | E26: 0 | F26: 0 | G26: 0 | H26: 0 | I26: -1e-08 | J26: -1e-08 | K26: 0 | L26: 0 | M26: 0 | V26: 0
A27: Payments
A28: Capital assets | C28: -88780339.72 | D28: -36087780.24 | E28: 0 | F28: 0 | G28: 0 | H28: 0 | I28: 2304445.828 | J28: 2304445.828 | K28: -33783334.41 | L28: -136370068.9 | M28: -151886258.5 | V28: -36087780.24
A29: NET CASH FROM/(USED) INVESTING ACTIVITIES | C29: -89422491.09 | D29: -36038036.24 | E29: 0 | F29: 0 | G29: 0 | H29: 0 | I29: 2304445.828 | J29: 2304445.828 | K29: -33733590.41 | L29: -136318095.9 | M29: -151832966.5 | V29: -36038036.24
A31: CASH FLOWS FROM FINANCING ACTIVITIES
A32: Receipts
A33: Short term loans | C33: 0 | D33: 0 | E33: 0 | F33: 0 | G33: 0 | H33: 0 | I33: 0 | J33: 0 | K33: 0 | L33: 0 | M33: 0 | V33: 0
A34: Borrowing long term/refinancing | C34: 10000000 | D34: 1e-06 | E34: 0 | F34: 0 | G34: 0 | H34: 0 | I34: -1e-06 | J34: -1e-06 | K34: 0 | L34: 0 | M34: 0 | V34: 0
A35: Increase (decrease) in consumer deposits | C35: 390796.1822 | D35: 343144.6465 | E35: 0 | F35: 0 | G35: 0 | H35: 0 | I35: 0 | J35: 0 | K35: 343144.6465 | L35: 360301.8788 | M35: 378316.9728 | V35: 343144.6465
A36: Payments
A37: Repayment of borrowing | C37: -21257125.17 | D37: -33477265.26 | E37: 0 | F37: 0 | G37: 0 | H37: 0 | I37: 0 | J37: 0 | K37: -33477265.26 | L37: -20113593.63 | M37: -15986875.04 | V37: -33477265.26
A38: NET CASH FROM/(USED) FINANCING ACTIVITIES | C38: -10866328.99 | D38: -33134120.62 | E38: 0 | F38: 0 | G38: 0 | H38: 0 | I38: -1e-06 | J38: -1e-06 | K38: -33134120.62 | L38: -19753291.75 | M38: -15608558.07 | V38: -33134120.62
A40: NET INCREASE/ (DECREASE) IN CASH HELD | C40: -3772571.305 | D40: -16055933.58 | E40: 0 | F40: 0 | G40: 0 | H40: 0 | I40: 6491369.217 | J40: 6491369.217 | K40: -9564564.364 | L40: 6044405.623 | M40: 7116499.322 | V40: -16055933.58
A41: Cash/cash equivalents at the year begin: | B41: 2 | C41: 11736430.96 | D41: 17624430.36 | E41: 0 | F41: 0 | G41: 0 | H41: 0 | I41: 0 | J41: 0 | K41: 17624430.36 | L41: 8059865.996 | M41: 14104271.62 | V41: 17624430.36
A42: Cash/cash equivalents at the year end: | B42: 2 | C42: 7963859.657 | D42: 1568496.78 | E42: 0 | F42: 0 | G42: 0 | H42: 0 | I42: 6491369.217 | J42: 6491369.217 | K42: 8059865.996 | L42: 14104271.62 | M42: 21220770.94 | V42: 1568496.78
A43: =head27a -> References
A44: 1. Local/District municipalities to include transfers from/to District/Local Municipalities | K44: =K42-'B6-FinPos'!K8 -> 0.5066205403 | L44: =L42-'B6-FinPos'!L8 -> 0.5066205803 | M44: =M42-'B6-FinPos'!M8 -> -0.4933793843 | V44: 0.5066204211
A45: 2. Cash equivalents includes investments with maturities of 3 months or less
A46: 3. Only complete if a previous adjusted budget has been approved in the same financial year. Reflect most recent adjusted budget.
A47: 4. Additional cash-backed accumulated funds/unspent funds (MFMA section 18(1)(b) and section 28(2)(e)) identified after the Original Budget approved and after annual financial statements audited (note: only where underspending could not reasonably have been foreseen)
A48: 5. Increases of funds approved under MFMA section 31
A49: 6. Adjustments approved in accordance with MFMA section 29
A50: 7. Adjustments to transfers from National or Provincial Government
A51: 8. Adjusts. = 'Other' Adjustments proposed to be approved; including revenue under-collection (MFMA section 28(2)(a)); additional revenue appropriation on existing programmes (section 28(2))(b); projected savings (section 28(2)(d)); error correction (section 28(2)(f))
A52: 9. G = B + C + D + E + F
A53: 10. Adjusted Budget H = (A or A1) + G

Sheet B8-ResRecon
A1: =muni&" - "&_ADJ8&" - "&Date -> WC031 Theewaterskloof - Table B8 Cash backed reserves/accumulated surplus reconciliation - 16 April 2026
A2: =desc -> Description | B2: =head27 -> Ref | C2: =Head2 -> Budget Year 2025/26 | L2: =Head10 -> Budget Year +1 2026/27 | M2: =Head11 -> Budget Year +2 2027/28
C3: =Head6 -> Original Budget | D3: =Head54 -> Prior Adjusted | E3: =Head51 -> Accum. Funds | F3: =Head52 -> Multi-year capital | G3: =Head53 -> Unfore. Unavoid. | H3: =Head55 -> Nat. or Prov. Govt | I3: =Head50 -> Other Adjusts. | J3: =Head56 -> Total Adjusts. | K3: =Head7 -> Adjusted Budget | L3: =Head7 -> Adjusted Budget | M3: =Head7 -> Adjusted Budget | V3: Adjusted Budget
D4: 3 | E4: 4 | F4: 5 | G4: 6 | H4: 7 | I4: 8 | J4: 9 | K4: 10 | V4: 10
A5: R thousands | C5: A | D5: A1 | E5: B | F5: C | G5: D | H5: E | I5: F | J5: G | K5: H | V5: H
A6: Cash and investments available
A7: Cash/cash equivalents at the year end | B7: 1 | C7: 7963859.657 | D7: 1568496.78 | E7: 0 | F7: 0 | G7: 0 | H7: 0 | I7: 6491369.217 | J7: 6491369.217 | K7: 8059865.996 | L7: 14104271.62 | M7: 21220770.94 | V7: 1568496.78
A8: Other current investments > 90 days | C8: 0.002987456508 | D8: -0.5066214306 | E8: 0 | F8: 0 | G8: 0 | H8: 0 | I8: 9.089708328e-07 | J8: 9.089708328e-07 | K8: -0.5066205217 | L8: -0.5066205803 | M8: 0.4933793843 | V8: -0.5066204807
A9: Non current assets - Investments | B9: 1 | C9: 9340722.49 | D9: 273643.32 | E9: 0 | F9: 0 | G9: 0 | H9: 0 | I9: 0 | J9: 0 | K9: 273643.32 | L9: 273643.32 | M9: 273643.32 | V9: 273643.32
A10: Cash and investments available: | C10: 17304582.15 | D10: 1842139.593 | E10: 0 | F10: 0 | G10: 0 | H10: 0 | I10: 6491369.217 | J10: 6491369.217 | K10: 8333508.81 | L10: 14377914.43 | M10: 21494414.76 | V10: 1842139.593
A12: Applications of cash and investments
A13: Unspent conditional transfers | C13: 527594 | D13: 3761368.51 | E13: 0 | F13: 0 | G13: 0 | H13: 0 | I13: 5781347 | J13: 5781347 | K13: 9542715.51 | L13: 9542715.51 | M13: 9542715.51 | V13: 3761368.51
A14: Unspent borrowing | C14: 0 | D14: 0 | E14: 0 | F14: 0 | G14: 0 | H14: 0 | I14: 0 | J14: 0 | K14: 0 | L14: 0 | M14: 0 | V14: 0
A15: Statutory requirements | C15: 0 | D15: 0 | E15: 0 | F15: 0 | G15: 0 | H15: 0 | I15: 0 | J15: 0 | K15: 0 | L15: 0 | M15: 0 | V15: 0
A16: Other working capital requirements | B16: 2 | C16: 218124778.6 | D16: 180850253.7 | I16: 189292 | J16: 189292 | K16: 181039545.7 | L16: 192277930.4 | M16: 195397843.6 | V16: 180850253.7
A17: Other provisions | C17: 47506196.41 | D17: 47506196.41 | E17: 0 | F17: 0 | G17: 0 | H17: 0 | I17: -10391852.4 | J17: -10391852.4 | K17: 37114344.02 | L17: 50356568.2 | M17: 53377962.29 | V17: 47506196.41
A18: Long term investments committed | C18: 9340722.49 | D18: 273643.32 | I18: 0 | J18: 0 | K18: 273643.32 | L18: 273643.32 | M18: 273643.32 | V18: 273643.32
A19: Reserves to be backed by cash/investments | C19: 0 | D19: 0 | I19: 0 | J19: 0 | K19: 0 | L19: 0 | M19: 0 | V19: 0
A20: Total Application of cash and investments: | C20: 275499291.5 | D20: 232391461.9 | E20: 0 | F20: 0 | G20: 0 | H20: 0 | I20: -4421213.398 | J20: -4421213.398 | K20: 227970248.6 | L20: 252450857.4 | M20: 258592164.8 | V20: 232391461.9
A21: Surplus(shortfall) | C21: -258194709.4 | D21: -230549322.4 | E21: 0 | F21: 0 | G21: 0 | H21: 0 | I21: 10912582.61 | J21: 10912582.61 | K21: -219636739.7 | L21: -238072942.9 | M21: -237097750 | V21: -230549322.4
A22: =head27a -> References
A23: 1. Must reconcile with the Adjustments Budget Cash Flow and Adjustements Budget Financial Position
A24: 2. Council approval for policy required - include sufficient working capital (e.g. allowing for a % of current debtors > 90 days as uncollectable)
A25: 3. Only complete if a previous adjusted budget has been approved in the same financial year. Reflect most recent adjusted budget.
A26: 4. Additional cash-backed accumulated funds/unspent funds (MFMA section 18(1)(b) and section 28(2)(e)) identified after the Original Budget approved and after annual financial statements audited (note: only where underspending could not reasonably have been foreseen)
A27: 5. Increases of funds approved under MFMA section 31
A28: 6. Adjustments approved in accordance with MFMA section 29
A29: 7. Adjustments to transfers from National or Provincial Government
A30: 8. Adjusts. = 'Other' Adjustments proposed to be approved; including revenue under-collection (MFMA section 28(2)(a)); additional revenue appropriation on existing programmes (section 28(2))(b); projected savings (section 28(2)(d)); error correction (section 28(2)(f))
A31: 9. G = B + C + D + E + F
A32: 10. Adjusted Budget H = (A or A1) + G
A37: =A16 -> Other working capital requirements
A38: Debtors | C38: =IF(ISERROR(ROUND(C43*C44,-3)),0,(ROUND(C44*C43,-3))) -> 71283000 | D38: =IF(ISERROR(ROUND(D43*D44,0)),0,(ROUND(D43*D44,0))) -> 65887009 | K38: =IF(ISERROR(ROUND(K43*K44,0)),0,(ROUND(K43*K44,0))) -> 65697717 | L38: =IF(ISERROR(ROUND(L43*L44,0)),0,(ROUND(L43*L44,0))) -> 68966503 | M38: =IF(ISERROR(ROUND(M43*M44,0)),0,(ROUND(M43*M44,0))) -> 70016901 | V38: 65887009
A39: Creditors due | C39: ='SB2'!C147+'SB2'!C148 -> 289407778.6 | D39: ='SB2'!D147+'SB2'!D148 -> 246737262.7 | E39: ='SB2'!E147+'SB2'!E148 -> 0 | F39: ='SB2'!F147+'SB2'!F148 -> 0 | G39: ='SB2'!G147+'SB2'!G148 -> 0 | H39: ='SB2'!H147+'SB2'!H148 -> 0 | I39: ='SB2'!I147+'SB2'!I148 -> 0 | J39: ='SB2'!J147+'SB2'!J148 -> 0 | K39: ='SB2'!K147+'SB2'!K148 -> 246737262.7 | L39: ='SB2'!L147+'SB2'!L148 -> 261244433.4 | M39: ='SB2'!M147+'SB2'!M148 -> 265414744.6 | V39: 246737262.7
A40: Total | C40: =C38-C39 -> -218124778.6 | D40: =D38-D39 -> -180850253.7 | K40: =K38-K39 -> -181039545.7 | L40: =L38-L39 -> -192277930.4 | M40: =M38-M39 -> -195397843.6 | V40: -180850253.7
A42: Debtors collection assumptions:
A43: Balance outstanding - debtors | C43: ='B6-FinPos'!C9+'B6-FinPos'!C10+'B6-FinPos'!C11+'B6-FinPos'!C24+'B6-FinPos'!C25 -> 83907150.15 | D43: ='B6-FinPos'!D9+'B6-FinPos'!D10+'B6-FinPos'!D11+'B6-FinPos'!D24+'B6-FinPos'!D25 -> 78546787.5 | K43: ='B6-FinPos'!K9+'B6-FinPos'!K10+'B6-FinPos'!K11+'B6-FinPos'!K24+'B6-FinPos'!K25 -> 78546787.5 | L43: ='B6-FinPos'!L9+'B6-FinPos'!L10+'B6-FinPos'!L11+'B6-FinPos'!L24+'B6-FinPos'!L25 -> 80209993.18 | M43: ='B6-FinPos'!M9+'B6-FinPos'!M10+'B6-FinPos'!M11+'B6-FinPos'!M24+'B6-FinPos'!M25 -> 81366828.59 | V43: 78546787.5
A44: Estimate of debtors collection rate | C44: =IF(ISERROR('SB6'!G10),0,('SB6'!G10)) -> 0.8495512207 | D44: =IF(ISERROR('SB6'!H10),0,('SB6'!H10)) -> 0.8388249987 | K44: =IF(ISERROR('SB6'!I10),0,('SB6'!I10)) -> 0.8364150774 | L44: =IF(ISERROR('SB6'!J10),0,('SB6'!J10)) -> 0.8598243261 | M44: =IF(ISERROR('SB6'!K10),0,('SB6'!K10)) -> 0.8605091569 | V44: 0.8388249987
A46: =A18 -> Long term investments committed
A47: (Insert description; eg sinking fund) | C47: ='B6-FinPos'!C17 -> 9340722.49 | D47: ='B6-FinPos'!D17 -> 273643.32 | E47: ='B6-FinPos'!E17 -> 0 | F47: ='B6-FinPos'!F17 -> 0 | G47: ='B6-FinPos'!G17 -> 0 | H47: ='B6-FinPos'!H17 -> 0 | I47: ='B6-FinPos'!I17 -> 0 | J47: ='B6-FinPos'!J17 -> 0 | K47: ='B6-FinPos'!K17 -> 273643.32 | L47: ='B6-FinPos'!L17 -> 273643.32 | M47: ='B6-FinPos'!M17 -> 273643.32 | V47: 273643.32
C55: =SUM(C47:C54) -> 9340722.49 | D55: =SUM(D47:D54) -> 273643.32 | K55: =SUM(K47:K54) -> 273643.32 | L55: =SUM(L47:L54) -> 273643.32 | M55: =SUM(M47:M54) -> 273643.32 | V55: 273643.32
A57: =A19 -> Reserves to be backed by cash/investments
A58: Housing Development Fund | C58: =+'SB2'!C183 -> 0 | D58: =+'SB2'!D183 -> 0 | K58: =+'SB2'!K183 -> 0 | L58: =+'SB2'!L183 -> 0 | M58: =+'SB2'!M183 -> 0 | V58: 0
A59: Capital replacement | C59: ='SB2'!C184 -> 0 | D59: ='SB2'!D184 -> 0 | K59: ='SB2'!K184 -> 0 | L59: ='SB2'!L184 -> 0 | M59: ='SB2'!M184 -> 0 | V59: 0
A60: Self-insurance
A61: Compensation for Occupational Injuries and Diseases
A62: Employee Benefit
A63: Non-current Provisions
A64: Valuation
A65: Investment in associate account
A66: Capitalisation
C69: ='SB2'!C186 -> 0 | D69: ='SB2'!D186 -> 0 | K69: ='SB2'!K186 -> 0 | L69: ='SB2'!L186 -> 0 | M69: ='SB2'!M186 -> 0 | V69: 0
C70: =SUM(C58:C69) -> 0 | D70: =SUM(D58:D69) -> 0 | K70: =SUM(K58:K69) -> 0 | L70: 0 | M70: 0 | V70: 0

Sheet B9-Asset
A1: =muni&" - "&_ADJ9&" - "&Date -> WC031 Theewaterskloof - Table B9 Asset Management - 16 April 2026
A2: =desc -> Description | B2: =head27 -> Ref | C2: =Head2 -> Budget Year 2025/26 | L2: =Head10 -> Budget Year +1 2026/27 | M2: =Head11 -> Budget Year +2 2027/28
C3: =Head6 -> Original Budget | D3: =Head54 -> Prior Adjusted | E3: =Head51 -> Accum. Funds | F3: =Head52 -> Multi-year capital | G3: =Head53 -> Unfore. Unavoid. | H3: =Head55 -> Nat. or Prov. Govt | I3: =Head50 -> Other Adjusts. | J3: =Head56 -> Total Adjusts. | K3: =Head7 -> Adjusted Budget | L3: =Head7 -> Adjusted Budget | M3: =Head7 -> Adjusted Budget | V3: Adjusted Budget
D4: 7 | E4: 8 | F4: 9 | G4: 10 | H4: 11 | I4: 12 | J4: 13 | K4: 14 | V4: 14
A5: R thousands | C5: A | D5: A1 | E5: B | F5: C | G5: D | H5: E | I5: F | J5: G | K5: H | V5: H
A6: CAPITAL EXPENDITURE
A7: Total New Assets to be adjusted | B7: 1 | C7: =C17+C20+C21+C24+C27+C28+SUM(C31:C37)+C40 -> 45762340.07 | D7: =D17+D20+D21+D24+D27+D28+SUM(D31:D37)+D40 -> 85165777 | E7: 0 | F7: 0 | G7: 0 | H7: 0 | I7: -1892129 | J7: -1892129 | K7: 83273648 | L7: 114020000 | M7: 116471000 | V7: 85165777
A8: Roads Infrastructure | C8: =SB18a!C9 -> 45288340.07 | D8: =SB18a!D9 -> 78724340 | E8: =SB18a!E9 -> 0 | F8: =SB18a!F9 -> 0 | G8: =SB18a!G9 -> 0 | H8: =SB18a!H9 -> 0 | I8: =SB18a!I9 -> 617742 | J8: =SB18a!J9 -> 617742 | K8: =SB18a!K9 -> 79342082 | L8: =SB18a!L9 -> 108020000 | M8: =SB18a!M9 -> 110200000 | V8: 78724340
A9: Storm water Infrastructure | C9: =SB18a!C14 -> 0 | D9: =SB18a!D14 -> 0 | E9: =SB18a!E14 -> 0 | F9: =SB18a!F14 -> 0 | G9: =SB18a!G14 -> 0 | H9: =SB18a!H14 -> 0 | I9: =SB18a!I14 -> 0 | J9: =SB18a!J14 -> 0 | K9: =SB18a!K14 -> 0 | L9: =SB18a!L14 -> 0 | M9: =SB18a!M14 -> 0 | V9: 0
A10: Electrical Infrastructure | C10: =SB18a!C18 -> 0 | D10: =SB18a!D18 -> 1277437 | E10: =SB18a!E18 -> 0 | F10: =SB18a!F18 -> 0 | G10: =SB18a!G18 -> 0 | H10: =SB18a!H18 -> 0 | I10: =SB18a!I18 -> -1277437 | J10: =SB18a!J18 -> -1277437 | K10: =SB18a!K18 -> 0 | L10: =SB18a!L18 -> 6000000 | M10: =SB18a!M18 -> 6271000 | V10: 1277437
A11: Water Supply Infrastructure | C11: =SB18a!C28 -> 0 | D11: =SB18a!D28 -> 0 | E11: =SB18a!E28 -> 0 | F11: =SB18a!F28 -> 0 | G11: =SB18a!G28 -> 0 | H11: =SB18a!H28 -> 0 | I11: =SB18a!I28 -> 0 | J11: =SB18a!J28 -> 0 | K11: =SB18a!K28 -> 0 | L11: =SB18a!L28 -> 0 | M11: =SB18a!M28 -> 0 | V11: 0
A12: Sanitation Infrastructure | C12: =SB18a!C39 -> 0 | D12: =SB18a!D39 -> 0 | E12: =SB18a!E39 -> 0 | F12: =SB18a!F39 -> 0 | G12: =SB18a!G39 -> 0 | H12: =SB18a!H39 -> 0 | I12: =SB18a!I39 -> 0 | J12: =SB18a!J39 -> 0 | K12: =SB18a!K39 -> 0 | L12: =SB18a!L39 -> 0 | M12: =SB18a!M39 -> 0 | V12: 0
A13: Solid Waste Infrastructure | C13: =SB18a!C46 -> 0 | D13: =SB18a!D46 -> 0 | E13: =SB18a!E46 -> 0 | F13: =SB18a!F46 -> 0 | G13: =SB18a!G46 -> 0 | H13: =SB18a!H46 -> 0 | I13: =SB18a!I46 -> 0 | J13: =SB18a!J46 -> 0 | K13: =SB18a!K46 -> 0 | L13: =SB18a!L46 -> 0 | M13: =SB18a!M46 -> 0 | V13: 0
A14: Rail Infrastructure | C14: =SB18a!C54 -> 0 | D14: =SB18a!D54 -> 0 | E14: =SB18a!E54 -> 0 | F14: =SB18a!F54 -> 0 | G14: =SB18a!G54 -> 0 | H14: =SB18a!H54 -> 0 | I14: =SB18a!I54 -> 0 | J14: =SB18a!J54 -> 0 | K14: =SB18a!K54 -> 0 | L14: =SB18a!L54 -> 0 | M14: =SB18a!M54 -> 0 | V14: 0
A15: Coastal Infrastructure | C15: =SB18a!C64 -> 0 | D15: =SB18a!D64 -> 0 | E15: =SB18a!E64 -> 0 | F15: =SB18a!F64 -> 0 | G15: =SB18a!G64 -> 0 | H15: =SB18a!H64 -> 0 | I15: =SB18a!I64 -> 0 | J15: =SB18a!J64 -> 0 | K15: =SB18a!K64 -> 0 | L15: =SB18a!L64 -> 0 | M15: =SB18a!M64 -> 0 | V15: 0
A16: Information and Communication Infrastructure | C16: =SB18a!C70 -> 0 | D16: =SB18a!D70 -> 0 | E16: =SB18a!E70 -> 0 | F16: =SB18a!F70 -> 0 | G16: =SB18a!G70 -> 0 | H16: =SB18a!H70 -> 0 | I16: =SB18a!I70 -> 0 | J16: =SB18a!J70 -> 0 | K16: =SB18a!K70 -> 0 | L16: =SB18a!L70 -> 0 | M16: =SB18a!M70 -> 0 | V16: 0
A17: Infrastructure | C17: =SUM(C8:C16) -> 45288340.07 | D17: =SUM(D8:D16) -> 80001777 | E17: 0 | F17: 0 | G17: 0 | H17: 0 | I17: -659695 | J17: -659695 | K17: 79342082 | L17: 114020000 | M17: 116471000 | V17: 80001777
A18: Community Facilities | C18: =SB18a!C77 -> 0 | D18: =SB18a!D77 -> 1550000 | E18: =SB18a!E77 -> 0 | F18: =SB18a!F77 -> 0 | G18: =SB18a!G77 -> 0 | H18: =SB18a!H77 -> 0 | I18: =SB18a!I77 -> -1100000 | J18: =SB18a!J77 -> -1100000 | K18: =SB18a!K77 -> 450000 | L18: =SB18a!L77 -> 0 | M18: =SB18a!M77 -> 0 | V18: 1550000
A19: Sport and Recreation Facilities | C19: =SB18a!C100 -> 0 | D19: =SB18a!D100 -> 0 | E19: =SB18a!E100 -> 0 | F19: =SB18a!F100 -> 0 | G19: =SB18a!G100 -> 0 | H19: =SB18a!H100 -> 0 | I19: =SB18a!I100 -> 0 | J19: =SB18a!J100 -> 0 | K19: =SB18a!K100 -> 0 | L19: =SB18a!L100 -> 0 | M19: =SB18a!M100 -> 0 | V19: 0
A20: Community Assets | C20: =SUM(C18:C19) -> 0 | D20: =SUM(D18:D19) -> 1550000 | E20: 0 | F20: 0 | G20: 0 | H20: 0 | I20: -1100000 | J20: -1100000 | K20: 450000 | L20: 0 | M20: 0 | V20: 1550000
A21: Heritage Assets | C21: =SB18a!C105 -> 0 | D21: =SB18a!D105 -> 0 | E21: =SB18a!E105 -> 0 | F21: =SB18a!F105 -> 0 | G21: =SB18a!G105 -> 0 | H21: =SB18a!H105 -> 0 | I21: =SB18a!I105 -> 0 | J21: =SB18a!J105 -> 0 | K21: =SB18a!K105 -> 0 | L21: =SB18a!L105 -> 0 | M21: =SB18a!M105 -> 0 | V21: 0
A22: Revenue Generating | C22: =SB18a!C113 -> 0 | D22: =SB18a!D113 -> 0 | E22: =SB18a!E113 -> 0 | F22: =SB18a!F113 -> 0 | G22: =SB18a!G113 -> 0 | H22: =SB18a!H113 -> 0 | I22: =SB18a!I113 -> 0 | J22: =SB18a!J113 -> 0 | K22: =SB18a!K113 -> 0 | L22: =SB18a!L113 -> 0 | M22: =SB18a!M113 -> 0 | V22: 0
A23: Non-revenue Generating | C23: =SB18a!C116 -> 0 | D23: =SB18a!D116 -> 0 | E23: =SB18a!E116 -> 0 | F23: =SB18a!F116 -> 0 | G23: =SB18a!G116 -> 0 | H23: =SB18a!H116 -> 0 | I23: =SB18a!I116 -> 0 | J23: =SB18a!J116 -> 0 | K23: =SB18a!K116 -> 0 | L23: =SB18a!L116 -> 0 | M23: =SB18a!M116 -> 0 | V23: 0
A24: Investment properties | C24: =SUM(C22:C23) -> 0 | D24: =SUM(D22:D23) -> 0 | E24: 0 | F24: 0 | G24: 0 | H24: 0 | I24: 0 | J24: 0 | K24: 0 | L24: 0 | M24: 0 | V24: 0
A25: Operational Buildings | C25: =SB18a!C121 -> 0 | D25: =SB18a!D121 -> 0 | E25: =SB18a!E121 -> 0 | F25: =SB18a!F121 -> 0 | G25: =SB18a!G121 -> 0 | H25: =SB18a!H121 -> 0 | I25: =SB18a!I121 -> 0 | J25: =SB18a!J121 -> 0 | K25: =SB18a!K121 -> 0 | L25: =SB18a!L121 -> 0 | M25: =SB18a!M121 -> 0 | V25: 0
A26: Housing | C26: =SB18a!C133 -> 0 | D26: =SB18a!D133 -> 0 | E26: =SB18a!E133 -> 0 | F26: =SB18a!F133 -> 0 | G26: =SB18a!G133 -> 0 | H26: =SB18a!H133 -> 0 | I26: =SB18a!I133 -> 0 | J26: =SB18a!J133 -> 0 | K26: =SB18a!K133 -> 0 | L26: =SB18a!L133 -> 0 | M26: =SB18a!M133 -> 0 | V26: 0
A27: Other Assets | B27: 6 | C27: =SUM(C25:C26) -> 0 | D27: =SUM(D25:D26) -> 0 | E27: 0 | F27: 0 | G27: 0 | H27: 0 | I27: 0 | J27: 0 | K27: 0 | L27: 0 | M27: 0 | V27: 0
A28: Biological or Cultivated Assets | C28: =SB18a!C138 -> 0 | D28: =SB18a!D138 -> 0 | E28: =SB18a!E138 -> 0 | F28: =SB18a!F138 -> 0 | G28: =SB18a!G138 -> 0 | H28: =SB18a!H138 -> 0 | I28: =SB18a!I138 -> 0 | J28: =SB18a!J138 -> 0 | K28: =SB18a!K138 -> 0 | L28: =SB18a!L138 -> 0 | M28: =SB18a!M138 -> 0 | V28: 0
A29: Servitudes | C29: =SB18a!C142 -> 0 | D29: =SB18a!D142 -> 0 | E29: =SB18a!E142 -> 0 | F29: =SB18a!F142 -> 0 | G29: =SB18a!G142 -> 0 | H29: =SB18a!H142 -> 0 | I29: =SB18a!I142 -> 0 | J29: =SB18a!J142 -> 0 | K29: =SB18a!K142 -> 0 | L29: =SB18a!L142 -> 0 | M29: =SB18a!M142 -> 0 | V29: 0
A30: Licences and Rights | C30: =SB18a!C143 -> 0 | D30: =SB18a!D143 -> 0 | E30: =SB18a!E143 -> 0 | F30: =SB18a!F143 -> 0 | G30: =SB18a!G143 -> 0 | H30: =SB18a!H143 -> 0 | I30: =SB18a!I143 -> 0 | J30: =SB18a!J143 -> 0 | K30: =SB18a!K143 -> 0 | L30: =SB18a!L143 -> 0 | M30: =SB18a!M143 -> 0 | V30: 0
A31: Intangible Assets | C31: =SUM(C29:C30) -> 0 | D31: =SUM(D29:D30) -> 0 | E31: 0 | F31: 0 | G31: 0 | H31: 0 | I31: 0 | J31: 0 | K31: 0 | L31: 0 | M31: 0 | V31: 0
A32: Computer Equipment | C32: =SB18a!C151 -> 50000 | D32: =SB18a!D151 -> 2470000 | E32: =SB18a!E151 -> 0 | F32: =SB18a!F151 -> 0 | G32: =SB18a!G151 -> 0 | H32: =SB18a!H151 -> 0 | I32: =SB18a!I151 -> -233000 | J32: =SB18a!J151 -> -233000 | K32: =SB18a!K151 -> 2237000 | L32: =SB18a!L151 -> 0 | M32: =SB18a!M151 -> 0 | V32: 2470000
A33: Furniture and Office Equipment | C33: =SB18a!C154 -> 374000 | D33: =SB18a!D154 -> 414000 | E33: =SB18a!E154 -> 0 | F33: =SB18a!F154 -> 0 | G33: =SB18a!G154 -> 0 | H33: =SB18a!H154 -> 0 | I33: =SB18a!I154 -> 100566 | J33: =SB18a!J154 -> 100566 | K33: =SB18a!K154 -> 514566 | L33: =SB18a!L154 -> 0 | M33: =SB18a!M154 -> 0 | V33: 414000
A34: Machinery and Equipment | C34: =SB18a!C157 -> 50000 | D34: =SB18a!D157 -> 730000 | E34: =SB18a!E157 -> 0 | F34: =SB18a!F157 -> 0 | G34: =SB18a!G157 -> 0 | H34: =SB18a!H157 -> 0 | I34: =SB18a!I157 -> 0 | J34: =SB18a!J157 -> 0 | K34: =SB18a!K157 -> 730000 | L34: =SB18a!L157 -> 0 | M34: =SB18a!M157 -> 0 | V34: 730000
A35: Transport Assets | C35: =SB18a!C160 -> 0 | D35: =SB18a!D160 -> 0 | E35: =SB18a!E160 -> 0 | F35: =SB18a!F160 -> 0 | G35: =SB18a!G160 -> 0 | H35: =SB18a!H160 -> 0 | I35: =SB18a!I160 -> 0 | J35: =SB18a!J160 -> 0 | K35: =SB18a!K160 -> 0 | L35: =SB18a!L160 -> 0 | M35: =SB18a!M160 -> 0 | V35: 0
A36: Land | C36: =SB18a!C163 -> 0 | D36: =SB18a!D163 -> 0 | E36: =SB18a!E163 -> 0 | F36: =SB18a!F163 -> 0 | G36: =SB18a!G163 -> 0 | H36: =SB18a!H163 -> 0 | I36: =SB18a!I163 -> 0 | J36: =SB18a!J163 -> 0 | K36: =SB18a!K163 -> 0 | L36: =SB18a!L163 -> 0 | M36: =SB18a!M163 -> 0 | V36: 0
A37: Zoo's, Marine and Non-biological Animals | C37: =SB18a!C166 -> 0 | D37: =SB18a!D166 -> 0 | E37: =SB18a!E166 -> 0 | F37: =SB18a!F166 -> 0 | G37: =SB18a!G166 -> 0 | H37: =SB18a!H166 -> 0 | I37: =SB18a!I166 -> 0 | J37: =SB18a!J166 -> 0 | K37: =SB18a!K166 -> 0 | L37: =SB18a!L166 -> 0 | M37: =SB18a!M166 -> 0 | V37: 0
A38: Mature | C38: =+SB18a!C170 -> 0 | D38: =+SB18a!D170 -> 0 | E38: =+SB18a!E170 -> 0 | F38: =+SB18a!F170 -> 0 | G38: =+SB18a!G170 -> 0 | H38: =+SB18a!H170 -> 0 | I38: =+SB18a!I170 -> 0 | J38: =+SB18a!J170 -> 0 | K38: =+SB18a!K170 -> 0 | L38: =+SB18a!L170 -> 0 | M38: =+SB18a!M170 -> 0 | V38: 0
A39: Immature | C39: =+SB18a!C173 -> 0 | D39: =+SB18a!D173 -> 0 | E39: =+SB18a!E173 -> 0 | F39: =+SB18a!F173 -> 0 | G39: =+SB18a!G173 -> 0 | H39: =+SB18a!H173 -> 0 | I39: =+SB18a!I173 -> 0 | J39: =+SB18a!J173 -> 0 | K39: =+SB18a!K173 -> 0 | L39: =+SB18a!L173 -> 0 | M39: =+SB18a!M173 -> 0 | V39: 0
A40: Living Resources | C40: =+C38+C39 -> 0 | D40: =+D38+D39 -> 0 | E40: 0 | F40: 0 | G40: 0 | H40: 0 | I40: 0 | J40: 0 | K40: 0 | L40: 0 | M40: 0 | V40: 0
A42: Total Renewal of Existing Assets to be adjusted | B42: 2 | C42: =C52+C55+C56+C59+C62+C63+SUM(C66:C72)+C75 -> 0 | D42: =D52+D55+D56+D59+D62+D63+SUM(D66:D72)+D75 -> 0 | E42: 0 | F42: 0 | G42: 0 | H42: 0 | I42: 0 | J42: 0 | K42: 0 | L42: 0 | M42: 0 | V42: 0
A43: Roads Infrastructure | C43: =SB18b!C9 -> 0 | D43: =SB18b!D9 -> 0 | E43: =SB18b!E9 -> 0 | F43: =SB18b!F9 -> 0 | G43: =SB18b!G9 -> 0 | H43: =SB18b!H9 -> 0 | I43: =SB18b!I9 -> 0 | J43: =SB18b!J9 -> 0 | K43: =SB18b!K9 -> 0 | L43: =SB18b!L9 -> 0 | M43: =SB18b!M9 -> 0 | V43: 0
A44: Storm water Infrastructure | C44: =SB18b!C14 -> 0 | D44: =SB18b!D14 -> 0 | E44: =SB18b!E14 -> 0 | F44: =SB18b!F14 -> 0 | G44: =SB18b!G14 -> 0 | H44: =SB18b!H14 -> 0 | I44: =SB18b!I14 -> 0 | J44: =SB18b!J14 -> 0 | K44: =SB18b!K14 -> 0 | L44: =SB18b!L14 -> 0 | M44: =SB18b!M14 -> 0 | V44: 0
A45: Electrical Infrastructure | C45: =SB18b!C18 -> 0 | D45: =SB18b!D18 -> 0 | E45: =SB18b!E18 -> 0 | F45: =SB18b!F18 -> 0 | G45: =SB18b!G18 -> 0 | H45: =SB18b!H18 -> 0 | I45: =SB18b!I18 -> 0 | J45: =SB18b!J18 -> 0 | K45: =SB18b!K18 -> 0 | L45: =SB18b!L18 -> 0 | M45: =SB18b!M18 -> 0 | V45: 0
A46: Water Supply Infrastructure | C46: =SB18b!C28 -> 0 | D46: =SB18b!D28 -> 0 | E46: =SB18b!E28 -> 0 | F46: =SB18b!F28 -> 0 | G46: =SB18b!G28 -> 0 | H46: =SB18b!H28 -> 0 | I46: =SB18b!I28 -> 0 | J46: =SB18b!J28 -> 0 | K46: =SB18b!K28 -> 0 | L46: =SB18b!L28 -> 0 | M46: =SB18b!M28 -> 0 | V46: 0
A47: Sanitation Infrastructure | C47: =SB18b!C39 -> 0 | D47: =SB18b!D39 -> 0 | E47: =SB18b!E39 -> 0 | F47: =SB18b!F39 -> 0 | G47: =SB18b!G39 -> 0 | H47: =SB18b!H39 -> 0 | I47: =SB18b!I39 -> 0 | J47: =SB18b!J39 -> 0 | K47: =SB18b!K39 -> 0 | L47: =SB18b!L39 -> 0 | M47: =SB18b!M39 -> 0 | V47: 0
A48: Solid Waste Infrastructure | C48: =SB18b!C46 -> 0 | D48: =SB18b!D46 -> 0 | E48: =SB18b!E46 -> 0 | F48: =SB18b!F46 -> 0 | G48: =SB18b!G46 -> 0 | H48: =SB18b!H46 -> 0 | I48: =SB18b!I46 -> 0 | J48: =SB18b!J46 -> 0 | K48: =SB18b!K46 -> 0 | L48: =SB18b!L46 -> 0 | M48: =SB18b!M46 -> 0 | V48: 0
A49: Rail Infrastructure | C49: =SB18b!C54 -> 0 | D49: =SB18b!D54 -> 0 | E49: =SB18b!E54 -> 0 | F49: =SB18b!F54 -> 0 | G49: =SB18b!G54 -> 0 | H49: =SB18b!H54 -> 0 | I49: =SB18b!I54 -> 0 | J49: =SB18b!J54 -> 0 | K49: =SB18b!K54 -> 0 | L49: =SB18b!L54 -> 0 | M49: =SB18b!M54 -> 0 | V49: 0
A50: Coastal Infrastructure | C50: =SB18b!C64 -> 0 | D50: =SB18b!D64 -> 0 | E50: =SB18b!E64 -> 0 | F50: =SB18b!F64 -> 0 | G50: =SB18b!G64 -> 0 | H50: =SB18b!H64 -> 0 | I50: =SB18b!I64 -> 0 | J50: =SB18b!J64 -> 0 | K50: =SB18b!K64 -> 0 | L50: =SB18b!L64 -> 0 | M50: =SB18b!M64 -> 0 | V50: 0
A51: Information and Communication Infrastructure | C51: =SB18b!C70 -> 0 | D51: =SB18b!D70 -> 0 | E51: =SB18b!E70 -> 0 | F51: =SB18b!F70 -> 0 | G51: =SB18b!G70 -> 0 | H51: =SB18b!H70 -> 0 | I51: =SB18b!I70 -> 0 | J51: =SB18b!J70 -> 0 | K51: =SB18b!K70 -> 0 | L51: =SB18b!L70 -> 0 | M51: =SB18b!M70 -> 0 | V51: 0
A52: Infrastructure | C52: =SUM(C43:C51) -> 0 | D52: =SUM(D43:D51) -> 0 | E52: 0 | F52: 0 | G52: 0 | H52: 0 | I52: 0 | J52: 0 | K52: 0 | L52: 0 | M52: 0 | V52: 0
A53: Community Facilities | C53: =SB18b!C77 -> 0 | D53: =SB18b!D77 -> 0 | E53: =SB18b!E77 -> 0 | F53: =SB18b!F77 -> 0 | G53: =SB18b!G77 -> 0 | H53: =SB18b!H77 -> 0 | I53: =SB18b!I77 -> 0 | J53: =SB18b!J77 -> 0 | K53: =SB18b!K77 -> 0 | L53: =SB18b!L77 -> 0 | M53: =SB18b!M77 -> 0 | V53: 0
A54: Sport and Recreation Facilities | C54: =SB18b!C100 -> 0 | D54: =SB18b!D100 -> 0 | E54: =SB18b!E100 -> 0 | F54: =SB18b!F100 -> 0 | G54: =SB18b!G100 -> 0 | H54: =SB18b!H100 -> 0 | I54: =SB18b!I100 -> 0 | J54: =SB18b!J100 -> 0 | K54: =SB18b!K100 -> 0 | L54: =SB18b!L100 -> 0 | M54: =SB18b!M100 -> 0 | V54: 0
A55: Community Assets | C55: =SUM(C53:C54) -> 0 | D55: =SUM(D53:D54) -> 0 | E55: 0 | F55: 0 | G55: 0 | H55: 0 | I55: 0 | J55: 0 | K55: 0 | L55: 0 | M55: 0 | V55: 0
A56: Heritage Assets | C56: =SB18b!C105 -> 0 | D56: =SB18b!D105 -> 0 | E56: =SB18b!E105 -> 0 | F56: =SB18b!F105 -> 0 | G56: =SB18b!G105 -> 0 | H56: =SB18b!H105 -> 0 | I56: =SB18b!I105 -> 0 | J56: =SB18b!J105 -> 0 | K56: =SB18b!K105 -> 0 | L56: =SB18b!L105 -> 0 | M56: =SB18b!M105 -> 0 | V56: 0
A57: Revenue Generating | C57: =SB18b!C113 -> 0 | D57: =SB18b!D113 -> 0 | E57: =SB18b!E113 -> 0 | F57: =SB18b!F113 -> 0 | G57: =SB18b!G113 -> 0 | H57: =SB18b!H113 -> 0 | I57: =SB18b!I113 -> 0 | J57: =SB18b!J113 -> 0 | K57: =SB18b!K113 -> 0 | L57: =SB18b!L113 -> 0 | M57: =SB18b!M113 -> 0 | V57: 0
A58: Non-revenue Generating | C58: =SB18b!C116 -> 0 | D58: =SB18b!D116 -> 0 | E58: =SB18b!E116 -> 0 | F58: =SB18b!F116 -> 0 | G58: =SB18b!G116 -> 0 | H58: =SB18b!H116 -> 0 | I58: =SB18b!I116 -> 0 | J58: =SB18b!J116 -> 0 | K58: =SB18b!K116 -> 0 | L58: =SB18b!L116 -> 0 | M58: =SB18b!M116 -> 0 | V58: 0
A59: Investment properties | C59: =SUM(C57:C58) -> 0 | D59: =SUM(D57:D58) -> 0 | E59: 0 | F59: 0 | G59: 0 | H59: 0 | I59: 0 | J59: 0 | K59: 0 | L59: 0 | M59: 0 | V59: 0
A60: Operational Buildings | C60: =SB18b!C121 -> 0 | D60: =SB18b!D121 -> 0 | E60: =SB18b!E121 -> 0 | F60: =SB18b!F121 -> 0 | G60: =SB18b!G121 -> 0 | H60: =SB18b!H121 -> 0 | I60: =SB18b!I121 -> 0 | J60: =SB18b!J121 -> 0 | K60: =SB18b!K121 -> 0 | L60: =SB18b!L121 -> 0 | M60: =SB18b!M121 -> 0 | V60: 0
A61: Housing | C61: =SB18b!C133 -> 0 | D61: =SB18b!D133 -> 0 | E61: =SB18b!E133 -> 0 | F61: =SB18b!F133 -> 0 | G61: =SB18b!G133 -> 0 | H61: =SB18b!H133 -> 0 | I61: =SB18b!I133 -> 0 | J61: =SB18b!J133 -> 0 | K61: =SB18b!K133 -> 0 | L61: =SB18b!L133 -> 0 | M61: =SB18b!M133 -> 0 | V61: 0
A62: Other Assets | B62: 6 | C62: =SUM(C60:C61) -> 0 | D62: =SUM(D60:D61) -> 0 | E62: 0 | F62: 0 | G62: 0 | H62: 0 | I62: 0 | J62: 0 | K62: 0 | L62: 0 | M62: 0 | V62: 0
A63: Biological or Cultivated Assets | C63: =SB18b!C138 -> 0 | D63: =SB18b!D138 -> 0 | E63: =SB18b!E138 -> 0 | F63: =SB18b!F138 -> 0 | G63: =SB18b!G138 -> 0 | H63: =SB18b!H138 -> 0 | I63: =SB18b!I138 -> 0 | J63: =SB18b!J138 -> 0 | K63: =SB18b!K138 -> 0 | L63: =SB18b!L138 -> 0 | M63: =SB18b!M138 -> 0 | V63: 0
A64: Servitudes | C64: =SB18b!C142 -> 0 | D64: =SB18b!D142 -> 0 | E64: =SB18b!E142 -> 0 | F64: =SB18b!F142 -> 0 | G64: =SB18b!G142 -> 0 | H64: =SB18b!H142 -> 0 | I64: =SB18b!I142 -> 0 | J64: =SB18b!J142 -> 0 | K64: =SB18b!K142 -> 0 | L64: =SB18b!L142 -> 0 | M64: =SB18b!M142 -> 0 | V64: 0
A65: Licences and Rights | C65: =SB18b!C143 -> 0 | D65: =SB18b!D143 -> 0 | E65: =SB18b!E143 -> 0 | F65: =SB18b!F143 -> 0 | G65: =SB18b!G143 -> 0 | H65: =SB18b!H143 -> 0 | I65: =SB18b!I143 -> 0 | J65: =SB18b!J143 -> 0 | K65: =SB18b!K143 -> 0 | L65: =SB18b!L143 -> 0 | M65: =SB18b!M143 -> 0 | V65: 0
A66: Intangible Assets | C66: =SUM(C64:C65) -> 0 | D66: =SUM(D64:D65) -> 0 | E66: 0 | F66: 0 | G66: 0 | H66: 0 | I66: 0 | J66: 0 | K66: 0 | L66: 0 | M66: 0 | V66: 0
A67: Computer Equipment | C67: =SB18b!C151 -> 0 | D67: =SB18b!D151 -> 0 | E67: =SB18b!E151 -> 0 | F67: =SB18b!F151 -> 0 | G67: =SB18b!G151 -> 0 | H67: =SB18b!H151 -> 0 | I67: =SB18b!I151 -> 0 | J67: =SB18b!J151 -> 0 | K67: =SB18b!K151 -> 0 | L67: =SB18b!L151 -> 0 | M67: =SB18b!M151 -> 0 | V67: 0
A68: Furniture and Office Equipment | C68: =SB18b!C154 -> 0 | D68: =SB18b!D154 -> 0 | E68: =SB18b!E154 -> 0 | F68: =SB18b!F154 -> 0 | G68: =SB18b!G154 -> 0 | H68: =SB18b!H154 -> 0 | I68: =SB18b!I154 -> 0 | J68: =SB18b!J154 -> 0 | K68: =SB18b!K154 -> 0 | L68: =SB18b!L154 -> 0 | M68: =SB18b!M154 -> 0 | V68: 0
A69: Machinery and Equipment | C69: =SB18b!C157 -> 0 | D69: =SB18b!D157 -> 0 | E69: =SB18b!E157 -> 0 | F69: =SB18b!F157 -> 0 | G69: =SB18b!G157 -> 0 | H69: =SB18b!H157 -> 0 | I69: =SB18b!I157 -> 0 | J69: =SB18b!J157 -> 0 | K69: =SB18b!K157 -> 0 | L69: =SB18b!L157 -> 0 | M69: =SB18b!M157 -> 0 | V69: 0
A70: Transport Assets | C70: =SB18b!C160 -> 0 | D70: =SB18b!D160 -> 0 | E70: =SB18b!E160 -> 0 | F70: =SB18b!F160 -> 0 | G70: =SB18b!G160 -> 0 | H70: =SB18b!H160 -> 0 | I70: =SB18b!I160 -> 0 | J70: =SB18b!J160 -> 0 | K70: =SB18b!K160 -> 0 | L70: =SB18b!L160 -> 0 | M70: =SB18b!M160 -> 0 | V70: 0
A71: Land | C71: =SB18b!C163 -> 0 | D71: =SB18b!D163 -> 0 | E71: =SB18b!E163 -> 0 | F71: =SB18b!F163 -> 0 | G71: =SB18b!G163 -> 0 | H71: =SB18b!H163 -> 0 | I71: =SB18b!I163 -> 0 | J71: =SB18b!J163 -> 0 | K71: =SB18b!K163 -> 0 | L71: =SB18b!L163 -> 0 | M71: =SB18b!M163 -> 0 | V71: 0
A72: Zoo's, Marine and Non-biological Animals | C72: =SB18b!C166 -> 0 | D72: =SB18b!D166 -> 0 | E72: =SB18b!E166 -> 0 | F72: =SB18b!F166 -> 0 | G72: =SB18b!G166 -> 0 | H72: =SB18b!H166 -> 0 | I72: =SB18b!I166 -> 0 | J72: =SB18b!J166 -> 0 | K72: =SB18b!K166 -> 0 | L72: =SB18b!L166 -> 0 | M72: =SB18b!M166 -> 0 | V72: 0
A73: Mature | C73: =+SB18b!C170 -> 0 | D73: =+SB18b!D170 -> 0 | E73: =+SB18b!E170 -> 0 | F73: =+SB18b!F170 -> 0 | G73: =+SB18b!G170 -> 0 | H73: =+SB18b!H170 -> 0 | I73: =+SB18b!I170 -> 0 | J73: =+SB18b!J170 -> 0 | K73: =+SB18b!K170 -> 0 | L73: =+SB18b!L170 -> 0 | M73: =+SB18b!M170 -> 0 | V73: 0
A74: Immature | C74: =+SB18b!C173 -> 0 | D74: =+SB18b!D173 -> 0 | E74: =+SB18b!E173 -> 0 | F74: =+SB18b!F173 -> 0 | G74: =+SB18b!G173 -> 0 | H74: =+SB18b!H173 -> 0 | I74: =+SB18b!I173 -> 0 | J74: =+SB18b!J173 -> 0 | K74: =+SB18b!K173 -> 0 | L74: =+SB18b!L173 -> 0 | M74: =+SB18b!M173 -> 0 | V74: 0
A75: Living Resources | C75: =+C73+C74 -> 0 | D75: 0 | E75: 0 | F75: 0 | G75: 0 | H75: 0 | I75: 0 | J75: 0 | K75: 0 | L75: 0 | M75: 0 | V75: 0
A77: Total Upgrading of Existing Assets to be adjusted | B77: 2a | C77: =C87+C90+C91+C94+C97+C98+SUM(C101:C107)+C110 -> 43067999.65 | D77: =D87+D90+D91+D94+D97+D98+SUM(D101:D107)+D110 -> 37309969.22 | E77: 0 | F77: 0 | G77: 0 | H77: 0 | I77: -2360084.217 | J77: -2360084.217 | K77: 34949885 | L77: 37687913 | M77: 35566000 | V77: 37309969.22
A78: Roads Infrastructure | C78: =SB18e!C9 -> 0 | D78: =SB18e!D9 -> 0 | E78: =SB18e!E9 -> 0 | F78: =SB18e!F9 -> 0 | G78: =SB18e!G9 -> 0 | H78: =SB18e!H9 -> 0 | I78: =SB18e!I9 -> 0 | J78: =SB18e!J9 -> 0 | K78: =SB18e!K9 -> 0 | L78: =SB18e!L9 -> 0 | M78: =SB18e!M9 -> 0 | V78: 0
A79: Storm water Infrastructure | C79: =SB18e!C14 -> 0 | D79: =SB18e!D14 -> 0 | E79: =SB18e!E14 -> 0 | F79: =SB18e!F14 -> 0 | G79: =SB18e!G14 -> 0 | H79: =SB18e!H14 -> 0 | I79: =SB18e!I14 -> 0 | J79: =SB18e!J14 -> 0 | K79: =SB18e!K14 -> 0 | L79: =SB18e!L14 -> 0 | M79: =SB18e!M14 -> 0 | V79: 0
A80: Electrical Infrastructure | C80: =SB18e!C18 -> 0 | D80: =SB18e!D18 -> 0 | E80: =SB18e!E18 -> 0 | F80: =SB18e!F18 -> 0 | G80: =SB18e!G18 -> 0 | H80: =SB18e!H18 -> 0 | I80: =SB18e!I18 -> 0 | J80: =SB18e!J18 -> 0 | K80: =SB18e!K18 -> 0 | L80: =SB18e!L18 -> 0 | M80: =SB18e!M18 -> 0 | V80: 0
A81: Water Supply Infrastructure | C81: =SB18e!C28 -> 5000000 | D81: =SB18e!D28 -> 3800000 | E81: =SB18e!E28 -> 0 | F81: =SB18e!F28 -> 0 | G81: =SB18e!G28 -> 0 | H81: =SB18e!H28 -> 0 | I81: =SB18e!I28 -> 0 | J81: =SB18e!J28 -> 0 | K81: =SB18e!K28 -> 3800000 | L81: =SB18e!L28 -> 0 | M81: =SB18e!M28 -> 22042316.52 | V81: 3800000
A82: Sanitation Infrastructure | C82: =SB18e!C39 -> 31667999.65 | D82: =SB18e!D39 -> 27500228.72 | E82: =SB18e!E39 -> 0 | F82: =SB18e!F39 -> 0 | G82: =SB18e!G39 -> 0 | H82: =SB18e!H39 -> 0 | I82: =SB18e!I39 -> -2662294.717 | J82: =SB18e!J39 -> -2662294.717 | K82: =SB18e!K39 -> 24837934 | L82: =SB18e!L39 -> 37687913 | M82: =SB18e!M39 -> 13523683.48 | V82: 27500228.72
A83: Solid Waste Infrastructure | C83: =SB18e!C46 -> 0 | D83: =SB18e!D46 -> 0 | E83: =SB18e!E46 -> 0 | F83: =SB18e!F46 -> 0 | G83: =SB18e!G46 -> 0 | H83: =SB18e!H46 -> 0 | I83: =SB18e!I46 -> 0 | J83: =SB18e!J46 -> 0 | K83: =SB18e!K46 -> 0 | L83: =SB18e!L46 -> 0 | M83: =SB18e!M46 -> 0 | V83: 0
A84: Rail Infrastructure | C84: =SB18e!C54 -> 0 | D84: =SB18e!D54 -> 0 | E84: =SB18e!E54 -> 0 | F84: =SB18e!F54 -> 0 | G84: =SB18e!G54 -> 0 | H84: =SB18e!H54 -> 0 | I84: =SB18e!I54 -> 0 | J84: =SB18e!J54 -> 0 | K84: =SB18e!K54 -> 0 | L84: =SB18e!L54 -> 0 | M84: =SB18e!M54 -> 0 | V84: 0
A85: Coastal Infrastructure | C85: =SB18e!C64 -> 0 | D85: =SB18e!D64 -> 0 | E85: =SB18e!E64 -> 0 | F85: =SB18e!F64 -> 0 | G85: =SB18e!G64 -> 0 | H85: =SB18e!H64 -> 0 | I85: =SB18e!I64 -> 0 | J85: =SB18e!J64 -> 0 | K85: =SB18e!K64 -> 0 | L85: =SB18e!L64 -> 0 | M85: =SB18e!M64 -> 0 | V85: 0
A86: Information and Communication Infrastructure | C86: =SB18e!C70 -> 0 | D86: =SB18e!D70 -> 0 | E86: =SB18e!E70 -> 0 | F86: =SB18e!F70 -> 0 | G86: =SB18e!G70 -> 0 | H86: =SB18e!H70 -> 0 | I86: =SB18e!I70 -> 0 | J86: =SB18e!J70 -> 0 | K86: =SB18e!K70 -> 0 | L86: =SB18e!L70 -> 0 | M86: =SB18e!M70 -> 0 | V86: 0
A87: Infrastructure | C87: =SUM(C78:C86) -> 36667999.65 | D87: =SUM(D78:D86) -> 31300228.72 | E87: 0 | F87: 0 | G87: 0 | H87: 0 | I87: -2662294.717 | J87: -2662294.717 | K87: 28637934 | L87: 37687913 | M87: 35566000 | V87: 31300228.72
A88: Community Facilities | C88: =SB18e!C77 -> 0 | D88: =SB18e!D77 -> 884412 | E88: =SB18e!E77 -> 0 | F88: =SB18e!F77 -> 0 | G88: =SB18e!G77 -> 0 | H88: =SB18e!H77 -> 0 | I88: =SB18e!I77 -> 0 | J88: =SB18e!J77 -> 0 | K88: =SB18e!K77 -> 884412 | L88: =SB18e!L77 -> 0 | M88: =SB18e!M77 -> 0 | V88: 884412
A89: Sport and Recreation Facilities | C89: =SB18e!C100 -> 0 | D89: =SB18e!D100 -> 574966.5 | E89: =SB18e!E100 -> 0 | F89: =SB18e!F100 -> 0 | G89: =SB18e!G100 -> 0 | H89: =SB18e!H100 -> 0 | I89: =SB18e!I100 -> 302210.5 | J89: =SB18e!J100 -> 302210.5 | K89: =SB18e!K100 -> 877177 | L89: =SB18e!L100 -> 0 | M89: =SB18e!M100 -> 0 | V89: 574966.5
A90: Community Assets | C90: =SUM(C88:C89) -> 0 | D90: =SUM(D88:D89) -> 1459378.5 | E90: 0 | F90: 0 | G90: 0 | H90: 0 | I90: 302210.5 | J90: 302210.5 | K90: 1761589 | L90: 0 | M90: 0 | V90: 1459378.5
A91: Heritage Assets | C91: =SB18e!C105 -> 0 | D91: =SB18e!D105 -> 0 | E91: =SB18e!E105 -> 0 | F91: =SB18e!F105 -> 0 | G91: =SB18e!G105 -> 0 | H91: =SB18e!H105 -> 0 | I91: =SB18e!I105 -> 0 | J91: =SB18e!J105 -> 0 | K91: =SB18e!K105 -> 0 | L91: =SB18e!L105 -> 0 | M91: =SB18e!M105 -> 0 | V91: 0
A92: Revenue Generating | C92: =SB18e!C113 -> 0 | D92: =SB18e!D113 -> 0 | E92: =SB18e!E113 -> 0 | F92: =SB18e!F113 -> 0 | G92: =SB18e!G113 -> 0 | H92: =SB18e!H113 -> 0 | I92: =SB18e!I113 -> 0 | J92: =SB18e!J113 -> 0 | K92: =SB18e!K113 -> 0 | L92: =SB18e!L113 -> 0 | M92: =SB18e!M113 -> 0 | V92: 0
A93: Non-revenue Generating | C93: =SB18e!C116 -> 0 | D93: =SB18e!D116 -> 0 | E93: =SB18e!E116 -> 0 | F93: =SB18e!F116 -> 0 | G93: =SB18e!G116 -> 0 | H93: =SB18e!H116 -> 0 | I93: =SB18e!I116 -> 0 | J93: =SB18e!J116 -> 0 | K93: =SB18e!K116 -> 0 | L93: =SB18e!L116 -> 0 | M93: =SB18e!M116 -> 0 | V93: 0
A94: Investment properties | C94: =SUM(C92:C93) -> 0 | D94: =SUM(D92:D93) -> 0 | E94: 0 | F94: 0 | G94: 0 | H94: 0 | I94: 0 | J94: 0 | K94: 0 | L94: 0 | M94: 0 | V94: 0
A95: Operational Buildings | C95: =SB18e!C121 -> 0 | D95: =SB18e!D121 -> 0 | E95: =SB18e!E121 -> 0 | F95: =SB18e!F121 -> 0 | G95: =SB18e!G121 -> 0 | H95: =SB18e!H121 -> 0 | I95: =SB18e!I121 -> 0 | J95: =SB18e!J121 -> 0 | K95: =SB18e!K121 -> 0 | L95: =SB18e!L121 -> 0 | M95: =SB18e!M121 -> 0 | V95: 0
A96: Housing | C96: =SB18e!C133 -> 0 | D96: =SB18e!D133 -> 0 | E96: =SB18e!E133 -> 0 | F96: =SB18e!F133 -> 0 | G96: =SB18e!G133 -> 0 | H96: =SB18e!H133 -> 0 | I96: =SB18e!I133 -> 0 | J96: =SB18e!J133 -> 0 | K96: =SB18e!K133 -> 0 | L96: =SB18e!L133 -> 0 | M96: =SB18e!M133 -> 0 | V96: 0
A97: Other Assets | B97: 6 | C97: =SUM(C95:C96) -> 0 | D97: =SUM(D95:D96) -> 0 | E97: 0 | F97: 0 | G97: 0 | H97: 0 | I97: 0 | J97: 0 | K97: 0 | L97: 0 | M97: 0 | V97: 0
A98: Biological or Cultivated Assets | C98: =SB18e!C138 -> 0 | D98: =SB18e!D138 -> 0 | E98: =SB18e!E138 -> 0 | F98: =SB18e!F138 -> 0 | G98: =SB18e!G138 -> 0 | H98: =SB18e!H138 -> 0 | I98: =SB18e!I138 -> 0 | J98: =SB18e!J138 -> 0 | K98: =SB18e!K138 -> 0 | L98: =SB18e!L138 -> 0 | M98: =SB18e!M138 -> 0 | V98: 0
A99: Servitudes | C99: =SB18e!C142 -> 0 | D99: =SB18e!D142 -> 0 | E99: =SB18e!E142 -> 0 | F99: =SB18e!F142 -> 0 | G99: =SB18e!G142 -> 0 | H99: =SB18e!H142 -> 0 | I99: =SB18e!I142 -> 0 | J99: =SB18e!J142 -> 0 | K99: =SB18e!K142 -> 0 | L99: =SB18e!L142 -> 0 | M99: =SB18e!M142 -> 0 | V99: 0
A100: Licences and Rights | C100: =SB18e!C143 -> 0 | D100: =SB18e!D143 -> 0 | E100: =SB18e!E143 -> 0 | F100: =SB18e!F143 -> 0 | G100: =SB18e!G143 -> 0 | H100: =SB18e!H143 -> 0 | I100: =SB18e!I143 -> 0 | J100: =SB18e!J143 -> 0 | K100: =SB18e!K143 -> 0 | L100: =SB18e!L143 -> 0 | M100: =SB18e!M143 -> 0 | V100: 0
A101: Intangible Assets | C101: =SUM(C99:C100) -> 0 | D101: =SUM(D99:D100) -> 0 | E101: 0 | F101: 0 | G101: 0 | H101: 0 | I101: 0 | J101: 0 | K101: 0 | L101: 0 | M101: 0 | V101: 0
A102: Computer Equipment | C102: =SB18e!C151 -> 0 | D102: =SB18e!D151 -> 0 | E102: =SB18e!E151 -> 0 | F102: =SB18e!F151 -> 0 | G102: =SB18e!G151 -> 0 | H102: =SB18e!H151 -> 0 | I102: =SB18e!I151 -> 0 | J102: =SB18e!J151 -> 0 | K102: =SB18e!K151 -> 0 | L102: =SB18e!L151 -> 0 | M102: =SB18e!M151 -> 0 | V102: 0
A103: Furniture and Office Equipment | C103: =SB18e!C154 -> 0 | D103: =SB18e!D154 -> 0 | E103: =SB18e!E154 -> 0 | F103: =SB18e!F154 -> 0 | G103: =SB18e!G154 -> 0 | H103: =SB18e!H154 -> 0 | I103: =SB18e!I154 -> 0 | J103: =SB18e!J154 -> 0 | K103: =SB18e!K154 -> 0 | L103: =SB18e!L154 -> 0 | M103: =SB18e!M154 -> 0 | V103: 0
A104: Machinery and Equipment | C104: =SB18e!C157 -> 0 | D104: =SB18e!D157 -> 0 | E104: =SB18e!E157 -> 0 | F104: =SB18e!F157 -> 0 | G104: =SB18e!G157 -> 0 | H104: =SB18e!H157 -> 0 | I104: =SB18e!I157 -> 0 | J104: =SB18e!J157 -> 0 | K104: =SB18e!K157 -> 0 | L104: =SB18e!L157 -> 0 | M104: =SB18e!M157 -> 0 | V104: 0
A105: Transport Assets | C105: =SB18e!C160 -> 6400000 | D105: =SB18e!D160 -> 4550362 | E105: =SB18e!E160 -> 0 | F105: =SB18e!F160 -> 0 | G105: =SB18e!G160 -> 0 | H105: =SB18e!H160 -> 0 | I105: =SB18e!I160 -> 0 | J105: =SB18e!J160 -> 0 | K105: =SB18e!K160 -> 4550362 | L105: =SB18e!L160 -> 0 | M105: =SB18e!M160 -> 0 | V105: 4550362
A106: Land | C106: =SB18e!C163 -> 0 | D106: =SB18e!D163 -> 0 | E106: =SB18e!E163 -> 0 | F106: =SB18e!F163 -> 0 | G106: =SB18e!G163 -> 0 | H106: =SB18e!H163 -> 0 | I106: =SB18e!I163 -> 0 | J106: =SB18e!J163 -> 0 | K106: =SB18e!K163 -> 0 | L106: =SB18e!L163 -> 0 | M106: =SB18e!M163 -> 0 | V106: 0
A107: Zoo's, Marine and Non-biological Animals | C107: =SB18e!C166 -> 0 | D107: =SB18e!D166 -> 0 | E107: =SB18e!E166 -> 0 | F107: =SB18e!F166 -> 0 | G107: =SB18e!G166 -> 0 | H107: =SB18e!H166 -> 0 | I107: =SB18e!I166 -> 0 | J107: =SB18e!J166 -> 0 | K107: =SB18e!K166 -> 0 | L107: =SB18e!L166 -> 0 | M107: =SB18e!M166 -> 0 | V107: 0
A108: Mature | C108: =SB18e!C170 -> 0 | D108: =SB18e!D170 -> 0 | E108: =SB18e!E170 -> 0 | F108: =SB18e!F170 -> 0 | G108: =SB18e!G170 -> 0 | H108: =SB18e!H170 -> 0 | I108: =SB18e!I170 -> 0 | J108: =SB18e!J170 -> 0 | K108: =SB18e!K170 -> 0 | L108: =SB18e!L170 -> 0 | M108: =SB18e!M170 -> 0 | V108: 0
A109: Immature | C109: =SB18e!C173 -> 0 | D109: =SB18e!D173 -> 0 | E109: =SB18e!E173 -> 0 | F109: =SB18e!F173 -> 0 | G109: =SB18e!G173 -> 0 | H109: =SB18e!H173 -> 0 | I109: =SB18e!I173 -> 0 | J109: =SB18e!J173 -> 0 | K109: =SB18e!K173 -> 0 | L109: =SB18e!L173 -> 0 | M109: =SB18e!M173 -> 0 | V109: 0
A110: Living Resources | C110: =+C108+C109 -> 0 | D110: 0 | E110: 0 | F110: 0 | G110: 0 | H110: 0 | I110: 0 | J110: 0 | K110: 0 | L110: 0 | M110: 0 | V110: 0
A112: Total Capital Expenditure to be adjusted | B112: 4 | C112: =C7+C42+C77 -> 88830339.72 | D112: 122475746.2 | E112: 0 | F112: 0 | G112: 0 | H112: 0 | I112: -4252213.217 | J112: -4252213.217 | K112: 118223533 | L112: 151707913 | M112: 152037000 | V112: 122475746.2
A113: Roads Infrastructure | C113: =C8+C43+C78 -> 45288340.07 | D113: 78724340 | E113: 0 | F113: 0 | G113: 0 | H113: 0 | I113: 617742 | J113: 617742 | K113: 79342082 | L113: 108020000 | M113: 110200000 | V113: 78724340
A114: Storm water Infrastructure | C114: =C9+C44+C79 -> 0 | D114: 0 | E114: 0 | F114: 0 | G114: 0 | H114: 0 | I114: 0 | J114: 0 | K114: 0 | L114: 0 | M114: 0 | V114: 0
A115: Electrical Infrastructure | C115: =C10+C45+C80 -> 0 | D115: 1277437 | E115: 0 | F115: 0 | G115: 0 | H115: 0 | I115: -1277437 | J115: -1277437 | K115: 0 | L115: 6000000 | M115: 6271000 | V115: 1277437
A116: Water Supply Infrastructure | C116: =C11+C46+C81 -> 5000000 | D116: 3800000 | E116: 0 | F116: 0 | G116: 0 | H116: 0 | I116: 0 | J116: 0 | K116: 3800000 | L116: 0 | M116: 22042316.52 | V116: 3800000
A117: Sanitation Infrastructure | C117: =C12+C47+C82 -> 31667999.65 | D117: 27500228.72 | E117: 0 | F117: 0 | G117: 0 | H117: 0 | I117: -2662294.717 | J117: -2662294.717 | K117: 24837934 | L117: 37687913 | M117: 13523683.48 | V117: 27500228.72
A118: Solid Waste Infrastructure | C118: =C13+C48+C83 -> 0 | D118: 0 | E118: 0 | F118: 0 | G118: 0 | H118: 0 | I118: 0 | J118: 0 | K118: 0 | L118: 0 | M118: 0 | V118: 0
A119: Rail Infrastructure | C119: =C14+C49+C84 -> 0 | D119: 0 | E119: 0 | F119: 0 | G119: 0 | H119: 0 | I119: 0 | J119: 0 | K119: 0 | L119: 0 | M119: 0 | V119: 0
A120: Coastal Infrastructure | C120: =C15+C50+C85 -> 0 | D120: 0 | E120: 0 | F120: 0 | G120: 0 | H120: 0 | I120: 0 | J120: 0 | K120: 0 | L120: 0 | M120: 0 | V120: 0
A121: Information and Communication Infrastructure | C121: =C16+C51+C86 -> 0 | D121: 0 | E121: 0 | F121: 0 | G121: 0 | H121: 0 | I121: 0 | J121: 0 | K121: 0 | L121: 0 | M121: 0 | V121: 0
A122: Infrastructure | C122: =C17+C52+C87 -> 81956339.72 | D122: 111302005.7 | E122: 0 | F122: 0 | G122: 0 | H122: 0 | I122: -3321989.717 | J122: -3321989.717 | K122: 107980016 | L122: 151707913 | M122: 152037000 | V122: 111302005.7
A123: Community Facilities | C123: =C18+C53+C88 -> 0 | D123: 2434412 | E123: 0 | F123: 0 | G123: 0 | H123: 0 | I123: -1100000 | J123: -1100000 | K123: 1334412 | L123: 0 | M123: 0 | V123: 2434412
A124: Sport and Recreation Facilities | C124: =C19+C54+C89 -> 0 | D124: 574966.5 | E124: 0 | F124: 0 | G124: 0 | H124: 0 | I124: 302210.5 | J124: 302210.5 | K124: 877177 | L124: 0 | M124: 0 | V124: 574966.5
A125: Community Assets | C125: =C20+C55+C90 -> 0 | D125: 3009378.5 | E125: 0 | F125: 0 | G125: 0 | H125: 0 | I125: -797789.5 | J125: -797789.5 | K125: 2211589 | L125: 0 | M125: 0 | V125: 3009378.5
A126: Heritage Assets | C126: =C21+C56+C91 -> 0 | D126: 0 | E126: 0 | F126: 0 | G126: 0 | H126: 0 | I126: 0 | J126: 0 | K126: 0 | L126: 0 | M126: 0 | V126: 0
A127: Revenue Generating | C127: =C22+C57+C92 -> 0 | D127: 0 | E127: 0 | F127: 0 | G127: 0 | H127: 0 | I127: 0 | J127: 0 | K127: 0 | L127: 0 | M127: 0 | V127: 0
A128: Non-revenue Generating | C128: =C23+C58+C93 -> 0 | D128: =D23+D58+D93 -> 0 | E128: 0 | F128: 0 | G128: 0 | H128: 0 | I128: 0 | J128: 0 | K128: 0 | L128: 0 | M128: 0 | V128: 0
A129: Investment properties | C129: 0 | D129: =D24+D59+D94 -> 0 | E129: 0 | F129: 0 | G129: 0 | H129: 0 | I129: 0 | J129: 0 | K129: 0 | L129: 0 | M129: 0 | V129: 0
A130: Operational Buildings | C130: 0 | D130: =D25+D60+D95 -> 0 | E130: 0 | F130: 0 | G130: 0 | H130: 0 | I130: 0 | J130: 0 | K130: 0 | L130: 0 | M130: 0 | V130: 0
A131: Housing | C131: 0 | D131: =D26+D61+D96 -> 0 | E131: 0 | F131: 0 | G131: 0 | H131: 0 | I131: 0 | J131: 0 | K131: 0 | L131: 0 | M131: 0 | V131: 0
A132: Other Assets | C132: 0 | D132: =D27+D62+D97 -> 0 | E132: 0 | F132: 0 | G132: 0 | H132: 0 | I132: 0 | J132: 0 | K132: 0 | L132: 0 | M132: 0 | V132: 0
A133: Biological or Cultivated Assets | C133: 0 | D133: =D28+D63+D98 -> 0 | E133: 0 | F133: 0 | G133: 0 | H133: 0 | I133: 0 | J133: 0 | K133: 0 | L133: 0 | M133: 0 | V133: 0
A134: Servitudes | C134: 0 | D134: =D29+D64+D99 -> 0 | E134: 0 | F134: 0 | G134: 0 | H134: 0 | I134: 0 | J134: 0 | K134: 0 | L134: 0 | M134: 0 | V134: 0
A135: Licences and Rights | C135: 0 | D135: =D30+D65+D100 -> 0 | E135: 0 | F135: 0 | G135: 0 | H135: 0 | I135: 0 | J135: 0 | K135: 0 | L135: 0 | M135: 0 | V135: 0
A136: Intangible Assets | C136: 0 | D136: =D31+D66+D101 -> 0 | E136: 0 | F136: 0 | G136: 0 | H136: 0 | I136: 0 | J136: 0 | K136: 0 | L136: 0 | M136: 0 | V136: 0
A137: Computer Equipment | C137: 50000 | D137: =D32+D67+D102 -> 2470000 | E137: 0 | F137: 0 | G137: 0 | H137: 0 | I137: -233000 | J137: -233000 | K137: 2237000 | L137: 0 | M137: 0 | V137: 2470000
A138: Furniture and Office Equipment | C138: 374000 | D138: =D33+D68+D103 -> 414000 | E138: 0 | F138: 0 | G138: 0 | H138: 0 | I138: 100566 | J138: 100566 | K138: 514566 | L138: 0 | M138: 0 | V138: 414000
A139: Machinery and Equipment | C139: 50000 | D139: =D34+D69+D104 -> 730000 | E139: 0 | F139: 0 | G139: 0 | H139: 0 | I139: 0 | J139: 0 | K139: 730000 | L139: 0 | M139: 0 | V139: 730000
A140: Transport Assets | C140: 6400000 | D140: =D35+D70+D105 -> 4550362 | E140: 0 | F140: 0 | G140: 0 | H140: 0 | I140: 0 | J140: 0 | K140: 4550362 | L140: 0 | M140: 0 | V140: 4550362
A141: Land | C141: 0 | D141: =D36+D71+D106 -> 0 | E141: 0 | F141: 0 | G141: 0 | H141: 0 | I141: 0 | J141: 0 | K141: 0 | L141: 0 | M141: 0 | V141: 0
A142: Zoo's, Marine and Non-biological Animals | C142: 0 | D142: =D37+D72+D107 -> 0 | E142: 0 | F142: 0 | G142: 0 | H142: 0 | I142: 0 | J142: 0 | K142: 0 | L142: 0 | M142: 0 | V142: 0
A143: Mature | C143: 0 | D143: 0 | E143: 0 | F143: 0 | G143: 0 | H143: 0 | I143: 0 | J143: 0 | K143: 0 | L143: 0 | M143: 0 | V143: 0
A144: Immature | C144: 0 | D144: 0 | E144: 0 | F144: 0 | G144: 0 | H144: 0 | I144: 0 | J144: 0 | K144: 0 | L144: 0 | M144: 0 | V144: 0
A145: Living Resources | C145: =+C40+C75+C110 -> 0 | D145: =+D40+D75+D110 -> 0 | E145: 0 | F145: 0 | G145: 0 | H145: 0 | I145: 0 | J145: 0 | K145: 0 | L145: 0 | M145: 0 | V145: 0
A146: TOTAL CAPITAL EXPENDITURE to be adjusted | B146: 4 | C146: =C7+C42+C77 -> 88830339.72 | D146: =D7+D42+D77 -> 122475746.2 | E146: 0 | F146: 0 | G146: 0 | H146: 0 | I146: -4252213.217 | J146: -4252213.217 | K146: 118223533 | L146: 151707913 | M146: 152037000 | P146: Audited | R146: Depreciation | V146: 122475746.2
A148: ASSET REGISTER SUMMARY - PPE (WDV) | B148: 5 | C148: 1447076028 | D148: 1400578150 | E148: 0 | F148: 0 | G148: 0 | H148: 0 | I148: -4252213.217 | J148: -4252213.217 | K148: 1396325936 | L148: 1512492532 | M148: 1629018215 | V148: 1400578150
A149: =+A8 -> Roads Infrastructure | C149: 192012966 | D149: 222763557.6 | E149: 0 | F149: 0 | G149: 0 | H149: 0 | I149: 617742 | J149: 617742 | K149: 223381299.6 | L149: 327180667.6 | M149: 433160035.6 | P149: 148332347.6 | R149: =SUMIF(SB18d!$A:$A,'B9-Asset'!$A149,SB18d!K:K) -> 4293130 | S149: =SUMIF(SB18d!$A:$A,'B9-Asset'!$A149,SB18d!L:L) -> 4220632 | T149: =SUMIF(SB18d!$A:$A,'B9-Asset'!$A149,SB18d!M:M) -> 4220632 | V149: 222763557.6 | W149: =197776463.4*0.75 -> 148332347.6 | Y149: =K149+K150 -> 272336677.4 | Z149: 0.7609505039
